{"text_format":"1","workbook":"xlsx","n_sheets":12,"sheets":["READ-ME","Perpendicular","Parallel","Combination","Parallel-One_Direction","CutThru","Sidewalk","ISUP","Driveway","End Ramp","APS Button_Signal","RRFB Button"],"not_rendered":{"charts":0,"images":80,"macros":1,"external_links":0,"defined_names":20,"comments":10,"pivot_tables":0},"unopened":[],"bounds":{"document_bytes":16777216,"sheet_cells":100000,"rows_first":2000,"rows_last":500,"rows_between":2000,"halvings":0,"cell_chars":16384,"cell_head_chars":4096},"cells_cut":0,"cells_raw":0,"read":"whole","date_system":"1900"}

{"sheet":"READ-ME","index":0,"n_rows":252,"n_cols":8,"rows_kept":252,"cut":false,"hidden":false,"merged":[[20,5,20,10],[147,0,147,12],[111,0,111,8],[41,5,41,6],[41,1,41,2],[41,3,41,4],[40,4,40,6]]}
[]
[]
[]
[]
[]
[]
[]
[]
[]
[]
[]
[]
[]
[]
[]
[]
[]
[]
[]
[]
[null,"  Instructions are at:  ",null,null,null,"Instructions for Completing ADA Forms"]
[]
[]
[]
[]
[]
[]
[]
[]
[]
[]
[]
[]
[]
[]
[]
[]
[]
[]
[]
[null,"Forms Updated:  ----->",null,null,"2018-10-18"]
[null,"Useful Links:",null,"GeoPortal --->",null,"Geoportal"]
[null,null,null,"GeoPortal Instructions --->",null,null,null,{"$f":"HYPERLINK(\"#'READ-ME'!A148:M189\",\"Instructions\")","v":"Instructions"}]
[]
[]
[]
[]
[]
[]
[]
[]
[]
[]
[]
[]
[]
[]
[]
[]
[]
[]
[]
[]
[]
[null,"Site:"]
[]
[]
[]
[]
[]
[]
[]
[]
[]
[]
[]
[]
[]
[]
[]
[]
[]
[]
[]
[]
[null,null,"If two State Routes intersect, reference features to the route with the lower number"]
[]
[]
[]
[]
[]
[]
[]
[]
[]
[]
[]
[]
[]
[]
[]
[]
[]
[]
[]
[]
[]
[]
[]
[]
[]
["Location: Identify where the ADA feature is located on the roadway for the Data Steward's knowledge"]
[]
[]
[]
[]
[]
[]
[]
[]
[]
[]
[]
[]
[]
[]
[]
[]
[]
[]
[]
[]
[]
[]
[]
[]
[]
[]
[]
[]
[]
[]
[]
[]
[]
[]
[]
["GeoPortal Instructions for obtaining Lat/Long, SR Id, and MP ---  Double Click on Object for Instructions"]
[]
[]
[]
[]
[]
[]
[]
[]
[]
[]
[]
[]
[]
[]
[]
[]
[]
[]
[]
[]
[]
[]
[]
[]
[]
[]
[]
[]
[]
[]
[]
[]
[]
[]
[]
[]
[]
[]
[]
[]
[]
[]
[]
[]
[]
[]
[]
[]
[]
[]
[]
[]
[]
["Accuracy:"]
[null,null,"Identify how the Latitude and Longitude were determined for ADA Data Steward's knowledge"]
[null,null,null,"GeoPortal - Moderately accurate for Placement in GIS Map"]
[null,null,null,"GPS Field Device - Highly accurate for Placment in GIS Map"]
[null,null,null,"Other-Notes - Identify how the coordinates were obtained."]
[]
[]
[]
[]
[]
[]
[]
[]
[]
[]
[]
[]
[]
[]
[]
[]
["Left or Right Indicator"]
[]
[]
[]
[]
[]
[]
[]
[]
[]
[]
[]
[]
[]
[]
[]
[]
[]
[]
[]
[]
[]
[]
[]
[]
[]
[]
[]
[]
["Ahead or Back Indicator"]

{"sheet":"Perpendicular","index":1,"n_rows":51,"n_cols":149,"rows_kept":51,"cut":false,"hidden":false,"merged":[[41,17,41,18],[0,22,0,23],[1,22,1,23],[2,17,2,18],[4,1,4,3],[2,1,2,3],[2,4,2,5],[2,9,2,10],[1,11,1,12],[1,13,1,14],[3,17,3,18],[4,17,4,18],[4,9,4,10],[41,1,41,6],[8,1,8,3],[3,1,3,3],[6,1,6,3],[5,1,5,3],[38,5,38,8],[38,9,38,11],[7,4,7,6],[37,9,37,11],[3,4,3,7],[5,4,5,6],[6,4,6,6],[6,9,6,10],[7,9,7,10],[4,4,4,7],[2,33,2,34],[7,17,7,18],[7,11,7,14],[21,13,21,14],[6,11,6,12],[5,11,5,12],[2,13,2,14],[24,13,24,14],[8,10,8,12],[13,13,13,14],[26,15,26,16],[27,15,27,16],[0,1,1,9],[40,17,40,18],[9,1,9,10],[18,13,18,14],[25,15,25,16],[6,16,7,16],[35,17,35,18],[37,13,37,14],[30,15,30,16],[38,1,38,4],[28,15,28,16],[29,15,29,16],[28,1,36,11],[27,1,27,11],[37,1,37,4],[37,5,37,8]]}
[null,"ADA Feature - Perpendicular Curb Ramp\nMeasurements",null,null,null,null,null,null,null,null,null,{"$f":"IF(AND(OR(Y2=\"incomplete\",Y1=\"incomplete\"),LEN(N2)>0),\"= Required Field\",\"\")","v":""},null,null,null,null,null,null,null,null,"FeatureName",{"$f":"S2","v":"CR-PERP"},"Complete Header",null,{"$f":"IF(AND(N2<>\"Scoping\",OR(E3=\"\",J3=\"\",E4=\"\",N2=\"\",N3=\"\",N4=\"\",O4=\"A/B\",E7=\"\",O5=\"Lt or Rt?\",E5=\"\",E9=\"\",J5=\"\",J6=\"\",K6=\"\",J7=\"\",J8=\"\",N6=\"\",O6=\"\",P6=\"\",B39=\"\",F39=\"\",J39=\"\",E8=\"\")),\"incomplete\",\"pass\")","v":"incomplete"},null,null,null,null,null,null,null,null,null,null,null,null,null,null,null,null,null,null,null,null,null,null,null,null,null,null,null,null,null,null,null,null,null,null,null,null,null,null,null,null,null,null,null,null,null,null,null,null,null,null,null,null,null,null,null,null,null,null,null,null,null,null,null,null,null,{"$f":"MID(CELL(\"filename\",A1),FIND(\"]\",CELL(\"filename\",A1))+1,255)","v":"Perpendicular"}]
[null,null,null,null,null,null,null,null,null,null,null,"Phase",null,null,null,null,"Database Schema:",null,"CR-PERP",null,"CompletedUnderContract",{"$f":"E3","v":0},"Complete Header \"Scoping\"",null,{"$f":"IF(AND(N2=\"Scoping\",OR(E3=\"\",J3=\"\",E4=\"\",N3=\"\",N4=\"\",O4=\"A/B\",E5=\"\",O5=\"Lt or Rt?\",E9=\"\",J5=\"\",J6=\"\",K6=\"\",J7=\"\",N6=\"\",O6=\"\",P6=\"\")),\"incomplete\",\"pass\")","v":"pass"},null,null,"Perpendicular Curb Ramp",null,null,null,null,null,null,null,null,null,"Drawing 1",null,null,null,null,null,null,null,null,null,null,null,null,null,null,null,null,null,null,null,null,null,null,null,null,null,null,null,null,null,null,null,null,null,null,null,null,null,null,null,null,null,null,null,null,{"$f":"LEN(CF4)","v":1},{"$f":"N3","v":0},{"$f":"TEXT(N4,\"0.00\")&IF(O4=\"B\",\"B\",\"\")","v":"0.00"},null,{"$f":"E5","v":0},null,null,null,"CRPrp",null,null,null,null,null,null,null,null,null,{"$f":"LEN(CW4)","v":28},null,{"$f":"R3","v":"incomplete form"},null,null,{"$f":"J7","v":0},null,{"$f":"J3","v":"00:00:00"},{"$f":"J8","v":0},{"$f":"E8","v":0},{"$f":"E3","v":0},{"$f":"IF(AND(R4=\"Standard ADA\",LEN(R5)=0),\"n/a\",R5)","v":"n/a"},null,null,{"$f":"P6","v":0},"01",{"$f":"N2","v":0},null,null,null,null,null,null,null,null,null,null,null,null,null,null,null,null,null,null,null,null,null,null,null,null,null,null,null,null,{"$f":"IF(RIGHT(O5,1)=\"?\",\"?\",LEFT(O5&\"-\",2))","v":"?"},{"$f":"LEFT(J5,1)","v":""},{"$f":"IF(LEN(J6)=0,\"!\",LEFT(TEXT(J6,\"0\")&\"-\",2))","v":"!"},{"$f":"IF(LEN(K6)=0,\"!\",LEFT(TEXT(K6,\"0\")&\"-\",2))","v":"!"}]
[null,"Contract / Work Order",null,null,null,null,null,null,"Date Measured",null,null,null,"SR",null,null,null,"Survey/Feature Status",{"$f":"IF(L10=\"Yes\",\"FAIL\",IF(COUNTIF(K9:N39,\"FAIL\")>0,\"FAIL\",IF(COUNTIF(Y1:Y2,\"pass\")<2,\"incomplete form\",IF(COUNTIF(K9:N39,\"pass\")=24,\"pass\",\"incomplete form\"))))","v":"incomplete form"},null,null,"GPSDate",{"$f":"J3","v":"00:00:00"},"Date Measured",null,null,null,null,null,null,null,null,null,null,"Requirements",null,"Yes/No","4 ft Min if Diagonally Oriented","4 ft Min","15 ft Max","2.0% Max","8.3% Max","10% Max","10% Max","4 ft Min","4 ft Min","2.0% Max","2.0% Max","5% Max","Flush","Flush","Flush","Flush","Flush","Flush","Truncated","DOT - Yellow","0 ft","Match Ramp Width","2 ft Min",null,null,null,null,null,null,null,null,null,null,null,null,null,null,null,null,null,null,null,null,null,"SR View","Gmap","Gmap2","State Route","Mile- post","Primary St, Bridge, or Facility Name","Intersecting or Related St or Route","City","County","Region","ADA Feature","Meas?","Summary of Non-Compliance","Solution","Sched. Fiscal Year","Estimated Cost","Lat","Long","Lat2","Long2","FeatureID","GIS Table","Fully Compliant?","DWS Non-Comp Only?","Length","Jurisdiction","SubOwner","MeasDate","ConstructedBy","SiteHistory","Contract","MEFRef","DocRef","LocCode","LocMethod","History","Project Phase","Path Priority Index Tier","Barrier Severity","Date made Compliant","Access Level","Rural or Urban","PaveBienn_within_100ft","PaveDue+2","Direction","MP","A/B","ARM","SRSort","MPSort","BridgeNo","Site Key","Issue","Issue Summary","Rest Area","multiples","CityAccess","RecordCreateDate","GPSDate","End_SR","End_MP","ProjectID","ADAGroup","Plan 2016","Planning Set","Side","Site","SiteCompass","FeatCompass"]
[null,"Measured By",null,null,null,null,null,null,null,null,null,null,"Milepost",null,"A/B",{"$f":"HYPERLINK(\"#'READ-ME'!A252:A264\",\"?\")","v":"?"},"MEF Status",{"$f":"IF(SUM(R10:R24,R39)+IFERROR(SEARCH(\"MEF\",J9),0)>0,\"Has MEF\",\"Standard ADA\")","v":"Standard ADA"},null,null,"Datafile",{"$f":"E4","v":0},"Measured By",null,null,null,null,null,null,null,null,null,null,null,null,null,null,"Ramp","Ramp","Ramp","Ramp","Flare Slope","Flare Slope","Landing","Landing","Landing","Landing","Counter Slope","Grade Break","Grade Break","Grade Break","Grade Break","Grade Break","Grade Break","DWS","DWS","Curb Gap","DWS","DWS",null,null,null,null,null,null,null,null,null,null,null,null,null,null,null,null,null,null,null,null,null,{"$f":"HYPERLINK(\"http://srview3i.wsdot.loc/stateroute/picturelog/v3/client/SRview.Windows.Viewer.application?srnum=\"&LEFT(CF4,3)&\"&rrt=\"&IF(LEN(CF4)>3,RIGHT(LEFT(CF4,5),2),\"\")&\"&rrq=\"&IF(LEN(CF4)=11,RIGHT(CF4,6),IF(LEN(CF4)=10,RIGHT(CF4,5),\"\"))&\"&srmp=\"&CG4,\"SRV\")","v":"SRV"},{"$f":"HYPERLINK(\"http://maps.google.com/maps?z=20&t=k&q=loc:\"&CS4&\",\"&CT4,\"GMap\")","v":{"$error":"#VALUE!"}},{"$f":"IF(LEN(CU4)>0,HYPERLINK(\"http://maps.google.com/maps?z=20&t=k&q=loc:\"&CU4&\",\"&CV4,\"GMap\"),\"\")","v":""},{"$f":"CF2","v":0},{"$f":"CG2","v":"0.00"},null,{"$f":"CI2","v":0},null,null,null,"Curb Ramp Perpendicular","Yes",null,"Fully Compliant","?",0,{"$f":"IF(LEN(N6)=0,VALUE(LEFT(CS2,FIND(\",\",CS2)-1)),N6)","v":{"$error":"#VALUE!"}},{"$f":"IF(LEN(O6)=0,VALUE(RIGHT(CS2,LEN(CS2)-FIND(\",\",CS2)-1)),O6)","v":{"$error":"#VALUE!"}},null,null,{"$f":"CM2&LEFT(TEXT(CF4,\"000\")&\"-----------\",11)&TEXT(DV4,\"000.00\")&DW4&DU4&EQ4&ER4&ES4&DL2","v":"CRPrp000--------000.00AI!!01"},"New Point",{"$f":"IF(CY2=\"pass\",\"Yes\",\"No\")","v":"No"},"No","n/a",{"$f":"DB2","v":0},"n/a",{"$f":"DD2","v":"00:00:00"},{"$f":"DE2","v":0},{"$f":"DF2","v":0},{"$f":"DG2","v":0},{"$f":"DH2","v":"n/a"},null,{"$f":"EP4&\"-\"&EQ4&\"-\"&ER4&\"-\"&ES4","v":"?--!-!"},{"$f":"DK2","v":0},"Latest",{"$f":"DM2","v":0},"?","no barrier","?","?","?","?","?","I",{"$f":"TEXT(IF(DW4=\"B\",VALUE(LEFT(CG4,FIND(\"B\",CG4)-1)),CG4),\"000.00\")","v":"000.00"},{"$f":"IF(O4=\"B\",\"B\",\"A\")","v":"A"},"?",{"$f":"LEFT(CF4,3)","v":"0"},{"$f":"IF(LEN(CF4)>9,VALUE(RIGHT(CF4,5))/100,CG4)","v":"0.00"},"n/a","Intersection",null,"+ (blank)",null,null,null,null,null,null,null,null,null,null,null,{"$f":"EP2","v":"?"},{"$f":"EQ2","v":""},{"$f":"ER2","v":"!"},{"$f":"ES2","v":"!"}]
[null,"Cross Street Name",null,null,null,null,null,null,{"$f":"HYPERLINK(\"#'READ-ME'!A61:O88\",\"Site\")","v":"Site"},null,null,null,"Station",null,{"$f":"HYPERLINK(\"#'READ-ME'!A222:A240\",\"Lt or Rt?\")","v":"Lt or Rt?"},null,"MEF Reference",null,null,null,"StateRouteRRT",{"$f":"N3","v":0},null,null,null,null,null,"Database Schema","Contract","Date Measured","Measured By","SR","SRMP","A/B","Lt or Rt","Diagonally Orientated?","Clear Space?","W","L","CS","RS","FS#1","FS#2","L","W","CSW","CSL","CS"," GB#1"," GB#2"," GB#3"," GB#4"," GB#5"," GB#6","Type","Color","CG","L","W","NOTES","Feature ID Code","Feature Location Code","RS+S","Cross Street Name","Corner/Side","Plan Sheet Reference","MEF Reference","Site History","Station","Structurally Compliant?","DWS Compliant?",null,null,null,null,null,null,null,null,null,{"$f":"HYPERLINK(\"http://www.wsdot.wa.gov/data/tools/geoportal/?layers=%7B%22layer0%22%3A%5B%5D%2C%22Buffer%22%3Atrue%2C%22Drawn+Features%22%3Atrue%7D\",\"Geoportal\")","v":"Geoportal"},null,null,null,null,null,null,null,null,null,null,null,null,null,null,null,null,null,null,null,null,null,null,null,null,null,null,null,null,null,null,null,null,null,null,null,null,null,null,null,null,null,null,null,null,null,null,null,null,null,null,null,null,null,null,null,null,null,null,null,null,null,null,null,null,"LEFT(TEXT(CF4,\"000\")&\"-----------\",11)"]
[null,"Plan Sheet Reference",null,null,null,null,null,null,{"$f":"HYPERLINK(\"#'READ-ME'!A112:K130\",\"Location\")","v":"Location"},null,null,"Geoportal",null,null,null,null,null,null,null,null,"SRMP",{"$f":"N4","v":0},null,null,null,null,null,"FeatureName","CompletedUnderContract","GPSDate","Datafile","StateRouteRRT","SRMP","AheadBackIndicator","DirectionOfInventory","DiagToCenterIntersection","ClearSpaceWidth","RampWidth","RampLength","RampCrossSlope","RampRunningSlope","Flare1Slope","Flare2Slope","LandingLength","LandingWidth","LandingCSW","LandingCSL","CounterSlope","GradeBreak1","GradeBreak2","GradeBreak3","GradeBreak4","GradeBreak5","GradeBreak6","DWSType","DWSColor","DWSCurbGap","DWSLength","DWSWidth","Note","WSDOTFeatureNumber","FeatureLocationCode","SlopeDelta","CrossStreet","CornerSide","PlanShtRef","MEFRef","SiteHist","Station","StructComp","DWSComp"]
[null,"Feature Location Code",null,null,null,null,null,null,"Jurisdiction",null,null,{"$f":"HYPERLINK(\"#'READ-ME'!A148:L189\",\"Instructions\")","v":"Instructions"},null,"Latitude","Longitude",{"$f":"HYPERLINK(\"#'READ-ME'!A201:A207\",\"Accuracy\")","v":"Accuracy"},"ADA Compliance Criteria",null,null,null,"AheadBackIndicator",{"$f":"O4","v":"A/B"},null,null,null,null,null,"CR-PERP",{"$f":"VLOOKUP(AC6,$U:$V,2,FALSE)","v":0},0,0,0,0,"A/B","Geoportal",0,0,"no data","no data","no data","no data","no data","no data","no data","no data","no data","no data","no data","no data","no data","no data","no data","no data","no data","no data","no data","no data","no data","no data",0,0,0,"no data",0,0,0,0,0,"Station","incomplete","incomplete"]
[null,null,null,"Site History",null,null,null,null,"Constructed By",null,null,"Enter numbers only\n1 = 1.00%, 2.25 = 2.25 ft, etc.",null,null,null,"Measurement",null,"MEF Criteria",null,null,"DirectionOfInventory",{"$f":"L6","v":"Geoportal"},"Lt or Rt"]
[null,"Diagonally Oriented?",null,null,null,null,null,null,"Clear Space Achieved?",null,{"$f":"IF(AND(E9=\"Yes\",LEN(J9)=0),\"4 ft Min if Diagonally Oriented\",IF(AND(E9=\"Yes\",J9=\"No\"),\"FAIL\",IF(J9=\"Yes\",\"pass\",IF(E9=\"No\",\"pass\",IF(J9=\"MEF\",\"pass\",\"\")))))","v":""},null,null,"Landing"]
[null,{"$f":"IF(COUNTIF(N2,\"Scoping\")>0,\"Visually Identified the Feature is ADA non-Compliant, no measurements taken\",\"\")","v":""},null,null,null,null,null,null,null,null,null,null,null,{"$f":"IF(P10=\"\",\"\",IF(COUNTIF(V10,W10&X10)>0,\"pass\",\"FAIL\"))","v":""},"CSW",null,"2.00% Max",null,"% Max",null,"LandingCSW",{"$f":"IF(P10=\"\",\"no data\",P10)","v":"no data"},{"$f":"IF(ISBLANK(R10),CHOOSE(IF(RIGHT(Q10,3)=\"Min\",1,IF(RIGHT(Q10,3)=\"Max\",3,2)),\">=\",\"=\",\"<=\"),CHOOSE(IF(RIGHT(S10,3)=\"Min\",1,IF(RIGHT(S10,3)=\"Max\",3,2)),\">=\",\"=\",\"<=\"))","v":"<="},{"$f":"IF(ISBLANK(R10),Z10,R10)","v":2},"% Max",2]
[null,null,null,null,null,null,null,null,null,null,null,null,null,{"$f":"IF(P11=\"\",\"\",IF(COUNTIF(V11,W11&X11)>0,\"pass\",\"FAIL\"))","v":""},"CSL",null,"2.00% Max",null,"% Max",null,"LandingCSL",{"$f":"IF(P11=\"\",\"no data\",P11)","v":"no data"},{"$f":"IF(ISBLANK(R11),CHOOSE(IF(RIGHT(Q11,3)=\"Min\",1,IF(RIGHT(Q11,3)=\"Max\",3,2)),\">=\",\"=\",\"<=\"),CHOOSE(IF(RIGHT(S11,3)=\"Min\",1,IF(RIGHT(S11,3)=\"Max\",3,2)),\">=\",\"=\",\"<=\"))","v":"<="},{"$f":"IF(ISBLANK(R11),Z11,R11)","v":2},"% Max",2]
[null,null,null,null,null,null,null,null,null,null,null,null,null,{"$f":"IF(P12=\"\",\"\",IF(COUNTIF(V12,W12&X12)>0,\"pass\",\"FAIL\"))","v":""},"W",null,"4.00 ft Min",null,"ft Min",null,"LandingWidth","no data",{"$f":"IF(ISBLANK(R12),CHOOSE(IF(RIGHT(Q12,3)=\"Min\",1,IF(RIGHT(Q12,3)=\"Max\",3,2)),\">=\",\"=\",\"<=\"),CHOOSE(IF(RIGHT(S12,3)=\"Min\",1,IF(RIGHT(S12,3)=\"Max\",3,2)),\">=\",\"=\",\"<=\"))","v":">="},4,"ft Min",4]
[null,null,null,null,null,null,null,null,null,null,null,null,null,{"$f":"IF(P13=\"\",\"\",IF(COUNTIF(V13,W13&X13)>0,\"pass\",\"FAIL\"))","v":""},"L",null,"4.00 ft Min",null,"ft Min",null,"LandingLength","no data",{"$f":"IF(ISBLANK(R13),CHOOSE(IF(RIGHT(Q13,3)=\"Min\",1,IF(RIGHT(Q13,3)=\"Max\",3,2)),\">=\",\"=\",\"<=\"),CHOOSE(IF(RIGHT(S13,3)=\"Min\",1,IF(RIGHT(S13,3)=\"Max\",3,2)),\">=\",\"=\",\"<=\"))","v":">="},4,"ft Min",4]
[null,null,null,null,null,null,null,null,null,null,null,null,null,"Ramp"]
[null,null,null,null,null,null,null,null,null,null,null,null,null,{"$f":"IF(P15=\"\",\"\",IF(COUNTIF(V15,W15&X15)>0,\"pass\",\"FAIL\"))","v":""},"RS",null,"8.30% Max",null,"% Max",null,"RampRunningSlope",{"$f":"IF(ISBLANK(P15),\"no data\",P15)","v":"no data"},{"$f":"IF(ISBLANK(R15),CHOOSE(IF(RIGHT(Q15,3)=\"Min\",1,IF(RIGHT(Q15,3)=\"Max\",3,2)),\">=\",\"=\",\"<=\"),CHOOSE(IF(RIGHT(S15,3)=\"Min\",1,IF(RIGHT(S15,3)=\"Max\",3,2)),\">=\",\"=\",\"<=\"))","v":"<="},8.3000000000000007,"% Max",8.3000000000000007]
[null,null,null,null,null,null,null,null,null,null,null,null,null,{"$f":"IF(P16=\"\",\"\",IF(COUNTIF(V16,W16&X16)>0,\"pass\",\"FAIL\"))","v":""},"CS",null,"2.00% Max",null,"% Max",null,"RampCrossSlope","no data",{"$f":"IF(ISBLANK(R16),CHOOSE(IF(RIGHT(Q16,3)=\"Min\",1,IF(RIGHT(Q16,3)=\"Max\",3,2)),\">=\",\"=\",\"<=\"),CHOOSE(IF(RIGHT(S16,3)=\"Min\",1,IF(RIGHT(S16,3)=\"Max\",3,2)),\">=\",\"=\",\"<=\"))","v":"<="},2,"% Max",2]
[null,null,null,null,null,null,null,null,null,null,null,null,null,"","W",null,"4.00 ft Min",null,"ft Min",null,"RampWidth","no data",{"$f":"IF(ISBLANK(R17),CHOOSE(IF(RIGHT(Q17,3)=\"Min\",1,IF(RIGHT(Q17,3)=\"Max\",3,2)),\">=\",\"=\",\"<=\"),CHOOSE(IF(RIGHT(S17,3)=\"Min\",1,IF(RIGHT(S17,3)=\"Max\",3,2)),\">=\",\"=\",\"<=\"))","v":">="},4,"ft Min",4]
[null,null,null,null,null,null,null,null,null,null,null,null,null,"","L",null,"15.00 ft Max",null,"ft Max",null,"RampLength","no data",{"$f":"IF(ISBLANK(R18),CHOOSE(IF(RIGHT(Q18,3)=\"Min\",1,IF(RIGHT(Q18,3)=\"Max\",3,2)),\">=\",\"=\",\"<=\"),CHOOSE(IF(RIGHT(S18,3)=\"Min\",1,IF(RIGHT(S18,3)=\"Max\",3,2)),\">=\",\"=\",\"<=\"))","v":"<="},15,"ft Max",15]
[null,null,null,null,null,null,null,null,null,null,null,null,null,"Flare Slope"]
[null,null,null,null,null,null,null,null,null,null,null,null,null,{"$f":"IF(P20=\"\",\"\",IF(COUNTIF(V20,W20&X20)>0,\"pass\",\"FAIL\"))","v":""},"FS#1",null,"10% Max",null,"% Max",null,"Flare1Slope",{"$f":"IF(ISBLANK(P20),\"no data\",P20)","v":"no data"},{"$f":"IF(ISBLANK(R20),CHOOSE(IF(RIGHT(Q20,3)=\"Min\",1,IF(RIGHT(Q20,3)=\"Max\",3,2)),\">=\",\"=\",\"<=\"),CHOOSE(IF(RIGHT(S20,3)=\"Min\",1,IF(RIGHT(S20,3)=\"Max\",3,2)),\">=\",\"=\",\"<=\"))","v":"<="},{"$f":"IF(ISBLANK(R20),Z20,R20)","v":10},"% Max",10]
[null,null,null,null,null,null,null,null,null,null,null,null,null,{"$f":"IF(P21=\"\",\"\",IF(COUNTIF(V21,W21&X21)>0,\"pass\",\"FAIL\"))","v":""},"FS#2",null,"10% Max",null,"% Max",null,"Flare2Slope",{"$f":"IF(ISBLANK(P21),\"no data\",P21)","v":"no data"},{"$f":"IF(ISBLANK(R21),CHOOSE(IF(RIGHT(Q21,3)=\"Min\",1,IF(RIGHT(Q21,3)=\"Max\",3,2)),\">=\",\"=\",\"<=\"),CHOOSE(IF(RIGHT(S21,3)=\"Min\",1,IF(RIGHT(S21,3)=\"Max\",3,2)),\">=\",\"=\",\"<=\"))","v":"<="},{"$f":"IF(ISBLANK(R21),Z21,R21)","v":10},"% Max",10]
[null,null,null,null,null,null,null,null,null,null,null,null,null,"Counter Slope"]
[null,null,null,null,null,null,null,null,null,null,null,null,null,{"$f":"IF(P23=\"\",\"\",IF(COUNTIF(V23,W23&X23)>0,\"pass\",\"FAIL\"))","v":""},"S",null,"5.00% Max",null,"% Max",null,"CounterSlope",{"$f":"IF(ISBLANK(P23),\"no data\",P23)","v":"no data"},{"$f":"IF(ISBLANK(R23),CHOOSE(IF(RIGHT(Q23,3)=\"Min\",1,IF(RIGHT(Q23,3)=\"Max\",3,2)),\">=\",\"=\",\"<=\"),CHOOSE(IF(RIGHT(S23,3)=\"Min\",1,IF(RIGHT(S23,3)=\"Max\",3,2)),\">=\",\"=\",\"<=\"))","v":"<="},{"$f":"IF(ISBLANK(R23),Z23,R23)","v":5},"% Max",5]
[null,null,null,null,null,null,null,null,null,null,null,null,null,{"$f":"IF(AND(P15=\"\",P23<>\"\"),\"Incomplete\",IF(ISBLANK(P23),\"\",IF(COUNTIF(V24,W24&X24)>0,\"pass\",\"FAIL\")))","v":""},"RS + S",{"$f":"IF(ISBLANK(P23),\"sum\",P15+P23)","v":"sum"},"13.30% Max",null,"% Max",null,"SlopeDelta",{"$f":"IFERROR(V15+V23,\"no data\")","v":"no data"},"<=",{"$f":"IF(ISBLANK(R24),Z24,R24)","v":13.3},"% Max",13.3,"Change in Slope = RS#1 + S"]
[null,null,null,null,null,null,null,null,null,null,null,null,null,"Grade Breaks",null,null,null,null,"(paper form: enter fraction or decimal of an inch)"]
[null,null,null,null,null,null,null,null,null,null,null,null,null,{"$f":"IF(ISBLANK(P26),\"\",IF(COUNTIF(AB27:AB29,P26)>0,\"pass\",\"FAIL\"))","v":""},"GB#1",null,null,null,null,null,"GradeBreak1",{"$f":"IF(ISBLANK(P26),\"no data\",P26)","v":"no data"},"=",{"$f":"IF(ISBLANK(R26),Z26,R26)","v":0},"flush",0,null,"Grade Breaks"]
[null,null,null,null,null,null,null,null,null,null,null,null,null,{"$f":"IF(ISBLANK(P27),\"\",IF(COUNTIF(AB27:AB29,P27)>0,\"pass\",\"FAIL\"))","v":""},"GB#2",null,null,null,null,null,"GradeBreak2","no data","=",0,"flush",0,null,"Flush","Flush (0.00\") No vertical Difference"]
[null,"NOTES",null,null,null,null,null,null,null,null,null,null,null,{"$f":"IF(ISBLANK(P28),\"\",IF(COUNTIF(AB27:AB29,P28)>0,\"pass\",\"FAIL\"))","v":""},"GB#3",null,null,null,null,null,"GradeBreak3","no data","=",0,"flush",0,null,"¼-Inch or Less","¼-Inch (0.02 ft) or Less"]
[null,null,null,null,null,null,null,null,null,null,null,null,null,{"$f":"IF(ISBLANK(P29),\"\",IF(COUNTIF(AB27:AB29,P29)>0,\"pass\",\"FAIL\"))","v":""},"GB#4",null,null,null,null,null,"GradeBreak4","no data","=",0,"flush",0,null,"¼ to ½-Inch YES Bevel","Between  ¼ - ½-Inch WITH ¼-inch Beveled at 2:1"]
[null,null,null,null,null,null,null,null,null,null,null,null,null,{"$f":"IF(ISBLANK(P30),\"\",IF(COUNTIF(AB27:AB29,P30)>0,\"pass\",\"FAIL\"))","v":""},"GB#5",null,null,null,null,null,"GradeBreak5","no data","=",0,"flush",0,null,"¼ to ½-Inch NO Bevel","Between  ¼ - ½-Inch WITHOUT ¼-inch Beveled at 2:1"]
[null,null,null,null,null,null,null,null,null,null,null,null,null,{"$f":"IF(ISBLANK(P31),\"\",IF(COUNTIF(AB27:AB29,P31)>0,\"pass\",\"FAIL\"))","v":""},"GB#6",null,null,null,null,null,"GradeBreak6","no data","=",0,"flush",0,null,"Greater than ½-Inch","Greater than ½-Inch"]
[null,null,null,null,null,null,null,null,null,null,null,null,null,null,null,null,null,null,null,null,"StructComp",{"$f":"IF(COUNTIF(K9:N31,\"FAIL\")>0,\"No\",IF(COUNTIF(K9:N31,\"pass\")=19,\"Yes\",\"incomplete\"))","v":"incomplete"},"Structurally Compliant?"]
[null,null,null,null,null,null,null,null,null,null,null,null,null,"Detectable Warning Surface"]
[null,null,null,null,null,null,null,null,null,null,null,null,null,{"$f":"IF(AND(P17=\"\",P34<>\"\"),\"Incomplete\",IF(ISBLANK(P34),\"\",IF(COUNTIF(V34,W34&X34)>0,\"pass\",\"FAIL\")))","v":""},"L",null,{"$f":"IF(ISBLANK(P17),\"Match Ramp W\",\"At Least \"&X34&\" ft\")","v":"Match Ramp W"},null,null,null,"DWSLength",{"$f":"IF(ISBLANK(P34),\"no data\",P34)","v":"no data"},">=",{"$f":"Z34-0.33","v":-0.33},"ft",{"$f":"P17","v":0},"Match W"]
[null,null,null,null,null,null,null,null,null,null,null,null,null,{"$f":"IF(ISBLANK(P35),\"\",IF(COUNTIF(V35,W35&X35)>0,\"pass\",\"FAIL\"))","v":""},"W",null,"2.00 ft Min",null,null,null,"DWSWidth",{"$f":"IF(ISBLANK(P35),\"no data\",P35)","v":"no data"},{"$f":"IF(ISBLANK(R35),CHOOSE(IF(RIGHT(Q35,3)=\"Min\",1,IF(RIGHT(Q35,3)=\"Max\",3,2)),\">=\",\"=\",\"<=\"),CHOOSE(IF(RIGHT(S35,3)=\"Min\",1,IF(RIGHT(S35,3)=\"Max\",3,2)),\">=\",\"=\",\"<=\"))","v":">="},{"$f":"IF(ISBLANK(R35),Z35,R35)","v":2},"ft Min",2]
[null,null,null,null,null,null,null,null,null,null,null,null,null,{"$f":"IF(ISBLANK(P36),\"\",IF(COUNTIF(V36,W36&X36)>0,\"pass\",\"FAIL\"))","v":""},"Color",null,"DOT - Yellow",null,null,null,"DWSColor",{"$f":"IF(ISBLANK(P36),\"no data\",P36)","v":"no data"},{"$f":"IF(ISBLANK(R36),CHOOSE(IF(RIGHT(Q36,3)=\"Min\",1,IF(RIGHT(Q36,3)=\"Max\",3,2)),\">=\",\"=\",\"<=\"),CHOOSE(IF(RIGHT(S36,3)=\"Min\",1,IF(RIGHT(S36,3)=\"Max\",3,2)),\">=\",\"=\",\"<=\"))","v":"="},{"$f":"IF(ISBLANK(R36),Z36,P36)","v":"DOT - Yellow"},null,"DOT - Yellow"]
[null,null,null,null,null,null,null,null,null,null,null,null,null,{"$f":"IF(ISBLANK(P37),\"\",IF(COUNTIF(AC41:AC46,P37)>0,\"pass\",\"FAIL\"))","v":""},"Type",null,"Truncated",null,null,null,"DWSType",{"$f":"IF(ISBLANK(P37),\"no data\",VLOOKUP(P37,AC41:AD47,2,FALSE))","v":"no data"}]
[null,"Measurement Instrument \nSerial Number:",null,null,null,"Calibrated by:",null,null,null,"Date:",null,null,null,"Curb Gap"]
[null,null,null,null,null,null,null,null,null,null,null,null,null,{"$f":"IF(ISBLANK(P39),\"\",IF(COUNTIF(V39,W39&X39)>0,\"pass\",\"FAIL\"))","v":""},"CG",null,"0.17 ft Max",null,"ft",null,"DWSCurbGap",{"$f":"IF(ISBLANK(P39),\"no data\",P39)","v":"no data"},{"$f":"IF(ISBLANK(R39),CHOOSE(IF(RIGHT(Q39,3)=\"Min\",1,IF(RIGHT(Q39,3)=\"Max\",3,2)),\">=\",\"=\",\"<=\"),CHOOSE(IF(RIGHT(S39,3)=\"Min\",1,IF(RIGHT(S39,3)=\"Max\",3,2)),\">=\",\"=\",\"<=\"))","v":"<="},{"$f":"IF(ISBLANK(R39),Z39,R39)","v":0.17},"ft",0.17]
[null,"1\" = 0.08'","2\" = 0.17'","3\" = 0.25'","4\" = 0.33'","5\" = 0.42'","6\" = 0.50'","7\" = 0.58'","8\" = 0.67'","9\" = 0.75'","10\" = 0.83'","11\" = 0.92'",null,null,null,null,null,null,null,null,"DWSComp",{"$f":"IF(COUNTIF(N34:N39,\"FAIL\")>0,\"No\",IF(COUNTIF(N34:N39,\"pass\")=5,\"Yes\",\"incomplete\"))","v":"incomplete"},"DWS Compliant?",null,null,null,null,null,"DWS Types:"]
[null,null,null,null,null,null,null,null,null,null,null,null,null,null,null,null,null,"Form Updated",null,null,"DiagToCenterIntersection",{"$f":"E9","v":0},null,null,null,null,null,null,"Brick","Brick"]
[null,null,null,null,null,null,null,null,null,null,null,null,null,null,null,null,null,"2018-07-31",null,null,"ClearSpaceWidth",{"$f":"J9","v":0},null,null,null,null,null,null,"Epoxy","Truncated Dome (TDome)  Epoxy"]
[null,null,null,null,null,null,null,null,null,null,null,null,null,null,null,null,null,null,null,null,"WSDOTFeatureNumber",null,"Feature ID Code",null,null,null,null,null,"CastIron","TDome Inlay CastIron"]
[null,null,null,null,null,null,null,null,null,null,null,null,null,null,null,null,null,null,null,null,"FeatureLocationCode",{"$f":"E7","v":0},"Plan Sheet",null,null,null,null,null,"Concrete","TDome Inlay Concrete"]
[null,null,null,null,null,null,null,null,null,null,null,null,null,null,null,null,null,null,null,null,"Note",{"$f":"B29","v":0}," ",null,null,null,null,null,"Plastic","TDome Inlay Plastic"]
[null,null,null,null,null,null,null,null,null,null,null,null,null,null,null,null,null,null,null,null,"CrossStreet",{"$f":"E5","v":0}," ",null,null,null,null,null,"Other","TDome Inlay Other"]
[null,null,null,null,null,null,null,null,null,null,null,null,null,null,null,null,null,null,null,null,"CornerSide",{"$f":"J6","v":0}," ",null,null,null,null,null,"None","None, Not TDome, or MEF exception—make note"]
[null,null,null,null,null,null,null,null,null,null,null,null,null,null,null,null,null,null,null,null,"PlanShtRef",{"$f":"E6","v":0}," "]
[null,null,null,null,null,null,null,null,null,null,null,null,null,null,null,null,null,null,null,null,"MEFRef",{"$f":"R5","v":0}]
[null,null,null,null,null,null,null,null,null,null,null,null,null,null,null,null,null,null,null,null,"SiteHist",{"$f":"IF(N2=\"Scoping\",\"Existing Feature\",E8)","v":0}," "]
[null,null,null,null,null,null,null,null,null,null,null,null,null,null,null,null,null,null,null,null,"Station",{"$f":"M5","v":"Station"}]

{"sheet":"Parallel","index":2,"n_rows":54,"n_cols":149,"rows_kept":54,"cut":false,"hidden":false,"merged":[[4,1,4,3],[5,0,5,3],[8,10,8,12],[5,11,5,12],[6,11,6,12],[6,4,6,6],[6,9,6,10],[7,4,7,6],[7,9,7,10],[8,0,8,3],[6,0,6,3],[0,22,0,23],[1,22,1,23],[1,11,1,12],[1,13,1,14],[3,4,3,7],[0,1,1,9],[2,0,2,3],[2,13,2,14],[3,1,3,3],[43,17,43,18],[44,17,44,18],[29,15,29,16],[30,15,30,16],[31,15,31,16],[32,15,32,16],[38,17,38,18],[41,1,41,4],[41,5,41,8],[41,9,41,11],[33,15,33,16],[9,1,9,10],[40,1,40,4],[40,5,40,8],[40,9,40,11],[30,1,39,11],[29,1,29,11],[28,15,28,16],[27,15,27,16],[2,33,2,34],[2,4,2,5],[2,9,2,10],[2,17,2,18],[7,11,7,14],[3,17,3,18],[4,17,4,18],[6,16,7,16],[7,17,7,18],[4,4,4,7],[4,9,4,10],[5,4,5,6]]}
[null,"ADA Feature - Parallel Curb Ramp Measurements",null,null,null,null,null,null,null,null,null,{"$f":"IF(AND(OR(Y2=\"incomplete\",Y1=\"incomplete\"),LEN(N2)>0),\"= Required Field\",\"\")","v":""},null,null,null,null,null,null,null,null,"FeatureName",{"$f":"S2","v":"CR-PARA"},"Complete Header",null,{"$f":"IF(AND(N2<>\"Scoping\",OR(E3=\"\",J3=\"\",E4=\"\",N2=\"\",N3=\"\",N4=\"\",O4=\"A/B\",E7=\"\",O5=\"Lt or Rt?\",E5=\"\",E9=\"\",J5=\"\",J6=\"\",K6=\"\",J7=\"\",J8=\"\",N6=\"\",O6=\"\",P6=\"\",B42=\"\",F42=\"\",J42=\"\",E8=\"\")),\"incomplete\",\"pass\")","v":"incomplete"},null,null,null,null,null,null,null,null,null,null,null,null,null,null,null,null,null,null,null,null,null,null,null,null,null,null,null,null,null,null,null,null,null,null,null,null,null,null,null,null,null,null,null,null,null,null,null,null,null,null,null,null,null,null,null,null,null,null,null,null,null,null,null,null,null,{"$f":"MID(CELL(\"filename\",#REF!),FIND(\"]\",CELL(\"filename\",#REF!))+1,255)","v":{"$error":"#REF!"}}]
[null,null,null,null,null,null,null,null,null,null,null,"Phase",null,null,null,null,"Database Schema:",null,"CR-PARA",null,"CompletedUnderContract",{"$f":"E3","v":0},"Complete Header \"Scoping\"",null,{"$f":"IF(AND(N2=\"Scoping\",OR(E3=\"\",J3=\"\",E4=\"\",N3=\"\",N4=\"\",O4=\"A/B\",E5=\"\",O5=\"Lt or Rt?\",E9=\"\",J5=\"\",J6=\"\",K6=\"\",J7=\"\",N6=\"\",O6=\"\",P6=\"\")),\"incomplete\",\"pass\")","v":"pass"},null,null,"Curb Ramp Parallel",null,null,null,null,null,null,null,null,null,"Drawing 2",null,null,null,null,null,null,null,null,null,null,null,null,null,null,null,null,null,null,null,null,null,null,null,null,null,null,null,null,null,null,null,null,null,null,null,null,null,null,null,null,null,null,null,null,{"$f":"LEN(CF4)","v":1},{"$f":"N3","v":0},{"$f":"TEXT(N4,\"0.00\")&IF(O4=\"B\",\"B\",\"\")","v":"0.00"},null,{"$f":"E5","v":0},null,null,null,"CRPll",null,null,null,null,null,null,null,null,null,{"$f":"LEN(CW4)","v":28},null,{"$f":"R3","v":"incomplete form"},null,null,{"$f":"J7","v":0},null,{"$f":"J3","v":"00:00:00"},{"$f":"J8","v":0},{"$f":"E8","v":0},{"$f":"E3","v":0},{"$f":"IF(AND(R4=\"Standard ADA\",LEN(R5)=0),\"n/a\",R5)","v":"n/a"},null,null,{"$f":"P6","v":0},"01",{"$f":"N2","v":0},null,null,null,null,null,null,null,null,null,null,null,null,null,null,null,null,null,null,null,null,null,null,null,null,null,null,null,null,{"$f":"IF(RIGHT(O5,1)=\"?\",\"?\",LEFT(O5&\"-\",2))","v":"?"},{"$f":"LEFT(J5,1)","v":""},{"$f":"IF(LEN(J6)=0,\"!\",LEFT(TEXT(J6,\"0\")&\"-\",2))","v":"!"},{"$f":"IF(LEN(K6)=0,\"!\",LEFT(TEXT(K6,\"0\")&\"-\",2))","v":"!"}]
["Contract / Work Order",null,null,null,null,null,null,null,"Date Measured",null,null,null,"SR",null,null,null,"Survey/Feature Status",{"$f":"IF(L10=\"Yes\",\"FAIL\",IF(COUNTIF(K9:N42,\"FAIL\")>0,\"FAIL\",IF(COUNTIF(Y1:Y2,\"pass\")<2,\"incomplete form\",IF(COUNTIF(K9:N42,\"pass\")=25,\"pass\",\"incomplete form\"))))","v":"incomplete form"},null,null,"GPSDate",{"$f":"J3","v":"00:00:00"},"Date Measured",null,null,null,null,null,null,null,null,null,null,"Requirements",null,"Yes/No","4 ft Min if Diagonally Oriented","4 ft Min","4 ft Min","2.0% Max","2.0% Max","4 ft Min","15 ft Max","2.0% Max","8.3% Max","4 ft Min","15 ft Max","2.0% Max","8.3% Max","5% Max","Flush","Flush","Flush","Flush","Flush","Flush","Flush","Truncated","DOT - Yellow","0 ft","Match Width of Landing","2 ft Min",null,null,null,null,null,null,null,null,null,null,null,null,null,null,null,null,null,null,"SR View","Gmap","Gmap2","State Route","Mile- post","Primary St, Bridge, or Facility Name","Intersecting or Related St or Route","City","County","Region","ADA Feature","Meas?","Summary of Non-Compliance","Solution","Sched. Fiscal Year","Estimated Cost","Lat","Long","Lat2","Long2","FeatureID","GIS Table","Fully Compliant?","DWS Non-Comp Only?","Length","Jurisdiction","SubOwner","MeasDate","ConstructedBy","SiteHistory","Contract","MEFRef","DocRef","NodeLoc","LocMethod","History","Project Phase","Path Priority Index Tier","Barrier Severity","Date made Compliant","Access Level","Rural or Urban","PaveBienn_within_100ft","PaveDue+2","Direction","MP","A/B","ARM","SRSort","MPSort","BridgeNo","Site Key","Issue","Issue Summary","Rest Area","multiples","CityAccess","RecordCreateDate","GPSDate","End_SR","End_MP","ProjectID","ADAGroup","Plan 2016","Planning Set","Side","Site","NodeCompass","FeatCompass"]
[null,"Measured By",null,null,null,null,null,null,null,null,null,null,"Milepost",null,"A/B",{"$f":"HYPERLINK(\"#'READ-ME'!A252:A264\",\"?\")","v":"?"},"MEF Status",{"$f":"IF(SUM(R10:R26,R42:S42)+IFERROR(SEARCH(\"MEF\",J9),0)>0,\"Has MEF\",\"Standard ADA\")","v":"Standard ADA"},null,null,"Datafile",{"$f":"E4","v":0},"Measured By",null,null,null,null,null,null,null,null,null,null,null,null,null,null,"Landing","Landing","Landing","Landing","Ramp Left #2","Ramp Left #2","Ramp Left #2","Ramp Left #2","Ramp Right #3","Ramp Right #3","Ramp Right #3","Ramp Right #3","Counter Slope","Grade Break","Grade Break","Grade Break","Grade Break","Grade Break","Grade Break","Grade Break","DWS","DWS","Curb Gap","DWS","DWS",null,null,null,null,null,null,null,null,null,null,null,null,null,null,null,null,null,null,{"$f":"HYPERLINK(\"http://srview3i.wsdot.loc/stateroute/picturelog/v3/client/SRview.Windows.Viewer.application?srnum=\"&LEFT(CF4,3)&\"&rrt=\"&IF(LEN(CF4)>3,RIGHT(LEFT(CF4,5),2),\"\")&\"&rrq=\"&IF(LEN(CF4)=11,RIGHT(CF4,6),IF(LEN(CF4)=10,RIGHT(CF4,5),\"\"))&\"&srmp=\"&CG4,\"SRV\")","v":"SRV"},{"$f":"HYPERLINK(\"http://maps.google.com/maps?z=20&t=k&q=loc:\"&CS4&\",\"&CT4,\"GMap\")","v":{"$error":"#VALUE!"}},{"$f":"IF(LEN(CU4)>0,HYPERLINK(\"http://maps.google.com/maps?z=20&t=k&q=loc:\"&CU4&\",\"&CV4,\"GMap\"),\"\")","v":""},{"$f":"CF2","v":0},{"$f":"CG2","v":"0.00"},null,null,null,null,null,"Curb Ramp Parallel","Yes",null,"Fully Compliant","?",0,{"$f":"IF(LEN(N6)=0,VALUE(LEFT(CS2,FIND(\",\",CS2)-1)),N6)","v":{"$error":"#VALUE!"}},{"$f":"IF(LEN(O6)=0,VALUE(RIGHT(CS2,LEN(CS2)-FIND(\",\",CS2)-1)),O6)","v":{"$error":"#VALUE!"}},null,null,{"$f":"CM2&LEFT(TEXT(CF4,\"000\")&\"-----------\",11)&TEXT(DV4,\"000.00\")&DW4&DU4&EQ4&ER4&ES4&DL2","v":"CRPll000--------000.00AI!!01"},"New Point",{"$f":"IF(CY2=\"pass\",\"Yes\",\"No\")","v":"No"},"No","n/a",{"$f":"DB2","v":0},"n/a",{"$f":"DD2","v":"00:00:00"},{"$f":"DE2","v":0},{"$f":"DF2","v":0},{"$f":"DG2","v":0},{"$f":"DH2","v":"n/a"},null,{"$f":"EP4&\"-\"&EQ4&\"-\"&ER4&\"-\"&ES4","v":"?--!-!"},{"$f":"DK2","v":0},"Latest",{"$f":"DM2","v":0},"?","no barrier","?","?","?","?","?","I",{"$f":"TEXT(IF(DW4=\"B\",VALUE(LEFT(CG4,FIND(\"B\",CG4)-1)),CG4),\"000.00\")","v":"000.00"},{"$f":"IF(O4=\"B\",\"B\",\"A\")","v":"A"},"?",{"$f":"LEFT(CF4,3)","v":"0"},{"$f":"IF(LEN(CF4)>9,VALUE(RIGHT(CF4,5))/100,CG4)","v":"0.00"},"n/a","Intersection",null,"+ (blank)",null,null,null,null,null,null,null,null,null,null,null,{"$f":"EP2","v":"?"},{"$f":"EQ2","v":""},{"$f":"ER2","v":"!"},{"$f":"ES2","v":"!"}]
[null,"Cross Street Name",null,null,null,null,null,null,{"$f":"HYPERLINK(\"#'READ-ME'!A61:A88\",\"Site\")","v":"Site"},null,null,null,"Station",null,{"$f":"HYPERLINK(\"#'READ-ME'!A222:A240\",\"Lt or Rt?\")","v":"Lt or Rt?"},null,"MEF Reference",null,null,null,"StateRouteRRT",{"$f":"M3","v":"SR"},null,null,null,null,null,"Database Schema","Contract","Date Measured","Measured By","SR","SRMP","A/B","Lt or Rt","Diagonally Orientated?","Clear Space?","L","W","CSW","CSL","W#2","L#2","CS#2","RS#2","W#3","L#3","CS#3","RS#3","S"," GB#1"," GB#2"," GB#3"," GB#4"," GB#5"," GB#6"," GB#7","Type","Color","CG","L","W","NOTES","Feature ID Code","Feature Location Code","CSW+S","Cross Street Name","Corner/Side","Plan Sheet Reference","MEF Reference","Site History","Station","Structurally Compliant?","DWS Compliant?",null,null,null,null,null,null,{"$f":"HYPERLINK(\"http://www.wsdot.wa.gov/data/tools/geoportal/?layers=%7B%22layer0%22%3A%5B%5D%2C%22Buffer%22%3Atrue%2C%22Drawn+Features%22%3Atrue%7D\",\"Geoportal\")","v":"Geoportal"},null,null,null,null,null,null,null,null,null,null,null,null,null,null,null,null,null,null,null,null,null,null,null,null,null,null,null,null,null,null,null,null,null,null,null,null,null,null,null,null,null,null,null,null,null,null,null,null,null,null,null,null,null,null,null,null,null,null,null,null,null,null,null,null,"LEFT(TEXT(CF4,\"000\")&\"-----------\",11)"]
["Plan Sheet Reference",null,null,null,null,null,null,null,{"$f":"HYPERLINK(\"#'READ-ME'!A112:A138\",\"Location\")","v":"Location"},null,null,"Geoportal",null,null,null,null,null,null,null,null,"SRMP",{"$f":"M4","v":"Milepost"},null,null,null,null,null,"FeatureName","CompletedUnderContract","GPSDate","Datafile","StateRouteRRT","SRMP","AheadBackIndicator","DirectionOfInventory","DiagToCenterIntersection","ClearSpaceWidth","LandingLength","LandingWidth","LandingCSW","LandingCSL","RampLeft2Width","RampLeft2Length","RampLeft2CrossSlope","RampLeft2RunningSlope","RampRight3Width","RampRight3Length","RampRight3CrossSlope","RampRight3RunningSlope","CounterSlope","GradeBreak1","GradeBreak2","GradeBreak3","GradeBreak4","GradeBreak5","GradeBreak6","GradeBreak7","DWSType","DWSColor","DWSCurbGap","DWSLength","DWSWidth","Note","WSDOTFeatureNumber","FeatureLocationCode","SlopeDelta","CrossStreet","CornerSide","PlanShtRef","MEFRef","SiteHist","Station","StructComp","DWSComp"]
["Feature Location Code",null,null,null,null,null,null,null,"Jurisdiction",null,null,{"$f":"HYPERLINK(\"#'READ-ME'!A148:L189\",\"Instructions\")","v":"Instructions"},null,"Latitude","Longitude",{"$f":"HYPERLINK(\"#'READ-ME'!A201:A207\",\"Accuracy\")","v":"Accuracy"},"ADA Compliance Criteria",null,null,null,"AheadBackIndicator",{"$f":"O4","v":"A/B"},null,null,null,null,null,"CR-PARA-1",{"$f":"VLOOKUP(AC6,$U:$V,2,FALSE)","v":0},0,0,"SR","Milepost","A/B",0,0,"","no data","no data","no data","no data","no data","no data","no data","no data","no data","no data","no data","no data","no data","no data","no data","no data","no data","no data","no data","no data","no data","no data","no data","no data","no data",0,0,0,"no data",0,0,0,0,0,"Station","incomplete","incomplete"]
[null,null,null,"Site History",null,null,null,null,"Constructed By",null,null,"Enter numbers only\n1 = 1.00%, 2.25 = 2.25 ft, etc.",null,null,null,"Measurement",null,"MEF Criteria",null,null,"DirectionOfInventory",{"$f":"M6","v":0},"Lt or Rt"]
["Diagonally Oriented?",null,null,null,null,null,null,null,"Clear Space Achieved?",{"$f":"IF(E9=\"No\",\"n/a\",\"\")","v":""},{"$f":"IF(AND(E9=\"Yes\",LEN(J9)=0),\"4 ft Min if Diagonally Oriented\",IF(AND(E9=\"Yes\",J9=\"No\"),\"FAIL\",IF(J9=\"Yes\",\"pass\",IF(E9=\"No\",\"pass\",IF(J9=\"MEF\",\"pass\",\"\")))))","v":""},null,null,"Landing"]
[null,{"$f":"IF(COUNTIF(N2,\"Scoping\")>0,\"Visually Identified the Feature is ADA non-Compliant, no measurements taken\",\"\")","v":""},null,null,null,null,null,null,null,null,null,null,null,{"$f":"IF(ISBLANK(P10),\"\",IF(COUNTIF(V10,W10&X10)>0,\"pass\",\"FAIL\"))","v":""},"CSW",null,"2.00% Max",null,"% Max",null,"LandingCSW",{"$f":"IF(ISBLANK(P10),\"no data\",P10)","v":"no data"},{"$f":"IF(ISBLANK(R10),CHOOSE(IF(RIGHT(Q10,3)=\"Min\",1,IF(RIGHT(Q10,3)=\"Max\",3,2)),\">=\",\"=\",\"<=\"),CHOOSE(IF(RIGHT(S10,3)=\"Min\",1,IF(RIGHT(S10,3)=\"Max\",3,2)),\">=\",\"=\",\"<=\"))","v":"<="},{"$f":"IF(ISBLANK(R10),Z10,R10)","v":2},"% Max",2]
[null,null,null,null,null,null,null,null,null,null,null,null,null,{"$f":"IF(ISBLANK(P11),\"\",IF(COUNTIF(V11,W11&X11)>0,\"pass\",\"FAIL\"))","v":""},"CSL",null,"2.00% Max",null,"% Max",null,"LandingCSL",{"$f":"IF(ISBLANK(P11),\"no data\",P11)","v":"no data"},{"$f":"IF(ISBLANK(R11),CHOOSE(IF(RIGHT(Q11,3)=\"Min\",1,IF(RIGHT(Q11,3)=\"Max\",3,2)),\">=\",\"=\",\"<=\"),CHOOSE(IF(RIGHT(S11,3)=\"Min\",1,IF(RIGHT(S11,3)=\"Max\",3,2)),\">=\",\"=\",\"<=\"))","v":"<="},{"$f":"IF(ISBLANK(R11),Z11,R11)","v":2},"% Max",2]
[null,null,null,null,null,null,null,null,null,null,null,null,null,{"$f":"IF(ISBLANK(P12),\"\",IF(COUNTIF(V12,W12&X12)>0,\"pass\",\"FAIL\"))","v":""},"W",null,"4.00 ft Min",null,"ft Min",null,"LandingWidth",{"$f":"IF(ISBLANK(P12),\"no data\",P12)","v":"no data"},{"$f":"IF(ISBLANK(R12),CHOOSE(IF(RIGHT(Q12,3)=\"Min\",1,IF(RIGHT(Q12,3)=\"Max\",3,2)),\">=\",\"=\",\"<=\"),CHOOSE(IF(RIGHT(S12,3)=\"Min\",1,IF(RIGHT(S12,3)=\"Max\",3,2)),\">=\",\"=\",\"<=\"))","v":">="},{"$f":"IF(ISBLANK(R12),Z12,R12)","v":4},"ft Min",4]
[null,null,null,null,null,null,null,null,null,null,null,null,null,{"$f":"IF(ISBLANK(P13),\"\",IF(COUNTIF(V13,W13&X13)>0,\"pass\",\"FAIL\"))","v":""},"L",null,"4.00 ft Min",null,"ft Min",null,"LandingLength",{"$f":"IF(ISBLANK(P13),\"no data\",P13)","v":"no data"},{"$f":"IF(ISBLANK(R13),CHOOSE(IF(RIGHT(Q13,3)=\"Min\",1,IF(RIGHT(Q13,3)=\"Max\",3,2)),\">=\",\"=\",\"<=\"),CHOOSE(IF(RIGHT(S13,3)=\"Min\",1,IF(RIGHT(S13,3)=\"Max\",3,2)),\">=\",\"=\",\"<=\"))","v":">="},{"$f":"IF(ISBLANK(R13),Z13,R13)","v":4},"ft Min",4]
[null,null,null,null,null,null,null,null,null,null,null,null,null,"Ramp Left #2",null,null,null,{"$f":"IF(Q14=\"\",\" ← Present?\",\"\")","v":" ← Present?"}]
[null,null,null,null,null,null,null,null,null,null,null,null,null,{"$f":"IF($Q$14=\"Not Present\",\"pass\",IF(ISBLANK(P15),\"\",IF(COUNTIF(V15,W15&X15)>0,\"pass\",\"FAIL\")))","v":""},"RS#2",null,"8.30% Max",null,"% Max",null,"RampLeft2RunningSlope",{"$f":"IF(ISBLANK(P15),\"no data\",P15)","v":"no data"},{"$f":"IF(ISBLANK(R15),CHOOSE(IF(RIGHT(Q15,3)=\"Min\",1,IF(RIGHT(Q15,3)=\"Max\",3,2)),\">=\",\"=\",\"<=\"),CHOOSE(IF(RIGHT(S15,3)=\"Min\",1,IF(RIGHT(S15,3)=\"Max\",3,2)),\">=\",\"=\",\"<=\"))","v":"<="},{"$f":"IF(ISBLANK(R15),Z15,R15)","v":8.3000000000000007},"% Max",8.3000000000000007]
[null,null,null,null,null,null,null,null,null,null,null,null,null,{"$f":"IF($Q$14=\"Not Present\",\"pass\",IF(ISBLANK(P16),\"\",IF(COUNTIF(V16,W16&X16)>0,\"pass\",\"FAIL\")))","v":""},"CS#2",null,"2.00% Max",null,"% Max",null,"RampLeft2CrossSlope",{"$f":"IF(ISBLANK(P16),\"no data\",P16)","v":"no data"},{"$f":"IF(ISBLANK(R16),CHOOSE(IF(RIGHT(Q16,3)=\"Min\",1,IF(RIGHT(Q16,3)=\"Max\",3,2)),\">=\",\"=\",\"<=\"),CHOOSE(IF(RIGHT(S16,3)=\"Min\",1,IF(RIGHT(S16,3)=\"Max\",3,2)),\">=\",\"=\",\"<=\"))","v":"<="},{"$f":"IF(ISBLANK(R16),Z16,R16)","v":2},"% Max",2]
[null,null,null,null,null,null,null,null,null,null,null,null,null,"","W#2",null,"4.00 ft Min",null,"ft Min",null,"RampLeft2Width",{"$f":"IF(ISBLANK(P17),\"no data\",P17)","v":"no data"},{"$f":"IF(ISBLANK(R17),CHOOSE(IF(RIGHT(Q17,3)=\"Min\",1,IF(RIGHT(Q17,3)=\"Max\",3,2)),\">=\",\"=\",\"<=\"),CHOOSE(IF(RIGHT(S17,3)=\"Min\",1,IF(RIGHT(S17,3)=\"Max\",3,2)),\">=\",\"=\",\"<=\"))","v":">="},{"$f":"IF(ISBLANK(R17),Z17,R17)","v":4},"ft Min",4]
[null,null,null,null,null,null,null,null,null,null,null,null,null,null,"L#2",null,"Informational",null,null,null,"RampLeft2Length",{"$f":"IF(ISBLANK(P18),\"no data\",P18)","v":"no data"},{"$f":"IF(ISBLANK(R18),CHOOSE(IF(RIGHT(Q18,3)=\"Min\",1,IF(RIGHT(Q18,3)=\"Max\",3,2)),\">=\",\"=\",\"<=\"),CHOOSE(IF(RIGHT(S18,3)=\"Min\",1,IF(RIGHT(S18,3)=\"Max\",3,2)),\">=\",\"=\",\"<=\"))","v":"="},{"$f":"IF(ISBLANK(R18),Z18,R18)","v":15},"ft Max",15]
[null,null,null,null,null,null,null,null,null,null,null,null,null,"Ramp Right #3",null,null,null,{"$f":"IF(Q19=\"\",\" ← Present?\",\"\")","v":" ← Present?"}]
[null,null,null,null,null,null,null,null,null,null,null,null,null,{"$f":"IF($Q$19=\"Not Present\",\"pass\",IF(ISBLANK(P20),\"\",IF(COUNTIF(V20,W20&X20)>0,\"pass\",\"FAIL\")))","v":""},"RS#3",null,"8.30% Max",null,"% Max",null,"RampRight3RunningSlope",{"$f":"IF(ISBLANK(P20),\"no data\",P20)","v":"no data"},{"$f":"IF(ISBLANK(R20),CHOOSE(IF(RIGHT(Q20,3)=\"Min\",1,IF(RIGHT(Q20,3)=\"Max\",3,2)),\">=\",\"=\",\"<=\"),CHOOSE(IF(RIGHT(S20,3)=\"Min\",1,IF(RIGHT(S20,3)=\"Max\",3,2)),\">=\",\"=\",\"<=\"))","v":"<="},{"$f":"IF(ISBLANK(R20),Z20,R20)","v":8.3000000000000007},"% Max",8.3000000000000007]
[null,null,null,null,null,null,null,null,null,null,null,null,null,{"$f":"IF($Q$19=\"Not Present\",\"pass\",IF(ISBLANK(P21),\"\",IF(COUNTIF(V21,W21&X21)>0,\"pass\",\"FAIL\")))","v":""},"CS#3",null,"2.00% Max",null,"% Max",null,"RampRight3CrossSlope",{"$f":"IF(ISBLANK(P21),\"no data\",P21)","v":"no data"},{"$f":"IF(ISBLANK(R21),CHOOSE(IF(RIGHT(Q21,3)=\"Min\",1,IF(RIGHT(Q21,3)=\"Max\",3,2)),\">=\",\"=\",\"<=\"),CHOOSE(IF(RIGHT(S21,3)=\"Min\",1,IF(RIGHT(S21,3)=\"Max\",3,2)),\">=\",\"=\",\"<=\"))","v":"<="},{"$f":"IF(ISBLANK(R21),Z21,R21)","v":2},"% Max",2]
[null,null,null,null,null,null,null,null,null,null,null,null,null,"","W#3",null,"4.00 ft Min",null,"ft Min",null,"RampRight3Width",{"$f":"IF(ISBLANK(P22),\"no data\",P22)","v":"no data"},{"$f":"IF(ISBLANK(R22),CHOOSE(IF(RIGHT(Q22,3)=\"Min\",1,IF(RIGHT(Q22,3)=\"Max\",3,2)),\">=\",\"=\",\"<=\"),CHOOSE(IF(RIGHT(S22,3)=\"Min\",1,IF(RIGHT(S22,3)=\"Max\",3,2)),\">=\",\"=\",\"<=\"))","v":">="},{"$f":"IF(ISBLANK(R22),Z22,R22)","v":4},"ft Min",4]
[null,null,null,null,null,null,null,null,null,null,null,null,null,null,"L#3",null,"Informational",null,null,null,"RampRight3Length",{"$f":"IF(ISBLANK(P23),\"no data\",P23)","v":"no data"},{"$f":"IF(ISBLANK(R23),CHOOSE(IF(RIGHT(Q23,3)=\"Min\",1,IF(RIGHT(Q23,3)=\"Max\",3,2)),\">=\",\"=\",\"<=\"),CHOOSE(IF(RIGHT(S23,3)=\"Min\",1,IF(RIGHT(S23,3)=\"Max\",3,2)),\">=\",\"=\",\"<=\"))","v":"="},{"$f":"IF(ISBLANK(R23),Z23,R23)","v":15},"ft Max",15]
[null,null,null,null,null,null,null,null,null,null,null,null,null,"Counter Slope"]
[null,null,null,null,null,null,null,null,null,null,null,null,null,{"$f":"IF(ISBLANK(P25),\"\",IF(COUNTIF(V25,W25&X25)>0,\"pass\",\"FAIL\"))","v":""},"S",null,"5.00% Max",null,"% Max",null,"CounterSlope",{"$f":"IF(ISBLANK(P25),\"no data\",P25)","v":"no data"},{"$f":"IF(ISBLANK(R25),CHOOSE(IF(RIGHT(Q25,3)=\"Min\",1,IF(RIGHT(Q25,3)=\"Max\",3,2)),\">=\",\"=\",\"<=\"),CHOOSE(IF(RIGHT(S25,3)=\"Min\",1,IF(RIGHT(S25,3)=\"Max\",3,2)),\">=\",\"=\",\"<=\"))","v":"<="},{"$f":"IF(ISBLANK(R25),Z25,R25)","v":5},"% Max",5]
[null,null,null,null,null,null,null,null,null,null,null,null,null,{"$f":"IF(AND(P10=\"\",P25<>\"\"),\"Incomplete\",IF(ISBLANK(P25),\"\",IF(COUNTIF(V26,W26&X26)>0,\"pass\",\"FAIL\")))","v":""},"CSW + S",{"$f":"IF(ISBLANK(P25),\"sum\",P10+P25)","v":"sum"},"7.00% Max",null,"% Max",null,"SlopeDelta",{"$f":"IFERROR(V10+V25,\"no data\")","v":"no data"},{"$f":"IF(ISBLANK(R26),CHOOSE(IF(RIGHT(Q26,3)=\"Min\",1,IF(RIGHT(Q26,3)=\"Max\",3,2)),\">=\",\"=\",\"<=\"),CHOOSE(IF(RIGHT(S26,3)=\"Min\",1,IF(RIGHT(S26,3)=\"Max\",3,2)),\">=\",\"=\",\"<=\"))","v":"<="},{"$f":"IF(ISBLANK(R26),Z26,R26)","v":7},"% Max",7,null,null,"Grade Breaks"]
[null,null,null,null,null,null,null,null,null,null,null,null,null,"Grade Breaks",null,null,null,null,"(paper form: enter fraction or decimal of an inch)",null,null,null,null,null,null,null,null,null,"Flush","Flush (0.00\") No vertical Difference"]
[null,null,null,null,null,null,null,null,null,null,null,null,null,{"$f":"IF(ISBLANK(P28),\"\",IF(COUNTIF(AC27:AC29,P28)>0,\"pass\",\"FAIL\"))","v":""},"GB#1",null,null,null,null,null,"GradeBreak1",{"$f":"IF(ISBLANK(P28),\"no data\",P28)","v":"no data"},{"$f":"IF(ISBLANK(R28),CHOOSE(IF(RIGHT(Q28,3)=\"Min\",1,IF(RIGHT(Q28,3)=\"Max\",3,2)),\">=\",\"=\",\"<=\"),CHOOSE(IF(RIGHT(S28,3)=\"Min\",1,IF(RIGHT(S28,3)=\"Max\",3,2)),\">=\",\"=\",\"<=\"))","v":"="},{"$f":"IF(ISBLANK(R28),Z28,R28)","v":0},"flush",0,null,null,"¼-Inch or Less","¼-Inch (0.02 ft) or Less"]
[null,null,null,null,null,null,null,null,null,null,null,null,null,{"$f":"IF(ISBLANK(P29),\"\",IF(COUNTIF(AC27:AC29,P29)>0,\"pass\",\"FAIL\"))","v":""},"GB#2",null,null,null,null,null,"GradeBreak2","no data","=",0,"flush",0,null,null,"¼ to ½-Inch YES Bevel","Between  ¼ - ½-Inch WITH ¼-inch Beveled at 2:1"]
[null,"NOTES",null,null,null,null,null,null,null,null,null,null,null,{"$f":"IF(ISBLANK(P30),\"\",IF(COUNTIF(AC27:AC29,P30)>0,\"pass\",\"FAIL\"))","v":""},"GB#3",null,null,null,null,null,"GradeBreak3","no data","=",0,"flush",0,null,null,"¼ to ½-Inch NO Bevel","Between  ¼ - ½-Inch WITHOUT ¼-inch Beveled at 2:1"]
[null,null,null,null,null,null,null,null,null,null,null,null,null,{"$f":"IF($Q$14=\"Not Present\",\"pass\",IF(ISBLANK(P31),\"\",IF(COUNTIF(AC27:AC29,P31)>0,\"pass\",\"FAIL\")))","v":""},"GB#4",null,null,null,null,null,"GradeBreak4","no data","=",0,"flush",0,"Change in Slope = RS#1 + S",null,"Greater than ½-Inch","Greater than ½-Inch"]
[null,null,null,null,null,null,null,null,null,null,null,null,null,{"$f":"IF($Q$14=\"Not Present\",\"pass\",IF(ISBLANK(P32),\"\",IF(COUNTIF(AC27:AC29,P32)>0,\"pass\",\"FAIL\")))","v":""},"GB#5",null,null,null,null,null,"GradeBreak5","no data","=",0,"flush",0]
[null,null,null,null,null,null,null,null,null,null,null,null,null,{"$f":"IF($Q$19=\"Not Present\",\"pass\",IF(ISBLANK(P33),\"\",IF(COUNTIF(AC27:AC29,P33)>0,\"pass\",\"FAIL\")))","v":""},"GB#6",null,null,null,null,null,"GradeBreak6","no data","=",0,"flush",0]
[null,null,null,null,null,null,null,null,null,null,null,null,null,{"$f":"IF($Q$19=\"Not Present\",\"pass\",IF(ISBLANK(P34),\"\",IF(COUNTIF(AC27:AC29,P34)>0,\"pass\",\"FAIL\")))","v":""},"GB#7",null,null,null,null,null,"GradeBreak7",{"$f":"IF(ISBLANK(P34),\"no data\",P34)","v":"no data"},"=",0,"flush",0]
[null,null,null,null,null,null,null,null,null,null,null,null,null,null,null,null,null,null,null,null,"StructComp",{"$f":"IF(COUNTIF(K9:N34,\"FAIL\")>0,\"No\",IF(COUNTIF(K9:N34,\"pass\")=22,\"Yes\",\"incomplete\"))","v":"incomplete"},"Structurally Compliant?"]
[null,null,null,null,null,null,null,null,null,null,null,null,null,"Detectable Warning Surface"]
[null,null,null,null,null,null,null,null,null,null,null,null,null,{"$f":"IF(AND(P13=\"\",P37<>\"\"),\"Incomplete\",IF(ISBLANK(P37),\"\",IF(COUNTIF(V37,W37&X37)>0,\"pass\",\"FAIL\")))","v":""},"L",null,{"$f":"IF(ISBLANK(P13),\"Match L Landing\",\"At Least \"&X37&\" ft\")","v":"Match L Landing"},null,null,null,"DWSLength",{"$f":"IF(ISBLANK(P37),\"no data\",P37)","v":"no data"},">=",{"$f":"Z37-0.33","v":-0.33},"ft",{"$f":"P13","v":0},"Match L Landing"]
[null,null,null,null,null,null,null,null,null,null,null,null,null,{"$f":"IF(ISBLANK(P38),\"\",IF(COUNTIF(V38,W38&X38)>0,\"pass\",\"FAIL\"))","v":""},"W",null,"2.00 ft Min",null,null,null,"DWSWidth",{"$f":"IF(ISBLANK(P38),\"no data\",P38)","v":"no data"},{"$f":"IF(ISBLANK(R38),CHOOSE(IF(RIGHT(Q38,3)=\"Min\",1,IF(RIGHT(Q38,3)=\"Max\",3,2)),\">=\",\"=\",\"<=\"),CHOOSE(IF(RIGHT(S38,3)=\"Min\",1,IF(RIGHT(S38,3)=\"Max\",3,2)),\">=\",\"=\",\"<=\"))","v":">="},{"$f":"IF(ISBLANK(R38),Z38,R38)","v":2},"ft Min",2]
[null,null,null,null,null,null,null,null,null,null,null,null,null,{"$f":"IF(ISBLANK(P39),\"\",IF(COUNTIF(V39,W39&X39)>0,\"pass\",\"FAIL\"))","v":""},"Color",null,"DOT - Yellow",null,null,null,"DWSColor",{"$f":"IF(ISBLANK(P39),\"no data\",P39)","v":"no data"},{"$f":"IF(ISBLANK(R39),CHOOSE(IF(RIGHT(Q39,3)=\"Min\",1,IF(RIGHT(Q39,3)=\"Max\",3,2)),\">=\",\"=\",\"<=\"),CHOOSE(IF(RIGHT(S39,3)=\"Min\",1,IF(RIGHT(S39,3)=\"Max\",3,2)),\">=\",\"=\",\"<=\"))","v":"="},{"$f":"IF(ISBLANK(R39),Z39,P39)","v":"DOT - Yellow"},null,"DOT - Yellow"]
[null,null,null,null,null,null,null,null,null,null,null,null,null,{"$f":"IF(ISBLANK(P40),\"\",IF(COUNTIF(AC41:AC46,P40)>0,\"pass\",\"FAIL\"))","v":""},"Type",null,"Truncated",null,null,null,"DWSType",{"$f":"IF(ISBLANK(P40),\"no data\",VLOOKUP(P40,AC41:AD47,2,FALSE))","v":"no data"},{"$f":"IF(ISBLANK(R40),CHOOSE(IF(RIGHT(Q40,3)=\"Min\",1,IF(RIGHT(Q40,3)=\"Max\",3,2)),\">=\",\"=\",\"<=\"),CHOOSE(IF(RIGHT(S40,3)=\"Min\",1,IF(RIGHT(S40,3)=\"Max\",3,2)),\">=\",\"=\",\"<=\"))","v":"="},{"$f":"IF(ISBLANK(R40),Z40,R40)","v":"1 - 6"},null,"1 - 6",null,null,"DWS Types:"]
[null,"Measurement Instrument \nSerial Number:",null,null,null,"Calibrated by:",null,null,null,"Date:",null,null,null,"Curb Gap",null,null,null,null,null,null,null,null,null,null,null,null,null,null,"Brick","Brick"]
[null,null,null,null,null,null,null,null,null,null,null,null,null,{"$f":"IF(ISBLANK(P42),\"\",IF(COUNTIF(V42,W42&X42)>0,\"pass\",\"FAIL\"))","v":""},"CG",null,"0.17 ft Max",null,"ft",null,"DWSCurbGap",{"$f":"IF(ISBLANK(P42),\"no data\",P42)","v":"no data"},{"$f":"IF(ISBLANK(R42),CHOOSE(IF(RIGHT(Q42,3)=\"Min\",1,IF(RIGHT(Q42,3)=\"Max\",3,2)),\">=\",\"=\",\"<=\"),CHOOSE(IF(RIGHT(S42,3)=\"Min\",1,IF(RIGHT(S42,3)=\"Max\",3,2)),\">=\",\"=\",\"<=\"))","v":"<="},{"$f":"IF(ISBLANK(R42),Z42,R42)","v":0.17},"ft",0.17,null,null,"Epoxy","Truncated Dome (TDome)  Epoxy"]
[null,"1\" = 0.08'","2\" = 0.17'","3\" = 0.25'","4\" = 0.33'","5\" = 0.42'","6\" = 0.50'","7\" = 0.58'","8\" = 0.67'","9\" = 0.75'","10\" = 0.83'","11\" = 0.92'",null,null,null,null,null,null,null,null,"DWSComp",{"$f":"IF(COUNTIF(N37:N42,\"FAIL\")>0,\"No\",IF(COUNTIF(N37:N42,\"pass\")=5,\"Yes\",\"incomplete\"))","v":"incomplete"},"DWS Compliant?",null,null,null,null,null,"CastIron","TDome Inlay CastIron"]
[null,null,null,null,null,null,null,null,null,null,null,null,null,null,null,null,null,"Form Updated",null,null,"DiagToCenterIntersection",{"$f":"E9","v":0},null,null,null,null,null,null,"Concrete","TDome Inlay Concrete"]
[null,null,null,null,null,null,null,null,null,null,null,null,null,null,null,null,null,"2018-07-31",null,null,"ClearSpaceWidth",{"$f":"J9","v":""},null,null,null,null,null,null,"Plastic","TDome Inlay Plastic"]
[null,null,null,null,null,null,null,null,null,null,null,null,null,null,null,null,null,null,null,null,"WSDOTFeatureNumber",null,"Feature ID Code",null,null,null,null,null,"Other","TDome Inlay Other"]
[null,null,null,null,null,null,null,null,null,null,null,null,null,null,null,null,null,null,null,null,"FeatureLocationCode",{"$f":"E7","v":0},"Plan Sheet",null,null,null,null,null,"None","None, Not TDome, or MEF exception—make note"]
[null,null,null,null,null,null,null,null,null,null,null,null,null,null,null,null,null,null,null,null,"Note",{"$f":"B31","v":0}," "]
[null,null,null,null,null,null,null,null,null,null,null,null,null,null,null,null,null,null,null,null,"CrossStreet",{"$f":"E5","v":0}," "]
[null,null,null,null,null,null,null,null,null,null,null,null,null,null,null,null,null,null,null,null,"CornerSide",{"$f":"J5","v":0}," "]
[null,null,null,null,null,null,null,null,null,null,null,null,null,null,null,null,null,null,null,null,"PlanShtRef",{"$f":"E6","v":0}]
[null,null,null,null,null,null,null,null,null,null,null,null,null,null,null,null,null,null,null,null,"MEFRef",{"$f":"R6","v":0}]
[null,null,null,null,null,null,null,null,null,null,null,null,null,null,null,null,null,null,null,null,"SiteHist",{"$f":"IF(N2=\"Scoping\",\"Existing Feature\",E8)","v":0}]
[null,null,null,null,null,null,null,null,null,null,null,null,null,null,null,null,null,null,null,null,"Station",{"$f":"M5","v":"Station"}]

{"sheet":"Combination","index":3,"n_rows":60,"n_cols":149,"rows_kept":60,"cut":false,"hidden":false,"merged":[[0,22,0,23],[1,22,1,23],[1,11,1,12],[1,13,1,14],[4,17,4,18],[5,4,5,6],[6,4,6,6],[6,9,6,10],[2,13,2,14],[5,11,5,12],[6,11,6,12],[49,17,49,18],[45,5,45,8],[36,1,36,11],[45,9,45,11],[46,1,46,4],[46,5,46,8],[46,9,46,11],[45,1,45,4],[37,1,44,11],[37,15,37,16],[36,15,36,16],[38,15,38,16],[0,1,1,9],[48,17,48,18],[9,1,9,10],[7,11,7,14],[5,1,5,3],[8,1,8,3],[3,17,3,18],[3,1,3,3],[6,16,7,16],[7,17,7,18],[4,1,4,3],[35,15,35,16],[44,17,44,18],[39,15,39,16],[8,10,8,12],[4,9,4,10],[34,15,34,16],[2,33,2,34],[2,1,2,3],[2,4,2,5],[2,9,2,10],[2,17,2,18],[7,9,7,10],[4,4,4,7],[3,4,3,7],[6,1,6,3],[7,4,7,6],[33,15,33,16],[32,15,32,16],[13,13,13,14],[18,13,18,14],[23,13,23,14]]}
[null,"ADA Feature - Combination Curb Ramp \n                          Measurements",null,null,null,null,null,null,null,null,null,{"$f":"IF(AND(OR(Y2=\"incomplete\",Y1=\"incomplete\"),LEN(N2)>0),\"= Required Field\",\"\")","v":""},null,null,null,null,null,null,null,null,"FeatureName",{"$f":"S2","v":"CR-COMB"},"Complete Header",null,{"$f":"IF(AND(N2<>\"Scoping\",OR(E3=\"\",J3=\"\",E4=\"\",N2=\"\",N3=\"\",N4=\"\",O4=\"A/B\",E7=\"\",O5=\"Lt or Rt?\",E5=\"\",E9=\"\",J5=\"\",J6=\"\",K6=\"\",J7=\"\",J8=\"\",N6=\"\",O6=\"\",P6=\"\",B47=\"\",F47=\"\",J47=\"\",E8=\"\")),\"incomplete\",\"pass\")","v":"incomplete"},null,null,null,null,null,null,null,null,null,null,null,null,null,null,null,null,null,null,null,null,null,null,null,null,null,null,null,null,null,null,null,null,null,null,null,null,null,null,null,null,null,null,null,null,null,null,null,null,null,null,null,null,null,null,null,null,null,null,null,null,null,null,null,null,null,{"$f":"MID(CELL(\"filename\",#REF!),FIND(\"]\",CELL(\"filename\",#REF!))+1,255)","v":{"$error":"#REF!"}}]
[null,null,null,null,null,null,null,null,null,null,null,"Phase",null,null,null,null,"Database Schema:",null,"CR-COMB",null,"CompletedUnderContract",{"$f":"E3","v":0},"Complete Header \"Scoping\"",null,{"$f":"IF(AND(N2=\"Scoping\",OR(E3=\"\",J3=\"\",E4=\"\",N3=\"\",N4=\"\",O4=\"A/B\",E5=\"\",O5=\"Lt or Rt?\",E9=\"\",J5=\"\",J6=\"\",K6=\"\",J7=\"\",N6=\"\",O6=\"\",P6=\"\")),\"incomplete\",\"pass\")","v":"pass"},null,null,"Combination Curb Ramp",null,null,null,null,null,null,null,null,"Drawing 3",null,null,null,null,null,null,null,null,null,null,null,null,null,null,null,null,null,null,null,null,null,null,null,null,null,null,null,null,null,null,null,null,null,null,null,null,null,null,null,null,null,null,null,null,null,{"$f":"LEN(CF4)","v":1},{"$f":"N3","v":0},{"$f":"TEXT(N4,\"0.00\")&IF(O4=\"B\",\"B\",\"\")","v":"0.00"},null,{"$f":"E5","v":0},null,null,null,"CRCom",null,null,null,null,null,null,null,null,null,{"$f":"LEN(CW4)","v":28},null,{"$f":"R3","v":"incomplete form"},null,null,{"$f":"J7","v":0},null,{"$f":"J3","v":"00:00:00"},{"$f":"J8","v":0},{"$f":"E8","v":0},{"$f":"E3","v":0},{"$f":"IF(AND(R4=\"Standard ADA\",LEN(R5)=0),\"n/a\",R5)","v":"n/a"},null,null,{"$f":"P6","v":0},"01",{"$f":"N2","v":0},null,null,null,null,null,null,null,null,null,null,null,null,null,null,null,null,null,null,null,null,null,null,null,null,null,null,null,null,{"$f":"IF(RIGHT(O5,1)=\"?\",\"?\",LEFT(O5&\"-\",2))","v":"?"},{"$f":"LEFT(J5,1)","v":""},{"$f":"IF(LEN(J6)=0,\"!\",LEFT(TEXT(J6,\"0\")&\"-\",2))","v":"!"},{"$f":"IF(LEN(K6)=0,\"!\",LEFT(TEXT(K6,\"0\")&\"-\",2))","v":"!"}]
[null,"Contract / Work Order",null,null,null,null,null,null,"Date Measured",null,null,null,"SR",null,null,null,"Survey/Feature Status",{"$f":"IF(COUNTIF(L10,\"Yes\")>0,\"FAIL\",IF(COUNTIF(K9:N48,\"FAIL\")>0,\"FAIL\",IF(COUNTIF(Y1:Y2,\"pass\")<2,\"incomplete form\",IF(SUM(COUNTIF(K9:N48,\"pass\"),COUNTIF(K9:N48,\"NA\"))=32,\"pass\",\"incomplete form\"))))","v":"incomplete form"},null,null,"GPSDate",{"$f":"J3","v":"00:00:00"},"Date Measured",null,null,null,null,null,null,null,null,null,null,"Requirements",null,"Yes/No","4 ft Min if Diagonally Oriented","4 ft Min","15 ft Max","2.0% Max","8.3% Max","4 ft Min","4 ft Min","2.0% Max","2.0% Max","4 ft Min","15 ft Max","2.0% Max","8.3% Max","4 ft Min","15 ft Max","2.0% Max","8.3% Max","5 % Max","Flush","Flush","Flush","Flush","Flush","Flush","Flush","Flush","Truncated","DOT - Yellow","0 ft","As Wide As Landing","2 Ft Min",null,null,null,null,null,null,null,null,null,null,null,null,null,"SR View","Gmap","Gmap2","State Route","Mile- post","Primary St, Bridge, or Facility Name","Intersecting or Related St or Route","City","County","Region","ADA Feature","Meas?","Summary of Non-Compliance","Solution","Sched. Fiscal Year","Estimated Cost","Lat","Long","Lat2","Long2","FeatureID","GIS Table","Fully Compliant?","DWS Non-Comp Only?","Length","Jurisdiction","SubOwner","MeasDate","ConstructedBy","SiteHistory","Contract","MEFRef","DocRef","NodeLoc","LocMethod","History","Project Phase","Path Priority Index Tier","Barrier Severity","Date made Compliant","Access Level","Rural or Urban","PaveBienn_within_100ft","PaveDue+2","Direction","MP","A/B","ARM","SRSort","MPSort","BridgeNo","Site Key","Issue","Issue Summary","Rest Area","multiples","CityAccess","RecordCreateDate","GPSDate","End_SR","End_MP","ProjectID","ADAGroup","Plan 2016","Planning Set","Side","Site","NodeCompass","FeatCompass"]
[null,"Measured By",null,null,null,null,null,null,null,null,null,null,"Milepost",null,"A/B",{"$f":"HYPERLINK(\"#'READ-ME'!A252:A264\",\"?\")","v":"?"},"MEF Status",{"$f":"IF(SUM(R10:R31,R48)+IFERROR(SEARCH(\"MEF\",J9),0)>0,\"Has MEF\",\"Standard ADA\")","v":"Standard ADA"},null,null,"Datafile",{"$f":"E4","v":0},"Measured By",null,null,null,null,null,null,null,null,null,null,null,null,null,null,"Ramp #1","Ramp #1","Ramp #1","Ramp #1","Landing","Landing","Landing","Landing","Ramp Left #2","Ramp Left #2","Ramp Left #2","Ramp Left #2","Ramp Right #3","Ramp Right #3","Ramp Right #3","Ramp Right #3","Counter Slope","Grade Break","Grade Break","Grade Break","Grade Break","Grade Break","Grade Break","Grade Break","Grade Break","DWS","DWS","Curb Gap","DWS","DWS",null,null,null,null,null,null,null,null,null,null,null,null,null,{"$f":"HYPERLINK(\"http://srview3i.wsdot.loc/stateroute/picturelog/v3/client/SRview.Windows.Viewer.application?srnum=\"&LEFT(CF4,3)&\"&rrt=\"&IF(LEN(CF4)>3,RIGHT(LEFT(CF4,5),2),\"\")&\"&rrq=\"&IF(LEN(CF4)=11,RIGHT(CF4,6),IF(LEN(CF4)=10,RIGHT(CF4,5),\"\"))&\"&srmp=\"&CG4,\"SRV\")","v":"SRV"},{"$f":"HYPERLINK(\"http://maps.google.com/maps?z=20&t=k&q=loc:\"&CS4&\",\"&CT4,\"GMap\")","v":{"$error":"#VALUE!"}},{"$f":"IF(LEN(CU4)>0,HYPERLINK(\"http://maps.google.com/maps?z=20&t=k&q=loc:\"&CU4&\",\"&CV4,\"GMap\"),\"\")","v":""},{"$f":"CF2","v":0},{"$f":"CG2","v":"0.00"},null,null,null,null,null,"Curb Ramp Combination","Yes",null,"Fully Compliant","?",0,{"$f":"IF(LEN(N6)=0,VALUE(LEFT(CS2,FIND(\",\",CS2)-1)),N6)","v":{"$error":"#VALUE!"}},{"$f":"IF(LEN(O6)=0,VALUE(RIGHT(CS2,LEN(CS2)-FIND(\",\",CS2)-1)),O6)","v":{"$error":"#VALUE!"}},null,null,{"$f":"CM2&LEFT(TEXT(CF4,\"000\")&\"-----------\",11)&TEXT(DV4,\"000.00\")&DW4&DU4&EQ4&ER4&ES4&DL2","v":"CRCom000--------000.00AI!!01"},"New Point",{"$f":"IF(CY2=\"pass\",\"Yes\",\"No\")","v":"No"},"No","n/a",{"$f":"DB2","v":0},"n/a",{"$f":"DD2","v":"00:00:00"},{"$f":"DE2","v":0},{"$f":"DF2","v":0},{"$f":"DG2","v":0},{"$f":"DH2","v":"n/a"},null,{"$f":"EP4&\"-\"&EQ4&\"-\"&ER4&\"-\"&ES4","v":"?--!-!"},{"$f":"DK2","v":0},"Latest",{"$f":"DM2","v":0},"?","no barrier","?","?","?","?","?","I",{"$f":"TEXT(IF(DW4=\"B\",VALUE(LEFT(CG4,FIND(\"B\",CG4)-1)),CG4),\"000.00\")","v":"000.00"},{"$f":"IF(O4=\"B\",\"B\",\"A\")","v":"A"},"?",{"$f":"LEFT(CF4,3)","v":"0"},{"$f":"IF(LEN(CF4)>9,VALUE(RIGHT(CF4,5))/100,CG4)","v":"0.00"},"n/a","Intersection",null,"+ (blank)",null,null,null,null,null,null,null,null,null,null,null,{"$f":"EP2","v":"?"},{"$f":"EQ2","v":""},{"$f":"ER2","v":"!"},{"$f":"ES2","v":"!"}]
[null,"Cross Street Name",null,null,null,null,null,null,{"$f":"HYPERLINK(\"#'READ-ME'!A61:A88\",\"Site\")","v":"Site"},null,null,null,"Station",null,{"$f":"HYPERLINK(\"#'READ-ME'!A222:A240\",\"Lt or Rt?\")","v":"Lt or Rt?"},null,"MEF Reference",null,null,null,"StateRouteRRT",{"$f":"M3","v":"SR"},null,null,null,null,null,"Database Schema","Contract","Date Measured","Measured By","SR","SRMP","A/B","Lt or Rt","Diagonally Orientated?","Clear Space?","W#1","L#1","CS#1","RS#1","L","W","CSW","CSL","W#2","L#2","CS#2","RS#2","W#3","L#3","CS#3","RS#3","S"," GB#1"," GB#2"," GB#3"," GB#4"," GB#5"," GB#6"," GB#7"," GB#8","Type","Color","CG","L","W","NOTES","Feature ID Code","Feature Location Code","RS#1+S","Cross Street Name","Corner/Side","Plan Sheet Reference","MEF Reference","Site History","Station","Structurally Compliant?","DWS Compliant?",null,{"$f":"HYPERLINK(\"http://www.wsdot.wa.gov/data/tools/geoportal/?layers=%7B%22layer0%22%3A%5B%5D%2C%22Buffer%22%3Atrue%2C%22Drawn+Features%22%3Atrue%7D\",\"Geoportal\")","v":"Geoportal"},null,null,null,null,null,null,null,null,null,null,null,null,null,null,null,null,null,null,null,null,null,null,null,null,null,null,null,null,null,null,null,null,null,null,null,null,null,null,null,null,null,null,null,null,null,null,null,null,null,null,null,null,null,null,null,null,null,null,null,null,null,null,null,null,"LEFT(TEXT(CF4,\"000\")&\"-----------\",11)"]
[null,"Plan Sheet Reference",null,null,null,null,null,null,{"$f":"HYPERLINK(\"#'READ-ME'!A112:A138\",\"Location\")","v":"Location"},null,null,"Geoportal",null,null,null,null,null,null,null,null,"SRMP",{"$f":"M4","v":"Milepost"},null,null,null,null,null,"FeatureName","CompletedUnderContract","GPSDate","Datafile","StateRouteRRT","SRMP","AheadBackIndicator","DirectionOfInventory","DiagToCenterIntersection","ClearSpaceWidth","Ramp1Width","Ramp1Length","Ramp1CrossSlope","Ramp1RunningSlope","LandingLength","LandingWidth","LandingCSW","LandingCSL","RampLeft2Width","RampLeft2Length","RampLeft2CrossSlope","RampLeft2RunningSlope","RampRight3Width","RampRight3Length","RampRight3CrossSlope","RampRight3RunningSlope","CounterSlope","GradeBreak1","GradeBreak2","GradeBreak3","GradeBreak4","GradeBreak5","GradeBreak6","GradeBreak7","GradeBreak8","DWSType","DWSColor","DWSCurbGap","DWSLength","DWSWidth","Note","WSDOTFeatureNumber","FeatureLocationCode","SlopeDelta","CrossStreet","CornerSide","PlanShtRef","MEFRef","SiteHist","Station","StructComp","DWSComp"]
[null,"Feature Location Code",null,null,null,null,null,null,"Jurisdiction",null,null,{"$f":"HYPERLINK(\"#'READ-ME'!A148:A189\",\"Instructions\")","v":"Instructions"},null,"Latitude","Longitude",{"$f":"HYPERLINK(\"#'READ-ME'!A201:A207\",\"Accuracy\")","v":"Accuracy"},"ADA Compliance Criteria",null,null,null,"AheadBackIndicator",{"$f":"O4","v":"A/B"},null,null,null,null,null,"CR-COMB",{"$f":"VLOOKUP(AC6,$U:$V,2,FALSE)","v":0},0,0,"SR","Milepost","A/B",0,0,"","no data","no data","no data","no data","no data","no data","no data","no data","no data","no data","no data","no data","no data","no data","no data","no data","no data","no data","no data","no data","no data","no data","no data",{"$f":"VLOOKUP(BI6,$U:$V,2,FALSE)","v":"no data"},"no data","no data","no data","no data","no data","no data",0,0,0,"no data",0,0,0,0,0,"Station","incomplete","incomplete"]
[null,null,null,"Site History",null,null,null,null,"Constructed By",null,null,"Enter numbers only\n1 = 1.00%, 2.25 = 2.25 ft, etc.",null,null,null,"Measurement",null,"MEF Criteria",null,null,"DirectionOfInventory",{"$f":"M6","v":0},"Lt or Rt",null,null,null,null,null,null,null,null,null,null,null,null,null,null,null,null,null,null,null,null,null,null,null,null,null,null,null,null,null,null,null,null,null,null,null,null,null,null,null,"x"]
[null,"Diagonally Oriented?",null,null,null,null,null,null,"Clear Space Achieved?",{"$f":"IF(E9=\"No\",\"n/a\",\"\")","v":""},{"$f":"IF(AND(E9=\"Yes\",LEN(J9)=0),\"4 ft Min if Diagonally Oriented\",IF(AND(E9=\"Yes\",J9=\"No\"),\"FAIL\",IF(J9=\"Yes\",\"pass\",IF(E9=\"No\",\"pass\",IF(J9=\"MEF\",\"pass\",\"\")))))","v":""},null,null,"Landing"]
[null,{"$f":"IF(COUNTIF(N2,\"Scoping\")>0,\"Visually Identified the Feature is ADA non-Compliant, no measurements taken\",\"\")","v":""},null,null,null,null,null,null,null,null,null,null,null,{"$f":"IF(ISBLANK(P10),\"\",IF(COUNTIF(V10,W10&X10)>0,\"pass\",\"FAIL\"))","v":""},"CSW",null,"2.00% Max",null,"% Max",null,"LandingCSW",{"$f":"IF(ISBLANK(P10),\"no data\",P10)","v":"no data"},{"$f":"IF(ISBLANK(R10),CHOOSE(IF(RIGHT(Q10,3)=\"Min\",1,IF(RIGHT(Q10,3)=\"Max\",3,2)),\">=\",\"=\",\"<=\"),CHOOSE(IF(RIGHT(S10,3)=\"Min\",1,IF(RIGHT(S10,3)=\"Max\",3,2)),\">=\",\"=\",\"<=\"))","v":"<="},{"$f":"IF(ISBLANK(R10),Z10,R10)","v":2},"% Max",2]
[null,null,null,null,null,null,null,null,null,null,null,null,null,{"$f":"IF(ISBLANK(P11),\"\",IF(COUNTIF(V11,W11&X11)>0,\"pass\",\"FAIL\"))","v":""},"CSL",null,"2.00% Max",null,"% Max",null,"LandingCSL",{"$f":"IF(ISBLANK(P11),\"no data\",P11)","v":"no data"},{"$f":"IF(ISBLANK(R11),CHOOSE(IF(RIGHT(Q11,3)=\"Min\",1,IF(RIGHT(Q11,3)=\"Max\",3,2)),\">=\",\"=\",\"<=\"),CHOOSE(IF(RIGHT(S11,3)=\"Min\",1,IF(RIGHT(S11,3)=\"Max\",3,2)),\">=\",\"=\",\"<=\"))","v":"<="},{"$f":"IF(ISBLANK(R11),Z11,R11)","v":2},"% Max",2]
[null,null,null,null,null,null,null,null,null,null,null,null,null,{"$f":"IF(ISBLANK(P12),\"\",IF(COUNTIF(V12,W12&X12)>0,\"pass\",\"FAIL\"))","v":""},"W",null,"4.00 ft Min",null,"ft Min",null,"LandingWidth",{"$f":"IF(ISBLANK(P12),\"no data\",P12)","v":"no data"},{"$f":"IF(ISBLANK(R12),CHOOSE(IF(RIGHT(Q12,3)=\"Min\",1,IF(RIGHT(Q12,3)=\"Max\",3,2)),\">=\",\"=\",\"<=\"),CHOOSE(IF(RIGHT(S12,3)=\"Min\",1,IF(RIGHT(S12,3)=\"Max\",3,2)),\">=\",\"=\",\"<=\"))","v":">="},4,"ft Min",4]
[null,null,null,null,null,null,null,null,null,null,null,null,null,{"$f":"IF(ISBLANK(P13),\"\",IF(COUNTIF(V13,W13&X13)>0,\"pass\",\"FAIL\"))","v":""},"L",null,"4.00 ft Min",null,"ft Min",null,"LandingLength",{"$f":"IF(ISBLANK(P13),\"no data\",P13)","v":"no data"},{"$f":"IF(ISBLANK(R13),CHOOSE(IF(RIGHT(Q13,3)=\"Min\",1,IF(RIGHT(Q13,3)=\"Max\",3,2)),\">=\",\"=\",\"<=\"),CHOOSE(IF(RIGHT(S13,3)=\"Min\",1,IF(RIGHT(S13,3)=\"Max\",3,2)),\">=\",\"=\",\"<=\"))","v":">="},4,"ft Min",4]
[null,null,null,null,null,null,null,null,null,null,null,null,null,"Ramp #1"]
[null,null,null,null,null,null,null,null,null,null,null,null,null,{"$f":"IF(ISBLANK(P15),\"\",IF(COUNTIF(V15,W15&X15)>0,\"pass\",\"FAIL\"))","v":""},"RS#1",null,"8.30% Max",null,"% Max",null,"Ramp1RunningSlope",{"$f":"IF(ISBLANK(P15),\"no data\",P15)","v":"no data"},{"$f":"IF(ISBLANK(R15),CHOOSE(IF(RIGHT(Q15,3)=\"Min\",1,IF(RIGHT(Q15,3)=\"Max\",3,2)),\">=\",\"=\",\"<=\"),CHOOSE(IF(RIGHT(S15,3)=\"Min\",1,IF(RIGHT(S15,3)=\"Max\",3,2)),\">=\",\"=\",\"<=\"))","v":"<="},8.3000000000000007,"% Max",8.3000000000000007]
[null,null,null,null,null,null,null,null,null,null,null,null,null,{"$f":"IF(ISBLANK(P16),\"\",IF(COUNTIF(V16,W16&X16)>0,\"pass\",\"FAIL\"))","v":""},"CS#1",null,"2.00% Max",null,"% Max",null,"Ramp1CrossSlope",{"$f":"IF(ISBLANK(P16),\"no data\",P16)","v":"no data"},{"$f":"IF(ISBLANK(R16),CHOOSE(IF(RIGHT(Q16,3)=\"Min\",1,IF(RIGHT(Q16,3)=\"Max\",3,2)),\">=\",\"=\",\"<=\"),CHOOSE(IF(RIGHT(S16,3)=\"Min\",1,IF(RIGHT(S16,3)=\"Max\",3,2)),\">=\",\"=\",\"<=\"))","v":"<="},2,"% Max",2]
[null,null,null,null,null,null,null,null,null,null,null,null,null,{"$f":"IF(ISBLANK(P17),\"\",IF(COUNTIF(V17,W17&X17)>0,\"pass\",\"FAIL\"))","v":""},"W#1",null,"4.00 ft Min",null,"ft Min",null,"Ramp1Width",{"$f":"IF(ISBLANK(P17),\"no data\",P17)","v":"no data"},{"$f":"IF(ISBLANK(R17),CHOOSE(IF(RIGHT(Q17,3)=\"Min\",1,IF(RIGHT(Q17,3)=\"Max\",3,2)),\">=\",\"=\",\"<=\"),CHOOSE(IF(RIGHT(S17,3)=\"Min\",1,IF(RIGHT(S17,3)=\"Max\",3,2)),\">=\",\"=\",\"<=\"))","v":">="},4,"ft Min",4]
[null,null,null,null,null,null,null,null,null,null,null,null,null,{"$f":"IF(ISBLANK(P18),\"\",IF(COUNTIF(V18,W18&X18)>0,\"pass\",\"FAIL\"))","v":""},"L#1",null,"15.00 ft Max",null,"ft Max",null,"Ramp1Length",{"$f":"IF(ISBLANK(P18),\"no data\",P18)","v":"no data"},{"$f":"IF(ISBLANK(R18),CHOOSE(IF(RIGHT(Q18,3)=\"Min\",1,IF(RIGHT(Q18,3)=\"Max\",3,2)),\">=\",\"=\",\"<=\"),CHOOSE(IF(RIGHT(S18,3)=\"Min\",1,IF(RIGHT(S18,3)=\"Max\",3,2)),\">=\",\"=\",\"<=\"))","v":"<="},{"$f":"IF(ISBLANK(R18),Z18,R18)","v":15},"ft Max",15]
[null,null,null,null,null,null,null,null,null,null,null,null,null,"Ramp Left #2",null,"Present?"]
[null,null,null,null,null,null,null,null,null,null,null,null,null,{"$f":"IF(Q19=\"No\",\"NA\",IF(ISBLANK(P20),\"\",IF(COUNTIF(V20,W20&X20)>0,\"pass\",\"FAIL\")))","v":""},"RS#2",null,"8.30% Max",null,"% Max",null,"RampLeft2RunningSlope",{"$f":"IF(ISBLANK(P20),\"no data\",P20)","v":"no data"},{"$f":"IF(ISBLANK(R20),CHOOSE(IF(RIGHT(Q20,3)=\"Min\",1,IF(RIGHT(Q20,3)=\"Max\",3,2)),\">=\",\"=\",\"<=\"),CHOOSE(IF(RIGHT(S20,3)=\"Min\",1,IF(RIGHT(S20,3)=\"Max\",3,2)),\">=\",\"=\",\"<=\"))","v":"<="},{"$f":"IF(ISBLANK(R20),Z20,R20)","v":8.3000000000000007},"% Max",8.3000000000000007]
[null,null,null,null,null,null,null,null,null,null,null,null,null,{"$f":"IF(Q19=\"No\",\"NA\",IF(ISBLANK(P21),\"\",IF(COUNTIF(V21,W21&X21)>0,\"pass\",\"FAIL\")))","v":""},"CS#2",null,"2.00% Max",null,"% Max",null,"RampLeft2CrossSlope",{"$f":"IF(ISBLANK(P21),\"no data\",P21)","v":"no data"},{"$f":"IF(ISBLANK(R21),CHOOSE(IF(RIGHT(Q21,3)=\"Min\",1,IF(RIGHT(Q21,3)=\"Max\",3,2)),\">=\",\"=\",\"<=\"),CHOOSE(IF(RIGHT(S21,3)=\"Min\",1,IF(RIGHT(S21,3)=\"Max\",3,2)),\">=\",\"=\",\"<=\"))","v":"<="},{"$f":"IF(ISBLANK(R21),Z21,R21)","v":2},"% Max",2]
[null,null,null,null,null,null,null,null,null,null,null,null,null,{"$f":"IF(Q19=\"No\",\"NA\",IF(ISBLANK(P22),\"\",IF(COUNTIF(V22,W22&X22)>0,\"pass\",\"FAIL\")))","v":""},"W#2",null,"4.00 ft Min",null,"ft Min",null,"RampLeft2Width",{"$f":"IF(ISBLANK(P22),\"no data\",P22)","v":"no data"},{"$f":"IF(ISBLANK(R22),CHOOSE(IF(RIGHT(Q22,3)=\"Min\",1,IF(RIGHT(Q22,3)=\"Max\",3,2)),\">=\",\"=\",\"<=\"),CHOOSE(IF(RIGHT(S22,3)=\"Min\",1,IF(RIGHT(S22,3)=\"Max\",3,2)),\">=\",\"=\",\"<=\"))","v":">="},{"$f":"IF(ISBLANK(R22),Z22,R22)","v":4},"ft Min",4]
[null,null,null,null,null,null,null,null,null,null,null,null,null,{"$f":"IF(Q19=\"No\",\"NA\",IF(ISBLANK(P23),\"\",IF(COUNTIF(V23,W23&X23)>0,\"pass\",\"FAIL\")))","v":""},"L#2",null,"15.00 ft Max",null,"ft Max",null,"RampLeft2Length",{"$f":"IF(ISBLANK(P23),\"no data\",P23)","v":"no data"},{"$f":"IF(ISBLANK(R23),CHOOSE(IF(RIGHT(Q23,3)=\"Min\",1,IF(RIGHT(Q23,3)=\"Max\",3,2)),\">=\",\"=\",\"<=\"),CHOOSE(IF(RIGHT(S23,3)=\"Min\",1,IF(RIGHT(S23,3)=\"Max\",3,2)),\">=\",\"=\",\"<=\"))","v":"<="},{"$f":"IF(ISBLANK(R23),Z23,R23)","v":15},"ft Max",15]
[null,null,null,null,null,null,null,null,null,null,null,null,null,"Ramp Right #3",null,"Present?"]
[null,null,null,null,null,null,null,null,null,null,null,null,null,{"$f":"IF(Q24=\"No\",\"NA\",IF(ISBLANK(P25),\"\",IF(COUNTIF(V25,W25&X25)>0,\"pass\",\"FAIL\")))","v":""},"RS#3",null,"8.30% Max",null,"% Max",null,"RampRight3RunningSlope",{"$f":"IF(ISBLANK(P25),\"no data\",P25)","v":"no data"},{"$f":"IF(ISBLANK(R25),CHOOSE(IF(RIGHT(Q25,3)=\"Min\",1,IF(RIGHT(Q25,3)=\"Max\",3,2)),\">=\",\"=\",\"<=\"),CHOOSE(IF(RIGHT(S25,3)=\"Min\",1,IF(RIGHT(S25,3)=\"Max\",3,2)),\">=\",\"=\",\"<=\"))","v":"<="},{"$f":"IF(ISBLANK(R25),Z25,R25)","v":8.3000000000000007},"% Max",8.3000000000000007]
[null,null,null,null,null,null,null,null,null,null,null,null,null,{"$f":"IF(Q24=\"No\",\"NA\",IF(ISBLANK(P26),\"\",IF(COUNTIF(V26,W26&X26)>0,\"pass\",\"FAIL\")))","v":""},"CS#3",null,"2.00% Max",null,"% Max",null,"RampRight3CrossSlope",{"$f":"IF(ISBLANK(P26),\"no data\",P26)","v":"no data"},{"$f":"IF(ISBLANK(R26),CHOOSE(IF(RIGHT(Q26,3)=\"Min\",1,IF(RIGHT(Q26,3)=\"Max\",3,2)),\">=\",\"=\",\"<=\"),CHOOSE(IF(RIGHT(S26,3)=\"Min\",1,IF(RIGHT(S26,3)=\"Max\",3,2)),\">=\",\"=\",\"<=\"))","v":"<="},{"$f":"IF(ISBLANK(R26),Z26,R26)","v":2},"% Max",2,null,null,"Grade Breaks"]
[null,null,null,null,null,null,null,null,null,null,null,null,null,{"$f":"IF(Q24=\"No\",\"NA\",IF(ISBLANK(P27),\"\",IF(COUNTIF(V27,W27&X27)>0,\"pass\",\"FAIL\")))","v":""},"W#3",null,"4.00 ft Min",null,"ft Min",null,"RampRight3Width",{"$f":"IF(ISBLANK(P27),\"no data\",P27)","v":"no data"},{"$f":"IF(ISBLANK(R27),CHOOSE(IF(RIGHT(Q27,3)=\"Min\",1,IF(RIGHT(Q27,3)=\"Max\",3,2)),\">=\",\"=\",\"<=\"),CHOOSE(IF(RIGHT(S27,3)=\"Min\",1,IF(RIGHT(S27,3)=\"Max\",3,2)),\">=\",\"=\",\"<=\"))","v":">="},{"$f":"IF(ISBLANK(R27),Z27,R27)","v":4},"ft Min",4,null,null,"Flush","Flush (0.00\") No vertical Difference"]
[null,null,null,null,null,null,null,null,null,null,null,null,null,{"$f":"IF(Q24=\"No\",\"NA\",IF(ISBLANK(P28),\"\",IF(COUNTIF(V28,W28&X28)>0,\"pass\",\"FAIL\")))","v":""},"L#3",null,"15.00 ft Max",null,"ft Max",null,"RampRight3Length",{"$f":"IF(ISBLANK(P28),\"no data\",P28)","v":"no data"},{"$f":"IF(ISBLANK(R28),CHOOSE(IF(RIGHT(Q28,3)=\"Min\",1,IF(RIGHT(Q28,3)=\"Max\",3,2)),\">=\",\"=\",\"<=\"),CHOOSE(IF(RIGHT(S28,3)=\"Min\",1,IF(RIGHT(S28,3)=\"Max\",3,2)),\">=\",\"=\",\"<=\"))","v":"<="},{"$f":"IF(ISBLANK(R28),Z28,R28)","v":15},"ft Max",15,null,null,"¼-Inch or Less","¼-Inch (0.02 ft) or Less"]
[null,null,null,null,null,null,null,null,null,null,null,null,null,"Counter Slope",null,null,null,null,null,null,null,null,null,null,null,null,null,null,"¼ to ½-Inch YES Bevel","Between  ¼ - ½-Inch WITH ¼-inch Beveled at 2:1"]
[null,null,null,null,null,null,null,null,null,null,null,null,null,{"$f":"IF(ISBLANK(P30),\"\",IF(COUNTIF(V30,W30&X30)>0,\"pass\",\"FAIL\"))","v":""},"S",null,"5.00% Max",null,"% Max",null,"CounterSlope",{"$f":"IF(ISBLANK(P30),\"no data\",P30)","v":"no data"},{"$f":"IF(ISBLANK(R30),CHOOSE(IF(RIGHT(Q30,3)=\"Min\",1,IF(RIGHT(Q30,3)=\"Max\",3,2)),\">=\",\"=\",\"<=\"),CHOOSE(IF(RIGHT(S30,3)=\"Min\",1,IF(RIGHT(S30,3)=\"Max\",3,2)),\">=\",\"=\",\"<=\"))","v":"<="},{"$f":"IF(ISBLANK(R30),Z30,R30)","v":5},"% Max",5,null,null,"¼ to ½-Inch NO Bevel","Between  ¼ - ½-Inch WITHOUT ¼-inch Beveled at 2:1"]
[null,null,null,null,null,null,null,null,null,null,null,null,null,{"$f":"IF(AND(P15=\"\",P30<>\"\"),\"Incomplete\",IF(ISBLANK(P30),\"\",IF(COUNTIF(V31,W31&X31)>0,\"pass\",\"FAIL\")))","v":""},"RS#1+S",{"$f":"IF(ISBLANK(P30),\"sum\",P15+P30)","v":"sum"},"13.30% Max",null,"% Max",null,"SlopeDelta",{"$f":"IFERROR(V15+V30,\"no data\")","v":"no data"},{"$f":"IF(ISBLANK(R31),CHOOSE(IF(RIGHT(Q31,3)=\"Min\",1,IF(RIGHT(Q31,3)=\"Max\",3,2)),\">=\",\"=\",\"<=\"),CHOOSE(IF(RIGHT(S31,3)=\"Min\",1,IF(RIGHT(S31,3)=\"Max\",3,2)),\">=\",\"=\",\"<=\"))","v":"<="},13.3,"% Max",13.3,"Change in Slope = RS#1 + S",null,"Greater than ½-Inch","Greater than ½-Inch"]
[null,null,null,null,null,null,null,null,null,null,null,null,null,"Grade Breaks",null,null,null,null,"(paper form: enter fraction or decimal of an inch)"]
[null,null,null,null,null,null,null,null,null,null,null,null,null,{"$f":"IF(ISBLANK(P33),\"\",IF(COUNTIF(AC27:AC29,P33)>0,\"pass\",\"FAIL\"))","v":""},"GB#1",null,null,null,null,null,"GradeBreak1",{"$f":"IF(ISBLANK(P33),\"no data\",P33)","v":"no data"},{"$f":"IF(ISBLANK(R33),CHOOSE(IF(RIGHT(Q33,3)=\"Min\",1,IF(RIGHT(Q33,3)=\"Max\",3,2)),\">=\",\"=\",\"<=\"),CHOOSE(IF(RIGHT(S33,3)=\"Min\",1,IF(RIGHT(S33,3)=\"Max\",3,2)),\">=\",\"=\",\"<=\"))","v":"="},0,"flush",0]
[null,null,null,null,null,null,null,null,null,null,null,null,null,{"$f":"IF(ISBLANK(P34),\"\",IF(COUNTIF(AC27:AC29,P34)>0,\"pass\",\"FAIL\"))","v":""},"GB#2",null,null,null,null,null,"GradeBreak2","no data","=",0,"flush",0]
[null,null,null,null,null,null,null,null,null,null,null,null,null,{"$f":"IF(ISBLANK(P35),\"\",IF(COUNTIF(AC27:AC29,P35)>0,\"pass\",\"FAIL\"))","v":""},"GB#3",null,null,null,null,null,"GradeBreak3","no data","=",0,"flush",0]
[null,null,null,null,null,null,null,null,null,null,null,null,null,{"$f":"IF(ISBLANK(P36),\"\",IF(COUNTIF(AC27:AC29,P36)>0,\"pass\",\"FAIL\"))","v":""},"GB#4",null,null,null,null,null,"GradeBreak4","no data","=",0,"flush",0]
[null,"NOTES",null,null,null,null,null,null,null,null,null,null,null,{"$f":"IF(Q19=\"No\",\"NA\",IF(ISBLANK(P37),\"\",IF(COUNTIF(AC27:AC29,P37)>0,\"pass\",\"FAIL\")))","v":""},"GB#5",null,null,null,null,null,"GradeBreak5","no data","=",0,"flush",0]
[null,null,null,null,null,null,null,null,null,null,null,null,null,{"$f":"IF(Q19=\"No\",\"NA\",IF(ISBLANK(P38),\"\",IF(COUNTIF(AC27:AC29,P38)>0,\"pass\",\"FAIL\")))","v":""},"GB#6",null,null,null,null,null,"GradeBreak6","no data","=",0,"flush",0]
[null,null,null,null,null,null,null,null,null,null,null,null,null,{"$f":"IF(Q24=\"No\",\"NA\",IF(ISBLANK(P39),\"\",IF(COUNTIF(AC27:AC29,P39)>0,\"pass\",\"FAIL\")))","v":""},"GB#7",null,null,null,null,null,"GradeBreak7",{"$f":"IF(ISBLANK(P39),\"no data\",P39)","v":"no data"},"=",{"$f":"IF(ISBLANK(R39),Z39,R39)","v":0},"flush",0]
[null,null,null,null,null,null,null,null,null,null,null,null,null,{"$f":"IF(Q24=\"No\",\"NA\",IF(ISBLANK(P40),\"\",IF(COUNTIF(AC27:AC29,P40)>0,\"pass\",\"FAIL\")))","v":""},"GB#8",null,null,null,null,null,"GradeBreak8",{"$f":"IF(ISBLANK(P40),\"no data\",P40)","v":"no data"},"=",{"$f":"IF(ISBLANK(R40),Z40,R40)","v":0},"flush",0,null,null,"DWS Types:"]
[null,null,null,null,null,null,null,null,null,null,null,null,null,null,null,null,null,null,null,null,"StructComp",{"$f":"IF(COUNTIF(K9:N40,\"FAIL\")>0,\"No\",IF(COUNTIF(K9:N40,\"pass\")=27,\"Yes\",\"incomplete\"))","v":"incomplete"},"Structurally Compliant?",null,null,null,null,null,"Brick","Brick"]
[null,null,null,null,null,null,null,null,null,null,null,null,null,"Detectable Warning Surface",null,null,null,null,null,null,null,null,null,null,null,null,null,null,"Epoxy","Truncated Dome (TDome)  Epoxy"]
[null,null,null,null,null,null,null,null,null,null,null,null,null,{"$f":"IF(AND(P17=\"\",P43<>\"\"),\"Incomplete\",IF(ISBLANK(P43),\"\",IF(COUNTIF(V43,W43&X43)>0,\"pass\",\"FAIL\")))","v":""},"L",null,{"$f":"IF(ISBLANK(P17),\"Match W#1\",\"At Least \"&X43&\" ft\")","v":"Match W#1"},null,null,null,"DWSLength",{"$f":"IF(ISBLANK(P43),\"no data\",P43)","v":"no data"},">=",{"$f":"Z43-0.33","v":-0.33},"ft",{"$f":"P17","v":0},"Match W#1",null,"CastIron","TDome Inlay CastIron"]
[null,null,null,null,null,null,null,null,null,null,null,null,null,{"$f":"IF(ISBLANK(P44),\"\",IF(COUNTIF(V44,W44&X44)>0,\"pass\",\"FAIL\"))","v":""},"W",null,"2.00 ft Min",null,null,null,"DWSWidth",{"$f":"IF(ISBLANK(P44),\"no data\",P44)","v":"no data"},{"$f":"IF(ISBLANK(R44),CHOOSE(IF(RIGHT(Q44,3)=\"Min\",1,IF(RIGHT(Q44,3)=\"Max\",3,2)),\">=\",\"=\",\"<=\"),CHOOSE(IF(RIGHT(S44,3)=\"Min\",1,IF(RIGHT(S44,3)=\"Max\",3,2)),\">=\",\"=\",\"<=\"))","v":">="},{"$f":"IF(ISBLANK(R44),Z44,R44)","v":2},"ft Min",2,null,null,"Concrete","TDome Inlay Concrete"]
[null,null,null,null,null,null,null,null,null,null,null,null,null,{"$f":"IF(ISBLANK(P45),\"\",IF(COUNTIF(V45,W45&X45)>0,\"pass\",\"FAIL\"))","v":""},"Color",null,"DOT - Yellow",null,null,null,"DWSColor",{"$f":"IF(ISBLANK(P45),\"no data\",P45)","v":"no data"},{"$f":"IF(ISBLANK(R45),CHOOSE(IF(RIGHT(Q45,3)=\"Min\",1,IF(RIGHT(Q45,3)=\"Max\",3,2)),\">=\",\"=\",\"<=\"),CHOOSE(IF(RIGHT(S45,3)=\"Min\",1,IF(RIGHT(S45,3)=\"Max\",3,2)),\">=\",\"=\",\"<=\"))","v":"="},{"$f":"IF(ISBLANK(R45),Z45,P45)","v":"DOT - Yellow"},"ft Min","DOT - Yellow",null,null,"Plastic","TDome Inlay Plastic"]
[null,"Measurement Instrument \nSerial Number:",null,null,null,"Calibrated by:",null,null,null,"Date:",null,null,null,{"$f":"IF(ISBLANK(P46),\"\",IF(COUNTIF(AC41:AC46,P46)>0,\"pass\",\"FAIL\"))","v":""},"Type",null,"Truncated",null,null,null,"DWSType",{"$f":"IF(ISBLANK(P46),\"no data\",VLOOKUP(P46,AC41:AD47,2,FALSE))","v":"no data"},null,null,null,null,null,null,"Other","TDome Inlay Other"]
[null,null,null,null,null,null,null,null,null,null,null,null,null,"Curb Gap",null,null,null,null,null,null,null,null,null,null,null,null,null,null,"None","None, Not TDome, or MEF exception—make note"]
[null,"1\" = 0.08'","2\" = 0.17'","3\" = 0.25'","4\" = 0.33'","5\" = 0.42'","6\" = 0.50'","7\" = 0.58'","8\" = 0.67'","9\" = 0.75'","10\" = 0.83'","11\" = 0.92'",null,{"$f":"IF(ISBLANK(P48),\"\",IF(COUNTIF(V48,W48&X48)>0,\"pass\",\"FAIL\"))","v":""},"CG",null,"0.17 ft Max",null,"ft",null,"DWSCurbGap",{"$f":"IF(ISBLANK(P48),\"no data\",P48)","v":"no data"},{"$f":"IF(ISBLANK(R48),CHOOSE(IF(RIGHT(Q48,3)=\"Min\",1,IF(RIGHT(Q48,3)=\"Max\",3,2)),\">=\",\"=\",\"<=\"),CHOOSE(IF(RIGHT(S48,3)=\"Min\",1,IF(RIGHT(S48,3)=\"Max\",3,2)),\">=\",\"=\",\"<=\"))","v":"<="},{"$f":"IF(ISBLANK(R48),Z48,R48)","v":0.17},"ft",0.17]
[null,null,null,null,null,null,null,null,null,null,null,null,null,null,null,null,null,"Form Updated",null,null,"DWSComp",{"$f":"IF(COUNTIF(N43:N48,\"FAIL\")>0,\"No\",IF(COUNTIF(N43:N48,\"pass\")=5,\"Yes\",\"incomplete\"))","v":"incomplete"},"DWS Compliant?"]
[null,null,null,null,null,null,null,null,null,null,null,null,null,null,null,null,null,"2018-07-31",null,null,"DiagToCenterIntersection",{"$f":"E9","v":0}]
[null,null,null,null,null,null,null,null,null,null,null,null,null,null,null,null,null,null,null,null,"ClearSpaceWidth",{"$f":"J9","v":""}]
[null,null,null,null,null,null,null,null,null,null,null,null,null,null,null,null,null,null,null,null,"WSDOTFeatureNumber",null,"Feature ID Code"]
[null,null,null,null,null,null,null,null,null,null,null,null,null,null,null,null,null,null,null,null,"FeatureLocationCode",{"$f":"E7","v":0},"From Plan Sheet"]
[null,null,null,null,null,null,null,null,null,null,null,null,null,null,null,null,null,null,null,null,"Note",{"$f":"B38","v":0}," "]
[null,null,null,null,null,null,null,null,null,null,null,null,null,null,null,null,null,null,null,null,"CrossStreet",{"$f":"E5","v":0}," "]
[null,null,null,null,null,null,null,null,null,null,null,null,null,null,null,null,null,null,null,null,"CornerSide",{"$f":"J5","v":0}," "]
[null,null,null,null,null,null,null,null,null,null,null,null,null,null,null,null,null,null,null,null,"PlanShtRef",{"$f":"E6","v":0}," "]
[null,null,null,null,null,null,null,null,null,null,null,null,null,null,null,null,null,null,null,null,"MEFRef",{"$f":"R5","v":0}," "]
[null,null,null,null,null,null,null,null,null,null,null,null,null,null,null,null,null,null,null,null,"SiteHist",{"$f":"IF(N2=\"Scoping\",\"Existing Feature\",E8)","v":0}," "]
[null,null,null,null,null,null,null,null,null,null,null,null,null,null,null,null,null,null,null,null,"Station",{"$f":"M5","v":"Station"}]

{"sheet":"Parallel-One_Direction","index":4,"n_rows":51,"n_cols":149,"rows_kept":51,"cut":false,"hidden":false,"merged":[[7,9,7,10],[6,11,6,12],[2,13,2,14],[0,22,0,23],[1,22,1,23],[1,11,1,12],[1,13,1,14],[0,1,1,9],[35,17,35,18],[6,16,7,16],[2,17,2,18],[8,1,8,3],[7,11,7,14],[30,1,30,11],[13,13,13,15],[26,15,26,16],[5,11,5,12],[3,4,3,7],[4,4,4,7],[4,9,4,10],[5,4,5,6],[6,4,6,6],[6,9,6,10],[7,4,7,6],[40,17,40,18],[41,17,41,18],[37,1,37,4],[7,17,7,18],[27,15,27,16],[28,15,28,16],[29,15,29,16],[30,15,30,16],[31,1,36,11],[25,15,25,16],[38,1,38,4],[38,5,38,8],[38,9,38,11],[37,5,37,8],[37,9,37,11],[8,10,8,12],[2,33,2,34],[4,1,4,3],[4,17,4,18],[3,1,3,3],[3,17,3,18],[2,4,2,5],[2,9,2,10]]}
[null,"ADA Feature - Parallel 1-Direction\nCurb Ramp Measurements",null,null,null,null,null,null,null,null,null,{"$f":"IF(AND(OR(Y2=\"incomplete\",Y1=\"incomplete\"),LEN(N2)>0),\"= Required Field\",\"\")","v":""},null,null,null,null,null,null,null,null,"FeatureName",{"$f":"S2","v":"CR-PARA-1DIRECTION"},"Complete Header",null,{"$f":"IF(AND(N2<>\"Scoping\",OR(E3=\"\",J3=\"\",E4=\"\",N2=\"\",N3=\"\",N4=\"\",O4=\"A/B\",E7=\"\",O5=\"Lt or Rt?\",E5=\"\",E9=\"\",J5=\"\",J6=\"\",K6=\"\",J7=\"\",J8=\"\",N6=\"\",O6=\"\",P6=\"\",B39=\"\",F39=\"\",J39=\"\",E8=\"\")),\"incomplete\",\"pass\")","v":"incomplete"},null,null,null,null,null,null,null,null,null,null,null,null,null,null,null,null,null,null,null,null,null,null,null,null,null,null,null,null,null,null,null,null,null,null,null,null,null,null,null,null,null,null,null,null,null,null,null,null,null,null,null,null,null,null,null,null,null,null,null,null,null,null,null,null,null,{"$f":"MID(CELL(\"filename\",#REF!),FIND(\"]\",CELL(\"filename\",#REF!))+1,255)","v":{"$error":"#REF!"}}]
[null,null,null,null,null,null,null,null,null,null,null,"Phase",null,null,null,null,null,null,"CR-PARA-1DIRECTION",null,"CompletedUnderContract",{"$f":"E3","v":0},"Complete Header \"Scoping\"",null,{"$f":"IF(AND(N2=\"Scoping\",OR(E3=\"\",J3=\"\",E4=\"\",N3=\"\",N4=\"\",O4=\"A/B\",E5=\"\",O5=\"Lt or Rt?\",E9=\"\",J5=\"\",J6=\"\",K6=\"\",J7=\"\",N6=\"\",O6=\"\",P6=\"\")),\"incomplete\",\"pass\")","v":"pass"},null,null,"Curb Ramp Parallel One Direction",null,null,null,null,null,null,null,null,null,null,"Drawing 4",null,null,null,null,null,null,null,null,null,null,null,null,null,null,null,null,null,null,null,null,null,null,null,null,null,null,null,null,null,null,null,null,null,null,null,null,null,null,null,null,null,null,null,{"$f":"LEN(CF4)","v":1},{"$f":"N3","v":0},{"$f":"TEXT(N4,\"0.00\")&IF(O4=\"B\",\"B\",\"\")","v":"0.00"},null,{"$f":"E5","v":0},null,null,null,"CRPlO",null,null,null,null,null,null,null,null,null,{"$f":"LEN(CW4)","v":28},null,{"$f":"R3","v":"incomplete form"},null,null,{"$f":"J7","v":0},null,{"$f":"J3","v":"00:00:00"},{"$f":"J8","v":0},{"$f":"E8","v":0},{"$f":"E3","v":0},{"$f":"IF(AND(R4=\"Standard ADA\",LEN(R5)=0),\"n/a\",R5)","v":"n/a"},null,null,{"$f":"P6","v":0},"01",{"$f":"N2","v":0},null,null,null,null,null,null,null,null,null,null,null,null,null,null,null,null,null,null,null,null,null,null,null,null,null,null,null,null,{"$f":"IF(RIGHT(O5,1)=\"?\",\"?\",LEFT(O5&\"-\",2))","v":"?"},{"$f":"LEFT(J5,1)","v":""},{"$f":"IF(LEN(J6)=0,\"!\",LEFT(TEXT(J6,\"0\")&\"-\",2))","v":"!"},{"$f":"IF(LEN(K6)=0,\"!\",LEFT(TEXT(K6,\"0\")&\"-\",2))","v":"!"}]
[null,null,null,"Contract / Work Order",null,null,null,null,"Date Measured",null,null,null,"SR",null,null,null,"Survey/Feature Status",{"$f":"IF(COUNTIF(L10,\"Yes\")>0,\"FAIL\",IF(COUNTIF(K9:N39,\"FAIL\")>0,\"FAIL\",IF(COUNTIF(Y1:Y2,\"pass\")<2,\"incomplete form\",IF(COUNTIF(K9:N39,\"pass\")=23,\"pass\",\"incomplete form\"))))","v":"incomplete form"},null,null,"GPSDate",{"$f":"J3","v":"00:00:00"},"Date Measured",null,null,null,null,null,null,null,null,null,null,"Requirements",null,"Yes/No","4 ft Min if Diagonally Oriented","4 ft Min","4 ft Min","2% Max","2% Max","15 ft Max","2% Max","8.3% Max","4 ft Min","2% Max","2% Max","5% Max","Flush","Flush","Flush","Flush","Flush","Flush","Truncated","DOT - Yellow","0 ft ","Match Ramp Width","2 ft Min",null,null,null,null,null,null,null,null,null,null,null,null,null,null,null,null,null,null,null,null,null,"SR View","Gmap","Gmap2","State Route","Mile- post","Primary St, Bridge, or Facility Name","Intersecting or Related St or Route","City","County","Region","ADA Feature","Meas?","Summary of Non-Compliance","Solution","Sched. Fiscal Year","Estimated Cost","Lat","Long","Lat2","Long2","FeatureID","GIS Table","Fully Compliant?","DWS Non-Comp Only?","Length","Jurisdiction","SubOwner","MeasDate","ConstructedBy","SiteHistory","Contract","MEFRef","DocRef","NodeLoc","LocMethod","History","Project Phase","Path Priority Index Tier","Barrier Severity","Date made Compliant","Access Level","Rural or Urban","PaveBienn_within_100ft","PaveDue+2","Direction","MP","A/B","ARM","SRSort","MPSort","BridgeNo","Site Key","Issue","Issue Summary","Rest Area","multiples","CityAccess","RecordCreateDate","GPSDate","End_SR","End_MP","ProjectID","ADAGroup","Plan 2016","Planning Set","Side","Site","NodeCompass","FeatCompass"]
[null,"Measured By",null,null,null,null,null,null,null,null,null,null,"Milepost",null,"A/B",{"$f":"HYPERLINK(\"#'READ-ME'!A252:A264\",\"?\")","v":"?"},"MEF Status",{"$f":"IF(SUM(R10:R24,R39)+IFERROR(SEARCH(\"MEF\",J9),0)>0,\"Has MEF\",\"Standard ADA\")","v":"Standard ADA"},null,null,"Datafile",{"$f":"E4","v":0},"Measured By",null,null,null,null,null,null,null,null,null,null,null,null,null,null,"Landing","Landing","Landing","Landing","Ramp","Ramp","Ramp","Top Area","Top Area","Top Area","Counter Slope","Grade Break","Grade Break","Grade Break","Grade Break","Grade Break","Grade Break","DWS","DWS","Curb Gap","DWS","DWS",null,null,null,null,null,null,null,null,null,null,null,null,null,null,null,null,null,null,null,null,null,{"$f":"HYPERLINK(\"http://srview3i.wsdot.loc/stateroute/picturelog/v3/client/SRview.Windows.Viewer.application?srnum=\"&LEFT(CF4,3)&\"&rrt=\"&IF(LEN(CF4)>3,RIGHT(LEFT(CF4,5),2),\"\")&\"&rrq=\"&IF(LEN(CF4)=11,RIGHT(CF4,6),IF(LEN(CF4)=10,RIGHT(CF4,5),\"\"))&\"&srmp=\"&CG4,\"SRV\")","v":"SRV"},{"$f":"HYPERLINK(\"http://maps.google.com/maps?z=20&t=k&q=loc:\"&CS4&\",\"&CT4,\"GMap\")","v":{"$error":"#VALUE!"}},{"$f":"IF(LEN(CU4)>0,HYPERLINK(\"http://maps.google.com/maps?z=20&t=k&q=loc:\"&CU4&\",\"&CV4,\"GMap\"),\"\")","v":""},{"$f":"CF2","v":0},{"$f":"CG2","v":"0.00"},null,null,null,null,null,"Curb Ramp Parallel - One Dir.","Yes",null,"Fully Compliant","?",0,{"$f":"IF(LEN(N6)=0,VALUE(LEFT(CS2,FIND(\",\",CS2)-1)),N6)","v":{"$error":"#VALUE!"}},{"$f":"IF(LEN(O6)=0,VALUE(RIGHT(CS2,LEN(CS2)-FIND(\",\",CS2)-1)),O6)","v":{"$error":"#VALUE!"}},null,null,{"$f":"CM2&LEFT(TEXT(CF4,\"000\")&\"-----------\",11)&TEXT(DV4,\"000.00\")&DW4&DU4&EQ4&ER4&ES4&DL2","v":"CRPlO000--------000.00AI!!01"},"New Point",{"$f":"IF(CY2=\"pass\",\"Yes\",\"No\")","v":"No"},"No","n/a",{"$f":"DB2","v":0},"n/a",{"$f":"DD2","v":"00:00:00"},{"$f":"DE2","v":0},{"$f":"DF2","v":0},{"$f":"DG2","v":0},{"$f":"DH2","v":"n/a"},null,{"$f":"EP4&\"-\"&EQ4&\"-\"&ER4&\"-\"&ES4","v":"?--!-!"},{"$f":"DK2","v":0},"Latest",{"$f":"DM2","v":0},"?","no barrier","?","?","?","?","?","I",{"$f":"TEXT(IF(DW4=\"B\",VALUE(LEFT(CG4,FIND(\"B\",CG4)-1)),CG4),\"000.00\")","v":"000.00"},{"$f":"IF(O4=\"B\",\"B\",\"A\")","v":"A"},"?",{"$f":"LEFT(CF4,3)","v":"0"},{"$f":"IF(LEN(CF4)>9,VALUE(RIGHT(CF4,5))/100,CG4)","v":"0.00"},"n/a","Intersection",null,"+ (blank)",null,null,null,null,null,null,null,null,null,null,null,{"$f":"EP2","v":"?"},{"$f":"EQ2","v":""},{"$f":"ER2","v":"!"},{"$f":"ES2","v":"!"}]
[null,"Cross Street Name",null,null,null,null,null,null,{"$f":"HYPERLINK(\"#'READ-ME'!A61:A88\",\"Site\")","v":"Site"},null,null,null,"Station",null,{"$f":"HYPERLINK(\"#'READ-ME'!A222:A240\",\"Lt or Rt?\")","v":"Lt or Rt?"},null,"MEF Reference",null,null,null,"StateRouteRRT",{"$f":"M3","v":"SR"},null,null,null,null,null,"Database Schema","Contract","Date Measured","Measured By","SR","SRMP","A/B","Lt or Rt","Diagonally Orientated?","Clear Space?","D1","W1","CSW","CSL","L","CS","RS","W2","CSW","CSL","S"," GB#1"," GB#2"," GB#3"," GB#4"," GB#5"," GB#6","Type","Color","CG","L","W","NOTES","Feature ID Code","Feature Location Code","CSL+S","Cross Street Name","Corner/Side","Plan Sheet Reference","MEF Reference","Site History","Station","Structurally Compliant?","DWS Compliant?",null,null,null,null,null,null,null,null,null,{"$f":"HYPERLINK(\"http://www.wsdot.wa.gov/data/tools/geoportal/?layers=%7B%22layer0%22%3A%5B%5D%2C%22Buffer%22%3Atrue%2C%22Drawn+Features%22%3Atrue%7D\",\"Geoportal\")","v":"Geoportal"},null,null,null,null,null,null,null,null,null,null,null,null,null,null,null,null,null,null,null,null,null,null,null,null,null,null,null,null,null,null,null,null,null,null,null,null,null,null,null,null,null,null,null,null,null,null,null,null,null,null,null,null,null,null,null,null,null,null,null,null,null,null,null,null,"LEFT(TEXT(CF4,\"000\")&\"-----------\",11)"]
[null,null,null,"Plan Sheet Reference",null,null,null,null,{"$f":"HYPERLINK(\"#'READ-ME'!A112:A138\",\"Location\")","v":"Location"},null,null,"Geoportal",null,null,null,null,null,null,null,null,"SRMP",{"$f":"M4","v":"Milepost"},null,null,null,null,null,"FeatureName","CompletedUnderContract","GPSDate","Datafile","StateRouteRRT","SRMP","AheadBackIndicator","DirectionOfInventory","DiagToCenterIntersection","ClearSpaceWidth","LandingLengthD1","LandingWidthW1","LandingCSW","LandingCSL","RampLength","RampCrossSlope","RampRunningSlope","RampWidthW2","TopAreaCSW","TopAreaCSL","CounterSlope","GradeBreak1","GradeBreak2","GradeBreak3","GradeBreak4","GradeBreak5","GradeBreak6","DWSType","DWSColor","DWSCurbGap","DWSLength","DWSWidth","Note","WSDOTFeatureNumber","FeatureLocationCode","SlopeDelta","CrossStreet","CornerSide","PlanShtRef","MEFRef","SiteHist","Station","StructComp","DWSComp"]
[null,null,null,"Feature Location Code",null,null,null,null,"Jurisdiction",null,null,{"$f":"HYPERLINK(\"#'READ-ME'!A148:A189\",\"Instructions\")","v":"Instructions"},null,"Latitude","Longitude",{"$f":"HYPERLINK(\"#'READ-ME'!A201:A207\",\"Accuracy\")","v":"Accuracy"},"ADA Compliance Criteria",null,null,null,"AheadBackIndicator",{"$f":"O4","v":"A/B"},null,null,null,null,null,"CR-PARA-1",{"$f":"VLOOKUP(AC6,$U:$V,2,FALSE)","v":0},0,0,"SR","Milepost","A/B",0,0,"","no data","no data","no data","no data","no data","no data","no data","no data","no data","no data","no data","no data","no data","no data","no data","no data","no data","no data","no data","no data","no data","no data",0,0,0,"no data",0,0,0,0,0,"Station","incomplete","incomplete"]
[null,null,null,"Site History",null,null,null,null,"Constructed By",null,null,"Enter numbers only\n1 = 1.00%, 2.25 = 2.25 ft, etc.",null,null,null,"Measurement",null,"MEF Criteria",null,null,"DirectionOfInventory",{"$f":"M6","v":0},"Lt or Rt"]
[null,"Diagonally Oriented?",null,null,null,null,null,null,"Clear Space Achieved?",{"$f":"IF(E9=\"No\",\"n/a\",\"\")","v":""},{"$f":"IF(AND(E9=\"Yes\",LEN(J9)=0),\"4 ft Min if Diagonally Oriented\",IF(AND(E9=\"Yes\",J9=\"No\"),\"FAIL\",IF(J9=\"Yes\",\"pass\",IF(E9=\"No\",\"pass\",IF(J9=\"MEF\",\"pass\",\"\")))))","v":""},null,null,"Landing"]
[null,null,null,null,null,null,null,null,null,null,{"$f":"IF(COUNTIF(N2,\"Scoping\")>0,\"Visually Identified the Feature is ADA non-Compliant, no measurements taken\",\"\")","v":""},null,null,{"$f":"IF(ISBLANK(P10),\"\",IF(COUNTIF(V10,W10&X10)>0,\"pass\",\"FAIL\"))","v":""},"CSW",null,"2.00% Max",null,"% Max",null,"LandingCSW",{"$f":"IF(ISBLANK(P10),\"no data\",P10)","v":"no data"},{"$f":"IF(ISBLANK(R10),CHOOSE(IF(RIGHT(Q10,3)=\"Min\",1,IF(RIGHT(Q10,3)=\"Max\",3,2)),\">=\",\"=\",\"<=\"),CHOOSE(IF(RIGHT(S10,3)=\"Min\",1,IF(RIGHT(S10,3)=\"Max\",3,2)),\">=\",\"=\",\"<=\"))","v":"<="},{"$f":"IF(ISBLANK(R10),Z10,R10)","v":2},"% Max",2]
[null,null,null,null,null,null,null,null,null,null,null,null,null,{"$f":"IF(ISBLANK(P11),\"\",IF(COUNTIF(V11,W11&X11)>0,\"pass\",\"FAIL\"))","v":""},"CSL",null,"2.00% Max",null,"% Max",null,"LandingCSL",{"$f":"IF(ISBLANK(P11),\"no data\",P11)","v":"no data"},{"$f":"IF(ISBLANK(R11),CHOOSE(IF(RIGHT(Q11,3)=\"Min\",1,IF(RIGHT(Q11,3)=\"Max\",3,2)),\">=\",\"=\",\"<=\"),CHOOSE(IF(RIGHT(S11,3)=\"Min\",1,IF(RIGHT(S11,3)=\"Max\",3,2)),\">=\",\"=\",\"<=\"))","v":"<="},{"$f":"IF(ISBLANK(R11),Z11,R11)","v":2},"% Max",2]
[null,null,null,null,null,null,null,null,null,null,null,null,null,{"$f":"IF(ISBLANK(P12),\"\",IF(COUNTIF(V12,W12&X12)>0,\"pass\",\"FAIL\"))","v":""},"W#1",null,"4.00 ft Min",null,"ft Min",null,"LandingWidthW1","no data",{"$f":"IF(ISBLANK(R12),CHOOSE(IF(RIGHT(Q12,3)=\"Min\",1,IF(RIGHT(Q12,3)=\"Max\",3,2)),\">=\",\"=\",\"<=\"),CHOOSE(IF(RIGHT(S12,3)=\"Min\",1,IF(RIGHT(S12,3)=\"Max\",3,2)),\">=\",\"=\",\"<=\"))","v":">="},4,"ft Min",4]
[null,null,null,null,null,null,null,null,null,null,null,null,null,{"$f":"IF(ISBLANK(P13),\"\",IF(COUNTIF(V13,W13&X13)>0,\"pass\",\"FAIL\"))","v":""},"D#1",null,"4.00 ft Min",null,"ft Min",null,"LandingLengthD1","no data",{"$f":"IF(ISBLANK(R13),CHOOSE(IF(RIGHT(Q13,3)=\"Min\",1,IF(RIGHT(Q13,3)=\"Max\",3,2)),\">=\",\"=\",\"<=\"),CHOOSE(IF(RIGHT(S13,3)=\"Min\",1,IF(RIGHT(S13,3)=\"Max\",3,2)),\">=\",\"=\",\"<=\"))","v":">="},4,"ft Min",4]
[null,null,null,null,null,null,null,null,null,null,null,null,null,"Ramp"]
[null,null,null,null,null,null,null,null,null,null,null,null,null,{"$f":"IF(ISBLANK(P15),\"\",IF(COUNTIF(V15,W15&X15)>0,\"pass\",\"FAIL\"))","v":""},"RS",null,"8.30% Max",null,"% Max",null,"RampRunningSlope","no data",{"$f":"IF(ISBLANK(R15),CHOOSE(IF(RIGHT(Q15,3)=\"Min\",1,IF(RIGHT(Q15,3)=\"Max\",3,2)),\">=\",\"=\",\"<=\"),CHOOSE(IF(RIGHT(S15,3)=\"Min\",1,IF(RIGHT(S15,3)=\"Max\",3,2)),\">=\",\"=\",\"<=\"))","v":"<="},8.3000000000000007,"% Max",8.3000000000000007]
[null,null,null,null,null,null,null,null,null,null,null,null,null,{"$f":"IF(ISBLANK(P16),\"\",IF(COUNTIF(V16,W16&X16)>0,\"pass\",\"FAIL\"))","v":""},"CS",null,"2.00% Max",null,"% Max",null,"RampCrossSlope","no data",{"$f":"IF(ISBLANK(R16),CHOOSE(IF(RIGHT(Q16,3)=\"Min\",1,IF(RIGHT(Q16,3)=\"Max\",3,2)),\">=\",\"=\",\"<=\"),CHOOSE(IF(RIGHT(S16,3)=\"Min\",1,IF(RIGHT(S16,3)=\"Max\",3,2)),\">=\",\"=\",\"<=\"))","v":"<="},2,"% Max",2]
[null,null,null,null,null,null,null,null,null,null,null,null,null,{"$f":"IF(ISBLANK(P17),\"\",IF(COUNTIF(V17,W17&X17)>0,\"pass\",\"FAIL\"))","v":""},"L",null,"15.00 ft Max",null,"ft Max",null,"RampLength","no data",{"$f":"IF(ISBLANK(R17),CHOOSE(IF(RIGHT(Q17,3)=\"Min\",1,IF(RIGHT(Q17,3)=\"Max\",3,2)),\">=\",\"=\",\"<=\"),CHOOSE(IF(RIGHT(S17,3)=\"Min\",1,IF(RIGHT(S17,3)=\"Max\",3,2)),\">=\",\"=\",\"<=\"))","v":"<="},15,"ft Max",15]
[null,null,null,null,null,null,null,null,null,null,null,null,null,"Top Area"]
[null,null,null,null,null,null,null,null,null,null,null,null,null,"informational","CSL",null,null,null,null,null,"TopAreaCSL","no data",{"$f":"IF(ISBLANK(R19),CHOOSE(IF(RIGHT(Q19,3)=\"Min\",1,IF(RIGHT(Q19,3)=\"Max\",3,2)),\">=\",\"=\",\"<=\"),CHOOSE(IF(RIGHT(S19,3)=\"Min\",1,IF(RIGHT(S19,3)=\"Max\",3,2)),\">=\",\"=\",\"<=\"))","v":"="},2,"% Max",2]
[null,null,null,null,null,null,null,null,null,null,null,null,null,{"$f":"IF(ISBLANK(P20),\"\",IF(COUNTIF(V20,W20&X20)>0,\"pass\",\"FAIL\"))","v":""},"CSW",null,"2.00% Max",null,"% Max",null,"TopAreaCSW","no data",{"$f":"IF(ISBLANK(R20),CHOOSE(IF(RIGHT(Q20,3)=\"Min\",1,IF(RIGHT(Q20,3)=\"Max\",3,2)),\">=\",\"=\",\"<=\"),CHOOSE(IF(RIGHT(S20,3)=\"Min\",1,IF(RIGHT(S20,3)=\"Max\",3,2)),\">=\",\"=\",\"<=\"))","v":"<="},2,"% Max",2]
[null,null,null,null,null,null,null,null,null,null,null,null,null,{"$f":"IF(ISBLANK(P21),\"\",IF(COUNTIF(V21,W21&X21)>0,\"pass\",\"FAIL\"))","v":""},"W#2",null,"4.00 ft Min",null,"ft Min",null,"RampWidthW2","no data",{"$f":"IF(ISBLANK(R21),CHOOSE(IF(RIGHT(Q21,3)=\"Min\",1,IF(RIGHT(Q21,3)=\"Max\",3,2)),\">=\",\"=\",\"<=\"),CHOOSE(IF(RIGHT(S21,3)=\"Min\",1,IF(RIGHT(S21,3)=\"Max\",3,2)),\">=\",\"=\",\"<=\"))","v":">="},4,"ft Min",4]
[null,null,null,null,null,null,null,null,null,null,null,null,null,"Counter Slope"]
[null,null,null,null,null,null,null,null,null,null,null,null,null,{"$f":"IF(ISBLANK(P23),\"\",IF(COUNTIF(V23,W23&X23)>0,\"pass\",\"FAIL\"))","v":""},"S",null,"5.00% Max",null,"% Max",null,"CounterSlope","no data",{"$f":"IF(ISBLANK(R23),CHOOSE(IF(RIGHT(Q23,3)=\"Min\",1,IF(RIGHT(Q23,3)=\"Max\",3,2)),\">=\",\"=\",\"<=\"),CHOOSE(IF(RIGHT(S23,3)=\"Min\",1,IF(RIGHT(S23,3)=\"Max\",3,2)),\">=\",\"=\",\"<=\"))","v":"<="},{"$f":"IF(ISBLANK(R23),Z23,R23)","v":5},"% Max",5]
[null,null,null,null,null,null,null,null,null,null,null,null,null,{"$f":"IF(AND(P11=\"\",P23<>\"\"),\"Incomplete\",IF(ISBLANK(P23),\"\",IF(COUNTIF(V24,W24&X24)>0,\"pass\",\"FAIL\")))","v":""},"CSL+S",{"$f":"IF(ISBLANK(P23),\"sum\",P11+P23)","v":"sum"},"7.00% Max",null,"% Max",null,"SlopeDelta",{"$f":"IFERROR(V11+V23,\"no data\")","v":"no data"},{"$f":"IF(ISBLANK(R24),CHOOSE(IF(RIGHT(Q24,3)=\"Min\",1,IF(RIGHT(Q24,3)=\"Max\",3,2)),\">=\",\"=\",\"<=\"),CHOOSE(IF(RIGHT(S24,3)=\"Min\",1,IF(RIGHT(S24,3)=\"Max\",3,2)),\">=\",\"=\",\"<=\"))","v":"<="},{"$f":"IF(ISBLANK(R24),Z24,R24)","v":7},"% Max",7,"Change in Slope = CSLLanding+S"]
[null,null,null,null,null,null,null,null,null,null,null,null,null,"Grade Breaks",null,null,null,null,"(paper form: enter fraction or decimal of an inch)"]
[null,null,null,null,null,null,null,null,null,null,null,null,null,{"$f":"IF(ISBLANK(P26),\"\",IF(COUNTIF(AB27:AB29,P26)>0,\"pass\",\"FAIL\"))","v":""},"GB#1",null,null,null,null,null,"GradeBreak1",{"$f":"IF(ISBLANK(P26),\"no data\",P26)","v":"no data"},{"$f":"IF(ISBLANK(R26),CHOOSE(IF(RIGHT(Q26,3)=\"Min\",1,IF(RIGHT(Q26,3)=\"Max\",3,2)),\">=\",\"=\",\"<=\"),CHOOSE(IF(RIGHT(S26,3)=\"Min\",1,IF(RIGHT(S26,3)=\"Max\",3,2)),\">=\",\"=\",\"<=\"))","v":"="},0,"flush",0,null,"Grade Breaks"]
[null,null,null,null,null,null,null,null,null,null,null,null,null,{"$f":"IF(ISBLANK(P27),\"\",IF(COUNTIF(AB27:AB29,P27)>0,\"pass\",\"FAIL\"))","v":""},"GB#2",null,null,null,null,null,"GradeBreak2","no data","=",0,"flush",0,null,"Flush","Flush (0.00\") No vertical Difference"]
[null,null,null,null,null,null,null,null,null,null,null,null,null,{"$f":"IF(ISBLANK(P28),\"\",IF(COUNTIF(AB27:AB29,P28)>0,\"pass\",\"FAIL\"))","v":""},"GB#3",null,null,null,null,null,"GradeBreak3","no data","=",0,"flush",0,null,"¼-Inch or Less","¼-Inch (0.02 ft) or Less"]
[null,null,null,null,null,null,null,null,null,null,null,null,null,{"$f":"IF(ISBLANK(P29),\"\",IF(COUNTIF(AB27:AB29,P29)>0,\"pass\",\"FAIL\"))","v":""},"GB#4",null,null,null,null,null,"GradeBreak4","no data","=",0,"flush",0,null,"¼ to ½-Inch YES Bevel","Between  ¼ - ½-Inch WITH ¼-inch Beveled at 2:1"]
[null,null,null,null,null,null,null,null,null,null,null,null,null,{"$f":"IF(ISBLANK(P30),\"\",IF(COUNTIF(AB27:AB29,P30)>0,\"pass\",\"FAIL\"))","v":""},"GB#5",null,null,null,null,null,"GradeBreak5","no data","=",0,"flush",0,null,"¼ to ½-Inch NO Bevel","Between  ¼ - ½-Inch WITHOUT ¼-inch Beveled at 2:1"]
[null,"NOTES",null,null,null,null,null,null,null,null,null,null,null,{"$f":"IF(ISBLANK(P31),\"\",IF(COUNTIF(AB27:AB29,P31)>0,\"pass\",\"FAIL\"))","v":""},"GB#6",null,null,null,null,null,"GradeBreak6","no data","=",0,"flush",0,null,"Greater than ½-Inch","Greater than ½-Inch"]
[null,null,null,null,null,null,null,null,null,null,null,null,null,null,null,null,null,null,null,null,"StructComp",{"$f":"IF(COUNTIF(K9:N31,\"FAIL\")>0,\"No\",IF(COUNTIF(K9:N31,\"pass\")=19,\"Yes\",\"incomplete\"))","v":"incomplete"},"Structurally Compliant?"]
[null,null,null,null,null,null,null,null,null,null,null,null,null,"Detectable Warning Surface"]
[null,null,null,null,null,null,null,null,null,null,null,null,null,{"$f":"IF(AND(P12=\"\",P34<>\"\"),\"Incomplete\",IF(ISBLANK(P34),\"\",IF(COUNTIF(V34,W34&X34)>0,\"pass\",\"FAIL\")))","v":""},"L",null,{"$f":"IF(ISBLANK(P12),\"Match W#1\",\"At Least \"&X34&\" ft\")","v":"Match W#1"},null,null,null,"DWSLength",{"$f":"IF(ISBLANK(P34),\"no data\",P34)","v":"no data"},">=",{"$f":"Z34-0.33","v":-0.33},"ft",{"$f":"P12","v":0},"Match W#1"]
[null,null,null,null,null,null,null,null,null,null,null,null,null,{"$f":"IF(ISBLANK(P35),\"\",IF(COUNTIF(V35,W35&X35)>0,\"pass\",\"FAIL\"))","v":""},"W",null,"2.00 ft Min",null,null,null,"DWSWidth",{"$f":"IF(ISBLANK(P35),\"no data\",P35)","v":"no data"},{"$f":"IF(ISBLANK(R35),CHOOSE(IF(RIGHT(Q35,3)=\"Min\",1,IF(RIGHT(Q35,3)=\"Max\",3,2)),\">=\",\"=\",\"<=\"),CHOOSE(IF(RIGHT(S35,3)=\"Min\",1,IF(RIGHT(S35,3)=\"Max\",3,2)),\">=\",\"=\",\"<=\"))","v":">="},{"$f":"IF(ISBLANK(R35),Z35,R35)","v":2},"ft Min",2]
[null,null,null,null,null,null,null,null,null,null,null,null,null,{"$f":"IF(ISBLANK(P36),\"\",IF(COUNTIF(V36,W36&X36)>0,\"pass\",\"FAIL\"))","v":""},"Color",null,"DOT - Yellow",null,null,null,"DWSColor",{"$f":"IF(ISBLANK(P36),\"no data\",P36)","v":"no data"},{"$f":"IF(ISBLANK(R36),CHOOSE(IF(RIGHT(Q36,3)=\"Min\",1,IF(RIGHT(Q36,3)=\"Max\",3,2)),\">=\",\"=\",\"<=\"),CHOOSE(IF(RIGHT(S36,3)=\"Min\",1,IF(RIGHT(S36,3)=\"Max\",3,2)),\">=\",\"=\",\"<=\"))","v":"="},{"$f":"IF(ISBLANK(R36),Z36,P36)","v":"DOT - Yellow"},null,"DOT - Yellow"]
[null,null,null,null,null,null,null,null,null,null,null,null,null,{"$f":"IF(ISBLANK(P37),\"\",IF(COUNTIF(AC41:AC46,P37)>0,\"pass\",\"FAIL\"))","v":""},"Type",null,"Truncated",null,null,null,"DWSType",{"$f":"IF(ISBLANK(P37),\"no data\",VLOOKUP(P37,AC41:AD47,2,FALSE))","v":"no data"}]
[null,"Measurement Instrument \nSerial Number:",null,null,null,"Calibrated by:",null,null,null,"Date:",null,null,null,"Curb Gap"]
[null,null,null,null,null,null,null,null,null,null,null,null,null,{"$f":"IF(ISBLANK(P39),\"\",IF(COUNTIF(V39,W39&X39)>0,\"pass\",\"FAIL\"))","v":""},"CG",null,"0.17 ft Max",null,"ft",null,"DWSCurbGap",{"$f":"IF(ISBLANK(P39),\"no data\",P39)","v":"no data"},{"$f":"IF(ISBLANK(R39),CHOOSE(IF(RIGHT(Q39,3)=\"Min\",1,IF(RIGHT(Q39,3)=\"Max\",3,2)),\">=\",\"=\",\"<=\"),CHOOSE(IF(RIGHT(S39,3)=\"Min\",1,IF(RIGHT(S39,3)=\"Max\",3,2)),\">=\",\"=\",\"<=\"))","v":"<="},{"$f":"IF(ISBLANK(R39),Z39,R39)","v":0.17},"ft",0.17]
[null,"1\" = 0.08'","2\" = 0.17'","3\" = 0.25'","4\" = 0.33'","5\" = 0.42'","6\" = 0.50'","7\" = 0.58'","8\" = 0.67'","9\" = 0.75'","10\" = 0.83'","11\" = 0.92'",null,null,null,null,null,null,null,null,"DWSComp",{"$f":"IF(COUNTIF(N34:N39,\"FAIL\")>0,\"No\",IF(COUNTIF(N34:N39,\"pass\")=5,\"Yes\",\"incomplete\"))","v":"incomplete"},"DWS Compliant?",null,null,null,null,null,"DWS Types:"]
[null,null,null,null,null,null,null,null,null,null,null,null,null,null,null,null,null,"Form Updated",null,null,"DiagToCenterIntersection",{"$f":"E9","v":0},null,null,null,null,null,null,"Brick","Brick"]
[null,null,null,null,null,null,null,null,null,null,null,null,null,null,null,null,null,"2018-07-31",null,null,"ClearSpaceWidth",{"$f":"J9","v":""},null,null,null,null,null,null,"Epoxy","Truncated Dome (TDome)  Epoxy"]
[null,null,null,null,null,null,null,null,null,null,null,null,null,null,null,null,null,null,null,null,"WSDOTFeatureNumber",null,"Feature ID Code",null,null,null,null,null,"CastIron","TDome Inlay CastIron"]
[null,null,null,null,null,null,null,null,null,null,null,null,null,null,null,null,null,null,null,null,"FeatureLocationCode",{"$f":"E7","v":0},"From Plan Sheet",null,null,null,null,null,"Concrete","TDome Inlay Concrete"]
[null,null,null,null,null,null,null,null,null,null,null,null,null,null,null,null,null,null,null,null,"Note",{"$f":"B32","v":0}," ",null,null,null,null,null,"Plastic","TDome Inlay Plastic"]
[null,null,null,null,null,null,null,null,null,null,null,null,null,null,null,null,null,null,null,null,"CrossStreet",{"$f":"E5","v":0}," ",null,null,null,null,null,"Other","TDome Inlay Other"]
[null,null,null,null,null,null,null,null,null,null,null,null,null,null,null,null,null,null,null,null,"CornerSide",{"$f":"J5","v":0}," ",null,null,null,null,null,"None","None, Not TDome, or MEF exception—make note"]
[null,null,null,null,null,null,null,null,null,null,null,null,null,null,null,null,null,null,null,null,"PlanShtRef",{"$f":"E6","v":0}," "]
[null,null,null,null,null,null,null,null,null,null,null,null,null,null,null,null,null,null,null,null,"MEFRef",{"$f":"R5","v":0}," "]
[null,null,null,null,null,null,null,null,null,null,null,null,null,null,null,null,null,null,null,null,"SiteHist",{"$f":"IF(N2=\"Scoping\",\"Existing Feature\",E8)","v":0}]
[null,null,null,null,null,null,null,null,null,null,null,null,null,null,null,null,null,null,null,null,"Station",{"$f":"M5","v":"Station"}]

{"sheet":"CutThru","index":5,"n_rows":61,"n_cols":149,"rows_kept":61,"cut":false,"hidden":false,"merged":[[2,33,2,34],[0,1,1,9],[0,22,0,23],[1,11,1,12],[1,13,1,14],[1,17,1,18],[1,22,1,23],[2,4,2,5],[2,9,2,10],[2,13,2,14],[2,17,2,18],[2,0,2,3],[5,0,5,3],[6,0,6,3],[3,1,3,3],[3,4,3,7],[3,17,3,18],[4,1,4,3],[4,4,4,7],[4,9,4,10],[4,17,4,18],[5,4,5,6],[5,11,5,12],[6,4,6,6],[6,9,6,10],[6,11,6,12],[42,1,42,4],[42,5,42,8],[42,9,42,11],[42,15,42,16],[7,4,7,6],[7,9,7,10],[7,15,7,16],[8,1,8,10],[8,15,8,16],[9,16,10,16],[10,11,10,14],[27,16,27,18],[32,16,32,18],[37,16,37,18],[32,1,41,11],[10,17,10,18],[29,17,29,18],[34,17,34,18],[39,17,39,18],[41,13,41,14],[46,17,46,18],[51,1,51,6],[43,1,43,4],[43,5,43,8],[43,9,43,11],[43,15,43,16],[44,15,44,16],[46,15,46,16]]}
[null,"ADA Feature - Cut-Through Median or Traffic Island Measurements",null,null,null,null,null,null,null,null,null,{"$f":"IF(AND(OR(Y2=\"incomplete\",Y1=\"incomplete\"),LEN(N2)>0),\"= Required Field\",\"\")","v":""},null,null,null,null,null,null,null,null,"FeatureName",{"$f":"S2","v":0},"Complete Header",null,{"$f":"IF(AND(N2<>\"Scoping\",OR(E3=\"\",J3=\"\",E4=\"\",N2=\"\",N3=\"\",N4=\"\",O4=\"A/B\",E7=\"\",O5=\"Lt or Rt?\",E5=\"\",J5=\"\",J6=\"\",K6=\"\",J7=\"\",J8=\"\",N6=\"\",O6=\"\",P6=\"\",B44=\"\",F44=\"\",J44=\"\",E8=\"\")),\"incomplete\",\"pass\")","v":"incomplete"},null,null,null,null,null,null,null,null,null,null,null,null,null,null,null,null,null,null,null,null,null,null,null,null,null,null,null,null,null,null,null,null,null,null,null,null,null,null,null,null,null,null,null,null,null,null,null,null,null,null,null,null,null,null,null,null,null,null,null,null,null,null,null,null,null,{"$f":"MID(CELL(\"filename\",A1),FIND(\"]\",CELL(\"filename\",A1))+1,255)","v":"CutThru"},null,null,null,null,null,{"$f":"LEN(N6)=0","v":true}]
[null,null,null,null,null,null,null,null,null,null,null,"Phase",null,null,null,null,"Database Schema:","ISLAND_P\nMEDIAN_P",null,null,"CompletedUnderContract",{"$f":"E3","v":0},"Complete Header \"Scoping\"",null,{"$f":"IF(AND(N2=\"Scoping\",OR(E3=\"\",J3=\"\",E4=\"\",N3=\"\",N4=\"\",O4=\"A/B\",E5=\"\",O5=\"Lt or Rt?\",J5=\"\",J6=\"\",K6=\"\",J7=\"\",N6=\"\",O6=\"\",P6=\"\")),\"incomplete\",\"pass\")","v":"pass"},null,"median",{"$f":"IF(L9=\"Yes\",\"FAIL\",IF(COUNTIF(N13:N45,\"FAIL\")>0,\"FAIL\",IF(COUNTIF(Y1:Y2,\"pass\")<2,\"incomplete form\",IF(COUNTIF(N13:N45,\"pass\")=13,\"pass\",\"incomplete form\"))))","v":"incomplete form"},"CTMed","Cut-thru Median",null,null,null,null,null,null,null,"Drawing 1",null,null,null,null,null,null,null,null,null,null,null,null,null,null,null,null,null,null,null,null,null,null,null,null,null,null,null,null,null,null,null,null,null,null,null,null,null,null,null,null,null,null,null,null,{"$f":"LEN(CF4)","v":1},{"$f":"N3","v":0},{"$f":"TEXT(N4,\"0.00\")&IF(O4=\"B\",\"B\",\"\")","v":"0.00"},null,{"$f":"E5","v":0},null,null,null,{"$f":"VLOOKUP(P8,AA2:AD4,3,FALSE)","v":{"$error":"#N/A"}},null,null,null,null,null,null,null,null,null,{"$f":"LEN(CW4)","v":{"$error":"#N/A"}},null,{"$f":"R3","v":"incomplete form"},null,null,{"$f":"J7","v":0},null,{"$f":"J3","v":"00:00:00"},{"$f":"J8","v":0},{"$f":"E8","v":0},{"$f":"E3","v":0},{"$f":"IF(AND(R4=\"Standard ADA\",LEN(R5)=0),\"n/a\",IF(AND(R4=\"Has MEF\",LEN(R5)=0),R4,R5))","v":"n/a"},null,null,{"$f":"P6","v":0},"01",{"$f":"N2","v":0},null,null,null,null,null,null,null,null,null,null,null,null,null,null,null,null,null,null,null,null,null,null,null,null,null,null,null,null,{"$f":"IF(RIGHT(O5,1)=\"?\",\"?\",LEFT(O5&\"-\",2))","v":"?"},{"$f":"IF(LEN(J5)=0,\"!\",LEFT(J5,1))","v":"!"},{"$f":"IF(LEN(J6)=0,\"!!\",LEFT(TEXT(J6,\"0\")&\"-\",2))","v":"!!"},{"$f":"IF(LEN(K6)=0,\"!!\",LEFT(TEXT(K6,\"0\")&\"-\",2))","v":"!!"}]
["Contract / Work Order",null,null,null,null,null,null,null,"Date Measured",null,null,null,"SR",null,null,null,"Survey/Feature Status",{"$f":"IF(P8=\"Median\",AB2,IF(P8=\"Island\",AB3,IF(P8=\"Other\",AB4,\"incomplete form\")))","v":"incomplete form"},null,null,"GPSDate",{"$f":"J3","v":"00:00:00"},"Date Measured",null,null,null,"island",{"$f":"IF(L9=\"Yes\",\"FAIL\",IF(COUNTIF(N13:N45,\"FAIL\")>0,\"FAIL\",IF(COUNTIF(Y1:Y2,\"pass\")<2,\"incomplete form\",IF(COUNTIF(N13:N45,\"pass\")=21,\"pass\",\"incomplete form\"))))","v":"incomplete form"},"CTIsl","Cut-thru Island",null,{"$f":"IF(COUNTIF(N13:N45,\"pass\")=21,\"pass\",\"?\")","v":"?"},null,"Requirements",null,"Yes/No","4 ft Min if Diagonally Oriented","4 ft Min","15 ft Max","2.0% Max","8.3% Max","10% Max","10% Max","4 ft Min","4 ft Min","2.0% Max","2.0% Max","5% Max","Flush","Flush","Flush","Flush","Flush","Flush","Truncated","DOT - Yellow","0 ft","Match Ramp Width","2 ft Min",null,null,null,null,null,null,null,null,null,null,null,null,null,null,null,null,null,null,null,null,null,"SR View","Gmap","Gmap2","State Route","Mile- post","Primary St, Bridge, or Facility Name","Intersecting or Related St or Route","City","County","Region","ADA Feature","Meas?","Summary of Non-Compliance","Solution","Sched. Fiscal Year","Estimated Cost","Lat","Long","Lat2","Long2","FeatureID","GIS Table","Fully Compliant?","DWS Non-Comp Only?","Length","Jurisdiction","SubOwner","MeasDate","ConstructedBy","SiteHistory","Contract","MEFRef","DocRef","LocCode","LocMethod","History","Project Phase","Path Priority Index Tier","Barrier Severity","Date made Compliant","Access Level","Rural or Urban","PaveBienn_within_100ft","PaveDue+2","Direction","MP","A/B","ARM","SRSort","MPSort","BridgeNo","Site Key","Issue","Issue Summary","Rest Area","multiples","CityAccess","RecordCreateDate","GPSDate","End_SR","End_MP","ProjectID","ADAGroup","Plan 2016","Planning Set","Side","Site","SiteCompass","FeatCompass"]
[null,"Measured By",null,null,null,null,null,null,null,null,null,null,"Milepost",null,"A/B",{"$f":"HYPERLINK(\"#'READ-ME'!A252:A264\",\"?\")","v":"?"},"MEF Status",{"$f":"IF(SUM(R10:R31,R51)+IFERROR(SEARCH(\"MEF\",#REF!),0)>0,\"Has MEF\",\"Standard ADA\")","v":"Standard ADA"},null,null,"Datafile",{"$f":"E4","v":0},"Measured By",null,null,null,"other",{"$f":"IF(L9=\"Yes\",\"FAIL\",IF(COUNTIF(N12:N45,\"FAIL\")>0,\"FAIL\",IF(COUNTIF(Y1:Y2,\"pass\")<2,\"incomplete form\",\"Other\")))","v":"incomplete form"},"CTOth","Cut-thru Other",null,null,null,null,null,null,null,"Ramp","Ramp","Ramp","Ramp","Flare Slope","Flare Slope","Landing","Landing","Landing","Landing","Counter Slope","Grade Break","Grade Break","Grade Break","Grade Break","Grade Break","Grade Break","DWS","DWS","Curb Gap","DWS","DWS",null,null,null,null,null,null,null,null,null,null,null,null,null,null,null,null,null,null,null,null,null,{"$f":"HYPERLINK(\"http://srview3i.wsdot.loc/stateroute/picturelog/v3/client/SRview.Windows.Viewer.application?srnum=\"&LEFT(CF4,3)&\"&rrt=\"&IF(LEN(CF4)>3,RIGHT(LEFT(CF4,5),2),\"\")&\"&rrq=\"&IF(LEN(CF4)=11,RIGHT(CF4,6),IF(LEN(CF4)=10,RIGHT(CF4,5),\"\"))&\"&srmp=\"&CG4,\"SRV\")","v":"SRV"},{"$f":"HYPERLINK(\"http://maps.google.com/maps?z=20&t=k&q=loc:\"&CS4&\",\"&CT4,\"GMap\")","v":{"$error":"#VALUE!"}},{"$f":"IF(LEN(CU4)>0,HYPERLINK(\"http://maps.google.com/maps?z=20&t=k&q=loc:\"&CU4&\",\"&CV4,\"GMap\"),\"\")","v":""},{"$f":"CF2","v":0},{"$f":"CG2","v":"0.00"},null,null,null,null,null,{"$f":"VLOOKUP(P8,AA2:AD4,4,FALSE)","v":{"$error":"#N/A"}},"Yes",null,null,"?",0,{"$f":"IF(LEN(N6)=0,VALUE(LEFT(CS2,FIND(\",\",CS2)-1)),N6)","v":{"$error":"#VALUE!"}},{"$f":"IF(LEN(O6)=0,VALUE(RIGHT(CS2,LEN(CS2)-FIND(\",\",CS2)-1)),O6)","v":{"$error":"#VALUE!"}},null,null,{"$f":"CM2&LEFT(TEXT(CF4,\"000\")&\"-----------\",11)&TEXT(DV4,\"000.00\")&DW4&DU4&EQ4&ER4&ES4&DL2","v":{"$error":"#N/A"}},"New Point",{"$f":"IF(CY2=\"pass\",\"Yes\",\"No\")","v":"No"},"No","n/a",{"$f":"DB2","v":0},"n/a",{"$f":"DD2","v":"00:00:00"},{"$f":"DE2","v":0},{"$f":"DF2","v":0},{"$f":"DG2","v":0},{"$f":"DH2","v":"n/a"},null,{"$f":"EP4&\"-\"&EQ4&\"-\"&ER4&\"-\"&ES4","v":"?-!-!!-!!"},{"$f":"DK2","v":0},"Latest",{"$f":"DM2","v":0},"?","?","?","?","?","?","?","I",{"$f":"TEXT(IF(DW4=\"B\",VALUE(LEFT(CG4,FIND(\"B\",CG4)-1)),CG4),\"000.00\")","v":"000.00"},{"$f":"IF(O4=\"B\",\"B\",\"A\")","v":"A"},"?",{"$f":"LEFT(CF4,3)","v":"0"},{"$f":"IF(LEN(CF4)>9,VALUE(RIGHT(CF4,5))/100,CG4)","v":"0.00"},"n/a",null,null,"+ (blank)",null,null,null,null,null,null,null,null,null,null,null,{"$f":"EP2","v":"?"},{"$f":"EQ2","v":"!"},{"$f":"ER2","v":"!!"},{"$f":"ES2","v":"!!"}]
[null,"Cross Street Name",null,null,null,null,null,null,{"$f":"HYPERLINK(\"#'READ-ME'!A61:A88\",\"Site\")","v":"Site"},null,null,null,"Station",null,{"$f":"HYPERLINK(\"#'READ-ME'!A222:A240\",\"Lt or Rt?\")","v":"Lt or Rt?"},null,"MEF Reference",null,null,null,"StateRouteRRT",{"$f":"N3","v":0},null,null,null,null,null,"Database Schema","Contract","Date Measured","Measured By","SR","SRMP","A/B","Lt or Rt","Diagonally Orientated?","Clear Space?","W","L","CS","RS","FS#1","FS#2","L","W","CSW","CSL","CS"," GB#1"," GB#2"," GB#3"," GB#4"," GB#5"," GB#6","Type","Color","CG","L","W","NOTES","Feature ID Code","Feature Location Code","RS+S","Cross Street Name","Corner/Side","Plan Sheet Reference","MEF Reference","Site History","Station","Structurally Compliant?","DWS Compliant?",null,null,null,null,null,null,null,null,null,{"$f":"HYPERLINK(\"http://www.wsdot.wa.gov/data/tools/geoportal/?layers=%7B%22layer0%22%3A%5B%5D%2C%22Buffer%22%3Atrue%2C%22Drawn+Features%22%3Atrue%7D\",\"Geoportal\")","v":"Geoportal"},null,null,null,null,null,null,null,null,null,null,null,null,null,null,null,null,null,null,null,null,null,null,null,null,null,null,null,null,null,null,null,null,null,null,null,null,null,null,null,null,null,null,null,null,null,null,null,null,null,null,null,null,null,null,null,null,null,null,null,null,null,null,null,null,"LEFT(TEXT(CF4,\"000\")&\"-----------\",11)"]
["Plan Sheet Reference",null,null,null,null,null,null,null,{"$f":"HYPERLINK(\"#'READ-ME'!A112:A138\",\"Location\")","v":"Location"},null,null,"Geoportal",null,null,null,null,null,null,null,null,"SRMP",{"$f":"N4","v":0},null,null,null,null,null,"FeatureName","CompletedUnderContract","GPSDate","Datafile","StateRouteRRT","SRMP","AheadBackIndicator","DirectionOfInventory","DiagToCenterIntersection","ClearSpaceWidth","RampWidth","RampLength","RampCrossSlope","RampRunningSlope","Flare1Slope","Flare2Slope","LandingLength","LandingWidth","LandingCSW","LandingCSL","CounterSlope","GradeBreak1","GradeBreak2","GradeBreak3","GradeBreak4","GradeBreak5","GradeBreak6","DWSType","DWSColor","DWSCurbGap","DWSLength","DWSWidth","Note","WSDOTFeatureNumber","FeatureLocationCode","SlopeDelta","CrossStreet","CornerSide","PlanShtRef","MEFRef","SiteHist","Station","StructComp","DWSComp"]
["Feature Location Code",null,null,null,null,null,null,null,"Jurisdiction",null,null,{"$f":"HYPERLINK(\"#'READ-ME'!A148:A189\",\"Instructions\")","v":"Instructions"},null,"Latitude","Longitude",{"$f":"HYPERLINK(\"#'READ-ME'!A201:A207\",\"Accuracy\")","v":"Accuracy"},null,null,null,null,"AheadBackIndicator",{"$f":"O4","v":"A/B"},null,null,null,null,null,"CR-PERP",{"$f":"VLOOKUP(AC6,$U:$V,2,FALSE)","v":0},0,0,0,0,"A/B","Geoportal",{"$error":"#N/A"},{"$error":"#N/A"},{"$error":"#N/A"},{"$error":"#N/A"},{"$error":"#N/A"},{"$error":"#N/A"},{"$error":"#N/A"},{"$error":"#N/A"},{"$error":"#N/A"},{"$error":"#N/A"},{"$error":"#N/A"},{"$error":"#N/A"},{"$error":"#N/A"},"no data","no data","no data",{"$error":"#N/A"},{"$error":"#N/A"},{"$error":"#N/A"},"no data","no data",{"$error":"#N/A"},"no data","no data",0,0,0,{"$error":"#N/A"},0,0,0,0,0,"Station",{"$error":"#N/A"},{"$error":"#N/A"}]
[null,null,null,"Site History",null,null,null,null,"Constructed By",null,null,null,null,null,"Cut-thru Type ",null,null,null,null,null,"DirectionOfInventory",{"$f":"L6","v":"Geoportal"},"Lt or Rt"]
[null,{"$f":"IF(COUNTIF(N2,\"Scoping\")>0,\"Visually Identified the Feature is ADA non-Compliant, no measurements taken\",\"\")","v":""},null,null,null,null,null,null,null,null,null,null,null,null,"PAR Material "]
[null,null,null,null,null,null,null,null,null,null,null,null,null,null,null,null,"ADA Compliance Criteria"]
[null,null,null,null,null,null,null,null,null,null,null,"Enter numbers only\n1 = 1.00%, 2.25 = 2.25 ft, etc.",null,null,null,"Measurement",null,"MEF Criteria"]
[null,null,null,null,null,null,null,null,null,null,null,null,null,"Median       "]
[null,null,null,null,null,null,null,null,null,null,null,null,null,{"$f":"IF(P13=\"\",\"\",IF(COUNTIF(V13,W13&X13)>0,\"pass\",\"FAIL\"))","v":""},"MW",null,"5.00 ft Min",null,"ft Min",null,null,{"$f":"IF(P13=\"\",\"no data\",P13)","v":"no data"},{"$f":"IF(ISBLANK(R13),CHOOSE(IF(RIGHT(Q13,3)=\"Min\",1,IF(RIGHT(Q13,3)=\"Max\",3,2)),\">=\",\"=\",\"<=\"),CHOOSE(IF(RIGHT(S13,3)=\"Min\",1,IF(RIGHT(S13,3)=\"Max\",3,2)),\">=\",\"=\",\"<=\"))","v":">="},{"$f":"IF(ISBLANK(R13),Z13,R13)","v":5},"% Max",{"$f":"VALUE(LEFT(Q13,4))","v":5}]
[null,null,null,null,null,null,null,null,null,null,null,null,null,{"$f":"IF(P14=\"\",\"\",IF(COUNTIF(V14,W14&X14)>0,\"pass\",\"FAIL\"))","v":""},"ML",null,"6.00 ft. Min",null,null,null,null,{"$f":"IF(P14=\"\",\"no data\",P14)","v":"no data"},{"$f":"IF(ISBLANK(R14),CHOOSE(IF(RIGHT(Q14,3)=\"Min\",1,IF(RIGHT(Q14,3)=\"Max\",3,2)),\">=\",\"=\",\"<=\"),CHOOSE(IF(RIGHT(S14,3)=\"Min\",1,IF(RIGHT(S14,3)=\"Max\",3,2)),\">=\",\"=\",\"<=\"))","v":">="},{"$f":"IF(ISBLANK(R14),Z14,R14)","v":6},"% Max",{"$f":"VALUE(LEFT(Q14,4))","v":6}]
[null,null,null,null,null,null,null,null,null,null,null,null,null,null,"RS",null,"Informational",null,null,null,null,"no data","=",{"$error":"#VALUE!"},"% Max",{"$error":"#VALUE!"}]
[null,null,null,null,null,null,null,null,null,null,null,null,null,"","CS",null,"2.00% Max",null,"% Max",null,null,"no data","<=",2,"% Max",2]
[null,null,null,null,null,null,null,null,null,null,null,null,null,"Island"]
[null,null,null,null,null,null,null,null,null,null,null,null,null,null,"C1RS",null,"Informational",null,null,null,null,"no data","=",{"$error":"#VALUE!"},"% Max",{"$error":"#VALUE!"}]
[null,null,null,null,null,null,null,null,null,null,null,null,null,"","C1W",null,"5.00 ft Min",null,"ft Min",null,null,"no data",">=",5,"% Max",5]
[null,null,null,null,null,null,null,null,null,null,null,null,null,"","C1CS",null,"2.00% Max",null,"% Max",null,null,"no data","<=",2,"% Max",2]
[null,null,null,null,null,null,null,null,null,null,null,null,null,null,"C2RS",null,"Informational",null,null,null,null,"no data","=",{"$error":"#VALUE!"},"% Max",{"$error":"#VALUE!"}]
[null,null,null,null,null,null,null,null,null,null,null,null,null,"","C2W",null,"5.00 ft Min",null,"ft Min",null,null,"no data",{"$f":"IF(ISBLANK(R22),CHOOSE(IF(RIGHT(Q22,3)=\"Min\",1,IF(RIGHT(Q22,3)=\"Max\",3,2)),\">=\",\"=\",\"<=\"),CHOOSE(IF(RIGHT(S22,3)=\"Min\",1,IF(RIGHT(S22,3)=\"Max\",3,2)),\">=\",\"=\",\"<=\"))","v":">="},{"$f":"IF(ISBLANK(R22),Z22,R22)","v":5},"% Max",{"$f":"VALUE(LEFT(Q22,4))","v":5}]
[null,null,null,null,null,null,null,null,null,null,null,null,null,"","C2CS",null,"2.00% Max",null,"% Max",null,null,"no data","<=",2,"% Max",2]
[null,null,null,null,null,null,null,null,null,null,null,null,null,null,"C3RS",null,"Informational",null,null,null,null,"no data","=",{"$error":"#VALUE!"},"% Max",{"$error":"#VALUE!"}]
[null,null,null,null,null,null,null,null,null,null,null,null,null,"","C3W",null,"5.00 ft Min",null,"ft Min",null,null,"no data",">=",5,"% Max",5]
[null,null,null,null,null,null,null,null,null,null,null,null,null,"","C3CS",null,"2.00% Max",null,"% Max",null,null,"no data","<=",2,"% Max",2]
[null,null,null,null,null,null,null,null,null,null,null,null,null,"Detectable Warning Surface – C1"]
[null,null,null,null,null,null,null,null,null,null,null,null,null,{"$f":"IF(OR(AND(P8=\"Median\",P13=\"\",P28<>\"\"),AND(P8=\"Island\",P19=\"\",P28<>\"\")),\"Incomplete\",IF(ISBLANK(P28),\"\",IF(COUNTIF(V28,W28&X28)>0,\"pass\",\"FAIL\")))","v":""},"L",null,{"$f":"IF(P8=\"Median\",IF(ISBLANK(P13),\" Match MW\",\" At Least \"&X28&\" ft\"),IF(P8=\"Island\",IF(ISBLANK(P19),\" Match C1W\",\" At Least \"&X28&\" ft\"),\" Match Cut-thru Width\"))","v":" Match Cut-thru Width"},null,null,null,"DWSLength",{"$f":"IF(ISBLANK(P28),\"no data\",P28)","v":"no data"},">=",{"$f":"Z28-0.33","v":-0.33},"ft",{"$f":"IF(P8=\"Median\",P13,P19)","v":0},"Match W"]
[null,null,null,null,null,null,null,null,null,null,null,null,null,{"$f":"IF(ISBLANK(P29),\"\",IF(COUNTIF(V29,W29&X29)>0,\"pass\",\"FAIL\"))","v":""},"W",null,"2.00 ft Min",null,null,null,"DWSWidth",{"$f":"IF(ISBLANK(P29),\"no data\",P29)","v":"no data"},{"$f":"IF(ISBLANK(R29),CHOOSE(IF(RIGHT(Q29,3)=\"Min\",1,IF(RIGHT(Q29,3)=\"Max\",3,2)),\">=\",\"=\",\"<=\"),CHOOSE(IF(RIGHT(S29,3)=\"Min\",1,IF(RIGHT(S29,3)=\"Max\",3,2)),\">=\",\"=\",\"<=\"))","v":">="},{"$f":"IF(ISBLANK(R29),Z29,R29)","v":2},"ft Min",2]
[null,null,null,null,null,null,null,null,null,null,null,null,null,{"$f":"IF(ISBLANK(P30),\"\",IF(COUNTIF(V30,W30&X30)>0,\"pass\",\"FAIL\"))","v":""},"Color",null,"DOT - Yellow",null,null,null,"DWSColor",{"$f":"IF(ISBLANK(P30),\"no data\",P30)","v":"no data"},{"$f":"IF(ISBLANK(R30),CHOOSE(IF(RIGHT(Q30,3)=\"Min\",1,IF(RIGHT(Q30,3)=\"Max\",3,2)),\">=\",\"=\",\"<=\"),CHOOSE(IF(RIGHT(S30,3)=\"Min\",1,IF(RIGHT(S30,3)=\"Max\",3,2)),\">=\",\"=\",\"<=\"))","v":"="},{"$f":"IF(ISBLANK(R30),Z30,P30)","v":"DOT - Yellow"},null,"DOT - Yellow"]
[null,null,null,null,null,null,null,null,null,null,null,null,null,{"$f":"IF(ISBLANK(P31),\"\",IF(COUNTIF($AC$51:$AC$56,P31)>0,\"pass\",\"FAIL\"))","v":""},"Type",null,"Truncated",null,null,null,"DWSType",{"$f":"IF(ISBLANK(P31),\"no data\",VLOOKUP(P31,AC35:AD42,2,FALSE))","v":"no data"},null,null,null,null,null,"Grade Breaks"]
[null,"NOTES",null,null,null,null,null,null,null,null,null,null,null,"Detectable Warning Surface – C2",null,null,null,null,null,null,null,null,null,null,null,null,null,"Flush","Flush (0.00\") No vertical Difference"]
[null,null,null,null,null,null,null,null,null,null,null,null,null,{"$f":"IF(OR(AND(P8=\"Median\",P13=\"\",P33<>\"\"),AND(P8=\"Island\",P22=\"\",P33<>\"\")),\"Incomplete\",IF(ISBLANK(P33),\"\",IF(COUNTIF(V33,W33&X33)>0,\"pass\",\"FAIL\")))","v":""},"L",null,{"$f":"IF(P8=\"Median\",IF(ISBLANK(P13),\" Match MW\",\" At Least \"&X33&\" ft\"),IF(P8=\"Island\",IF(ISBLANK(P22),\" Match C2W\",\" At Least \"&X33&\" ft\"),\" Match Cut-thru Width\"))","v":" Match Cut-thru Width"},null,null,null,"DWSLength",{"$f":"IF(ISBLANK(P33),\"no data\",P33)","v":"no data"},">=",{"$f":"Z33-0.33","v":-0.33},"ft",{"$f":"IF(P8=\"Median\",P13,P22)","v":0},"Match W","¼-Inch or Less","¼-Inch (0.02 ft) or Less"]
[null,null,null,null,null,null,null,null,null,null,null,null,null,{"$f":"IF(ISBLANK(P34),\"\",IF(COUNTIF(V34,W34&X34)>0,\"pass\",\"FAIL\"))","v":""},"W",null,"2.00 ft Min",null,null,null,"DWSWidth",{"$f":"IF(ISBLANK(P34),\"no data\",P34)","v":"no data"},{"$f":"IF(ISBLANK(R34),CHOOSE(IF(RIGHT(Q34,3)=\"Min\",1,IF(RIGHT(Q34,3)=\"Max\",3,2)),\">=\",\"=\",\"<=\"),CHOOSE(IF(RIGHT(S34,3)=\"Min\",1,IF(RIGHT(S34,3)=\"Max\",3,2)),\">=\",\"=\",\"<=\"))","v":">="},{"$f":"IF(ISBLANK(R34),Z34,R34)","v":2},"ft Min",2,null,"¼ to ½-Inch YES Bevel","Between  ¼ - ½-Inch WITH ¼-inch Beveled at 2:1"]
[null,null,null,null,null,null,null,null,null,null,null,null,null,{"$f":"IF(ISBLANK(P35),\"\",IF(COUNTIF(V35,W35&X35)>0,\"pass\",\"FAIL\"))","v":""},"Color",null,"DOT - Yellow",null,null,null,"DWSColor",{"$f":"IF(ISBLANK(P35),\"no data\",P35)","v":"no data"},{"$f":"IF(ISBLANK(R35),CHOOSE(IF(RIGHT(Q35,3)=\"Min\",1,IF(RIGHT(Q35,3)=\"Max\",3,2)),\">=\",\"=\",\"<=\"),CHOOSE(IF(RIGHT(S35,3)=\"Min\",1,IF(RIGHT(S35,3)=\"Max\",3,2)),\">=\",\"=\",\"<=\"))","v":"="},{"$f":"IF(ISBLANK(R35),Z35,P35)","v":"DOT - Yellow"},null,"DOT - Yellow",null,"¼ to ½-Inch NO Bevel","Between  ¼ - ½-Inch WITHOUT ¼-inch Beveled at 2:1"]
[null,null,null,null,null,null,null,null,null,null,null,null,null,{"$f":"IF(ISBLANK(P36),\"\",IF(COUNTIF($AC$51:$AC$56,P36)>0,\"pass\",\"FAIL\"))","v":""},"Type",null,"Truncated",null,null,null,"DWSType",{"$f":"IF(ISBLANK(P36),\"no data\",VLOOKUP(P36,AC40:AD47,2,FALSE))","v":"no data"},null,null,null,null,null,"Greater than ½-Inch","Greater than ½-Inch"]
[null,null,null,null,null,null,null,null,null,null,null,null,null,"Detectable Warning Surface – C3"]
[null,null,null,null,null,null,null,null,null,null,null,null,null,{"$f":"IF(AND(P25=\"\",P38<>\"\"),\"Incomplete\",IF(ISBLANK(P38),\"\",IF(COUNTIF(V38,W38&X38)>0,\"pass\",\"FAIL\")))","v":""},"L",null,{"$f":"IF(P8=\"Island\",IF(ISBLANK(P25),\" Match C3W\",\" At Least \"&X38&\" ft\"),\" Match Cut-thru Width\")","v":" Match Cut-thru Width"},null,null,null,"DWSLength",{"$f":"IF(ISBLANK(P38),\"no data\",P38)","v":"no data"},">=",{"$f":"Z38-0.33","v":-0.33},"ft",{"$f":"P25","v":0},"Match W"]
[null,null,null,null,null,null,null,null,null,null,null,null,null,{"$f":"IF(ISBLANK(P39),\"\",IF(COUNTIF(V39,W39&X39)>0,\"pass\",\"FAIL\"))","v":""},"W",null,"2.00 ft Min",null,null,null,"DWSWidth",{"$f":"IF(ISBLANK(P39),\"no data\",P39)","v":"no data"},{"$f":"IF(ISBLANK(R39),CHOOSE(IF(RIGHT(Q39,3)=\"Min\",1,IF(RIGHT(Q39,3)=\"Max\",3,2)),\">=\",\"=\",\"<=\"),CHOOSE(IF(RIGHT(S39,3)=\"Min\",1,IF(RIGHT(S39,3)=\"Max\",3,2)),\">=\",\"=\",\"<=\"))","v":">="},{"$f":"IF(ISBLANK(R39),Z39,R39)","v":2},"ft Min",2]
[null,null,null,null,null,null,null,null,null,null,null,null,null,{"$f":"IF(ISBLANK(P40),\"\",IF(COUNTIF(V40,W40&X40)>0,\"pass\",\"FAIL\"))","v":""},"Color",null,"DOT - Yellow",null,null,null,"DWSColor",{"$f":"IF(ISBLANK(P40),\"no data\",P40)","v":"no data"},{"$f":"IF(ISBLANK(R40),CHOOSE(IF(RIGHT(Q40,3)=\"Min\",1,IF(RIGHT(Q40,3)=\"Max\",3,2)),\">=\",\"=\",\"<=\"),CHOOSE(IF(RIGHT(S40,3)=\"Min\",1,IF(RIGHT(S40,3)=\"Max\",3,2)),\">=\",\"=\",\"<=\"))","v":"="},{"$f":"IF(ISBLANK(R40),Z40,P40)","v":"DOT - Yellow"},null,"DOT - Yellow"]
[null,null,null,null,null,null,null,null,null,null,null,null,null,{"$f":"IF(ISBLANK(P41),\"\",IF(COUNTIF($AC$51:$AC$56,P41)>0,\"pass\",\"FAIL\"))","v":""},"Type",null,"Truncated",null,null,null,"DWSType",{"$f":"IF(ISBLANK(P41),\"no data\",VLOOKUP(P41,AC45:AD52,2,FALSE))","v":"no data"}]
[null,null,null,null,null,null,null,null,null,null,null,null,null,"Grade Breaks",null,null,null,null,"(paper form: enter fraction or decimal of an inch)"]
[null,"Measurement Instrument \nSerial Number:",null,null,null,"Calibrated by:",null,null,null,"Date:",null,null,null,{"$f":"IF(ISBLANK(P43),\"\",IF(COUNTIF($AB$32:$AB$34,P43)>0,\"pass\",\"FAIL\"))","v":""},"GB#1",null,null,null,null,null,"GradeBreak1",{"$f":"IF(ISBLANK(P43),\"no data\",P43)","v":"no data"},{"$f":"IF(ISBLANK(R43),CHOOSE(IF(RIGHT(Q43,3)=\"Min\",1,IF(RIGHT(Q43,3)=\"Max\",3,2)),\">=\",\"=\",\"<=\"),CHOOSE(IF(RIGHT(S43,3)=\"Min\",1,IF(RIGHT(S43,3)=\"Max\",3,2)),\">=\",\"=\",\"<=\"))","v":"="},{"$f":"IF(ISBLANK(R43),Z43,R43)","v":0},"flush",0]
[null,null,null,null,null,null,null,null,null,null,null,null,null,{"$f":"IF(ISBLANK(P44),\"\",IF(COUNTIF($AB$32:$AB$34,P44)>0,\"pass\",\"FAIL\"))","v":""},"GB#2",null,null,null,null,null,"GradeBreak2","no data","=",0,"flush",0]
[null,"1\" = 0.08'","2\" = 0.17'","3\" = 0.25'","4\" = 0.33'","5\" = 0.42'","6\" = 0.50'","7\" = 0.58'","8\" = 0.67'","9\" = 0.75'","10\" = 0.83'","11\" = 0.92'",null,"","GB#3",null,null,null,null,null,"GradeBreak3","no data","=",0,"flush",0]
[]
[null,null,null,null,null,null,null,null,null,null,null,null,null,null,null,"Form Updated",null,"2018-10-16"]
[]
[null,null,null,null,null,null,null,null,null,null,null,null,null,null,null,null,null,null,null,null,null,{"$f":"IF(ISBLANK(P51),\"no data\",P51)","v":"no data"},{"$f":"IF(ISBLANK(R51),CHOOSE(IF(RIGHT(Q51,3)=\"Min\",1,IF(RIGHT(Q51,3)=\"Max\",3,2)),\">=\",\"=\",\"<=\"),CHOOSE(IF(RIGHT(S51,3)=\"Min\",1,IF(RIGHT(S51,3)=\"Max\",3,2)),\">=\",\"=\",\"<=\"))","v":"="},{"$f":"IF(ISBLANK(R51),Z49,R51)","v":0.17},"ft",0.17]
[null,null,null,null,null,null,null,null,null,null,null,null,null,null,null,null,null,null,null,null,null,{"$f":"IF(COUNTIF(N33:N51,\"FAIL\")>0,\"No\",IF(COUNTIF(N33:N51,\"pass\")=5,\"Yes\",\"incomplete\"))","v":"incomplete"},"DWS Compliant?",null,null,null,null,null,"DWS Types:"]
[null,null,null,null,null,null,null,null,null,null,null,null,null,null,null,null,null,null,null,null,null,{"$f":"#REF!","v":{"$error":"#REF!"}},null,null,null,null,null,null,"Brick","Brick"]
[null,null,null,null,null,null,null,null,null,null,null,null,null,null,null,null,null,null,null,null,null,{"$f":"#REF!","v":{"$error":"#REF!"}},null,null,null,null,null,null,"Epoxy","Truncated Dome (TDome)  Epoxy"]
[null,null,null,null,null,null,null,null,null,null,null,null,null,null,null,null,null,null,null,null,"WSDOTFeatureNumber",null,"Feature ID Code",null,null,null,null,null,"CastIron","TDome Inlay CastIron"]
[null,null,null,null,null,null,null,null,null,null,null,null,null,null,null,null,null,null,null,null,"FeatureLocationCode",{"$f":"E7","v":0},"Plan Sheet",null,null,null,null,null,"Concrete","TDome Inlay Concrete"]
[null,null,null,null,null,null,null,null,null,null,null,null,null,null,null,null,null,null,null,null,"Note",{"$f":"B33","v":0}," ",null,null,null,null,null,"Plastic","TDome Inlay Plastic"]
[null,null,null,null,null,null,null,null,null,null,null,null,null,null,null,null,null,null,null,null,"CrossStreet",{"$f":"E5","v":0}," ",null,null,null,null,null,"Other","TDome Inlay Other"]
[null,null,null,null,null,null,null,null,null,null,null,null,null,null,null,null,null,null,null,null,"CornerSide",{"$f":"J6","v":0}," ",null,null,null,null,null,"None","None, Not TDome, or MEF exception—make note"]
[null,null,null,null,null,null,null,null,null,null,null,null,null,null,null,null,null,null,null,null,"PlanShtRef",{"$f":"E6","v":0}," "]
[null,null,null,null,null,null,null,null,null,null,null,null,null,null,null,null,null,null,null,null,"MEFRef",{"$f":"R5","v":0}]
[null,null,null,null,null,null,null,null,null,null,null,null,null,null,null,null,null,null,null,null,"SiteHist",{"$f":"IF(N2=\"Scoping\",\"Existing Feature\",E8)","v":0}," "]
[null,null,null,null,null,null,null,null,null,null,null,null,null,null,null,null,null,null,null,null,"Station",{"$f":"M5","v":"Station"}]

{"sheet":"Sidewalk","index":6,"n_rows":94,"n_cols":150,"rows_kept":94,"cut":false,"hidden":false,"merged":[[53,21,53,22],[9,9,9,10],[8,9,8,10],[50,1,50,3],[50,5,50,7],[50,13,50,14],[50,15,50,16],[52,21,52,22],[52,46,52,50],[47,13,47,14],[47,15,47,16],[48,13,48,14],[48,15,48,16],[49,1,49,3],[49,6,49,7],[49,13,49,14],[49,15,49,16],[43,15,43,16],[44,13,44,14],[44,15,44,16],[45,13,45,14],[45,15,45,16],[46,13,46,14],[46,15,46,16],[39,13,39,14],[39,15,39,16],[40,1,48,7],[40,13,40,14],[40,15,40,16],[41,13,41,14],[41,15,41,16],[42,13,42,14],[42,15,42,16],[43,13,43,14],[36,13,36,14],[36,15,36,16],[37,13,37,14],[37,15,37,16],[38,13,38,14],[38,15,38,16],[33,13,33,14],[33,15,33,16],[34,13,34,14],[34,15,34,16],[35,13,35,14],[35,15,35,16],[30,13,30,14],[30,15,30,16],[31,13,31,14],[31,15,31,16],[32,13,32,14],[32,15,32,16],[27,13,27,14],[27,15,27,16],[28,13,28,14],[28,15,28,16],[29,13,29,14],[29,15,29,16],[24,13,24,14],[24,15,24,16],[25,13,25,14],[25,15,25,16],[26,13,26,14],[26,15,26,16],[21,13,21,14],[21,15,21,16],[22,13,22,14],[22,15,22,16],[23,13,23,14],[23,15,23,16],[18,13,18,14],[18,15,18,16],[19,13,19,14],[19,15,19,16],[20,13,20,14],[20,15,20,16],[15,13,15,14],[15,15,15,16],[16,13,16,14],[16,15,16,16],[17,13,17,14],[17,15,17,16],[12,13,12,14],[12,15,12,16],[13,13,13,14],[13,15,13,16],[14,13,14,14],[14,15,14,16],[8,12,9,16],[8,17,8,19],[8,20,8,22],[10,9,10,12],[10,13,10,16],[10,18,11,19],[10,21,11,22],[11,13,11,14],[11,15,11,16],[5,1,5,3],[5,4,5,6],[6,0,6,3],[6,4,6,6],[6,9,6,10],[6,11,7,18],[7,4,7,6],[7,9,7,10],[2,48,2,49],[3,1,3,3],[3,4,3,7],[3,21,3,22],[4,1,4,3],[4,4,4,7],[4,9,4,10],[4,21,4,22],[0,27,0,28],[1,11,1,12],[1,13,1,14],[1,27,1,28],[2,0,2,3],[2,4,2,5],[2,9,2,10],[2,13,2,14],[2,21,2,22],[1,1,1,8]]}
[null,null,null,null,null,null,null,null,null,null,null,{"$f":"IF(AND(OR(AD2=\"incomplete\",AD1=\"incomplete\"),LEN(N2)>0),\"= Required Field\",\"\")","v":""},null,null,null,null,null,null,null,null,null,null,null,null,null,"FeatureName",{"$f":"W2","v":"SW-INTER"},"Complete Header",null,{"$f":"IF(AND(N2<>\"Scoping\",OR(E3=\"\",N3=\"\",E4=\"\",J3=\"\",P3=\"Lt or Rt?\",J6=\"\",I9=\"\",J7=\"\",B51=\"\",G50=\"\",F51=\"\",J5=\"\",K6=\"\",E7=\"\",E7=\"\",J8=\"\")),\"incomplete\",\"pass\")","v":"incomplete"},null,null,null,null,null,null,null,null,null,null,null,null,null,null,null,null,null,null,null,null,null,null,null,null,null,null,null,null,null,null,null,null,null,null,null,null,null,null,null,null,null,null,null,null,null,null,null,null,null,null,"Spec",null,null,"Gen","Gen","Gen","Spec","Gen","Gen","Gen","Spec",null,"Spec","Spec",null,null,"Spec","Spec",null,null,{"$f":"IF(MAX($ET$4:$ET$42)>2,\"ALERT!  Some are not unique!\",\"all unique\")","v":"all unique"},null,"Spec",null,null,"Gen","Gen","Gen","Gen","Gen","Gen",null,null,"Gen","Gen","Gen","Gen",null,null,null,null,null,null,null,"Gen","Spec","Spec",null,null,null,null,null,null,null,null,null,null,null,null,null,null,null,null,null,null,"Gen","Gen","Gen","Gen"]
[null,"ADA Feature - Sidewalk Measurements",null,null,null,null,null,null,null,null,null,"Phase",null,null,null,null,null,null,null,null,"Database Schema:",null,"SW-INTER",null,null,"CompletedUnderContract",{"$f":"E3","v":0},"Complete Header \"Scoping\"",null,{"$f":"IF(AND(N2=\"Scoping\",OR(E3=\"\",J5=\"\",E4=\"\",K6=\"\",P3=\"Lt or Rt?\",J3=\"\",N3=\"\",J7=\"\",I9=\"\",J6=\"\")),\"incomplete\",\"pass\")","v":"pass"},null,null,null,null,null,null,null,null,null,null,null,null,"Sidewalk Adjacent",null,null,null,null,null,null,null,null,null,null,null,"Drawing 8",null,null,null,null,null,null,null,null,null,null,null,null,null,null,null,null,null,null,null,null,null,null,null,null,null,null,null,null,{"$f":"N3","v":0},null,{"$f":"E5","v":0},{"$f":"E5","v":0},null,null,null,null,null,null,null,null,null,null,null,null,null,null,null,null,null,null,{"$f":"J7","v":0},"n/a",{"$f":"J3","v":"00:00:00"},{"$f":"J8","v":0},{"$f":"E8","v":0},{"$f":"E3","v":0},null,null,null,{"$f":"I9","v":0},"01",{"$f":"N2","v":0},null,null,null,null,null,null,null,"I",null,null,null,null,null,null,null,null,null,null,null,null,null,null,null,null,null,null,null,null,{"$f":"IF(RIGHT(P3,1)=\"?\",\"?\",LEFT(P3&\"-\",2))","v":"?"},{"$f":"LEFT(J5,1)","v":"S"},{"$f":"LEFT(TEXT(J6,\"0\")&\"-\",2)","v":"0-"},{"$f":"LEFT(TEXT(K6,\"0\")&\"-\",2)","v":"0-"}]
["Contract / Work Order",null,null,null,null,null,null,null,"Date Measured",null,null,null,"SR",null,null,{"$f":"HYPERLINK(\"#'READ-ME'!A222:A240\",\"Lt or Rt?\")","v":"Lt or Rt?"},null,null,null,null,"Form Status",{"$f":"IF(COUNTIF(I13:I51,\"FAIL\")>0,\"FAIL\",IF(OR(COUNTIF(I13:I51,\"incomplete\")>0,COUNTIF(I13:I51,\"\")=39),\"incomplete form\",IF(COUNTIF(AD1:AD2,\"pass\")<2,\"incomplete form\",\"pass\")))","v":"incomplete form"},null,null,null,"GPSDate",{"$f":"J3","v":"00:00:00"},"Date Measured",null,null,null,null,null,null,null,null,null,null,null,null,null,null,null,null,null,null,null,null,"Requirements",null,"4 Ft Min","2.0% Max",null,null,null,null,null,null,null,null,null,null,null,null,null,null,null,null,null,null,null,null,null,null,null,null,null,null,null,null,"SR View","Gmap","Gmap2","State Route","Mile- post","Primary St, Bridge, or Facility Name","Intersecting or Related St or Route","City","County","Region","ADA Feature","Meas?","Summary of Non-Compliance","Solution","Sched. Fiscal Year","Estimated Cost","Lat","Long","Lat2","Long2","FeatureID","GIS Table","Fully Compliant?","DWS Non-Comp Only?","Length","Jurisdiction","SubOwner","MeasDate","ConstructedBy","SiteHistory","Contract","MEFRef","DocRef","LocCode","LocMethod","History","Project Phase","Path Priority Index Tier","Barrier Severity","Date made Compliant","Access Level","Rural or Urban","PaveBienn_within_100ft","PaveDue+2","Direction","MP","A/B","ARM","SRSort","MPSort","BridgeNo","Site Key","Issue","Issue Summary","Rest Area","multiples","CityAccess","RecordCreateDate","GPSDate","End_SR","End_MP","ProjectID","ADAGroup","Plan 2016","Planning Set","Side","Site","SiteCompass","FeatCompass","unique id"]
[null,"Measured By",null,null,null,null,null,null,null,null,null,null,null,null,null,null,null,null,null,null,"MEF Status",{"$f":"IF(SUM(V13:V51,S13:S51)+COUNTIF(P13:Q51,\"*\"&\"MEF\"&\"*\")>0,\"Has MEF\",\"Standard ADA\")","v":"Standard ADA"},null,null,null,"Datafile",{"$f":"E4","v":0},"Measured By",null,null,null,null,null,null,null,null,null,null,null,null,null,null,null,null,null,null,null,null,null,null,null,null,null,null,null,null,null,null,null,null,null,null,null,null,null,null,null,null,null,null,null,null,null,null,null,null,null,null,null,{"$f":"LEN(CW4)","v":31},{"$f":"HYPERLINK(\"http://srview3i.wsdot.loc/stateroute/picturelog/v3/client/SRview.Windows.Viewer.application?srnum=\"&LEFT(CF4,3)&\"&rrt=\"&IF(LEN(CF4)>3,RIGHT(LEFT(CF4,5),2),\"\")&\"&rrq=\"&IF(LEN(CF4)=11,RIGHT(CF4,6),IF(LEN(CF4)=10,RIGHT(CF4,5),\"\"))&\"&srmp=\"&CG4,\"SRV\")","v":"SRV"},{"$f":"HYPERLINK(\"http://maps.google.com/maps?z=20&t=k&q=loc:\"&CS4&\",\"&CT4,\"GMap\")","v":"GMap"},{"$f":"IF(LEN(CU4)>0,HYPERLINK(\"http://maps.google.com/maps?z=20&t=k&q=loc:\"&CU4&\",\"&CV4,\"GMap\"),\"\")","v":""},{"$f":"$CF$2","v":0},{"$f":"M13","v":0},{"$f":"$CH$2","v":0},null,{"$f":"$CJ$2","v":0},{"$f":"$CK$2","v":0},{"$f":"$CL$2","v":0},{"$f":"IFERROR(VLOOKUP(N13,$AH$54:$AJ$63,2,FALSE),\"\")","v":""},"Yes",{"$f":"BQ13","v":""},{"$f":"BW13","v":""},"?",0,{"$f":"J13","v":0},{"$f":"K13","v":0},null,null,{"$f":"IFERROR(VLOOKUP(N13,$AH$54:$AJ$63,3,FALSE),\"XXXXX\")&LEFT(TEXT(CF4,\"000\")&\"-----------\",11)&TEXT(DV4,\"000.00\")&DW4&DU4&EQ4&ER4&ES4&$DL$2","v":"XXXXX000--------000.00AIS0-0-01"},"New Point",{"$f":"IF(I13=\"pass\",\"Yes\",\"No\")","v":"No"},"n/a","n/a",{"$f":"$DB$2","v":0},{"$f":"$DC$2","v":"n/a"},{"$f":"$DD$2","v":"00:00:00"},{"$f":"$DE$2","v":0},{"$f":"$DF$2","v":0},{"$f":"$DG$2","v":0},{"$f":"IF(OR(ISNUMBER(S13),ISNUMBER(V13),COUNTIF(P13,\"*\"&\"MEF\"&\"*\")>0),$V$5&IF(LEN($V$5)=0,$V$4,\"\"),\"n/a\")","v":"n/a"},null,{"$f":"EP4&\"-\"&EQ4&\"-\"&ER4&\"-\"&ES4","v":"?-S-0--0-"},{"$f":"$DK$2","v":0},"Latest",{"$f":"$DM$2","v":0},"?","?","?","?","?","?","?",{"$f":"$DU$2","v":"I"},{"$f":"TEXT(IF(DW4=\"B\",VALUE(LEFT(CG4,FIND(\"B\",CG4)-1)),CG4),\"000.00\")","v":"000.00"},{"$f":"IF(RIGHT(M13,1)=\"B\",\"B\",\"A\")","v":"A"},"?",{"$f":"TEXT(LEFT(CF4,3),\"000\")","v":"000"},{"$f":"IF(LEN(CF4)>9,VALUE(RIGHT(CF4,5))/100,CG4)","v":0},null,null,null,"+ (blank)",null,null,null,null,null,null,null,null,null,null,null,{"$f":"$EP$2","v":"?"},{"$f":"$EQ$2","v":"S"},{"$f":"$ER$2","v":"0-"},"0-",{"$f":"IF(LEFT(CW4,1)<>\"X\",COUNTIF($CW$4:$CW$42,CW4),0)","v":0}]
[null,"Street Name",null,null,null,null,null,null,{"$f":"HYPERLINK(\"#'READ-ME'!A61:A88\",\"Site\")","v":"Site"},"Side",null,null,null,null,null,null,null,null,null,null,"MEF Reference",null,null,null,null,"StateRouteRRT",{"$f":"M3","v":"SR"},null,null,null,null,null,null,null,null,null,null,null,null,null,null,null,"Database Schema","Contract","Date Measured","Measured By","SR","SRMP","A/B","Lt or Rt","Width","CrossSlope","Obstruction","NOTES","Feature ID Code","Feature Location Code","Cross Street Name","Corner/Side","Plan Sheet Reference","MEF Reference","Site History","Station","Structurally Compliant?",null,null,null,null,null,null,null,null,null,null,null,null,null,null,null,null,{"$f":"LEN(CW5)","v":31},{"$f":"HYPERLINK(\"http://www.wsdot.wa.gov/data/tools/geoportal/?layers=%7B%22layer0%22%3A%5B%5D%2C%22Buffer%22%3Atrue%2C%22Drawn+Features%22%3Atrue%7D\",\"Geoportal\")","v":"Geoportal"},null,null,{"$f":"$CF$2","v":0},{"$f":"M14","v":0},{"$f":"$CH$2","v":0},null,{"$f":"$CJ$2","v":0},{"$f":"$CK$2","v":0},{"$f":"$CL$2","v":0},{"$f":"IFERROR(VLOOKUP(N14,$AH$54:$AJ$63,2,FALSE),\"\")","v":""},"Yes",{"$f":"BQ14","v":""},{"$f":"BW14","v":""},"?",0,{"$f":"J14","v":0},0,null,null,{"$f":"IFERROR(VLOOKUP(N14,$AH$54:$AJ$63,3,FALSE),\"XXXXX\")&LEFT(TEXT(CF5,\"000\")&\"-----------\",11)&TEXT(DV5,\"000.00\")&DW5&DU5&EQ5&ER5&ES5&$DL$2","v":"XXXXX000--------000.00AIS0-0-01"},"New Point",{"$f":"IF(I14=\"pass\",\"Yes\",\"No\")","v":"No"},"n/a","n/a",{"$f":"$DB$2","v":0},{"$f":"$DC$2","v":"n/a"},{"$f":"$DD$2","v":"00:00:00"},{"$f":"$DE$2","v":0},{"$f":"$DF$2","v":0},{"$f":"$DG$2","v":0},{"$f":"IF(OR(ISNUMBER(S14),ISNUMBER(V14),COUNTIF(P14,\"*\"&\"MEF\"&\"*\")>0),$V$5&IF(LEN($V$5)=0,$V$4,\"\"),\"n/a\")","v":"n/a"},null,{"$f":"EP5&\"-\"&EQ5&\"-\"&ER5&\"-\"&ES5","v":"?-S-0--0-"},{"$f":"$DK$2","v":0},"Latest",{"$f":"$DM$2","v":0},"?","?","?","?","?","?","?",{"$f":"$DU$2","v":"I"},{"$f":"TEXT(IF(DW5=\"B\",VALUE(LEFT(CG5,FIND(\"B\",CG5)-1)),CG5),\"000.00\")","v":"000.00"},{"$f":"IF(RIGHT(M14,1)=\"B\",\"B\",\"A\")","v":"A"},"?",{"$f":"TEXT(LEFT(CF5,3),\"000\")","v":"000"},{"$f":"CG5","v":0},null,null,null,"+ (blank)",null,null,null,null,null,null,null,null,null,null,null,{"$f":"$EP$2","v":"?"},{"$f":"$EQ$2","v":"S"},{"$f":"$ER$2","v":"0-"},"0-",{"$f":"IF(LEFT(CW5,1)<>\"X\",COUNTIF($CW$4:$CW$42,CW5),0)","v":0}]
[null,"Plan Sheet Reference",null,null,null,null,null,null,{"$f":"HYPERLINK(\"#'READ-ME'!A112:A138\",\"Location\")","v":"Location"},null,0,null,null,null,null,null,null,null,null,null,null,null,null,null,null,"SRMP",{"$f":"M4","v":0},null,null,null,null,null,null,null,null,null,null,null,null,null,null,null,"FeatureName","CompletedUnderContract","GPSDate","Datafile","StateRouteRRT","SRMP","AheadBackIndicator","DirectionOfInventory","Width","CrossSlope","ObstructionType","Note","WSDOTFeatureNumber","FeatureLocationCode","CrossStreet","CornerSide","PlanShtRef","MEFRef","SiteHist","Station","StructComp",null,null,null,null,null,null,null,null,null,null,null,null,null,null,null,null,31,null,null,null,0,0,0,null,0,0,0,"","Yes","","","?",0,0,0,null,null,"XXXXX000--------000.00AIS0-0-01","New Point","No","n/a","n/a",0,"n/a","00:00:00",0,0,0,"n/a",null,"?-S-0--0-",0,"Latest",0,"?","?","?","?","?","?","?","I","000.00","A","?","000",0,null,null,null,"+ (blank)",null,null,null,null,null,null,null,null,null,null,null,"?","S","0-","0-",0]
["Feature Location Code",null,null,null,null,null,null,null,"Jurisdiction",null,null,"Measuresments recorded on this form are for one side only. \nDo not mix measurements from both sides on the same form.",null,null,null,null,null,null,null,null,null,null,null,null,null,null,null,null,null,null,null,null,null,null,null,null,null,null,null,null,null,null,{"$f":"IF(OR(N13=$AH$56,N13=$AH$61),\"SW-OBSTR\",IF(N13=$AH$62,\"NO-CURBRAMP\",\"SW-INTER\"))","v":"NO-CURBRAMP"},{"$f":"VLOOKUP(AR$6,$Z:$AA,2,FALSE)","v":0},0,0,"SR",0,0,0,{"$f":"VLOOKUP(AY$6,$Z13:$AA13,2,FALSE)","v":"no data"},{"$f":"VLOOKUP(AZ$6,$AG13:$AH13,2,FALSE)","v":"no data"},{"$f":"VLOOKUP(BA$6,$AN13:$AO13,2,FALSE)","v":"NA"},{"$f":"VLOOKUP(BB$6,$Z:$AA,2,FALSE)","v":0},0,0,0,"Side",0,0,0,{"$f":"IF(ISBLANK(L13),\"no data\",L13)","v":"no data"},{"$f":"IF($I13=\"\",\"no data\",IF($I13=\"pass\",\"Yes\",\"No\"))","v":"no data"},null,null,null,null,null,null,null,null,null,null,null,null,null,null,null,null,31,null,null,null,0,0,0,null,0,0,0,"","Yes","","","?",0,0,0,null,null,"XXXXX000--------000.00AIS0-0-01","New Point","No","n/a","n/a",0,"n/a","00:00:00",0,0,0,"n/a",null,"?-S-0--0-",0,"Latest",0,"?","?","?","?","?","?","?","I","000.00","A","?","000",0,null,null,null,"+ (blank)",null,null,null,null,null,null,null,null,null,null,null,"?","S","0-","0-",0]
[null,null,null,"Site History",null,null,null,null,"Constructed By",null,null,null,null,null,null,null,null,null,null,null,null,null,null,null,null,null,null,null,null,null,null,null,null,null,null,null,null,null,null,null,null,null,"NO-CURBRAMP",0,0,0,"SR",0,0,0,"no data",{"$f":"VLOOKUP(AZ$6,$AG14:$AH14,2,FALSE)","v":"no data"},{"$f":"VLOOKUP(BA$6,$AN14:$AO14,2,FALSE)","v":"NA"},0,0,0,0,"Side",0,0,0,"no data","no data",null,null,null,null,null,null,null,null,null,null,null,null,null,null,null,null,31,null,null,null,0,0,0,null,0,0,0,"","Yes","","","?",0,0,0,null,null,"XXXXX000--------000.00AIS0-0-01","New Point","No","n/a","n/a",0,"n/a","00:00:00",0,0,0,"n/a",null,"?-S-0--0-",0,"Latest",0,"?","?","?","?","?","?","?","I","000.00","A","?","000",0,null,null,null,"+ (blank)",null,null,null,null,null,null,null,null,null,null,null,"?","S","0-","0-",0]
[null,null,null,null,null,null,null,null,null,{"$f":"HYPERLINK(\"#'READ-ME'!A148:A189\",\"Instructions\")","v":"Instructions"},null,null,"Enter numbers only\n1 = 1.00%, 2.25 = 2.25 ft, etc.",null,null,null,null,"Sidewalk Width (SWW)",null,null,"Cross Slope (CS)",null,null,null,null,"AheadBackIndicator",{"$f":"O4","v":0},null,null,null,null,null,null,null,null,null,null,null,null,null,null,null,"NO-CURBRAMP",0,0,0,"SR",0,0,0,"no data","no data","NA",0,0,0,0,"Side",0,0,0,"no data","no data",null,null,null,null,null,null,null,null,null,null,null,null,null,null,null,null,31,null,null,null,0,0,0,null,0,0,0,"","Yes","","","?",0,0,0,null,null,"XXXXX000--------000.00AIS0-0-01","New Point","No","n/a","n/a",0,"n/a","00:00:00",0,0,0,"n/a",null,"?-S-0--0-",0,"Latest",0,"?","?","?","?","?","?","?","I","000.00","A","?","000",0,null,null,null,"+ (blank)",null,null,null,null,null,null,null,null,null,null,null,"?","S","0-","0-",0]
[null,null,null,null,null,null,null,null,{"$f":"HYPERLINK(\"#'READ-ME'!A201:A207\",\"Accuracy\")","v":"Accuracy"},"Geoportal",null,null,null,null,null,null,null,"Measurement",null,null,"Measurement",null,null,null,null,"DirectionOfInventory",{"$f":"M5","v":0},"Lt or Rt",null,null,null,null,null,null,null,null,null,null,null,null,null,null,"NO-CURBRAMP",0,0,0,"SR",0,0,0,"no data","no data","NA",0,0,0,0,"Side",0,0,0,"no data","no data",null,null,null,null,null,null,null,null,null,null,null,null,null,null,null,null,31,null,null,null,0,0,0,null,0,0,0,"","Yes","","","?",0,0,0,null,null,"XXXXX000--------000.00AIS0-0-01","New Point","No","n/a","n/a",0,"n/a","00:00:00",0,0,0,"n/a",null,"?-S-0--0-",0,"Latest",0,"?","?","?","?","?","?","?","I","000.00","A","?","000",0,null,null,null,"+ (blank)",null,null,null,null,null,null,null,null,null,null,null,"?","S","0-","0-",0]
[null,null,null,null,null,null,null,null,null,"Location",null,null,null,"Sidewalk",null,null,null,"ADA Compliance","MEF Criteria",null,"ADA Compliance","MEF Criteria",null,null,null,null,null,null,null,null,null,null,null,null,null,null,null,null,null,null,null,null,"NO-CURBRAMP",0,0,0,"SR",0,0,0,"no data","no data","NA",0,0,0,0,"Side",0,0,0,"no data","no data",null,null,null,null,null,null,null,null,null,null,null,null,null,null,null,null,31,null,null,null,0,0,0,null,0,0,0,"","Yes","","","?",0,0,0,null,null,"XXXXX000--------000.00AIS0-0-01","New Point","No","n/a","n/a",0,"n/a","00:00:00",0,0,0,"n/a",null,"?-S-0--0-",0,"Latest",0,"?","?","?","?","?","?","?","I","000.00","A","?","000",0,null,null,null,"+ (blank)",null,null,null,null,null,null,null,null,null,null,null,"?","S","0-","0-",0]
[null,null,null,null,null,null,null,null,null,"Latitude","Longitude","Station","MP","Characteristics",null,"Obstruction Type",null,"4.00 ft Min",null,null,"2.00% Max",null,null,null,null,null,"SWW",null,null,null,null,null,null,"CS",null,null,null,null,null,null,null,null,"NO-CURBRAMP",0,0,0,"SR",0,0,0,"no data","no data","NA",0,0,0,0,"Side",0,0,0,"no data","no data",null,null,null,null,null,null,null,null,null,null,null,null,null,null,null,null,31,null,null,null,0,0,0,null,0,0,0,"","Yes","","","?",0,0,0,null,null,"XXXXX000--------000.00AIS0-0-01","New Point","No","n/a","n/a",0,"n/a","00:00:00",0,0,0,"n/a",null,"?-S-0--0-",0,"Latest",0,"?","?","?","?","?","?","?","I","000.00","A","?","000",0,null,null,null,"+ (blank)",null,null,null,null,null,null,null,null,null,null,null,"?","S","0-","0-",0]
[null,null,null,null,null,null,null,null,{"$f":"IF(COUNTIF(BY13:CA13,\"FAIL\")>0,\"FAIL\",IF(COUNTIF(BY13:CA13,\"incomplete\")>0,\"incomplete\",IF(COUNTIF(BY13:CA13,\"pass\")>0,\"pass\",\"\")))","v":""},null,null,null,null,null,null,null,null,null,null,"ft Min",null,null,"% Max",null,{"$f":"IF(ISBLANK(R13),\"\",IF(COUNTIF(AA13,AB13&AC13)>0,\"pass\",\"FAIL\"))","v":""},"Width",{"$f":"IF(ISBLANK(R13),\"no data\",R13)","v":"no data"},{"$f":"IF(ISBLANK(S13),CHOOSE(IF(RIGHT(R$12,3)=\"Min\",1,IF(RIGHT(R$12,3)=\"Max\",3,2)),\">=\",\"=\",\"<=\"),CHOOSE(IF(RIGHT(T13,3)=\"Min\",1,IF(RIGHT(T13,3)=\"Max\",3,2)),\">=\",\"=\",\"<=\"))","v":">="},{"$f":"IF(ISBLANK(S13),AE13,S13)","v":4},"ft Min",4,{"$f":"IF(ISBLANK(U13),\"\",IF(COUNTIF(AH13,AI13&AJ13)>0,\"pass\",\"FAIL\"))","v":""},"CrossSlope",{"$f":"IF(ISBLANK(U13),\"no data\",U13)","v":"no data"},{"$f":"IF(ISBLANK(V13),CHOOSE(IF(RIGHT(U$12,3)=\"Min\",1,IF(RIGHT(U$12,3)=\"Max\",3,2)),\">=\",\"=\",\"<=\"),CHOOSE(IF(RIGHT(W13,3)=\"Min\",1,IF(RIGHT(W13,3)=\"Max\",3,2)),\">=\",\"=\",\"<=\"))","v":"<="},{"$f":"IF(ISBLANK(V13),AL13,V13)","v":2},"% Max",2,null,"ObstructionType",{"$f":"IF($N13<>\"8. Obstruction\",\"NA\",$P13)","v":"NA"},null,"NO-CURBRAMP",0,0,0,"SR",0,0,0,"no data","no data","NA",0,0,0,0,"Side",0,0,0,"no data","no data",{"$f":"IF(Y13=\"FAIL\",\"narrow width\",\"\")","v":""},{"$f":"IF(AND(Y13=\"FAIL\",AF13=\"FAIL\"),\", \",\"\")","v":""},{"$f":"IF(AF13=\"FAIL\",\"steep CS\",\"\")","v":""},{"$f":"IF(AND(I13=\"FAIL\",OR(Y13=\"FAIL\",AF13=\"FAIL\"),LEN(BP13)>0),\", \",\"\")","v":""},{"$f":"IF(AND(LEFT(N13,2)=\"8.\",LEFT(P13,2)=\"17\"),\"\",IF(AND(LEFT(N13,2)=\"8.\",LEFT(P13,2)<>\"17\"),IFERROR(VLOOKUP(P13,$AQ$48:$AR$77,2,FALSE)&\" Obstruction\",\"Obstruction\"),IF(LEFT(N13,2)=\"3.\",\"Vertical Surface Discontinuity (> ¼”)\",IF(LEFT(N13,2)=\"9.\",\"No Curb Ramp\",\"\"))))","v":""},{"$f":"BL13&BM13&BN13&BO13&BP13","v":""},{"$f":"IF(BL13=\"narrow width\",\"widen sidewalk\",\"\")","v":""},{"$f":"BM13","v":""},{"$f":"IF(BN13=\"steep CS\",\"flatten CS\",\"\")","v":""},{"$f":"BO13","v":""},{"$f":"IFERROR(IF(I13=\"pass\",\"Fully Compliant\",VLOOKUP(N13,$AH$54:$AK$63,4,FALSE)),\"\")","v":""},{"$f":"BR13&BS13&BT13&BU13&BV13","v":""},{"$f":"IF(OR(ISNUMBER(S13),ISNUMBER(V13),COUNTIF(P13,\"*\"&\"MEF\"&\"*\")>0),\"Has MEF\",\"\")","v":""},{"$f":"IF(COUNTIF(N13,$AH$56)>0,\"FAIL\",IF(AND(COUNTIF(N13,$AH$62)>0,$N$2=\"Scoping\"),\"FAIL\",IF(AND(N13=$AH$61,P13<>\"\",P13<>\"17. MEF\"),\"FAIL\",IF(AND(COUNTIF(N13,$AH$61)>0,$AO13=\"17. MEF\",R13<>\"\",U13<>\"\"),\"pass\",IF(AND(ISBLANK(R13),ISBLANK(U13)),\"\",IF(AND(Y13=\"pass\",AF13=\"pass\"),\"pass\",IF(OR(Y13=\"FAIL\",AF13=\"FAIL\"),\"FAIL\",\"incomplete\")))))))","v":""},{"$f":"IF(AND(N13<>\"\",OR(ISBLANK(J13),ISBLANK(K13),ISBLANK(M13))),\"incomplete\",\"\")","v":""},{"$f":"IF(OR(AND(N13=\"\",R13+U13<>0),AND(LEFT(N13,2)=\"8.\",P13=\"\")),\"incomplete\",\"\")","v":""},31,null,null,null,0,0,0,null,0,0,0,"","Yes","","","?",0,0,0,null,null,"XXXXX000--------000.00AIS0-0-01","New Point","No","n/a","n/a",0,"n/a","00:00:00",0,0,0,"n/a",null,"?-S-0--0-",0,"Latest",0,"?","?","?","?","?","?","?","I","000.00","A","?","000",0,null,null,null,"+ (blank)",null,null,null,null,null,null,null,null,null,null,null,"?","S","0-","0-",0]
[null,null,null,null,null,null,null,null,{"$f":"IF(COUNTIF(BY14:CA14,\"FAIL\")>0,\"FAIL\",IF(COUNTIF(BY14:CA14,\"incomplete\")>0,\"incomplete\",IF(COUNTIF(BY14:CA14,\"pass\")>0,\"pass\",\"\")))","v":""},null,null,null,null,null,null,null,null,null,null,"ft Min",null,null,"% Max",null,{"$f":"IF(ISBLANK(R14),\"\",IF(COUNTIF(AA14,AB14&AC14)>0,\"pass\",\"FAIL\"))","v":""},"Width",{"$f":"IF(ISBLANK(R14),\"no data\",R14)","v":"no data"},{"$f":"IF(ISBLANK(S14),CHOOSE(IF(RIGHT(R$12,3)=\"Min\",1,IF(RIGHT(R$12,3)=\"Max\",3,2)),\">=\",\"=\",\"<=\"),CHOOSE(IF(RIGHT(T14,3)=\"Min\",1,IF(RIGHT(T14,3)=\"Max\",3,2)),\">=\",\"=\",\"<=\"))","v":">="},4,"ft Min",4,{"$f":"IF(ISBLANK(U14),\"\",IF(COUNTIF(AH14,AI14&AJ14)>0,\"pass\",\"FAIL\"))","v":""},"CrossSlope","no data","<=",2,"% Max",2,null,"ObstructionType",{"$f":"IF($N14<>\"8. Obstruction\",\"NA\",$P14)","v":"NA"},null,"NO-CURBRAMP",0,0,0,"SR",0,0,0,"no data","no data","NA",0,0,0,0,"Side",0,0,0,"no data","no data",{"$f":"IF(Y14=\"FAIL\",\"narrow width\",\"\")","v":""},{"$f":"IF(AND(Y14=\"FAIL\",AF14=\"FAIL\"),\", \",\"\")","v":""},{"$f":"IF(AF14=\"FAIL\",\"steep CS\",\"\")","v":""},{"$f":"IF(AND(I14=\"FAIL\",OR(Y14=\"FAIL\",AF14=\"FAIL\"),LEN(BP14)>0),\", \",\"\")","v":""},{"$f":"IF(AND(LEFT(N14,2)=\"8.\",LEFT(P14,2)=\"17\"),\"\",IF(AND(LEFT(N14,2)=\"8.\",LEFT(P14,2)<>\"17\"),IFERROR(VLOOKUP(P14,$AQ$48:$AR$77,2,FALSE)&\" Obstruction\",\"Obstruction\"),IF(LEFT(N14,2)=\"3.\",\"Vertical Surface Discontinuity (> ¼”)\",IF(LEFT(N14,2)=\"9.\",\"No Curb Ramp\",\"\"))))","v":""},{"$f":"BL14&BM14&BN14&BO14&BP14","v":""},{"$f":"IF(BL14=\"narrow width\",\"widen sidewalk\",\"\")","v":""},{"$f":"BM14","v":""},{"$f":"IF(BN14=\"steep CS\",\"flatten CS\",\"\")","v":""},{"$f":"BO14","v":""},{"$f":"IFERROR(IF(I14=\"pass\",\"Fully Compliant\",VLOOKUP(N14,$AH$54:$AK$63,4,FALSE)),\"\")","v":""},{"$f":"BR14&BS14&BT14&BU14&BV14","v":""},{"$f":"IF(OR(ISNUMBER(S14),ISNUMBER(V14),COUNTIF(P14,\"*\"&\"MEF\"&\"*\")>0),\"Has MEF\",\"\")","v":""},{"$f":"IF(COUNTIF(N14,$AH$56)>0,\"FAIL\",IF(AND(COUNTIF(N14,$AH$62)>0,$N$2=\"Scoping\"),\"FAIL\",IF(AND(N14=$AH$61,P14<>\"\",P14<>\"17. MEF\"),\"FAIL\",IF(AND(COUNTIF(N14,$AH$61)>0,$AO14=\"17. MEF\",R14<>\"\",U14<>\"\"),\"pass\",IF(AND(ISBLANK(R14),ISBLANK(U14)),\"\",IF(AND(Y14=\"pass\",AF14=\"pass\"),\"pass\",IF(OR(Y14=\"FAIL\",AF14=\"FAIL\"),\"FAIL\",\"incomplete\")))))))","v":""},{"$f":"IF(AND(N14<>\"\",OR(ISBLANK(J14),ISBLANK(K14),ISBLANK(M14))),\"incomplete\",\"\")","v":""},{"$f":"IF(OR(AND(N14=\"\",R14+U14<>0),AND(LEFT(N14,2)=\"8.\",P14=\"\")),\"incomplete\",\"\")","v":""},31,null,null,null,0,0,0,null,0,0,0,"","Yes","","","?",0,0,0,null,null,"XXXXX000--------000.00AIS0-0-01","New Point","No","n/a","n/a",0,"n/a","00:00:00",0,0,0,"n/a",null,"?-S-0--0-",0,"Latest",0,"?","?","?","?","?","?","?","I","000.00","A","?","000",0,null,null,null,"+ (blank)",null,null,null,null,null,null,null,null,null,null,null,"?","S","0-","0-",0]
[null,null,null,null,null,null,null,null,{"$f":"IF(COUNTIF(BY15:CA15,\"FAIL\")>0,\"FAIL\",IF(COUNTIF(BY15:CA15,\"incomplete\")>0,\"incomplete\",IF(COUNTIF(BY15:CA15,\"pass\")>0,\"pass\",\"\")))","v":""},null,null,null,null,null,null,null,null,null,null,"ft Min",null,null,"% Max",null,{"$f":"IF(ISBLANK(R15),\"\",IF(COUNTIF(AA15,AB15&AC15)>0,\"pass\",\"FAIL\"))","v":""},"Width","no data",">=",4,"ft Min",4,"","CrossSlope","no data","<=",2,"% Max",2,null,"ObstructionType","NA",null,"NO-CURBRAMP",0,0,0,"SR",0,0,0,"no data","no data","NA",0,0,0,0,"Side",0,0,0,"no data","no data","","","","","","","","","","","","","","","","",31,null,null,null,0,0,0,null,0,0,0,"","Yes","","","?",0,0,0,null,null,"XXXXX000--------000.00AIS0-0-01","New Point","No","n/a","n/a",0,"n/a","00:00:00",0,0,0,"n/a",null,"?-S-0--0-",0,"Latest",0,"?","?","?","?","?","?","?","I","000.00","A","?","000",0,null,null,null,"+ (blank)",null,null,null,null,null,null,null,null,null,null,null,"?","S","0-","0-",0]
[null,null,null,null,null,null,null,null,"",null,null,null,null,null,null,null,null,null,null,"ft Min",null,null,"% Max",null,"","Width","no data",">=",4,"ft Min",4,"","CrossSlope","no data","<=",2,"% Max",2,null,"ObstructionType","NA",null,"NO-CURBRAMP",0,0,0,"SR",0,0,0,"no data","no data","NA",0,0,0,0,"Side",0,0,0,"no data","no data","","","","","","","","","","","","","","","","",31,null,null,null,0,0,0,null,0,0,0,"","Yes","","","?",0,0,0,null,null,"XXXXX000--------000.00AIS0-0-01","New Point","No","n/a","n/a",0,"n/a","00:00:00",0,0,0,"n/a",null,"?-S-0--0-",0,"Latest",0,"?","?","?","?","?","?","?","I","000.00","A","?","000",0,null,null,null,"+ (blank)",null,null,null,null,null,null,null,null,null,null,null,"?","S","0-","0-",0]
[null,null,null,null,null,null,null,null,"",null,null,null,null,null,null,null,null,null,null,"ft Min",null,null,"% Max",null,"","Width","no data",">=",4,"ft Min",4,"","CrossSlope","no data","<=",2,"% Max",2,null,"ObstructionType","NA",null,"NO-CURBRAMP",0,0,0,"SR",0,0,0,"no data","no data","NA",0,0,0,0,"Side",0,0,0,"no data","no data","","","","","","","","","","","","","","","","",31,null,null,null,0,0,0,null,0,0,0,"","Yes","","","?",0,0,0,null,null,"XXXXX000--------000.00AIS0-0-01","New Point","No","n/a","n/a",0,"n/a","00:00:00",0,0,0,"n/a",null,"?-S-0--0-",0,"Latest",0,"?","?","?","?","?","?","?","I","000.00","A","?","000",0,null,null,null,"+ (blank)",null,null,null,null,null,null,null,null,null,null,null,"?","S","0-","0-",0]
[null,null,null,null,null,null,null,null,"",null,null,null,null,null,null,null,null,null,null,"ft Min",null,null,"% Max",null,"","Width","no data",">=",4,"ft Min",4,"","CrossSlope","no data","<=",2,"% Max",2,null,"ObstructionType","NA",null,"NO-CURBRAMP",0,0,0,"SR",0,0,0,"no data","no data","NA",0,0,0,0,"Side",0,0,0,"no data","no data","","","","","","","","","","","","","","","","",31,null,null,null,0,0,0,null,0,0,0,"","Yes","","","?",0,0,0,null,null,"XXXXX000--------000.00AIS0-0-01","New Point","No","n/a","n/a",0,"n/a","00:00:00",0,0,0,"n/a",null,"?-S-0--0-",0,"Latest",0,"?","?","?","?","?","?","?","I","000.00","A","?","000",0,null,null,null,"+ (blank)",null,null,null,null,null,null,null,null,null,null,null,"?","S","0-","0-",0]
[null,null,null,null,null,null,null,null,"",null,null,null,null,null,null,null,null,null,null,"ft Min",null,null,"% Max",null,"","Width","no data",">=",4,"ft Min",4,"","CrossSlope","no data","<=",2,"% Max",2,null,"ObstructionType","NA",null,"NO-CURBRAMP",0,0,0,"SR",0,0,0,"no data","no data","NA",0,0,0,0,"Side",0,0,0,"no data","no data","","","","","","","","","","","","","","","","",31,null,null,null,0,0,0,null,0,0,0,"","Yes","","","?",0,0,0,null,null,"XXXXX000--------000.00AIS0-0-01","New Point","No","n/a","n/a",0,"n/a","00:00:00",0,0,0,"n/a",null,"?-S-0--0-",0,"Latest",0,"?","?","?","?","?","?","?","I","000.00","A","?","000",0,null,null,null,"+ (blank)",null,null,null,null,null,null,null,null,null,null,null,"?","S","0-","0-",0]
[null,null,null,null,null,null,null,null,"",null,null,null,null,null,null,null,null,null,null,"ft Min",null,null,"% Max",null,"","Width","no data",">=",4,"ft Min",4,"","CrossSlope","no data","<=",2,"% Max",2,null,"ObstructionType","NA",null,"NO-CURBRAMP",0,0,0,"SR",0,0,0,"no data","no data","NA",0,0,0,0,"Side",0,0,0,"no data","no data","","","","","","","","","","","","","","","","",31,null,null,null,0,0,0,null,0,0,0,"","Yes","","","?",0,0,0,null,null,"XXXXX000--------000.00AIS0-0-01","New Point","No","n/a","n/a",0,"n/a","00:00:00",0,0,0,"n/a",null,"?-S-0--0-",0,"Latest",0,"?","?","?","?","?","?","?","I","000.00","A","?","000",0,null,null,null,"+ (blank)",null,null,null,null,null,null,null,null,null,null,null,"?","S","0-","0-",0]
[null,null,null,null,null,null,null,null,"",null,null,null,null,null,null,null,null,null,null,"ft Min",null,null,"% Max",null,"","Width","no data",">=",4,"ft Min",4,"","CrossSlope","no data","<=",2,"% Max",2,null,"ObstructionType","NA",null,"NO-CURBRAMP",0,0,0,"SR",0,0,0,"no data","no data","NA",0,0,0,0,"Side",0,0,0,"no data","no data","","","","","","","","","","","","","","","","",31,null,null,null,0,0,0,null,0,0,0,"","Yes","","","?",0,{"$f":"J30","v":0},0,null,null,"XXXXX000--------000.00AIS0-0-01","New Point","No","n/a","n/a",0,"n/a","00:00:00",0,0,0,"n/a",null,"?-S-0--0-",0,"Latest",0,"?","?","?","?","?","?","?","I","000.00","A","?","000",0,null,null,null,"+ (blank)",null,null,null,null,null,null,null,null,null,null,null,"?","S","0-","0-",0]
[null,null,null,null,null,null,null,null,"",null,null,null,null,null,null,null,null,null,null,"ft Min",null,null,"% Max",null,"","Width","no data",">=",4,"ft Min",4,"","CrossSlope","no data","<=",2,"% Max",2,null,"ObstructionType","NA",null,"NO-CURBRAMP",0,0,0,"SR",0,0,0,"no data","no data","NA",0,0,0,0,"Side",0,0,0,"no data","no data","","","","","","","","","","","","","","","","",31,null,null,null,0,0,0,null,0,0,0,"","Yes","","","?",0,0,0,null,null,"XXXXX000--------000.00AIS0-0-01","New Point","No","n/a","n/a",0,"n/a","00:00:00",0,0,0,"n/a",null,"?-S-0--0-",0,"Latest",0,"?","?","?","?","?","?","?","I","000.00","A","?","000",0,null,null,null,"+ (blank)",null,null,null,null,null,null,null,null,null,null,null,"?","S","0-","0-",0]
[null,null,null,null,null,null,null,null,"",null,null,null,null,null,null,null,null,null,null,"ft Min",null,null,"% Max",null,"","Width","no data",">=",4,"ft Min",4,"","CrossSlope","no data","<=",2,"% Max",2,null,"ObstructionType","NA",null,"NO-CURBRAMP",{"$f":"VLOOKUP(AR$6,$Z:$AA,2,FALSE)","v":0},0,0,"SR",0,0,0,"no data","no data","NA",{"$f":"VLOOKUP(BB$6,$Z:$AA,2,FALSE)","v":0},0,0,0,"Side",0,0,0,"no data","no data","","","","","","","","","","","","","","","","",31,null,null,null,0,0,0,null,0,0,0,"","Yes","","","?",0,0,0,null,null,"XXXXX000--------000.00AIS0-0-01","New Point","No","n/a","n/a",0,"n/a","00:00:00",0,0,0,"n/a",null,"?-S-0--0-",0,"Latest",0,"?","?","?","?","?","?","?","I","000.00","A","?","000",0,null,null,null,"+ (blank)",null,null,null,null,null,null,null,null,null,null,null,"?","S","0-","0-",0]
[null,null,null,null,null,null,null,null,"",null,null,null,null,null,null,null,null,null,null,"ft Min",null,null,"% Max",null,"","Width","no data",">=",4,"ft Min",4,"","CrossSlope","no data","<=",2,"% Max",2,null,"ObstructionType","NA",null,"NO-CURBRAMP",0,0,0,"SR",0,0,0,"no data","no data","NA",0,0,0,0,"Side",0,0,0,"no data","no data","","","","","","","","","","","","","","","","",31,null,null,null,0,0,0,null,0,0,0,"","Yes","","","?",0,0,0,null,null,"XXXXX000--------000.00AIS0-0-01","New Point","No","n/a","n/a",0,"n/a","00:00:00",0,0,0,"n/a",null,"?-S-0--0-",0,"Latest",0,"?","?","?","?","?","?","?","I","000.00","A","?","000",0,null,null,null,"+ (blank)",null,null,null,null,null,null,null,null,null,null,null,"?","S","0-","0-",0]
[null,null,null,null,null,null,null,null,"",null,null,null,null,null,null,null,null,null,null,"ft Min",null,null,"% Max",null,"","Width","no data",">=",4,"ft Min",4,"","CrossSlope","no data","<=",2,"% Max",2,null,"ObstructionType","NA",null,"NO-CURBRAMP",0,0,0,"SR",0,0,0,"no data","no data","NA",0,0,0,0,"Side",0,0,0,"no data","no data","","","","","","","","","","","","","","","","",31,null,null,null,0,0,0,null,0,0,0,"","Yes","","","?",0,0,0,null,null,"XXXXX000--------000.00AIS0-0-01","New Point","No","n/a","n/a",0,"n/a","00:00:00",0,0,0,"n/a",null,"?-S-0--0-",0,"Latest",0,"?","?","?","?","?","?","?","I","000.00","A","?","000",0,null,null,null,"+ (blank)",null,null,null,null,null,null,null,null,null,null,null,"?","S","0-","0-",0]
[null,null,null,null,null,null,null,null,"",null,null,null,null,null,null,null,null,null,null,"ft Min",null,null,"% Max",null,"","Width","no data",">=",4,"ft Min",4,"","CrossSlope","no data","<=",2,"% Max",2,null,"ObstructionType","NA",null,"NO-CURBRAMP",0,0,0,"SR",0,0,0,"no data","no data","NA",0,0,0,0,"Side",0,0,0,"no data","no data","","","","","","","","","","","","","","","","",31,null,null,null,0,0,0,null,0,0,0,"","Yes","","","?",0,0,0,null,null,"XXXXX000--------000.00AIS0-0-01","New Point","No","n/a","n/a",0,"n/a","00:00:00",0,0,0,"n/a",null,"?-S-0--0-",0,"Latest",0,"?","?","?","?","?","?","?","I","000.00","A","?","000",0,null,null,null,"+ (blank)",null,null,null,null,null,null,null,null,null,null,null,"?","S","0-","0-",0]
[null,null,null,null,null,null,null,null,"",null,null,null,null,null,null,null,null,null,null,"ft Min",null,null,"% Max",null,"","Width","no data",">=",4,"ft Min",4,"","CrossSlope","no data","<=",2,"% Max",2,null,"ObstructionType","NA",null,"NO-CURBRAMP",0,0,0,"SR",0,0,0,"no data","no data","NA",0,0,0,0,"Side",0,0,0,"no data","no data","","","","","","","","","","","","","","","","",31,null,null,null,0,0,0,null,0,0,0,"","Yes","","","?",0,0,0,null,null,"XXXXX000--------000.00AIS0-0-01","New Point","No","n/a","n/a",0,"n/a","00:00:00",0,0,0,"n/a",null,"?-S-0--0-",0,"Latest",0,"?","?","?","?","?","?","?","I","000.00","A","?","000",0,null,null,null,"+ (blank)",null,null,null,null,null,null,null,null,null,null,null,"?","S","0-","0-",0]
[null,null,null,null,null,null,null,null,"",null,null,null,null,null,null,null,null,null,null,"ft Min",null,null,"% Max",null,"","Width","no data",">=",4,"ft Min",4,"","CrossSlope","no data","<=",2,"% Max",2,null,"ObstructionType","NA",null,"NO-CURBRAMP",0,0,0,"SR",0,0,0,"no data","no data","NA",0,0,0,0,"Side",0,0,0,"no data","no data","","","","","","","","","","","","","","","","",31,null,null,null,0,0,0,null,0,0,0,"","Yes","","","?",0,0,0,null,null,"XXXXX000--------000.00AIS0-0-01","New Point","No","n/a","n/a",0,"n/a","00:00:00",0,0,0,"n/a",null,"?-S-0--0-",0,"Latest",0,"?","?","?","?","?","?","?","I","000.00","A","?","000",0,null,null,null,"+ (blank)",null,null,null,null,null,null,null,null,null,null,null,"?","S","0-","0-",0]
[null,null,null,null,null,null,null,null,"",null,null,null,null,null,null,null,null,null,null,"ft Min",null,null,"% Max",null,"","Width","no data",">=",4,"ft Min",4,"","CrossSlope","no data","<=",2,"% Max",2,null,"ObstructionType","NA",null,"NO-CURBRAMP",0,0,0,"SR",0,0,0,"no data","no data","NA",0,0,0,0,"Side",0,0,0,"no data","no data","","","","","","","","","","","","","","","","",31,null,null,null,0,0,0,null,0,0,0,"","Yes","","","?",0,0,0,null,null,"XXXXX000--------000.00AIS0-0-01","New Point","No","n/a","n/a",0,"n/a","00:00:00",0,0,0,"n/a",null,"?-S-0--0-",0,"Latest",0,"?","?","?","?","?","?","?","I","000.00","A","?","000",0,null,null,null,"+ (blank)",null,null,null,null,null,null,null,null,null,null,null,"?","S","0-","0-",0]
[null,null,null,null,null,null,null,null,"",null,null,null,null,null,null,null,null,null,null,"ft Min",null,null,"% Max",null,"","Width","no data",">=",4,"ft Min",4,"","CrossSlope","no data","<=",2,"% Max",2,null,"ObstructionType","NA",null,"NO-CURBRAMP",0,0,0,"SR",0,0,0,"no data","no data","NA",0,0,0,0,"Side",0,0,0,"no data","no data","","","","","","","","","","","","","","","","",31,null,null,null,0,0,0,null,0,0,0,"","Yes","","","?",0,0,0,null,null,"XXXXX000--------000.00AIS0-0-01","New Point","No","n/a","n/a",0,"n/a","00:00:00",0,0,0,"n/a",null,"?-S-0--0-",0,"Latest",0,"?","?","?","?","?","?","?","I","000.00","A","?","000",0,null,null,null,"+ (blank)",null,null,null,null,null,null,null,null,null,null,null,"?","S","0-","0-",0]
[null,null,null,null,null,null,null,null,"",null,null,null,null,null,null,null,null,null,null,"ft Min",null,null,"% Max",null,"","Width","no data",">=",4,"ft Min",4,"","CrossSlope","no data","<=",2,"% Max",2,null,"ObstructionType","NA",null,"NO-CURBRAMP",0,0,0,"SR",0,0,0,"no data","no data","NA",0,0,0,0,"Side",0,0,0,"no data","no data","","","","","","","","","","","","","","","","",31,null,null,null,0,0,0,null,0,0,0,"","Yes","","","?",0,0,0,null,null,"XXXXX000--------000.00AIS0-0-01","New Point","No","n/a","n/a",0,"n/a","00:00:00",0,0,0,"n/a",null,"?-S-0--0-",0,"Latest",0,"?","?","?","?","?","?","?","I","000.00","A","?","000",0,null,null,null,"+ (blank)",null,null,null,null,null,null,null,null,null,null,null,"?","S","0-","0-",0]
[null,null,null,null,null,null,null,null,"",null,null,null,null,null,null,null,null,null,null,"ft Min",null,null,"% Max",null,"","Width","no data",">=",4,"ft Min",4,"","CrossSlope","no data","<=",2,"% Max",2,null,"ObstructionType","NA",null,"NO-CURBRAMP",0,0,0,"SR",0,0,0,"no data","no data","NA",0,0,0,0,"Side",0,0,0,"no data","no data","","","","","","","","","","","","","","","","",31,null,null,null,0,0,0,null,0,0,0,"","Yes","","","?",0,0,0,null,null,"XXXXX000--------000.00AIS0-0-01","New Point","No","n/a","n/a",0,"n/a","00:00:00",0,0,0,"n/a",null,"?-S-0--0-",0,"Latest",0,"?","?","?","?","?","?","?","I","000.00","A","?","000",0,null,null,null,"+ (blank)",null,null,null,null,null,null,null,null,null,null,null,"?","S","0-","0-",0]
[null,null,null,null,null,null,null,null,"",null,null,null,null,null,null,null,null,null,null,"ft Min",null,null,"% Max",null,"","Width","no data",">=",4,"ft Min",4,"","CrossSlope","no data","<=",2,"% Max",2,null,"ObstructionType","NA",null,"NO-CURBRAMP",0,0,0,"SR",0,0,0,"no data","no data","NA",0,0,0,0,"Side",0,0,0,"no data","no data","","","","","","","","","","","","","","","","",31,null,null,null,0,0,0,null,0,0,0,"","Yes","","","?",0,0,0,null,null,"XXXXX000--------000.00AIS0-0-01","New Point","No","n/a","n/a",0,"n/a","00:00:00",0,0,0,"n/a",null,"?-S-0--0-",0,"Latest",0,"?","?","?","?","?","?","?","I","000.00","A","?","000",0,null,null,null,"+ (blank)",null,null,null,null,null,null,null,null,null,null,null,"?","S","0-","0-",0]
[null,null,null,null,null,null,null,null,"",null,null,null,null,null,null,null,null,null,null,"ft Min",null,null,"% Max",null,"","Width","no data",">=",4,"ft Min",4,"","CrossSlope","no data","<=",2,"% Max",2,null,"ObstructionType","NA",null,"NO-CURBRAMP",0,0,0,"SR",0,0,0,"no data","no data","NA",0,0,0,0,"Side",0,0,0,"no data","no data","","","","","","","","","","","","","","","","",31,null,null,null,0,0,0,null,0,0,0,"","Yes","","","?",0,0,0,null,null,"XXXXX000--------000.00AIS0-0-01","New Point","No","n/a","n/a",0,"n/a","00:00:00",0,0,0,"n/a",null,"?-S-0--0-",0,"Latest",0,"?","?","?","?","?","?","?","I","000.00","A","?","000",0,null,null,null,"+ (blank)",null,null,null,null,null,null,null,null,null,null,null,"?","S","0-","0-",0]
[null,null,null,null,null,null,null,null,"",null,null,null,null,null,null,null,null,null,null,"ft Min",null,null,"% Max",null,"","Width","no data",">=",4,"ft Min",4,"","CrossSlope","no data","<=",2,"% Max",2,null,"ObstructionType","NA",null,"NO-CURBRAMP",0,0,0,"SR",0,0,0,"no data","no data","NA",0,0,0,0,"Side",0,0,0,"no data","no data","","","","","","","","","","","","","","","","",31,null,null,null,0,0,0,null,0,0,0,"","Yes","","","?",0,0,0,null,null,"XXXXX000--------000.00AIS0-0-01","New Point","No","n/a","n/a",0,"n/a","00:00:00",0,0,0,"n/a",null,"?-S-0--0-",0,"Latest",0,"?","?","?","?","?","?","?","I","000.00","A","?","000",0,null,null,null,"+ (blank)",null,null,null,null,null,null,null,null,null,null,null,"?","S","0-","0-",0]
[null,null,null,null,null,null,null,null,"",null,null,null,null,null,null,null,null,null,null,"ft Min",null,null,"% Max",null,"","Width","no data",">=",4,"ft Min",4,"","CrossSlope","no data","<=",2,"% Max",2,null,"ObstructionType","NA",null,"NO-CURBRAMP",0,0,0,"SR",0,0,0,"no data","no data","NA",0,0,0,0,"Side",0,0,0,"no data","no data","","","","","","","","","","","","","","","","",31,null,null,null,0,0,0,null,0,0,0,"","Yes","","","?",0,0,0,null,null,"XXXXX000--------000.00AIS0-0-01","New Point","No","n/a","n/a",0,"n/a","00:00:00",0,0,0,"n/a",null,"?-S-0--0-",0,"Latest",0,"?","?","?","?","?","?","?","I","000.00","A","?","000",0,null,null,null,"+ (blank)",null,null,null,null,null,null,null,null,null,null,null,"?","S","0-","0-",0]
[null,null,null,null,null,null,null,null,"",null,null,null,null,null,null,null,null,null,null,"ft Min",null,null,"% Max",null,"","Width","no data",">=",4,"ft Min",4,"","CrossSlope","no data","<=",2,"% Max",2,null,"ObstructionType","NA",null,"NO-CURBRAMP",0,0,0,"SR",0,0,0,"no data","no data","NA",0,0,0,0,"Side",0,0,0,"no data","no data","","","","","","","","","","","","","","","","",31,null,null,null,0,0,0,null,0,0,0,"","Yes","","","?",0,{"$f":"J46","v":0},0,null,null,"XXXXX000--------000.00AIS0-0-01","New Point","No","n/a","n/a",0,"n/a","00:00:00",0,0,0,"n/a",null,"?-S-0--0-",0,"Latest",0,"?","?","?","?","?","?","?","I","000.00","A","?","000",0,null,null,null,"+ (blank)",null,null,null,null,null,null,null,null,null,null,null,"?","S","0-","0-",0]
[null,null,null,null,null,null,null,null,"",null,null,null,null,null,null,null,null,null,null,"ft Min",null,null,"% Max",null,"","Width","no data",">=",4,"ft Min",4,"","CrossSlope","no data","<=",2,"% Max",2,null,"ObstructionType","NA",null,"NO-CURBRAMP",0,0,0,"SR",0,0,0,"no data","no data","NA",0,0,0,0,"Side",0,0,0,"no data","no data","","","","","","","","","","","","","","","","",31,null,null,null,0,0,0,null,0,0,0,"","Yes","","","?",0,0,0,null,null,"XXXXX000--------000.00AIS0-0-01","New Point","No","n/a","n/a",0,"n/a","00:00:00",0,0,0,"n/a",null,"?-S-0--0-",0,"Latest",0,"?","?","?","?","?","?","?","I","000.00","A","?","000",0,null,null,null,"+ (blank)",null,null,null,null,null,null,null,null,null,null,null,"?","S","0-","0-",0]
[null,null,null,null,null,null,null,null,"",null,null,null,null,null,null,null,null,null,null,"ft Min",null,null,"% Max",null,"","Width","no data",">=",4,"ft Min",4,"","CrossSlope","no data","<=",2,"% Max",2,null,"ObstructionType","NA",null,"NO-CURBRAMP",{"$f":"VLOOKUP(AR$6,$Z:$AA,2,FALSE)","v":0},0,0,"SR",0,0,0,"no data","no data","NA",{"$f":"VLOOKUP(BB$6,$Z:$AA,2,FALSE)","v":0},0,0,0,"Side",0,0,0,"no data","no data","","","","","","","","","","","","","","","","",31,null,null,null,0,0,0,null,0,0,0,"","Yes","","","?",0,0,0,null,null,"XXXXX000--------000.00AIS0-0-01","New Point","No","n/a","n/a",0,"n/a","00:00:00",0,0,0,"n/a",null,"?-S-0--0-",0,"Latest",0,"?","?","?","?","?","?","?","I","000.00","A","?","000",0,null,null,null,"+ (blank)",null,null,null,null,null,null,null,null,null,null,null,"?","S","0-","0-",0]
[null,{"$f":"IF(COUNTIF(P13:Q51,\"17. MEF\")>0,\"NOTES -- Identify Obstruction MEF\",\"NOTES\")","v":"NOTES"},null,null,null,null,null,null,"",null,null,null,null,null,null,null,null,null,null,"ft Min",null,null,"% Max",null,"","Width","no data",">=",4,"ft Min",4,"","CrossSlope","no data","<=",2,"% Max",2,null,"ObstructionType","NA",null,"NO-CURBRAMP",0,0,0,"SR",0,0,0,"no data","no data","NA",0,0,0,0,"Side",0,0,0,"no data","no data","","","","","","","","","","","","","","","","",31,null,null,null,0,0,0,null,0,0,0,"","Yes","","","?",0,0,0,null,null,"XXXXX000--------000.00AIS0-0-01","New Point","No","n/a","n/a",0,"n/a","00:00:00",0,0,0,"n/a",null,"?-S-0--0-",0,"Latest",0,"?","?","?","?","?","?","?","I","000.00","A","?","000",0,null,null,null,"+ (blank)",null,null,null,null,null,null,null,null,null,null,null,"?","S","0-","0-",0]
[null,null,null,null,null,null,null,null,"",null,null,null,null,null,null,null,null,null,null,"ft Min",null,null,"% Max",null,"","Width","no data",">=",4,"ft Min",4,"","CrossSlope","no data","<=",2,"% Max",2,null,"ObstructionType","NA",null,"NO-CURBRAMP",0,0,0,"SR",0,0,0,"no data","no data","NA",0,0,0,0,"Side",0,0,0,"no data","no data","","","","","","","","","","","","","","","","",31,null,null,null,0,0,0,null,0,0,0,"","Yes","","","?",0,0,0,null,null,"XXXXX000--------000.00AIS0-0-01","New Point","No","n/a","n/a",0,"n/a","00:00:00",0,0,0,"n/a",null,"?-S-0--0-",0,"Latest",0,"?","?","?","?","?","?","?","I","000.00","A","?","000",0,null,null,null,"+ (blank)",null,null,null,null,null,null,null,null,null,null,null,"?","S","0-","0-",0]
[null,null,null,null,null,null,null,null,"",null,null,null,null,null,null,null,null,null,null,"ft Min",null,null,"% Max",null,"","Width","no data",">=",4,"ft Min",4,"","CrossSlope","no data","<=",2,"% Max",2,null,"ObstructionType","NA",null,"NO-CURBRAMP",0,0,0,"SR",0,0,0,"no data","no data","NA",0,0,0,0,"Side",0,0,0,"no data","no data","","","","","","","","","","","","","","","","",31,null,null,null,0,0,0,null,0,0,0,"","Yes","","","?",0,0,0,null,null,"XXXXX000--------000.00AIS0-0-01","New Point","No","n/a","n/a",0,"n/a","00:00:00",0,0,0,"n/a",null,"?-S-0--0-",0,"Latest",0,"?","?","?","?","?","?","?","I","000.00","A","?","000",0,null,null,null,"+ (blank)",null,null,null,null,null,null,null,null,null,null,null,"?","S","0-","0-",0]
[null,null,null,null,null,null,null,null,"",null,null,null,null,null,null,null,null,null,null,"ft Min",null,null,"% Max",null,"","Width","no data",">=",4,"ft Min",4,{"$f":"IF(ISBLANK(U43),\"\",IF(COUNTIF(AH43,AI43&AJ43)>0,\"pass\",\"FAIL\"))","v":""},"CrossSlope","no data","<=",2,"% Max",2,null,"ObstructionType","NA",null,"NO-CURBRAMP",0,0,0,"SR",0,0,0,"no data","no data","NA",0,0,0,0,"Side",0,0,0,"no data","no data","","","","","","","","","","","","","","","",""]
[null,null,null,null,null,null,null,null,"",null,null,null,null,null,null,null,null,null,null,"ft Min",null,null,"% Max",null,"","Width","no data",">=",4,"ft Min",4,"","CrossSlope","no data","<=",2,"% Max",2,null,"ObstructionType","NA",null,"NO-CURBRAMP",0,0,0,"SR",0,0,0,"no data","no data","NA",0,0,0,0,"Side",0,0,0,"no data",{"$f":"IF($K50=\"\",\"no data\",IF($K50=\"pass\",\"Yes\",\"No\"))","v":"no data"},"","","","","","","","","","","","","","","",""]
[null,null,null,null,null,null,null,null,"",null,null,null,null,null,null,null,null,null,null,"ft Min",null,null,"% Max",null,"","Width","no data",">=",4,"ft Min",4,"","CrossSlope","no data","<=",2,"% Max",2,null,"ObstructionType","NA",null,"NO-CURBRAMP",0,0,0,"SR",0,0,0,"no data","no data","NA",0,0,0,0,"Side",0,0,0,"no data","no data","","","","","","","","","","","","","","","",""]
[null,null,null,null,null,null,null,null,"",null,null,null,null,null,null,null,null,null,null,"ft Min",null,null,"% Max",null,"","Width",{"$f":"IF(ISBLANK(R46),\"no data\",R46)","v":"no data"},">=",4,"ft Min",4,"","CrossSlope","no data","<=",2,"% Max",2,null,"ObstructionType","NA",null,null,null,null,null,null,null,null,null,null,null,null,null,null,null,null,null,null,null,null,null,null,"","","","","","","","","","","","","","","",""]
[null,null,null,null,null,null,null,null,"",null,null,null,null,null,null,null,null,null,null,"ft Min",null,null,"% Max",null,"","Width","no data",">=",4,"ft Min",4,"","CrossSlope","no data","<=",2,"% Max",2,null,"ObstructionType","NA",null,"OBSTRUCTION TYPES",null,null,null,null,null,null,null,null,null,null,null,null,null,null,null,null,null,null,null,null,"","","","","","","","","","","","","","","",""]
[null,null,null,null,null,null,null,null,"",null,null,null,null,null,null,null,null,null,null,"ft Min",null,null,"% Max",null,"","Width","no data",">=",4,"ft Min",4,"","CrossSlope","no data","<=",2,"% Max",2,null,"ObstructionType","NA",null,"1. Bench","Bench",null,null,null,null,null,null,null,null,null,null,null,null,null,null,null,null,null,null,null,"","","","","","","","","","","","","","","",""]
[null,null,null,null,null,null,null,null,"",null,null,null,null,null,null,null,null,null,null,"ft Min",null,null,"% Max",null,"","Width","no data",">=",4,"ft Min",4,"","CrossSlope","no data","<=",2,"% Max",2,null,"ObstructionType","NA",null,"2. Branch","Branch",null,null,null,null,null,null,null,null,null,null,null,null,null,null,null,null,null,null,null,"","","","","","","","","","","","","","","",""]
[null,"Measurement Instrument \nSerial Number:",null,null,"Calibrated by:",null,null,null,"",null,null,null,null,null,null,null,null,null,null,"ft Min",null,null,"% Max",null,"","Width","no data",">=",4,"ft Min",4,"","CrossSlope","no data","<=",2,"% Max",2,null,"ObstructionType","NA",null,"3. Bridge Exp. Joint","Bridge Exp. Joint",null,null,null,null,null,null,null,null,null,null,null,null,null,null,null,null,null,null,null,"","","","","","","","","","","","","","","",""]
[null,null,null,null,"Date:",null,null,null,"",null,null,null,null,null,null,null,null,null,null,"ft Min",null,null,"% Max",null,"","Width","no data",">=",4,"ft Min",4,{"$f":"IF(ISBLANK(U51),\"\",IF(COUNTIF(AH51,AI51&AJ51)>0,\"pass\",\"FAIL\"))","v":""},"CrossSlope","no data","<=",2,"% Max",2,null,"ObstructionType","NA",null,"4. Building","Building",null,null,null,null,null,null,null,null,null,null,null,null,null,null,null,null,null,null,null,"","","","","","","","","","","","","","","",""]
[null,"1\" = 0.08'","2\" = 0.17'","3\" = 0.25'","4\" = 0.33'","5\" = 0.42'","6\" = 0.50'","7\" = 0.58'","8\" = 0.67'","9\" = 0.75'","10\" = 0.83'","11\" = 0.92'",null,null,null,null,null,null,null,null,null,null,null,null,null,null,null,null,null,null,null,null,null,null,null,null,null,null,null,null,null,null,"5. Catch Basin","Catch Basin"]
[null,null,null,null,null,null,null,null,null,null,null,null,null,null,null,null,null,null,null,null,null,"Form Updated",null,null,null,null,null,null,null,null,null,null,"SIDEWALK CHARACTERISTICS",null,null,null,null,null,null,null,null,null,"6. Fence","Fence"]
[null,null,null,null,null,null,null,null,null,null,null,null,null,null,null,null,null,null,null,null,null,"2018-07-31",null,null,null,"StructComp",null,"Structurally Compliant?",null,null,null,null,null,"1. Start of Sidewalk","Sidewalk Interval","SWInt",{"$f":"\"\"","v":""},null,null,null,null,null,"7. Fire Hydrant","Fire Hydrant"]
[null,null,null,null,null,null,null,null,null,null,null,null,null,null,null,null,null,null,null,null,null,null,null,null,null,"DiagToCenterIntersection",null,null,null,null,null,null,null,"2. Interval Measurement","Sidewalk Interval","SWInt",{"$f":"\"\"","v":""},null,null,null,null,null,"8. Grate Inlet","Grate Inlet"]
[null,null,null,null,null,null,null,null,null,null,null,null,null,null,null,null,null,null,null,null,null,null,null,null,null,"ClearSpaceWidth",null,null,null,null,null,null,null,"3. Vertical Surface Discontinuity (> ¼”)","Sidewalk Interval","SWInt","Repair Vertical Surface Discontinuity",null,null,null,null,null,"9. Ground Cover","Ground Cover",null,null,null,null,null,null,null,null,null,null,null,null,null,null,null,null,null,null,null,null,null,null,null,null,null,null,null,null,null,null,null,null,{"$f":"IF(COUNTIF(N56,$AH$56)>0,\"FAIL\",IF(AND(COUNTIF(N56,$AH$62)>0,$N$2=\"Scoping\"),\"FAIL\",IF(AND(N56=$AH$61,P56<>\"\",P56<>\"17. MEF\"),\"FAIL\",IF(AND(COUNTIF(N56,$AH$61)>0,$AO56=\"17. MEF\",R56<>\"\",U56<>\"\"),\"pass\",IF(AND(ISBLANK(R56),ISBLANK(U56)),\"\",IF(AND(Y56=\"pass\",AF56=\"pass\"),\"pass\",IF(OR(Y56=\"FAIL\",AF56=\"FAIL\"),\"FAIL\",\"incomplete\")))))))","v":""},{"$f":"IF(AND(N56<>\"\",OR(ISBLANK(J56),ISBLANK(K56),ISBLANK(M56))),\"incomplete\",\"\")","v":""},{"$f":"IF(AND(N56=\"\",R56+U56<>0),\"incomplete\",\"\")","v":""}]
[null,null,null,null,null,null,null,null,null,null,null,null,null,null,null,null,null,null,null,null,null,null,null,null,null,"FeatureLocationCode",{"$f":"E7","v":0},"From Plan Sheet",null,null,null,null,null,"4. Change in Width","Sidewalk Interval","SWInt",{"$f":"\"\"","v":""},null,null,null,null,null,"10. Guardrail","Guardrail",null,null,null,null,null,null,null,null,null,null,null,null,null,null,null,null,null,null,null,null,null,null,null,null,null,null,null,null,null,null,null,null,"","",""]
[null,null,null,null,null,null,null,null,null,null,null,null,null,null,null,null,null,null,null,null,null,null,null,null,null,"WSDOTFeatureNumber",null,"Feature ID Code",null,null,null,null,null,"5. Change in Cross Slope","Sidewalk Interval","SWInt",{"$f":"\"\"","v":""},null,null,null,null,null,"11. Guy Anchor","Guy Anchor",null,null,null,null,null,null,null,null,null,null,null,null,null,null,null,null,null,null,null,null,null,null,null,null,null,null,null,null,null,null,null,null,"","",""]
[null,null,null,null,null,null,null,null,null,null,null,null,null,null,null,null,null,null,null,null,null,null,null,null,null,"Note",{"$f":"B41","v":0},null,null,null,null,null,null,"6. End of Sidewalk","Sidewalk Interval","SWInt",{"$f":"\"\"","v":""},null,null,null,null,null,"12. Guy Wire","Guy Wire",null,null,null,null,null,null,null,null,null,null,null,null,null,null,null,null,null,null,null,null,null,null,null,null,null,null,null,null,null,null,null,null,"","",""]
[null,null,null,null,null,null,null,null,null,null,null,null,null,null,null,null,null,null,null,null,null,null,null,null,null,"CrossStreet",{"$f":"E5","v":0}," ",null,null,null,null,null,"7. Transition Segment to Existing Sidewalk ","Sidewalk Interval","SWInt",{"$f":"\"\"","v":""},null,null,null,null,null,"13. Junction Box","Junction Box",null,null,null,null,null,null,null,null,null,null,null,null,null,null,null,null,null,null,null,null,null,null,null,null,null,null,null,null,null,null,null,null,"","",""]
[null,null,null,null,null,null,null,null,null,null,null,null,null,null,null,null,null,null,null,null,null,null,null,null,null,"CornerSide",{"$f":"J5","v":"Side"},null,null,null,null,null,null,"8. Obstruction","Sidewalk Interval","SWInt","Remove Obstruction",null,null,null,null,null,"14. Large Vault - Electric","Large Vault - Electric",null,null,null,null,null,null,null,null,null,null,null,null,null,null,null,null,null,null,null,null,null,null,null,null,null,null,null,null,null,null,null,null,"","",""]
[null,null,null,null,null,null,null,null,null,null,null,null,null,null,null,null,null,null,null,null,null,null,null,null,null,"PlanShtRef",{"$f":"E6","v":0}," ",null,null,null,null,null,{"$f":"IF(COUNTIF(N2,\"Scoping\")>0,\"9. No Curb Ramp\",\"\")","v":""},"Curb Ramp None","CRNon","Install Curb Ramp",null,null,null,null,null,"15. Large Vault - Utility","Large Vault - Utility",null,null,null,null,null,null,null,null,null,null,null,null,null,null,null,null,null,null,null,null,null,null,null,null,null,null,null,null,null,null,null,null,"","",""]
[null,null,null,null,null,null,null,null,null,null,null,null,null,null,null,null,null,null,null,null,null,null,null,null,null,"MEFRef",{"$f":"V5","v":0},null,null,null,null,null,null,null,"no data","XXXXX",null,null,null,null,null,null,"16. Manhole","Manhole",null,null,null,null,null,null,null,null,null,null,null,null,null,null,null,null,null,null,null,null,null,null,null,null,null,null,null,null,null,null,null,null,"","",""]
[null,null,null,null,null,null,null,null,null,null,null,null,null,null,null,null,null,null,null,null,null,null,null,null,null,"SiteHist",{"$f":"E8","v":0}," ",null,null,null,null,null,null,null,null,null,null,null,null,null,null,"17. MEF","MEF",null,null,null,null,null,null,null,null,null,null,null,null,null,null,null,null,null,null,null,null,null,null,null,null,null,null,null,null,null,null,null,null,"","",""]
[null,null,null,null,null,null,null,null,null,null,null,null,null,null,null,null,null,null,null,null,null,null,null,null,null,"Station",null,null,null,null,null,null,null,null,null,null,null,null,null,null,null,null,"18. Newspaper Stand","Newspaper Stand",null,null,null,null,null,null,null,null,null,null,null,null,null,null,null,null,null,null,null,null,null,null,null,null,null,null,null,null,null,null,null,null,"","",""]
[null,null,null,null,null,null,null,null,null,null,null,null,null,null,null,null,null,null,null,null,null,null,null,null,null,null,null,null,null,null,null,null,null,null,null,null,null,null,null,null,null,null,"19. Parked Car","Parked Car",null,null,null,null,null,null,null,null,null,null,null,null,null,null,null,null,null,null,null,null,null,null,null,null,null,null,null,null,null,null,null,null,"","",""]
[null,null,null,null,null,null,null,null,null,null,null,null,null,null,null,null,null,null,null,null,null,null,null,null,null,null,null,null,null,null,null,null,null,null,null,null,null,null,null,null,null,null,"20. Parking Meter","Parking Meter",null,null,null,null,null,null,null,null,null,null,null,null,null,null,null,null,null,null,null,null,null,null,null,null,null,null,null,null,null,null,null,null,"","",""]
[null,null,null,null,null,null,null,null,null,null,null,null,null,null,null,null,null,null,null,null,null,null,null,null,null,null,null,null,null,null,null,null,null,null,null,null,null,null,null,null,null,null,"21. Portable Sign Board","Portable Sign Board",null,null,null,null,null,null,null,null,null,null,null,null,null,null,null,null,null,null,null,null,null,null,null,null,null,null,null,null,null,null,null,null,"","",""]
[null,null,null,null,null,null,null,null,null,null,null,null,null,null,null,null,null,null,null,null,null,null,null,null,null,null,null,null,null,null,null,null,null,null,null,null,null,null,null,null,null,null,"22. Power Pole","Power Pole",null,null,null,null,null,null,null,null,null,null,null,null,null,null,null,null,null,null,null,null,null,null,null,null,null,null,null,null,null,null,null,null,"","",""]
[null,null,null,null,null,null,null,null,null,null,null,null,null,null,null,null,null,null,null,null,null,null,null,null,null,null,null,null,null,null,null,null,null,null,null,null,null,null,null,null,null,null,"23. Shrubs","Shrubs",null,null,null,null,null,null,null,null,null,null,null,null,null,null,null,null,null,null,null,null,null,null,null,null,null,null,null,null,null,null,null,null,"","",""]
[null,null,null,null,null,null,null,null,null,null,null,null,null,null,null,null,null,null,null,null,null,null,null,null,null,null,null,null,null,null,null,null,null,null,null,null,null,null,null,null,null,null,"24. Sign","Sign",null,null,null,null,null,null,null,null,null,null,null,null,null,null,null,null,null,null,null,null,null,null,null,null,null,null,null,null,null,null,null,null,"","",""]
[null,null,null,null,null,null,null,null,null,null,null,null,null,null,null,null,null,null,null,null,null,null,null,null,null,null,null,null,null,null,null,null,null,null,null,null,null,null,null,null,null,null,"25. Signal Pole","Signal Pole",null,null,null,null,null,null,null,null,null,null,null,null,null,null,null,null,null,null,null,null,null,null,null,null,null,null,null,null,null,null,null,null,"","",""]
[null,null,null,null,null,null,null,null,null,null,null,null,null,null,null,null,null,null,null,null,null,null,null,null,null,null,null,null,null,null,null,null,null,null,null,null,null,null,null,null,null,null,"26. Telephone Booth","Telephone Booth",null,null,null,null,null,null,null,null,null,null,null,null,null,null,null,null,null,null,null,null,null,null,null,null,null,null,null,null,null,null,null,null,"","",""]
[null,null,null,null,null,null,null,null,null,null,null,null,null,null,null,null,null,null,null,null,null,null,null,null,null,null,null,null,null,null,null,null,null,null,null,null,null,null,null,null,null,null,"27. Tree","Tree",null,null,null,null,null,null,null,null,null,null,null,null,null,null,null,null,null,null,null,null,null,null,null,null,null,null,null,null,null,null,null,null,"","",""]
[null,null,null,null,null,null,null,null,null,null,null,null,null,null,null,null,null,null,null,null,null,null,null,null,null,null,null,null,null,null,null,null,null,null,null,null,null,null,null,null,null,null,"28. Wall","Wall",null,null,null,null,null,null,null,null,null,null,null,null,null,null,null,null,null,null,null,null,null,null,null,null,null,null,null,null,null,null,null,null,"","",""]
[null,null,null,null,null,null,null,null,null,null,null,null,null,null,null,null,null,null,null,null,null,null,null,null,null,null,null,null,null,null,null,null,null,null,null,null,null,null,null,null,null,null,"29. Water Valve","Water Valve",null,null,null,null,null,null,null,null,null,null,null,null,null,null,null,null,null,null,null,null,null,null,null,null,null,null,null,null,null,null,null,null,"","",""]
[null,null,null,null,null,null,null,null,null,null,null,null,null,null,null,null,null,null,null,null,null,null,null,null,null,null,null,null,null,null,null,null,null,null,null,null,null,null,null,null,null,null,"30. Other - NOTES","Other",null,null,null,null,null,null,null,null,null,null,null,null,null,null,null,null,null,null,null,null,null,null,null,null,null,null,null,null,null,null,null,null,"","",""]
[]
[]
[]
[]
[]
[null,null,null,null,null,null,null,null,null,null,null,null,null,null,null,null,null,null,null,null,null,null,null,null,null,"SiteHist"]
[null,null,null,null,null,null,null,null,null,null,null,null,null,null,null,null,null,null,null,null,null,null,null,null,null,"Station",{"$f":"IF(COUNTIF(K9:N34,\"FAIL\")>0,\"No\",IF(COUNTIF(K9:N34,\"pass\")=22,\"Yes\",\"incomplete\"))","v":"incomplete"}]
[null,null,null,null,null,null,null,null,null,null,null,null,null,null,null,null,null,null,null,null,null,null,null,null,null,null,{"$f":"K10","v":0}]
[null,null,null,null,null,null,null,null,null,null,null,null,null,null,null,null,null,null,null,null,null,null,null,null,null,null,{"$f":"J9","v":"Instructions"}]
[null,null,null,null,null,null,null,null,null,null,null,null,null,null,null,null,null,null,null,null,null,null,null,null,null,null,{"$f":"E7","v":0}]
[null,null,null,null,null,null,null,null,null,null,null,null,null,null,null,null,null,null,null,null,null,null,null,null,null,null,{"$f":"#REF!","v":{"$error":"#REF!"}}]
[null,null,null,null,null,null,null,null,null,null,null,null,null,null,null,null,null,null,null,null,null,null,null,null,null,null,{"$f":"E5","v":0}]
[null,null,null,null,null,null,null,null,null,null,null,null,null,null,null,null,null,null,null,null,null,null,null,null,null,null,{"$f":"J5","v":"Side"}]
[null,null,null,null,null,null,null,null,null,null,null,null,null,null,null,null,null,null,null,null,null,null,null,null,null,null,{"$f":"E6","v":0}]
[null,null,null,null,null,null,null,null,null,null,null,null,null,null,null,null,null,null,null,null,null,null,null,null,null,null,{"$f":"V5","v":0}]
[null,null,null,null,null,null,null,null,null,null,null,null,null,null,null,null,null,null,null,null,null,null,null,null,null,null,{"$f":"E8","v":0}]
[null,null,null,null,null,null,null,null,null,null,null,null,null,null,null,null,null,null,null,null,null,null,null,null,null,null,{"$f":"#REF!","v":{"$error":"#REF!"}}]

{"sheet":"ISUP","index":7,"n_rows":95,"n_cols":150,"rows_kept":95,"cut":false,"hidden":false,"merged":[[9,4,9,5],[10,5,10,8],[10,9,10,12],[11,9,11,10],[9,0,9,3],[8,11,9,12],[9,7,9,8],[8,7,8,8],[8,19,8,21],[7,75,11,75],[7,76,11,76],[7,77,11,77],[7,61,11,61],[7,78,11,78],[11,30,11,31],[11,34,11,35],[11,11,11,12],[12,9,12,10],[12,11,12,12],[9,69,11,69],[9,71,11,71],[9,73,11,73],[11,38,11,39],[11,42,11,43],[11,46,11,47],[9,60,11,60],[9,63,11,63],[9,65,11,65],[9,67,11,67],[0,31,0,32],[1,1,1,2],[1,31,1,32],[2,4,2,5],[2,9,2,10],[4,9,4,10],[2,26,2,27],[1,3,1,5],[8,4,8,5],[8,16,8,18],[8,22,8,24],[5,1,5,3],[5,4,5,6],[6,4,6,6],[6,10,6,11],[7,4,7,6],[7,10,7,11],[3,4,3,7],[3,26,3,27],[4,1,4,3],[4,4,4,7],[4,26,4,27],[0,1,0,11],[18,11,18,12],[19,9,19,10],[19,11,19,12],[20,9,20,10],[20,11,20,12],[13,9,13,10],[13,11,13,12],[14,9,14,10],[14,11,14,12],[53,26,53,27],[11,17,11,18],[11,23,11,24],[53,1,53,3],[53,5,53,7],[50,9,50,10],[50,11,50,12],[52,26,52,27],[47,9,47,10],[47,11,47,12],[48,9,48,10],[48,11,48,12],[52,1,52,3],[52,6,52,7],[49,9,49,10],[49,11,49,12],[43,11,43,12],[44,9,44,10],[44,11,44,12],[45,9,45,10],[45,11,45,12],[46,9,46,10],[46,11,46,12],[41,1,50,3],[43,9,43,10],[36,9,36,10],[36,11,36,12],[37,9,37,10],[37,11,37,12],[8,25,8,27],[8,13,8,15],[11,14,11,15],[11,20,11,21],[11,26,11,27],[39,9,39,10],[39,11,39,12],[40,9,40,10],[40,11,40,12],[38,9,38,10],[38,11,38,12],[33,9,33,10],[33,11,33,12],[34,9,34,10],[34,11,34,12],[35,9,35,10],[35,11,35,12],[30,9,30,10],[30,11,30,12],[41,9,41,10],[41,11,41,12],[42,9,42,10],[42,11,42,12],[31,9,31,10],[31,11,31,12],[32,9,32,10],[32,11,32,12],[27,9,27,10],[27,11,27,12],[28,9,28,10],[28,11,28,12],[29,9,29,10],[29,11,29,12],[26,9,26,10],[26,11,26,12],[21,9,21,10],[21,11,21,12],[9,50,11,50],[9,52,11,52],[9,54,11,54],[9,56,11,56],[9,58,11,58],[24,9,24,10],[24,11,24,12],[25,9,25,10],[25,11,25,12],[15,9,15,10],[15,11,15,12],[16,9,16,10],[16,11,16,12],[17,9,17,10],[17,11,17,12],[22,9,22,10],[22,11,22,12],[23,9,23,10],[23,11,23,12],[18,9,18,10]]}
[null,"ADA Feature - Independent Shared Use Path (ISUP)",null,null,null,null,null,null,null,null,null,null,null,null,{"$f":"IF(AND(OR(AH2=\"incomplete\",AH1=\"incomplete\"),LEN(D2)>0),\"= Required Field\",\"\")","v":""},null,null,null,null,null,null,null,null,null,null,null,null,null,null,"FeatureName",{"$f":"AB2","v":"ISUP"},"Complete Header",null,{"$f":"IF(AND(D2<>\"Scoping\",OR(E3=\"\",J5=\"\",E4=\"\",J3=\"\",L5=\"Lt or Rt?\",J6=\"\",H10=\"\",K7=\"\",B54=\"\",G53=\"\",F54=\"\",K6=\"\",E7=\"\",E7=\"\",K8=\"\")),\"incomplete\",\"pass\")","v":"incomplete"},null,null,null,null,null,null,null,null,null,null,null,null,null,null,null,null,null,null,null,null,null,null,null,null,null,null,null,null,null,null,null,null,null,null,null,null,null,null,null,null,null,null,null,null,null,null,"Spec",null,null,"Gen","Gen","Gen","Spec","Gen","Gen","Gen","Spec",null,"Spec","Spec",null,null,"Spec","Spec",null,null,{"$f":"IF(MAX($ET$4:$ET$42)>2,\"ALERT!  Some are not unique!\",\"all unique\")","v":"all unique"},null,"Spec",null,null,"Gen","Gen","Gen","Gen","Gen","Gen",null,null,"Gen","Gen","Gen","Gen",null,null,null,null,null,null,null,"Gen","Spec","Spec",null,null,null,null,null,null,null,null,null,null,null,null,null,null,null,null,null,null,"Gen","Gen","Gen","Gen"]
[null,"Phase",null,null,null,null,null,null,null,null,null,null,null,null,null,null,null,null,null,null,null,null,null,null,null,"Database Schema:",null,"ISUP",null,"CompletedUnderContract",{"$f":"E3","v":0},"Complete Header \"Scoping\"",null,{"$f":"IF(AND(D2=\"Scoping\",OR(E3=\"\",E4=\"\",K6=\"\",L5=\"Lt or Rt?\",J3=\"\",J5=\"\",K7=\"\",H10=\"\",J6=\"\")),\"incomplete\",\"pass\")","v":"pass"},null,null,null,null,null,null,null,null,null,null,null,null,null,null,null,null,null,null,null,null,null,null,null,null,null,null,null,null,null,null,null,null,null,null,null,null,null,null,null,null,null,null,null,null,null,null,null,null,null,{"$f":"J5","v":0},null,{"$f":"E5","v":0},{"$f":"E5","v":0},null,null,null,null,null,null,null,null,null,null,null,null,null,null,null,null,null,null,{"$f":"K7","v":0},"n/a",{"$f":"J3","v":"00:00:00"},{"$f":"K8","v":0},{"$f":"E8","v":0},{"$f":"E3","v":0},null,null,null,{"$f":"H10","v":0},"01",{"$f":"D2","v":0},null,null,null,null,null,null,null,"I",null,null,null,null,null,null,null,null,null,null,null,null,null,null,null,null,null,null,null,null,{"$f":"IF(RIGHT(L5,1)=\"?\",\"?\",LEFT(L5&\"-\",2))","v":"-"},{"$f":"LEFT(#REF!,1)","v":{"$error":"#REF!"}},{"$f":"LEFT(TEXT(J6,\"0\")&\"-\",2)","v":"0-"},{"$f":"LEFT(TEXT(K6,\"0\")&\"-\",2)","v":"0-"}]
[null,null,null,"Contract / Work Order",null,null,null,null,"Date Measured",null,null,null,null,null,null,null,null,null,null,null,null,null,null,null,null,"Form Status",{"$f":"IF(COUNTIF(E13:E51,\"FAIL\")>0,\"FAIL\",IF(OR(COUNTIF(E13:E51,\"incomplete\")>0,COUNTIF(E13:E51,\"\")=39),\"incomplete form\",IF(COUNTIF(AH1:AH2,\"pass\")<2,\"incomplete form\",\"pass\")))","v":"incomplete form"},null,null,"GPSDate",{"$f":"J3","v":"00:00:00"},"Date Measured",null,null,null,null,null,null,null,null,null,null,null,null,null,null,null,null,null,null,null,null,null,null,null,null,null,null,null,null,null,null,null,null,null,null,null,null,null,null,null,null,null,null,null,null,null,null,null,null,"SR View","Gmap","Gmap2","State Route","Mile- post","Primary St, Bridge, or Facility Name","Intersecting or Related St or Route","City","County","Region","ADA Feature","Meas?","Summary of Non-Compliance","Solution","Sched. Fiscal Year","Estimated Cost","Lat","Long","Lat2","Long2","FeatureID","GIS Table","Fully Compliant?","DWS Non-Comp Only?","Length","Jurisdiction","SubOwner","MeasDate","ConstructedBy","SiteHistory","Contract","MEFRef","DocRef","LocCode","LocMethod","History","Project Phase","Path Priority Index Tier","Barrier Severity","Date made Compliant","Access Level","Rural or Urban","PaveBienn_within_100ft","PaveDue+2","Direction","MP","A/B","ARM","SRSort","MPSort","BridgeNo","Site Key","Issue","Issue Summary","Rest Area","multiples","CityAccess","RecordCreateDate","GPSDate","End_SR","End_MP","ProjectID","ADAGroup","Plan 2016","Planning Set","Side","Site","SiteCompass","FeatCompass","unique id"]
[null,null,null,"Measured By",null,null,null,null,null,null,null,null,null,null,null,null,null,null,null,null,null,null,null,null,null,"MEF Status",{"$f":"IF(COUNTIF(CA13:CA51,\"Has MEF\")>0,\"Has MEF\",\"Standard ADA\")","v":"Standard ADA"},null,null,"Datafile",{"$f":"E4","v":0},"Measured By",null,null,null,null,null,null,null,null,null,null,null,null,null,null,null,null,null,null,null,null,null,null,null,null,null,null,null,null,null,null,null,null,null,null,null,null,null,null,null,null,null,null,null,null,null,null,null,{"$f":"LEN(CW4)","v":31},{"$f":"HYPERLINK(\"http://srview3i.wsdot.loc/stateroute/picturelog/v3/client/SRview.Windows.Viewer.application?srnum=\"&LEFT(CF4,3)&\"&rrt=\"&IF(LEN(CF4)>3,RIGHT(LEFT(CF4,5),2),\"\")&\"&rrq=\"&IF(LEN(CF4)=11,RIGHT(CF4,6),IF(LEN(CF4)=10,RIGHT(CF4,5),\"\"))&\"&srmp=\"&CG4,\"SRV\")","v":"SRV"},{"$f":"HYPERLINK(\"http://maps.google.com/maps?z=20&t=k&q=loc:\"&CS4&\",\"&CT4,\"GMap\")","v":"GMap"},{"$f":"IF(LEN(CU4)>0,HYPERLINK(\"http://maps.google.com/maps?z=20&t=k&q=loc:\"&CU4&\",\"&CV4,\"GMap\"),\"\")","v":""},{"$f":"$CF$2","v":0},{"$f":"I13","v":0},{"$f":"$CH$2","v":0},null,{"$f":"$CJ$2","v":0},{"$f":"$CK$2","v":0},{"$f":"$CL$2","v":0},{"$f":"IFERROR(VLOOKUP(J13,$AM$54:$AO$64,2,FALSE),\"no data\")","v":"no data"},"Yes",{"$f":"BK13","v":""},{"$f":"BW13","v":""},"?",0,{"$f":"F13","v":0},{"$f":"G13","v":0},null,null,{"$f":"IFERROR(VLOOKUP(J13,$AM$54:$AO$64,3,FALSE),\"XXXXX\")&LEFT(TEXT(CF4,\"000\")&\"-----------\",11)&TEXT(DV4,\"000.00\")&DW4&DU4&EQ4&ER4&ES4&$DL$2","v":"XXXXX000--------000.00AIS0-0-01"},"New Point",{"$f":"IF(E13=\"pass\",\"Yes\",\"No\")","v":"No"},"n/a","n/a",{"$f":"$DB$2","v":0},{"$f":"$DC$2","v":"n/a"},{"$f":"$DD$2","v":"00:00:00"},{"$f":"$DE$2","v":0},{"$f":"$DF$2","v":0},{"$f":"$DG$2","v":0},{"$f":"IF(LEN($AA$5)=0,CA13,$AA$5)","v":""},null,{"$f":"EP4&\"-\"&EQ4&\"-\"&ER4&\"-\"&ES4","v":"0--S-0--0-"},{"$f":"$DK$2","v":0},"01",{"$f":"$DM$2","v":0},"?","?","?","?","?","?","?",{"$f":"$DU$2","v":"I"},{"$f":"TEXT(IF(DW4=\"B\",VALUE(LEFT(CG4,FIND(\"B\",CG4)-1)),CG4),\"000.00\")","v":"000.00"},{"$f":"IF(RIGHT(I13,1)=\"B\",\"B\",\"A\")","v":"A"},"?",{"$f":"TEXT(LEFT(CF4,3),\"000\")","v":"000"},{"$f":"IF(LEN(CF4)>9,VALUE(RIGHT(CF4,5))/100,CG4)","v":0},null,null,null,"+ (blank)",null,null,null,null,null,null,null,null,null,null,null,"0-","S",{"$f":"$ER$2","v":"0-"},"0-",{"$f":"IF(LEFT(CW4,1)<>\"X\",COUNTIF($CW$4:$CW$42,CW4),0)","v":0}]
[null,"Path Name",null,null,null,null,null,null,"SR",null,null,null,null,null,null,null,null,null,null,null,null,null,null,null,null,"MEF Reference",null,null,null,"StateRouteRRT",{"$f":"I5","v":"SR"},null,null,null,null,null,null,null,null,null,null,null,null,null,null,null,null,null,null,null,null,null,null,null,null,null,null,null,null,null,null,null,null,null,null,null,null,null,null,null,null,null,null,null,null,null,null,null,null,{"$f":"LEN(CW5)","v":31},{"$f":"HYPERLINK(\"http://www.wsdot.wa.gov/data/tools/geoportal/?layers=%7B%22layer0%22%3A%5B%5D%2C%22Buffer%22%3Atrue%2C%22Drawn+Features%22%3Atrue%7D\",\"Geoportal\")","v":"Geoportal"},null,null,{"$f":"$CF$2","v":0},{"$f":"I14","v":0},{"$f":"$CH$2","v":0},null,{"$f":"$CJ$2","v":0},{"$f":"$CK$2","v":0},{"$f":"$CL$2","v":0},"no data","Yes","",{"$f":"BW14","v":""},"?",0,0,0,null,null,{"$f":"IFERROR(VLOOKUP(J14,$AM$54:$AO$64,3,FALSE),\"XXXXX\")&LEFT(TEXT(CF5,\"000\")&\"-----------\",11)&TEXT(DV5,\"000.00\")&DW5&DU5&EQ5&ER5&ES5&$DL$2","v":"XXXXX000--------000.00AIS0-0-01"},"New Point","No","n/a","n/a",{"$f":"$DB$2","v":0},{"$f":"$DC$2","v":"n/a"},{"$f":"$DD$2","v":"00:00:00"},{"$f":"$DE$2","v":0},{"$f":"$DF$2","v":0},{"$f":"$DG$2","v":0},{"$f":"IF(LEN($AA$5)=0,CA14,$AA$5)","v":""},null,{"$f":"EP5&\"-\"&EQ5&\"-\"&ER5&\"-\"&ES5","v":"0--S-0--0-"},{"$f":"$DK$2","v":0},"01",{"$f":"$DM$2","v":0},"?","?","?","?","?","?","?",{"$f":"$DU$2","v":"I"},{"$f":"TEXT(IF(DW5=\"B\",VALUE(LEFT(CG5,FIND(\"B\",CG5)-1)),CG5),\"000.00\")","v":"000.00"},"A","?",{"$f":"TEXT(LEFT(CF5,3),\"000\")","v":"000"},{"$f":"CG5","v":0},null,null,null,"+ (blank)",null,null,null,null,null,null,null,null,null,null,null,"0-","S",{"$f":"$ER$2","v":"0-"},"0-",{"$f":"IF(LEFT(CW5,1)<>\"X\",COUNTIF($CW$4:$CW$42,CW5),0)","v":0}]
[null,"Plan Sheet Reference",null,null,null,null,null,null,null,null,null,null,null,null,null,null,null,null,null,null,null,null,null,null,null,null,null,null,null,"SRMP",{"$f":"M4","v":0},null,null,null,null,null,null,null,null,null,null,null,null,null,null,null,null,null,null,null,null,null,null,null,null,null,null,null,null,null,null,null,null,null,null,null,null,null,null,null,null,null,null,null,null,null,null,null,null,31,null,null,null,0,0,0,null,0,0,0,"no data","Yes","","","?",0,0,0,null,null,"XXXXX000--------000.00AIS0-0-01","New Point","No","n/a","n/a",0,"n/a","00:00:00",0,0,0,"",null,"0--S-0--0-",0,"01",0,"?","?","?","?","?","?","?","I","000.00","A","?","000",0,null,null,null,"+ (blank)",null,null,null,null,null,null,null,null,null,null,null,"0-","S","0-","0-",0]
[null,null,null,"Feature Location Code",null,null,null,null,null,"Jurisdiction",null,null,null,null,null,null,null,null,null,null,null,null,null,null,null,null,null,null,null,null,null,null,null,null,null,null,null,null,null,null,null,null,null,null,null,null,null,null,null,null,null,null,null,null,null,null,null,null,null,null,null,null,null,null,null,null,null,null,null,null,null,null,null,null,null,null,null,null,null,31,null,null,null,0,0,0,null,0,0,0,"no data","Yes","","","?",0,0,0,null,null,"XXXXX000--------000.00AIS0-0-01","New Point","No","n/a","n/a",0,"n/a","00:00:00",0,0,0,"",null,"0--S-0--0-",0,"01",0,"?","?","?","?","?","?","?","I","000.00","A","?","000",0,null,null,null,"+ (blank)",null,null,null,null,null,null,null,null,null,null,null,"0-","S","0-","0-",0]
[null,null,null,"Site History",null,null,null,null,null,"Constructed By",null,null,null,null,null,null,null,null,null,null,null,null,null,null,null,null,null,null,null,null,{"$f":"(J13=\"10. No Curb Ramp\")+(J13=\"10. No Curb Ramp\")","v":0},null,null,null,null,null,null,null,null,null,null,null,null,null,null,null,null,null,null,null,null,null,null,null,null,null,null,null,null,null,null,"obstruction MEF",null,null,null,null,null,null,null,null,null,null,null,null,null,"pass/fail","location info","incomplete","has MEF?",31,null,null,null,0,0,0,null,0,0,0,"no data","Yes","","","?",0,0,0,null,null,"XXXXX000--------000.00AIS0-0-01","New Point","No","n/a","n/a",0,"n/a","00:00:00",0,0,0,"",null,"0--S-0--0-",0,"01",0,"?","?","?","?","?","?","?","I","000.00","A","?","000",0,null,null,null,"+ (blank)",null,null,null,null,null,null,null,null,null,null,null,"0-","S","0-","0-",0]
[null,null,null,null,{"$f":"HYPERLINK(\"#'READ-ME'!A148:A189\",\"Instructions\")","v":"Instructions"},null,null,{"$f":"HYPERLINK(\"#'READ-ME'!A201:A207\",\"Accuracy\")","v":"Accuracy"},null,null,null,"Enter numbers only\n1 = 1.00%, 2.25 = 2.25 ft, etc.",null,"Left Shoulder Width\n(LSW)",null,null,"ISUP Width\n(PW)",null,null,"Right Shoulder Width\n(RSW)",null,null,"Cross Slope (CS)",null,null,"Running Slope (RS)",null,null,null,"AheadBackIndicator",{"$f":"O4","v":0},null,null,null,null,null,null,null,null,null,null,null,null,null,null,null,null,null,null,null,"LSW",null,"PW",null,"RSW",null,"CS",null,"RS",null,null,null,null,"LSW",null,"PW",null,"RSW",null,"CS",null,"RS",null,null,null,null,null,null,null,31,null,null,null,0,0,0,null,0,0,0,"no data","Yes","","","?",0,0,0,null,null,"XXXXX000--------000.00AIS0-0-01","New Point","No","n/a","n/a",0,"n/a","00:00:00",0,0,0,"",null,"0--S-0--0-",0,"01",0,"?","?","?","?","?","?","?","I","000.00","A","?","000",0,null,null,null,"+ (blank)",null,null,null,null,null,null,null,null,null,null,null,"0-","S","0-","0-",0]
["OBSTRUCTIONS",null,null,null,"Geoportal",null,null,null,null,null,null,null,null,"ADA Compliance",null,null,"ADA Compliance",null,null,"ADA Compliance",null,null,"ADA Compliance",null,null,"ADA Compliance",null,null,null,"DirectionOfInventory",{"$f":"M5","v":0},"Lt or Rt",null,null,null,null,null,null,null,null,null,null,null,null,null,null,null,null,null,null," why fail?",null," why fail?",null," why fail?",null," why fail?",null," why fail?",null,"obstruction",null,null,"solution",null,"solution",null,"solution",null,"solution",null,"solution",null,"obstruction",null,null,null,null,null,31,null,null,null,0,0,0,null,0,0,0,"no data","Yes","","","?",0,0,0,null,null,"XXXXX000--------000.00AIS0-0-01","New Point","No","n/a","n/a",0,"n/a","00:00:00",0,0,0,"",null,"0--S-0--0-",0,"01",0,"?","?","?","?","?","?","?","I","000.00","A","?","000",0,null,null,null,"+ (blank)",null,null,null,null,null,null,null,null,null,null,null,"0-","S","0-","0-",0]
[null,null,null,null,null,"Location",null,null,null,"ISUP",null,null,null,"2 ft Min",null,null,"10 ft Min",null,null,"2 ft Min",null,null,"2.00% Max",null,null,"5.00% Max",null,null,null,null,null,null,null,null,null,null,null,null,null,null,null,null,null,null,null,null,null,null,null,null,null,",",null,",",null,",",null,",",null,",",null,null,null,null,",",null,",",null,",",null,",",null,",",null,null,null,null,null,null,31,null,null,null,0,0,0,null,0,0,0,"no data","Yes","","","?",0,0,0,null,null,"XXXXX000--------000.00AIS0-0-01","New Point","No","n/a","n/a",0,"n/a","00:00:00",0,0,0,"",null,"0--S-0--0-",0,"01",0,"?","?","?","?","?","?","?","I","000.00","A","?","000",0,null,null,null,"+ (blank)",null,null,null,null,null,null,null,null,null,null,null,"0-","S","0-","0-",0]
[null,null,null,null,null,"Latitude","Longitude","Station","MP","Characteristics",null,"Obstruction Type",null,"Measurement","MEF Criteria",null,"Measurement","MEF Criteria",null,"Measurement","MEF Criteria",null,"Measurement","MEF Criteria",null,"Measurement","MEF Criteria",null,null,"Obstruction","LSW",null,"ft Min",2,"PW",null,"ft Min",10,"RSW",null,"ft Min",2,"CS",null,"% Max",2,"RS",null,"% Max",5,null,null,null,null,null,null,null,null,null,null,null,null,"Summary of Non-Compliance",null,null,null,null,null,null,null,null,null,null,null,"Solution",null,null,null,null,31,null,null,null,0,0,0,null,0,0,0,"no data","Yes","","","?",0,0,0,null,null,"XXXXX000--------000.00AIS0-0-01","New Point","No","n/a","n/a",0,"n/a","00:00:00",0,0,0,"",null,"0--S-0--0-",0,"01",0,"?","?","?","?","?","?","?","I","000.00","A","?","000",0,null,null,null,"+ (blank)",null,null,null,null,null,null,null,null,null,null,null,"0-","S","0-","0-",0]
[null,null,null,null,{"$f":"IF(COUNTIF(BX13:BZ13,\"FAIL\")>0,\"FAIL\",IF(COUNTIF(BX13:BZ13,\"incomplete\")>0,\"incomplete\",IF(COUNTIF(BX13:BZ13,\"pass\")>0,\"pass\",\"\")))","v":""},null,null,null,null,null,null,null,null,null,null,"ft Min",null,null,"ft Min",null,null,"ft Min",null,null,"% Max",null,null,"% Max",null,{"$f":"IF(AND(LEFT(J13,2)<>\"3.\",LEFT(J13,2)<>\"9.\",LEFT(J13,2)<>\"10\"),\"pass\",IF(AND(LEFT(J13,2)=\"9.\",LEFT(L13,2)=\"17\"),\"pass\",\"FAIL\"))","v":"pass"},{"$f":"IF(ISBLANK(N13),\"\",IF(COUNTIF(AF13,AG13&AH13)>0,\"pass\",\"FAIL\"))","v":""},{"$f":"IF(ISBLANK(N13),\"no data\",N13)","v":"no data"},{"$f":"IF(ISBLANK(O13),CHOOSE(IF(RIGHT(N$11,3)=\"Min\",1,IF(RIGHT(N$11,3)=\"Max\",3,2)),\">=\",\"=\",\"<=\"),CHOOSE(IF(RIGHT(P13,3)=\"Min\",1,IF(RIGHT(P13,3)=\"Max\",3,2)),\">=\",\"=\",\"<=\"))","v":">="},{"$f":"IF(ISBLANK(O13),$AH$12,O13)","v":2},{"$f":"IF(ISBLANK(Q13),\"\",IF(COUNTIF(AJ13,AK13&AL13)>0,\"pass\",\"FAIL\"))","v":""},{"$f":"IF(ISBLANK(Q13),\"no data\",Q13)","v":"no data"},{"$f":"IF(ISBLANK(R13),CHOOSE(IF(RIGHT(Q$11,3)=\"Min\",1,IF(RIGHT(Q$11,3)=\"Max\",3,2)),\">=\",\"=\",\"<=\"),CHOOSE(IF(RIGHT(S13,3)=\"Min\",1,IF(RIGHT(S13,3)=\"Max\",3,2)),\">=\",\"=\",\"<=\"))","v":">="},{"$f":"IF(ISBLANK(R13),$AL$12,R13)","v":10},{"$f":"IF(ISBLANK(T13),\"\",IF(COUNTIF(AN13,AO13&AP13)>0,\"pass\",\"FAIL\"))","v":""},{"$f":"IF(ISBLANK(T13),\"no data\",T13)","v":"no data"},{"$f":"IF(ISBLANK(U13),CHOOSE(IF(RIGHT(T$11,3)=\"Min\",1,IF(RIGHT(T$11,3)=\"Max\",3,2)),\">=\",\"=\",\"<=\"),CHOOSE(IF(RIGHT(V13,3)=\"Min\",1,IF(RIGHT(V13,3)=\"Max\",3,2)),\">=\",\"=\",\"<=\"))","v":">="},{"$f":"IF(ISBLANK(U13),$AP$12,U13)","v":2},{"$f":"IF(ISBLANK(W13),\"\",IF(COUNTIF(AR13,AS13&AT13)>0,\"pass\",\"FAIL\"))","v":""},{"$f":"IF(ISBLANK(W13),\"no data\",W13)","v":"no data"},{"$f":"IF(ISBLANK(X13),CHOOSE(IF(RIGHT(W$11,3)=\"Min\",1,IF(RIGHT(W$11,3)=\"Max\",3,2)),\">=\",\"=\",\"<=\"),CHOOSE(IF(RIGHT(Y13,3)=\"Min\",1,IF(RIGHT(Y13,3)=\"Max\",3,2)),\">=\",\"=\",\"<=\"))","v":"<="},{"$f":"IF(ISBLANK(X13),$AT$12,X13)","v":2},{"$f":"IF(ISBLANK(Z13),\"\",IF(COUNTIF(AV13,AW13&AX13)>0,\"pass\",\"FAIL\"))","v":""},{"$f":"IF(ISBLANK(Z13),\"no data\",Z13)","v":"no data"},{"$f":"IF(ISBLANK(AA13),CHOOSE(IF(RIGHT(Z$11,3)=\"Min\",1,IF(RIGHT(Z$11,3)=\"Max\",3,2)),\">=\",\"=\",\"<=\"),CHOOSE(IF(RIGHT(AA13,3)=\"Min\",1,IF(RIGHT(AB13,3)=\"Max\",3,2)),\">=\",\"=\",\"<=\"))","v":"<="},{"$f":"IF(ISBLANK(AA13),$AX$12,AA13)","v":5},{"$f":"IF(AE13=\"FAIL\",\"left shoulder narrow\",\"\")","v":""},{"$f":"IF(AND(LEN(BA13)>0,(COUNTIF($AE13:AH13,\"=FAIL\")-COUNTIF($AY13:AY13,\"=, \"))>0),\", \",\"\")","v":""},{"$f":"IF(AI13=\"FAIL\",\"path narrow\",\"\")","v":""},{"$f":"IF(AND(LEN(BC13)>0,(COUNTIF($AE13:AL13,\"=FAIL\")-COUNTIF($AY13:AZ13,\"=, \"))>0),\", \",\"\")","v":""},{"$f":"IF(AM13=\"FAIL\",\"right shoulder narrow\",\"\")","v":""},{"$f":"IF(AND(LEN(BE13)>0,(COUNTIF($AE13:AP13,\"=FAIL\")-COUNTIF($AY13:BB13,\"=, \"))>0),\", \",\"\")","v":""},{"$f":"IF(AQ13=\"FAIL\",\"cross steep\",\"\")","v":""},{"$f":"IF(AND(LEN(BG13)>0,(COUNTIF($AE13:AT13,\"=FAIL\")-COUNTIF($AY13:BD13,\"=, \"))>0),\", \",\"\")","v":""},{"$f":"IF(AU13=\"FAIL\",\"run steep\",\"\")","v":""},{"$f":"IF(AND(E13=\"FAIL\",OR(AE13=\"FAIL\",AI13=\"FAIL\",AM13=\"FAIL\",AQ13=\"FAIL\",AU13=\"FAIL\"),LEN(BI13)>0),\", \",\"\")","v":""},{"$f":"IFERROR(CHOOSE(LEFT(J13,2),\"\",\"\",\"Vertical Surface Discontinuity\",\"\",\"\",\"\",\"\",\"\",IF(BJ13=0,IFERROR(VLOOKUP(L13,$AL$66:$AM$95,2,FALSE)&\" Obstruction\",\"Obstruction\"),\"\"),\"No Curb Ramp\"),\"\")","v":""},{"$f":"COUNTIF(L13,\"*\"&\"MEF\"&\"*\")","v":0},{"$f":"AY13&AZ13&BA13&BB13&BC13&BD13&BE13&BF13&BG13&BH13&BI13","v":""},{"$f":"IF(LEN(AY13)>0,\"widen left shoulder\",\"\")","v":""},{"$f":"AZ13","v":""},{"$f":"IF(LEN(BA13)>0,\"widen path\",\"\")","v":""},{"$f":"BB13","v":""},{"$f":"IF(LEN(BC13)>0,\"widen right shoulder\",\"\")","v":""},{"$f":"BD13","v":""},{"$f":"IF(LEN(BE13)>0,\"flatten cross-slope\",\"\")","v":""},{"$f":"BF13","v":""},{"$f":"IF(LEN(BG13)>0,\"flatten running-slope\",\"\")","v":""},{"$f":"BH13","v":""},{"$f":"IFERROR(CHOOSE(LEFT(J13,2),\"\",\"\",\"correct Vertical Surface Discontinuity\",\"\",\"\",\"\",\"\",\"\",IF(BJ13=0,\"remove Obstruction\",\"\"),\"install Curb Ramp\"),\"\")","v":""},{"$f":"BL13&BM13&BN13&BO13&BP13&BQ13&BR13&BS13&BT13&BU13&BV13","v":""},{"$f":"IF(COUNTIF(AD13:AX13,\"=FAIL\")>0,\"FAIL\",IF(COUNTIF(AD13:AX13,\"=pass\")<6,\"\",\"pass\"))","v":""},{"$f":"IF(OR(AND(J13=\"\",L13<>\"\"),AND(J13<>\"\",OR(ISBLANK(F13),ISBLANK(G13),ISBLANK(I13)))),\"incomplete\",\"\")","v":""},{"$f":"IF(OR(AND(J13=\"\",N13+Q13+T13+W13+Z13<>0),IFERROR(CHOOSE(LEFT(J13,2),1,1,1,1,1,1,1,1,1,2)+(N13<>\"\")*(Q13<>\"\")*(T13<>\"\")*(W13<>\"\")*(Z13<>\"\")<2,FALSE)),\"incomplete\",\"\")","v":""},{"$f":"IF(COUNTIF(L13,\"*\"&\"MEF\"&\"*\")+O13+R13+U13+X13+AA13>0,\"Has MEF\",\"\")","v":""},31,null,null,null,0,0,0,null,0,0,0,"no data","Yes","","","?",0,0,0,null,null,"XXXXX000--------000.00AIS0-0-01","New Point","No","n/a","n/a",0,"n/a","00:00:00",0,0,0,"",null,"0--S-0--0-",0,"01",0,"?","?","?","?","?","?","?","I","000.00","A","?","000",0,null,null,null,"+ (blank)",null,null,null,null,null,null,null,null,null,null,null,"0-","S","0-","0-",0]
[null,null,null,null,{"$f":"IF(COUNTIF(BX14:BZ14,\"FAIL\")>0,\"FAIL\",IF(COUNTIF(BX14:BZ14,\"incomplete\")>0,\"incomplete\",IF(COUNTIF(BX14:BZ14,\"pass\")>0,\"pass\",\"\")))","v":""},null,null,null,null,null,null,null,null,null,null,"ft Min",null,null,"ft Min",null,null,"ft Min",null,null,"% Max",null,null,"% Max",null,{"$f":"IF(AND(LEFT(J14,2)<>\"3.\",LEFT(J14,2)<>\"9.\",LEFT(J14,2)<>\"10\"),\"pass\",IF(AND(LEFT(J14,2)=\"9.\",LEFT(L14,2)=\"17\"),\"pass\",\"FAIL\"))","v":"pass"},{"$f":"IF(ISBLANK(N14),\"\",IF(COUNTIF(AF14,AG14&AH14)>0,\"pass\",\"FAIL\"))","v":""},{"$f":"IF(ISBLANK(N14),\"no data\",N14)","v":"no data"},{"$f":"IF(ISBLANK(O14),CHOOSE(IF(RIGHT(N$11,3)=\"Min\",1,IF(RIGHT(N$11,3)=\"Max\",3,2)),\">=\",\"=\",\"<=\"),CHOOSE(IF(RIGHT(P14,3)=\"Min\",1,IF(RIGHT(P14,3)=\"Max\",3,2)),\">=\",\"=\",\"<=\"))","v":">="},{"$f":"IF(ISBLANK(O14),$AH$12,O14)","v":2},{"$f":"IF(ISBLANK(Q14),\"\",IF(COUNTIF(AJ14,AK14&AL14)>0,\"pass\",\"FAIL\"))","v":""},{"$f":"IF(ISBLANK(Q14),\"no data\",Q14)","v":"no data"},{"$f":"IF(ISBLANK(R14),CHOOSE(IF(RIGHT(Q$11,3)=\"Min\",1,IF(RIGHT(Q$11,3)=\"Max\",3,2)),\">=\",\"=\",\"<=\"),CHOOSE(IF(RIGHT(S14,3)=\"Min\",1,IF(RIGHT(S14,3)=\"Max\",3,2)),\">=\",\"=\",\"<=\"))","v":">="},{"$f":"IF(ISBLANK(R14),$AL$12,R14)","v":10},{"$f":"IF(ISBLANK(T14),\"\",IF(COUNTIF(AN14,AO14&AP14)>0,\"pass\",\"FAIL\"))","v":""},{"$f":"IF(ISBLANK(T14),\"no data\",T14)","v":"no data"},{"$f":"IF(ISBLANK(U14),CHOOSE(IF(RIGHT(T$11,3)=\"Min\",1,IF(RIGHT(T$11,3)=\"Max\",3,2)),\">=\",\"=\",\"<=\"),CHOOSE(IF(RIGHT(V14,3)=\"Min\",1,IF(RIGHT(V14,3)=\"Max\",3,2)),\">=\",\"=\",\"<=\"))","v":">="},{"$f":"IF(ISBLANK(U14),$AP$12,U14)","v":2},{"$f":"IF(ISBLANK(W14),\"\",IF(COUNTIF(AR14,AS14&AT14)>0,\"pass\",\"FAIL\"))","v":""},{"$f":"IF(ISBLANK(W14),\"no data\",W14)","v":"no data"},{"$f":"IF(ISBLANK(X14),CHOOSE(IF(RIGHT(W$11,3)=\"Min\",1,IF(RIGHT(W$11,3)=\"Max\",3,2)),\">=\",\"=\",\"<=\"),CHOOSE(IF(RIGHT(Y14,3)=\"Min\",1,IF(RIGHT(Y14,3)=\"Max\",3,2)),\">=\",\"=\",\"<=\"))","v":"<="},{"$f":"IF(ISBLANK(X14),$AT$12,X14)","v":2},{"$f":"IF(ISBLANK(Z14),\"\",IF(COUNTIF(AV14,AW14&AX14)>0,\"pass\",\"FAIL\"))","v":""},{"$f":"IF(ISBLANK(Z14),\"no data\",Z14)","v":"no data"},{"$f":"IF(ISBLANK(AA14),CHOOSE(IF(RIGHT(Z$11,3)=\"Min\",1,IF(RIGHT(Z$11,3)=\"Max\",3,2)),\">=\",\"=\",\"<=\"),CHOOSE(IF(RIGHT(AA14,3)=\"Min\",1,IF(RIGHT(AB14,3)=\"Max\",3,2)),\">=\",\"=\",\"<=\"))","v":"<="},{"$f":"IF(ISBLANK(AA14),$AX$12,AA14)","v":5},{"$f":"IF(AE14=\"FAIL\",\"left shoulder narrow\",\"\")","v":""},{"$f":"IF(AND(LEN(BA14)>0,(COUNTIF($AE14:AH14,\"=FAIL\")-COUNTIF($AY14:AY14,\"=, \"))>0),\", \",\"\")","v":""},{"$f":"IF(AI14=\"FAIL\",\"path narrow\",\"\")","v":""},{"$f":"IF(AND(LEN(BC14)>0,(COUNTIF($AE14:AL14,\"=FAIL\")-COUNTIF($AY14:AZ14,\"=, \"))>0),\", \",\"\")","v":""},{"$f":"IF(AM14=\"FAIL\",\"right shoulder narrow\",\"\")","v":""},{"$f":"IF(AND(LEN(BE14)>0,(COUNTIF($AE14:AP14,\"=FAIL\")-COUNTIF($AY14:BB14,\"=, \"))>0),\", \",\"\")","v":""},{"$f":"IF(AQ14=\"FAIL\",\"cross steep\",\"\")","v":""},{"$f":"IF(AND(LEN(BG14)>0,(COUNTIF($AE14:AT14,\"=FAIL\")-COUNTIF($AY14:BD14,\"=, \"))>0),\", \",\"\")","v":""},{"$f":"IF(AU14=\"FAIL\",\"run steep\",\"\")","v":""},{"$f":"IF(AND(E14=\"FAIL\",OR(AE14=\"FAIL\",AI14=\"FAIL\",AM14=\"FAIL\",AQ14=\"FAIL\",AU14=\"FAIL\"),LEN(BI14)>0),\", \",\"\")","v":""},{"$f":"IFERROR(CHOOSE(LEFT(J14,2),\"\",\"\",\"Vertical Surface Discontinuity\",\"\",\"\",\"\",\"\",\"\",IF(BJ14=0,IFERROR(VLOOKUP(L14,$AL$66:$AM$95,2,FALSE)&\" Obstruction\",\"Obstruction\"),\"\"),\"No Curb Ramp\"),\"\")","v":""},{"$f":"COUNTIF(L14,\"*\"&\"MEF\"&\"*\")","v":0},{"$f":"AY14&AZ14&BA14&BB14&BC14&BD14&BE14&BF14&BG14&BH14&BI14","v":""},{"$f":"IF(LEN(AY14)>0,\"widen left shoulder\",\"\")","v":""},{"$f":"AZ14","v":""},{"$f":"IF(LEN(BA14)>0,\"widen path\",\"\")","v":""},{"$f":"BB14","v":""},{"$f":"IF(LEN(BC14)>0,\"widen right shoulder\",\"\")","v":""},{"$f":"BD14","v":""},{"$f":"IF(LEN(BE14)>0,\"flatten cross-slope\",\"\")","v":""},{"$f":"BF14","v":""},{"$f":"IF(LEN(BG14)>0,\"flatten running-slope\",\"\")","v":""},{"$f":"BH14","v":""},{"$f":"IFERROR(CHOOSE(LEFT(J14,2),\"\",\"\",\"correct Vertical Surface Discontinuity\",\"\",\"\",\"\",\"\",\"\",IF(BJ14=0,\"remove Obstruction\",\"\"),\"install Curb Ramp\"),\"\")","v":""},{"$f":"BL14&BM14&BN14&BO14&BP14&BQ14&BR14&BS14&BT14&BU14&BV14","v":""},{"$f":"IF(COUNTIF(AD14:AX14,\"=FAIL\")>0,\"FAIL\",IF(COUNTIF(AD14:AX14,\"=pass\")<6,\"\",\"pass\"))","v":""},{"$f":"IF(OR(AND(J14=\"\",L14<>\"\"),AND(J14<>\"\",OR(ISBLANK(F14),ISBLANK(G14),ISBLANK(I14)))),\"incomplete\",\"\")","v":""},{"$f":"IF(OR(AND(J14=\"\",N14+Q14+T14+W14+Z14<>0),IFERROR(CHOOSE(LEFT(J14,2),1,1,1,1,1,1,1,1,1,2)+(N14<>\"\")*(Q14<>\"\")*(T14<>\"\")*(W14<>\"\")*(Z14<>\"\")<2,FALSE)),\"incomplete\",\"\")","v":""},{"$f":"IF(COUNTIF(L14,\"*\"&\"MEF\"&\"*\")+O14+R14+U14+X14+AA14>0,\"Has MEF\",\"\")","v":""},31,null,null,null,0,0,0,null,0,0,0,"no data","Yes","","","?",0,0,0,null,null,"XXXXX000--------000.00AIS0-0-01","New Point","No","n/a","n/a",0,"n/a","00:00:00",0,0,0,"",null,"0--S-0--0-",0,"01",0,"?","?","?","?","?","?","?","I","000.00","A","?","000",0,null,null,null,"+ (blank)",null,null,null,null,null,null,null,null,null,null,null,"0-","S","0-","0-",0]
[null,null,null,null,"",null,null,null,null,null,null,null,null,null,null,"ft Min",null,null,"ft Min",null,null,"ft Min",null,null,"% Max",null,null,"% Max",null,"pass","","no data",">=",2,"","no data",">=",10,"","no data",">=",2,"","no data","<=",2,"","no data","<=",5,"",{"$f":"IF(AND(LEN(BA15)>0,(COUNTIF($AE15:AH15,\"=FAIL\")-COUNTIF($AY15:AY15,\"=, \"))>0),\", \",\"\")","v":""},"",{"$f":"IF(AND(LEN(BC15)>0,(COUNTIF($AE15:AL15,\"=FAIL\")-COUNTIF($AY15:AZ15,\"=, \"))>0),\", \",\"\")","v":""},"",{"$f":"IF(AND(LEN(BE15)>0,(COUNTIF($AE15:AP15,\"=FAIL\")-COUNTIF($AY15:BB15,\"=, \"))>0),\", \",\"\")","v":""},"",{"$f":"IF(AND(LEN(BG15)>0,(COUNTIF($AE15:AT15,\"=FAIL\")-COUNTIF($AY15:BD15,\"=, \"))>0),\", \",\"\")","v":""},"","","",0,"","","","","","","","","","","","","","","","","",31,null,null,null,0,0,0,null,0,0,0,"no data","Yes","","","?",0,0,0,null,null,"XXXXX000--------000.00AIS0-0-01","New Point","No","n/a","n/a",0,"n/a","00:00:00",0,0,0,"",null,"0--S-0--0-",0,"01",0,"?","?","?","?","?","?","?","I","000.00","A","?","000",0,null,null,null,"+ (blank)",null,null,null,null,null,null,null,null,null,null,null,"0-","S","0-","0-",0]
[null,null,null,null,"",null,null,null,null,null,null,null,null,null,null,"ft Min",null,null,"ft Min",null,null,"ft Min",null,null,"% Max",null,null,"% Max",null,"pass","","no data",">=",2,"","no data",">=",10,"","no data",">=",2,"","no data","<=",2,"","no data","<=",5,"",{"$f":"IF(AND(LEN(BA16)>0,(COUNTIF($AE16:AH16,\"=FAIL\")-COUNTIF($AY16:AY16,\"=, \"))>0),\", \",\"\")","v":""},"",{"$f":"IF(AND(LEN(BC16)>0,(COUNTIF($AE16:AL16,\"=FAIL\")-COUNTIF($AY16:AZ16,\"=, \"))>0),\", \",\"\")","v":""},"",{"$f":"IF(AND(LEN(BE16)>0,(COUNTIF($AE16:AP16,\"=FAIL\")-COUNTIF($AY16:BB16,\"=, \"))>0),\", \",\"\")","v":""},"",{"$f":"IF(AND(LEN(BG16)>0,(COUNTIF($AE16:AT16,\"=FAIL\")-COUNTIF($AY16:BD16,\"=, \"))>0),\", \",\"\")","v":""},"","","",0,"","","","","","","","","","","","","","","","","",31,null,null,null,0,0,0,null,0,0,0,"no data","Yes","","","?",0,0,0,null,null,"XXXXX000--------000.00AIS0-0-01","New Point","No","n/a","n/a",0,"n/a","00:00:00",0,0,0,"",null,"0--S-0--0-",0,"01",0,"?","?","?","?","?","?","?","I","000.00","A","?","000",0,null,null,null,"+ (blank)",null,null,null,null,null,null,null,null,null,null,null,"0-","S","0-","0-",0]
[null,null,null,null,"",null,null,null,null,null,null,null,null,null,null,"ft Min",null,null,"ft Min",null,null,"ft Min",null,null,"% Max",null,null,"% Max",null,"pass","","no data",">=",2,"","no data",">=",10,"","no data",">=",2,"","no data","<=",2,"","no data","<=",5,"",{"$f":"IF(AND(LEN(BA17)>0,(COUNTIF($AE17:AH17,\"=FAIL\")-COUNTIF($AY17:AY17,\"=, \"))>0),\", \",\"\")","v":""},"",{"$f":"IF(AND(LEN(BC17)>0,(COUNTIF($AE17:AL17,\"=FAIL\")-COUNTIF($AY17:AZ17,\"=, \"))>0),\", \",\"\")","v":""},"",{"$f":"IF(AND(LEN(BE17)>0,(COUNTIF($AE17:AP17,\"=FAIL\")-COUNTIF($AY17:BB17,\"=, \"))>0),\", \",\"\")","v":""},"",{"$f":"IF(AND(LEN(BG17)>0,(COUNTIF($AE17:AT17,\"=FAIL\")-COUNTIF($AY17:BD17,\"=, \"))>0),\", \",\"\")","v":""},"","","",0,"","","","","","","","","","","","","","","","","",31,null,null,null,0,0,0,null,0,0,0,"no data","Yes","","","?",0,0,0,null,null,"XXXXX000--------000.00AIS0-0-01","New Point","No","n/a","n/a",0,"n/a","00:00:00",0,0,0,"",null,"0--S-0--0-",0,"01",0,"?","?","?","?","?","?","?","I","000.00","A","?","000",0,null,null,null,"+ (blank)",null,null,null,null,null,null,null,null,null,null,null,"0-","S","0-","0-",0]
[null,null,null,null,"",null,null,null,null,null,null,null,null,null,null,"ft Min",null,null,"ft Min",null,null,"ft Min",null,null,"% Max",null,null,"% Max",null,"pass","","no data",">=",2,"","no data",">=",10,"","no data",">=",2,"","no data","<=",2,"","no data","<=",5,"",{"$f":"IF(AND(LEN(BA18)>0,(COUNTIF($AE18:AH18,\"=FAIL\")-COUNTIF($AY18:AY18,\"=, \"))>0),\", \",\"\")","v":""},"",{"$f":"IF(AND(LEN(BC18)>0,(COUNTIF($AE18:AL18,\"=FAIL\")-COUNTIF($AY18:AZ18,\"=, \"))>0),\", \",\"\")","v":""},"",{"$f":"IF(AND(LEN(BE18)>0,(COUNTIF($AE18:AP18,\"=FAIL\")-COUNTIF($AY18:BB18,\"=, \"))>0),\", \",\"\")","v":""},"",{"$f":"IF(AND(LEN(BG18)>0,(COUNTIF($AE18:AT18,\"=FAIL\")-COUNTIF($AY18:BD18,\"=, \"))>0),\", \",\"\")","v":""},"","","",0,"","","","","","","","","","","","","","","","","",31,null,null,null,0,0,0,null,0,0,0,"no data","Yes","","","?",0,0,0,null,null,"XXXXX000--------000.00AIS0-0-01","New Point","No","n/a","n/a",0,"n/a","00:00:00",0,0,0,"",null,"0--S-0--0-",0,"01",0,"?","?","?","?","?","?","?","I","000.00","A","?","000",0,null,null,null,"+ (blank)",null,null,null,null,null,null,null,null,null,null,null,"0-","S","0-","0-",0]
[null,null,null,null,"",null,null,null,null,null,null,null,null,null,null,"ft Min",null,null,"ft Min",null,null,"ft Min",null,null,"% Max",null,null,"% Max",null,"pass","","no data",">=",2,"","no data",">=",10,"","no data",">=",2,"","no data","<=",2,"","no data","<=",5,"",{"$f":"IF(AND(LEN(BA19)>0,(COUNTIF($AE19:AH19,\"=FAIL\")-COUNTIF($AY19:AY19,\"=, \"))>0),\", \",\"\")","v":""},"",{"$f":"IF(AND(LEN(BC19)>0,(COUNTIF($AE19:AL19,\"=FAIL\")-COUNTIF($AY19:AZ19,\"=, \"))>0),\", \",\"\")","v":""},"",{"$f":"IF(AND(LEN(BE19)>0,(COUNTIF($AE19:AP19,\"=FAIL\")-COUNTIF($AY19:BB19,\"=, \"))>0),\", \",\"\")","v":""},"",{"$f":"IF(AND(LEN(BG19)>0,(COUNTIF($AE19:AT19,\"=FAIL\")-COUNTIF($AY19:BD19,\"=, \"))>0),\", \",\"\")","v":""},"","","",0,"","","","","","","","","","","","","","","","","",31,null,null,null,0,0,0,null,0,0,0,"no data","Yes","","","?",0,0,0,null,null,"XXXXX000--------000.00AIS0-0-01","New Point","No","n/a","n/a",0,"n/a","00:00:00",0,0,0,"",null,"0--S-0--0-",0,"01",0,"?","?","?","?","?","?","?","I","000.00","A","?","000",0,null,null,null,"+ (blank)",null,null,null,null,null,null,null,null,null,null,null,"0-","S","0-","0-",0]
[null,null,null,null,"",null,null,null,null,null,null,null,null,null,null,"ft Min",null,null,"ft Min",null,null,"ft Min",null,null,"% Max",null,null,"% Max",null,"pass","","no data",">=",2,"","no data",">=",10,"","no data",">=",2,"","no data","<=",2,"","no data","<=",5,"",{"$f":"IF(AND(LEN(BA20)>0,(COUNTIF($AE20:AH20,\"=FAIL\")-COUNTIF($AY20:AY20,\"=, \"))>0),\", \",\"\")","v":""},"",{"$f":"IF(AND(LEN(BC20)>0,(COUNTIF($AE20:AL20,\"=FAIL\")-COUNTIF($AY20:AZ20,\"=, \"))>0),\", \",\"\")","v":""},"",{"$f":"IF(AND(LEN(BE20)>0,(COUNTIF($AE20:AP20,\"=FAIL\")-COUNTIF($AY20:BB20,\"=, \"))>0),\", \",\"\")","v":""},"",{"$f":"IF(AND(LEN(BG20)>0,(COUNTIF($AE20:AT20,\"=FAIL\")-COUNTIF($AY20:BD20,\"=, \"))>0),\", \",\"\")","v":""},"","","",0,"","","","","","","","","","","","","","","","","",31,null,null,null,0,0,0,null,0,0,0,"no data","Yes","","","?",0,0,0,null,null,"XXXXX000--------000.00AIS0-0-01","New Point","No","n/a","n/a",0,"n/a","00:00:00",0,0,0,"",null,"0--S-0--0-",0,"01",0,"?","?","?","?","?","?","?","I","000.00","A","?","000",0,null,null,null,"+ (blank)",null,null,null,null,null,null,null,null,null,null,null,"0-","S","0-","0-",0]
[null,null,null,null,"",null,null,null,null,null,null,null,null,null,null,"ft Min",null,null,"ft Min",null,null,"ft Min",null,null,"% Max",null,null,"% Max",null,"pass","","no data",">=",2,"","no data",">=",10,"","no data",">=",2,"","no data","<=",2,"","no data","<=",5,"",{"$f":"IF(AND(LEN(BA21)>0,(COUNTIF($AE21:AH21,\"=FAIL\")-COUNTIF($AY21:AY21,\"=, \"))>0),\", \",\"\")","v":""},"",{"$f":"IF(AND(LEN(BC21)>0,(COUNTIF($AE21:AL21,\"=FAIL\")-COUNTIF($AY21:AZ21,\"=, \"))>0),\", \",\"\")","v":""},"",{"$f":"IF(AND(LEN(BE21)>0,(COUNTIF($AE21:AP21,\"=FAIL\")-COUNTIF($AY21:BB21,\"=, \"))>0),\", \",\"\")","v":""},"",{"$f":"IF(AND(LEN(BG21)>0,(COUNTIF($AE21:AT21,\"=FAIL\")-COUNTIF($AY21:BD21,\"=, \"))>0),\", \",\"\")","v":""},"","","",0,"","","","","","","","","","","","","","","","","",31,null,null,null,0,0,0,null,0,0,0,"no data","Yes","","","?",0,0,0,null,null,"XXXXX000--------000.00AIS0-0-01","New Point","No","n/a","n/a",0,"n/a","00:00:00",0,0,0,"",null,"0--S-0--0-",0,"01",0,"?","?","?","?","?","?","?","I","000.00","A","?","000",0,null,null,null,"+ (blank)",null,null,null,null,null,null,null,null,null,null,null,"0-","S","0-","0-",0]
[null,null,null,null,"",null,null,null,null,null,null,null,null,null,null,"ft Min",null,null,"ft Min",null,null,"ft Min",null,null,"% Max",null,null,"% Max",null,"pass","","no data",">=",2,"","no data",">=",10,"","no data",">=",2,"","no data","<=",2,"","no data","<=",5,"",{"$f":"IF(AND(LEN(BA22)>0,(COUNTIF($AE22:AH22,\"=FAIL\")-COUNTIF($AY22:AY22,\"=, \"))>0),\", \",\"\")","v":""},"",{"$f":"IF(AND(LEN(BC22)>0,(COUNTIF($AE22:AL22,\"=FAIL\")-COUNTIF($AY22:AZ22,\"=, \"))>0),\", \",\"\")","v":""},"",{"$f":"IF(AND(LEN(BE22)>0,(COUNTIF($AE22:AP22,\"=FAIL\")-COUNTIF($AY22:BB22,\"=, \"))>0),\", \",\"\")","v":""},"",{"$f":"IF(AND(LEN(BG22)>0,(COUNTIF($AE22:AT22,\"=FAIL\")-COUNTIF($AY22:BD22,\"=, \"))>0),\", \",\"\")","v":""},"","","",0,"","","","","","","","","","","","","","","","","",31,null,null,null,0,0,0,null,0,0,0,"Curb Ramp None","Yes","","","?",0,0,0,null,null,"CRNon000--------000.00AIS0-0-01","New Point","No","n/a","n/a",0,"n/a","00:00:00",0,0,0,"",null,"0--S-0--0-",0,"01",0,"?","?","?","?","?","?","?","I","000.00","A","?","000",0,null,null,null,"+ (blank)",null,null,null,null,null,null,null,null,null,null,null,"0-","S","0-","0-",1]
[null,null,null,null,"",null,null,null,null,null,null,null,null,null,null,"ft Min",null,null,"ft Min",null,null,"ft Min",null,null,"% Max",null,null,"%",null,"pass","","no data",">=",2,"","no data",">=",10,"","no data",">=",2,"","no data","<=",2,"","no data","<=",5,"",{"$f":"IF(AND(LEN(BA23)>0,(COUNTIF($AE23:AH23,\"=FAIL\")-COUNTIF($AY23:AY23,\"=, \"))>0),\", \",\"\")","v":""},"",{"$f":"IF(AND(LEN(BC23)>0,(COUNTIF($AE23:AL23,\"=FAIL\")-COUNTIF($AY23:AZ23,\"=, \"))>0),\", \",\"\")","v":""},"",{"$f":"IF(AND(LEN(BE23)>0,(COUNTIF($AE23:AP23,\"=FAIL\")-COUNTIF($AY23:BB23,\"=, \"))>0),\", \",\"\")","v":""},"",{"$f":"IF(AND(LEN(BG23)>0,(COUNTIF($AE23:AT23,\"=FAIL\")-COUNTIF($AY23:BD23,\"=, \"))>0),\", \",\"\")","v":""},"","","",0,"","","","","","","","","","","","","","","","","",31,null,null,null,0,0,0,null,0,0,0,"no data","Yes","","","?",0,0,0,null,null,"XXXXX000--------000.00AIS0-0-01","New Point","No","n/a","n/a",0,"n/a","00:00:00",0,0,0,"",null,"0--S-0--0-",0,"01",0,"?","?","?","?","?","?","?","I","000.00","A","?","000",0,null,null,null,"+ (blank)",null,null,null,null,null,null,null,null,null,null,null,"0-","S","0-","0-",0]
[null,null,null,null,"",null,null,null,null,null,null,null,null,null,null,"ft Min",null,null,"ft Min",null,null,"ft Min",null,null,"% Max",null,null,"% Min",null,"pass","","no data",">=",2,"","no data",">=",10,"","no data",">=",2,"","no data","<=",2,"","no data","<=",5,"",{"$f":"IF(AND(LEN(BA24)>0,(COUNTIF($AE24:AH24,\"=FAIL\")-COUNTIF($AY24:AY24,\"=, \"))>0),\", \",\"\")","v":""},"",{"$f":"IF(AND(LEN(BC24)>0,(COUNTIF($AE24:AL24,\"=FAIL\")-COUNTIF($AY24:AZ24,\"=, \"))>0),\", \",\"\")","v":""},"",{"$f":"IF(AND(LEN(BE24)>0,(COUNTIF($AE24:AP24,\"=FAIL\")-COUNTIF($AY24:BB24,\"=, \"))>0),\", \",\"\")","v":""},"",{"$f":"IF(AND(LEN(BG24)>0,(COUNTIF($AE24:AT24,\"=FAIL\")-COUNTIF($AY24:BD24,\"=, \"))>0),\", \",\"\")","v":""},"","","",0,"","","","","","","","","","","","","","","","","",31,null,null,null,0,0,0,null,0,0,0,"no data","Yes","","","?",0,0,0,null,null,"XXXXX000--------000.00AIS0-0-01","New Point","No","n/a","n/a",0,"n/a","00:00:00",0,0,0,"",null,"0--S-0--0-",0,"01",0,"?","?","?","?","?","?","?","I","000.00","A","?","000",0,null,null,null,"+ (blank)",null,null,null,null,null,null,null,null,null,null,null,"0-","S","0-","0-",0]
[null,null,null,null,"",null,null,null,null,null,null,null,null,null,null,"ft Min",null,null,"ft Min",null,null,"ft Min",null,null,"% Max",null,null,"% Max",null,"pass","","no data",">=",2,"","no data",">=",10,"","no data",">=",2,"","no data","<=",2,"","no data","<=",5,"",{"$f":"IF(AND(LEN(BA25)>0,(COUNTIF($AE25:AH25,\"=FAIL\")-COUNTIF($AY25:AY25,\"=, \"))>0),\", \",\"\")","v":""},"",{"$f":"IF(AND(LEN(BC25)>0,(COUNTIF($AE25:AL25,\"=FAIL\")-COUNTIF($AY25:AZ25,\"=, \"))>0),\", \",\"\")","v":""},"",{"$f":"IF(AND(LEN(BE25)>0,(COUNTIF($AE25:AP25,\"=FAIL\")-COUNTIF($AY25:BB25,\"=, \"))>0),\", \",\"\")","v":""},"",{"$f":"IF(AND(LEN(BG25)>0,(COUNTIF($AE25:AT25,\"=FAIL\")-COUNTIF($AY25:BD25,\"=, \"))>0),\", \",\"\")","v":""},"","","",0,"","","","","","","","","","","","","","","","","",31,null,null,null,0,0,0,null,0,0,0,"no data","Yes","","","?",0,0,0,null,null,"XXXXX000--------000.00AIS0-0-01","New Point","No","n/a","n/a",0,"n/a","00:00:00",0,0,0,"",null,"0--S-0--0-",0,"01",0,"?","?","?","?","?","?","?","I","000.00","A","?","000",0,null,null,null,"+ (blank)",null,null,null,null,null,null,null,null,null,null,null,"0-","S","0-","0-",0]
[null,null,null,null,"",null,null,null,null,null,null,null,null,null,null,"ft Min",null,null,"ft Min",null,null,"ft Min",null,null,"% Max",null,null,"% Max",null,"pass","","no data",">=",2,"","no data",">=",10,"","no data",">=",2,"","no data","<=",2,"","no data","<=",5,"",{"$f":"IF(AND(LEN(BA26)>0,(COUNTIF($AE26:AH26,\"=FAIL\")-COUNTIF($AY26:AY26,\"=, \"))>0),\", \",\"\")","v":""},"",{"$f":"IF(AND(LEN(BC26)>0,(COUNTIF($AE26:AL26,\"=FAIL\")-COUNTIF($AY26:AZ26,\"=, \"))>0),\", \",\"\")","v":""},"",{"$f":"IF(AND(LEN(BE26)>0,(COUNTIF($AE26:AP26,\"=FAIL\")-COUNTIF($AY26:BB26,\"=, \"))>0),\", \",\"\")","v":""},"",{"$f":"IF(AND(LEN(BG26)>0,(COUNTIF($AE26:AT26,\"=FAIL\")-COUNTIF($AY26:BD26,\"=, \"))>0),\", \",\"\")","v":""},"","","",0,"","","","","","","","","","","","","","","","","",31,null,null,null,0,0,0,null,0,0,0,"no data","Yes","","","?",0,0,0,null,null,"XXXXX000--------000.00AIS0-0-01","New Point","No","n/a","n/a",0,"n/a","00:00:00",0,0,0,"",null,"0--S-0--0-",0,"01",0,"?","?","?","?","?","?","?","I","000.00","A","?","000",0,null,null,null,"+ (blank)",null,null,null,null,null,null,null,null,null,null,null,"0-","S","0-","0-",0]
[null,null,null,null,"",null,null,null,null,null,null,null,null,null,null,"ft Min",null,null,"ft Min",null,null,"ft Min",null,null,"% Max",null,null,"% Max",null,"pass","","no data",">=",2,"","no data",">=",10,"","no data",">=",2,"","no data","<=",2,"","no data","<=",5,"",{"$f":"IF(AND(LEN(BA27)>0,(COUNTIF($AE27:AH27,\"=FAIL\")-COUNTIF($AY27:AY27,\"=, \"))>0),\", \",\"\")","v":""},"",{"$f":"IF(AND(LEN(BC27)>0,(COUNTIF($AE27:AL27,\"=FAIL\")-COUNTIF($AY27:AZ27,\"=, \"))>0),\", \",\"\")","v":""},"",{"$f":"IF(AND(LEN(BE27)>0,(COUNTIF($AE27:AP27,\"=FAIL\")-COUNTIF($AY27:BB27,\"=, \"))>0),\", \",\"\")","v":""},"",{"$f":"IF(AND(LEN(BG27)>0,(COUNTIF($AE27:AT27,\"=FAIL\")-COUNTIF($AY27:BD27,\"=, \"))>0),\", \",\"\")","v":""},"","","",0,"","","","","","","","","","","","","","","","","",31,null,null,null,0,0,0,null,0,0,0,"no data","Yes","","","?",0,0,0,null,null,"XXXXX000--------000.00AIS0-0-01","New Point","No","n/a","n/a",0,"n/a","00:00:00",0,0,0,"",null,"0--S-0--0-",0,"01",0,"?","?","?","?","?","?","?","I","000.00","A","?","000",0,null,null,null,"+ (blank)",null,null,null,null,null,null,null,null,null,null,null,"0-","S","0-","0-",0]
[null,null,null,null,"",null,null,null,null,null,null,null,null,null,null,"ft Min",null,null,"ft Max",null,null,"ft Min",null,null,"% Max",null,null,"% Max",null,"pass","","no data",">=",2,"","no data",">=",10,"","no data",">=",2,"","no data","<=",2,"","no data","<=",5,"",{"$f":"IF(AND(LEN(BA28)>0,(COUNTIF($AE28:AH28,\"=FAIL\")-COUNTIF($AY28:AY28,\"=, \"))>0),\", \",\"\")","v":""},"",{"$f":"IF(AND(LEN(BC28)>0,(COUNTIF($AE28:AL28,\"=FAIL\")-COUNTIF($AY28:AZ28,\"=, \"))>0),\", \",\"\")","v":""},"",{"$f":"IF(AND(LEN(BE28)>0,(COUNTIF($AE28:AP28,\"=FAIL\")-COUNTIF($AY28:BB28,\"=, \"))>0),\", \",\"\")","v":""},"",{"$f":"IF(AND(LEN(BG28)>0,(COUNTIF($AE28:AT28,\"=FAIL\")-COUNTIF($AY28:BD28,\"=, \"))>0),\", \",\"\")","v":""},"","","",0,"","","","","","","","","","","","","","","","","",31,null,null,null,0,0,0,null,0,0,0,"no data","Yes","","","?",0,0,0,null,null,"XXXXX000--------000.00AIS0-0-01","New Point","No","n/a","n/a",0,"n/a","00:00:00",0,0,0,"",null,"0--S-0--0-",0,"01",0,"?","?","?","?","?","?","?","I","000.00","A","?","000",0,null,null,null,"+ (blank)",null,null,null,null,null,null,null,null,null,null,null,"0-","S","0-","0-",0]
[null,null,null,null,"",null,null,null,null,null,null,null,null,null,null,"ft Min",null,null,"ft Min",null,null,"ft Min",null,null,"% Max",null,null,"% Max",null,"pass","","no data",">=",2,"","no data",">=",10,"","no data",">=",2,"","no data","<=",2,"","no data","<=",5,"",{"$f":"IF(AND(LEN(BA29)>0,(COUNTIF($AE29:AH29,\"=FAIL\")-COUNTIF($AY29:AY29,\"=, \"))>0),\", \",\"\")","v":""},"",{"$f":"IF(AND(LEN(BC29)>0,(COUNTIF($AE29:AL29,\"=FAIL\")-COUNTIF($AY29:AZ29,\"=, \"))>0),\", \",\"\")","v":""},"",{"$f":"IF(AND(LEN(BE29)>0,(COUNTIF($AE29:AP29,\"=FAIL\")-COUNTIF($AY29:BB29,\"=, \"))>0),\", \",\"\")","v":""},"",{"$f":"IF(AND(LEN(BG29)>0,(COUNTIF($AE29:AT29,\"=FAIL\")-COUNTIF($AY29:BD29,\"=, \"))>0),\", \",\"\")","v":""},"","","",0,"","","","","","","","","","","","","","","","","",31,null,null,null,0,0,0,null,0,0,0,"no data","Yes","","","?",0,0,0,null,null,"XXXXX000--------000.00AIS0-0-01","New Point","No","n/a","n/a",0,"n/a","00:00:00",0,0,0,"",null,"0--S-0--0-",0,"01",0,"?","?","?","?","?","?","?","I","000.00","A","?","000",0,null,null,null,"+ (blank)",null,null,null,null,null,null,null,null,null,null,null,"0-","S","0-","0-",0]
[null,null,null,null,"",null,null,null,null,null,null,null,null,null,null,"ft Min",null,null,"ft Min",null,null,"ft Min",null,null,"% Max",null,null,"% Max",null,"pass","","no data",">=",2,"","no data",">=",10,"","no data",">=",2,"","no data","<=",2,"","no data","<=",5,"",{"$f":"IF(AND(LEN(BA30)>0,(COUNTIF($AE30:AH30,\"=FAIL\")-COUNTIF($AY30:AY30,\"=, \"))>0),\", \",\"\")","v":""},"",{"$f":"IF(AND(LEN(BC30)>0,(COUNTIF($AE30:AL30,\"=FAIL\")-COUNTIF($AY30:AZ30,\"=, \"))>0),\", \",\"\")","v":""},"",{"$f":"IF(AND(LEN(BE30)>0,(COUNTIF($AE30:AP30,\"=FAIL\")-COUNTIF($AY30:BB30,\"=, \"))>0),\", \",\"\")","v":""},"",{"$f":"IF(AND(LEN(BG30)>0,(COUNTIF($AE30:AT30,\"=FAIL\")-COUNTIF($AY30:BD30,\"=, \"))>0),\", \",\"\")","v":""},"","","",0,"","","","","","","","","","","","","","","","","",31,null,null,null,0,0,0,null,0,0,0,"no data","Yes","","","?",0,0,0,null,null,"XXXXX000--------000.00AIS0-0-01","New Point","No","n/a","n/a",0,"n/a","00:00:00",0,0,0,"",null,"0--S-0--0-",0,"01",0,"?","?","?","?","?","?","?","I","000.00","A","?","000",0,null,null,null,"+ (blank)",null,null,null,null,null,null,null,null,null,null,null,"0-","S","0-","0-",0]
[null,null,null,null,"",null,null,null,null,"",null,null,null,null,null,"ft Min",null,null,"ft Min",null,null,"ft Min",null,null,"% Max",null,null,"% Max",null,"pass","","no data",">=",2,"","no data",">=",10,"","no data",">=",2,"","no data","<=",2,"","no data","<=",5,"",{"$f":"IF(AND(LEN(BA31)>0,(COUNTIF($AE31:AH31,\"=FAIL\")-COUNTIF($AY31:AY31,\"=, \"))>0),\", \",\"\")","v":""},"",{"$f":"IF(AND(LEN(BC31)>0,(COUNTIF($AE31:AL31,\"=FAIL\")-COUNTIF($AY31:AZ31,\"=, \"))>0),\", \",\"\")","v":""},"",{"$f":"IF(AND(LEN(BE31)>0,(COUNTIF($AE31:AP31,\"=FAIL\")-COUNTIF($AY31:BB31,\"=, \"))>0),\", \",\"\")","v":""},"",{"$f":"IF(AND(LEN(BG31)>0,(COUNTIF($AE31:AT31,\"=FAIL\")-COUNTIF($AY31:BD31,\"=, \"))>0),\", \",\"\")","v":""},"","","",0,"","","","","","","","","","","","","","","","","",31,null,null,null,0,0,0,null,0,0,0,"no data","Yes","","","?",0,0,0,null,null,"XXXXX000--------000.00AIS0-0-01","New Point","No","n/a","n/a",0,"n/a","00:00:00",0,0,0,"",null,"0--S-0--0-",0,"01",0,"?","?","?","?","?","?","?","I","000.00","A","?","000",0,null,null,null,"+ (blank)",null,null,null,null,null,null,null,null,null,null,null,"0-","S","0-","0-",0]
[null,null,null,null,"",null,null,null,null,null,null,null,null,null,null,"ft Min",null,null,"ft Min",null,null,"ft Min",null,null,"% Max",null,null,"% Max",null,"pass","","no data",">=",2,"","no data",">=",10,"","no data",">=",2,"","no data","<=",2,"","no data","<=",5,"",{"$f":"IF(AND(LEN(BA32)>0,(COUNTIF($AE32:AH32,\"=FAIL\")-COUNTIF($AY32:AY32,\"=, \"))>0),\", \",\"\")","v":""},"",{"$f":"IF(AND(LEN(BC32)>0,(COUNTIF($AE32:AL32,\"=FAIL\")-COUNTIF($AY32:AZ32,\"=, \"))>0),\", \",\"\")","v":""},"",{"$f":"IF(AND(LEN(BE32)>0,(COUNTIF($AE32:AP32,\"=FAIL\")-COUNTIF($AY32:BB32,\"=, \"))>0),\", \",\"\")","v":""},"",{"$f":"IF(AND(LEN(BG32)>0,(COUNTIF($AE32:AT32,\"=FAIL\")-COUNTIF($AY32:BD32,\"=, \"))>0),\", \",\"\")","v":""},"","","",0,"","","","","","","","","","","","","","","","","",31,null,null,null,0,0,0,null,0,0,0,"no data","Yes","","","?",0,0,0,null,null,"XXXXX000--------000.00AIS0-0-01","New Point","No","n/a","n/a",0,"n/a","00:00:00",0,0,0,"",null,"0--S-0--0-",0,"01",0,"?","?","?","?","?","?","?","I","000.00","A","?","000",0,null,null,null,"+ (blank)",null,null,null,null,null,null,null,null,null,null,null,"0-","S","0-","0-",0]
[null,null,null,null,"",null,null,null,null,null,null,null,null,null,null,"ft Min",null,null,"ft Min",null,null,"ft Min",null,null,"% Max",null,null,"% Max",null,"pass","","no data",">=",2,"","no data",">=",10,"","no data",">=",2,"","no data","<=",2,"","no data","<=",5,"",{"$f":"IF(AND(LEN(BA33)>0,(COUNTIF($AE33:AH33,\"=FAIL\")-COUNTIF($AY33:AY33,\"=, \"))>0),\", \",\"\")","v":""},"",{"$f":"IF(AND(LEN(BC33)>0,(COUNTIF($AE33:AL33,\"=FAIL\")-COUNTIF($AY33:AZ33,\"=, \"))>0),\", \",\"\")","v":""},"",{"$f":"IF(AND(LEN(BE33)>0,(COUNTIF($AE33:AP33,\"=FAIL\")-COUNTIF($AY33:BB33,\"=, \"))>0),\", \",\"\")","v":""},"",{"$f":"IF(AND(LEN(BG33)>0,(COUNTIF($AE33:AT33,\"=FAIL\")-COUNTIF($AY33:BD33,\"=, \"))>0),\", \",\"\")","v":""},"","","",0,"","","","","","","","","","","","","","","","","",31,null,null,null,0,0,0,null,0,0,0,"no data","Yes","","","?",0,0,0,null,null,"XXXXX000--------000.00AIS0-0-01","New Point","No","n/a","n/a",0,"n/a","00:00:00",0,0,0,"",null,"0--S-0--0-",0,"01",0,"?","?","?","?","?","?","?","I","000.00","A","?","000",0,null,null,null,"+ (blank)",null,null,null,null,null,null,null,null,null,null,null,"0-","S","0-","0-",0]
[null,null,null,null,"",null,null,null,null,null,null,null,null,null,null,"ft Min",null,null,"ft Min",null,null,"ft Min",null,null,"% Max",null,null,"% Max",null,"pass","","no data",">=",2,"","no data",">=",10,"","no data",">=",2,"","no data","<=",2,"","no data","<=",5,"",{"$f":"IF(AND(LEN(BA34)>0,(COUNTIF($AE34:AH34,\"=FAIL\")-COUNTIF($AY34:AY34,\"=, \"))>0),\", \",\"\")","v":""},"",{"$f":"IF(AND(LEN(BC34)>0,(COUNTIF($AE34:AL34,\"=FAIL\")-COUNTIF($AY34:AZ34,\"=, \"))>0),\", \",\"\")","v":""},"",{"$f":"IF(AND(LEN(BE34)>0,(COUNTIF($AE34:AP34,\"=FAIL\")-COUNTIF($AY34:BB34,\"=, \"))>0),\", \",\"\")","v":""},"",{"$f":"IF(AND(LEN(BG34)>0,(COUNTIF($AE34:AT34,\"=FAIL\")-COUNTIF($AY34:BD34,\"=, \"))>0),\", \",\"\")","v":""},"","","",0,"","","","","","","","","","","","","","","","","",31,null,null,null,0,0,0,null,0,0,0,"no data","Yes","","","?",0,0,0,null,null,"XXXXX000--------000.00AIS0-0-01","New Point","No","n/a","n/a",0,"n/a","00:00:00",0,0,0,"",null,"0--S-0--0-",0,"01",0,"?","?","?","?","?","?","?","I","000.00","A","?","000",0,null,null,null,"+ (blank)",null,null,null,null,null,null,null,null,null,null,null,"0-","S","0-","0-",0]
[null,null,null,null,"",null,null,null,null,null,null,null,null,null,null,"ft Min",null,null,"ft Min",null,null,"ft Min",null,null,"% Max",null,null,"% Max",null,"pass","","no data",">=",2,"","no data",">=",10,"","no data",">=",2,"","no data","<=",2,"","no data","<=",5,"",{"$f":"IF(AND(LEN(BA35)>0,(COUNTIF($AE35:AH35,\"=FAIL\")-COUNTIF($AY35:AY35,\"=, \"))>0),\", \",\"\")","v":""},"",{"$f":"IF(AND(LEN(BC35)>0,(COUNTIF($AE35:AL35,\"=FAIL\")-COUNTIF($AY35:AZ35,\"=, \"))>0),\", \",\"\")","v":""},"",{"$f":"IF(AND(LEN(BE35)>0,(COUNTIF($AE35:AP35,\"=FAIL\")-COUNTIF($AY35:BB35,\"=, \"))>0),\", \",\"\")","v":""},"",{"$f":"IF(AND(LEN(BG35)>0,(COUNTIF($AE35:AT35,\"=FAIL\")-COUNTIF($AY35:BD35,\"=, \"))>0),\", \",\"\")","v":""},"","","",0,"","","","","","","","","","","","","","","","","",31,null,null,null,0,0,0,null,0,0,0,"no data","Yes","","","?",0,0,0,null,null,"XXXXX000--------000.00AIS0-0-01","New Point","No","n/a","n/a",0,"n/a","00:00:00",0,0,0,"",null,"0--S-0--0-",0,"01",0,"?","?","?","?","?","?","?","I","000.00","A","?","000",0,null,null,null,"+ (blank)",null,null,null,null,null,null,null,null,null,null,null,"0-","S","0-","0-",0]
[null,null,null,null,"",null,null,null,null,null,null,null,null,null,null,"ft Min",null,null,"ft Min",null,null,"ft Min",null,null,"% Max",null,null,"% Max",null,"pass","","no data",">=",2,"","no data",">=",10,"","no data",">=",2,"","no data","<=",2,"","no data","<=",5,"",{"$f":"IF(AND(LEN(BA36)>0,(COUNTIF($AE36:AH36,\"=FAIL\")-COUNTIF($AY36:AY36,\"=, \"))>0),\", \",\"\")","v":""},"",{"$f":"IF(AND(LEN(BC36)>0,(COUNTIF($AE36:AL36,\"=FAIL\")-COUNTIF($AY36:AZ36,\"=, \"))>0),\", \",\"\")","v":""},"",{"$f":"IF(AND(LEN(BE36)>0,(COUNTIF($AE36:AP36,\"=FAIL\")-COUNTIF($AY36:BB36,\"=, \"))>0),\", \",\"\")","v":""},"",{"$f":"IF(AND(LEN(BG36)>0,(COUNTIF($AE36:AT36,\"=FAIL\")-COUNTIF($AY36:BD36,\"=, \"))>0),\", \",\"\")","v":""},"","","",0,"","","","","","","","","","","","","","","","","",31,null,null,null,0,0,0,null,0,0,0,"no data","Yes","","","?",0,0,0,null,null,"XXXXX000--------000.00AIS0-0-01","New Point","No","n/a","n/a",0,"n/a","00:00:00",0,0,0,"",null,"0--S-0--0-",0,"01",0,"?","?","?","?","?","?","?","I","000.00","A","?","000",0,null,null,null,"+ (blank)",null,null,null,null,null,null,null,null,null,null,null,"0-","S","0-","0-",0]
[null,null,null,null,"",null,null,null,null,null,null,null,null,null,null,"ft Min",null,null,"ft Min",null,null,"ft Min",null,null,"% Max",null,null,"% Max",null,"pass","","no data",">=",2,"","no data",">=",10,"","no data",">=",2,"","no data","<=",2,"","no data","<=",5,"",{"$f":"IF(AND(LEN(BA37)>0,(COUNTIF($AE37:AH37,\"=FAIL\")-COUNTIF($AY37:AY37,\"=, \"))>0),\", \",\"\")","v":""},"",{"$f":"IF(AND(LEN(BC37)>0,(COUNTIF($AE37:AL37,\"=FAIL\")-COUNTIF($AY37:AZ37,\"=, \"))>0),\", \",\"\")","v":""},"",{"$f":"IF(AND(LEN(BE37)>0,(COUNTIF($AE37:AP37,\"=FAIL\")-COUNTIF($AY37:BB37,\"=, \"))>0),\", \",\"\")","v":""},"",{"$f":"IF(AND(LEN(BG37)>0,(COUNTIF($AE37:AT37,\"=FAIL\")-COUNTIF($AY37:BD37,\"=, \"))>0),\", \",\"\")","v":""},"","","",0,"","","","","","","","","","","","","","","","","",31,null,null,null,0,0,0,null,0,0,0,"no data","Yes","","","?",0,0,0,null,null,"XXXXX000--------000.00AIS0-0-01","New Point","No","n/a","n/a",0,"n/a","00:00:00",0,0,0,"",null,"0--S-0--0-",0,"01",0,"?","?","?","?","?","?","?","I","000.00","A","?","000",0,null,null,null,"+ (blank)",null,null,null,null,null,null,null,null,null,null,null,"0-","S","0-","0-",0]
[null,null,null,null,"",null,null,null,null,null,null,null,null,null,null,"ft Min",null,null,"ft Min",null,null,"ft Min",null,null,"% Max",null,null,"% Max",null,"pass","","no data",">=",2,"","no data",">=",10,"","no data",">=",2,"","no data","<=",2,"","no data","<=",5,"",{"$f":"IF(AND(LEN(BA38)>0,(COUNTIF($AE38:AH38,\"=FAIL\")-COUNTIF($AY38:AY38,\"=, \"))>0),\", \",\"\")","v":""},"",{"$f":"IF(AND(LEN(BC38)>0,(COUNTIF($AE38:AL38,\"=FAIL\")-COUNTIF($AY38:AZ38,\"=, \"))>0),\", \",\"\")","v":""},"",{"$f":"IF(AND(LEN(BE38)>0,(COUNTIF($AE38:AP38,\"=FAIL\")-COUNTIF($AY38:BB38,\"=, \"))>0),\", \",\"\")","v":""},"",{"$f":"IF(AND(LEN(BG38)>0,(COUNTIF($AE38:AT38,\"=FAIL\")-COUNTIF($AY38:BD38,\"=, \"))>0),\", \",\"\")","v":""},"","","",0,"","","","","","","","","","","","","","","","","",31,null,null,null,0,0,0,null,0,0,0,"no data","Yes","","","?",0,0,0,null,null,"XXXXX000--------000.00AIS0-0-01","New Point","No","n/a","n/a",0,"n/a","00:00:00",0,0,0,"",null,"0--S-0--0-",0,"01",0,"?","?","?","?","?","?","?","I","000.00","A","?","000",0,null,null,null,"+ (blank)",null,null,null,null,null,null,null,null,null,null,null,"0-","S","0-","0-",0]
[null,null,null,null,"",null,null,null,null,null,null,null,null,null,null,"ft Min",null,null,"ft Min",null,null,"ft Min",null,null,"% Max",null,null,"% Max",null,"pass","","no data",">=",2,"","no data",">=",10,"","no data",">=",2,"","no data","<=",2,"","no data","<=",5,"",{"$f":"IF(AND(LEN(BA39)>0,(COUNTIF($AE39:AH39,\"=FAIL\")-COUNTIF($AY39:AY39,\"=, \"))>0),\", \",\"\")","v":""},"",{"$f":"IF(AND(LEN(BC39)>0,(COUNTIF($AE39:AL39,\"=FAIL\")-COUNTIF($AY39:AZ39,\"=, \"))>0),\", \",\"\")","v":""},"",{"$f":"IF(AND(LEN(BE39)>0,(COUNTIF($AE39:AP39,\"=FAIL\")-COUNTIF($AY39:BB39,\"=, \"))>0),\", \",\"\")","v":""},"",{"$f":"IF(AND(LEN(BG39)>0,(COUNTIF($AE39:AT39,\"=FAIL\")-COUNTIF($AY39:BD39,\"=, \"))>0),\", \",\"\")","v":""},"","","",0,"","","","","","","","","","","","","","","","","",31,null,null,null,0,0,0,null,0,0,0,"no data","Yes","","","?",0,0,0,null,null,"XXXXX000--------000.00AIS0-0-01","New Point","No","n/a","n/a",0,"n/a","00:00:00",0,0,0,"",null,"0--S-0--0-",0,"01",0,"?","?","?","?","?","?","?","I","000.00","A","?","000",0,null,null,null,"+ (blank)",null,null,null,null,null,null,null,null,null,null,null,"0-","S","0-","0-",0]
[null,null,null,null,"",null,null,null,null,null,null,null,null,null,null,"ft Min",null,null,"ft Min",null,null,"ft Min",null,null,"% Max",null,null,"% Max",null,"pass","","no data",">=",2,"","no data",">=",10,"","no data",">=",2,"","no data","<=",2,"","no data","<=",5,"",{"$f":"IF(AND(LEN(BA40)>0,(COUNTIF($AE40:AH40,\"=FAIL\")-COUNTIF($AY40:AY40,\"=, \"))>0),\", \",\"\")","v":""},"",{"$f":"IF(AND(LEN(BC40)>0,(COUNTIF($AE40:AL40,\"=FAIL\")-COUNTIF($AY40:AZ40,\"=, \"))>0),\", \",\"\")","v":""},"",{"$f":"IF(AND(LEN(BE40)>0,(COUNTIF($AE40:AP40,\"=FAIL\")-COUNTIF($AY40:BB40,\"=, \"))>0),\", \",\"\")","v":""},"",{"$f":"IF(AND(LEN(BG40)>0,(COUNTIF($AE40:AT40,\"=FAIL\")-COUNTIF($AY40:BD40,\"=, \"))>0),\", \",\"\")","v":""},"","","",0,"","","","","","","","","","","","","","","","","",31,null,null,null,0,0,0,null,0,0,0,"no data","Yes","","","?",0,0,0,null,null,"XXXXX000--------000.00AIS0-0-01","New Point","No","n/a","n/a",0,"n/a","00:00:00",0,0,0,"",null,"0--S-0--0-",0,"01",0,"?","?","?","?","?","?","?","I","000.00","A","?","000",0,null,null,null,"+ (blank)",null,null,null,null,null,null,null,null,null,null,null,"0-","S","0-","0-",0]
[null,{"$f":"IF(COUNTIF(L13:M51,\"17. MEF\")>0,\"NOTES -- Identify Obstruction MEF\",\"NOTES\")","v":"NOTES"},null,null,"",null,null,null,null,null,null,null,null,null,null,"ft Min",null,null,"ft Min",null,null,"ft Min",null,null,"% Max",null,null,"% Max",null,"pass","","no data",">=",2,"","no data",">=",10,"","no data",">=",2,"","no data","<=",2,"","no data","<=",5,"",{"$f":"IF(AND(LEN(BA41)>0,(COUNTIF($AE41:AH41,\"=FAIL\")-COUNTIF($AY41:AY41,\"=, \"))>0),\", \",\"\")","v":""},"",{"$f":"IF(AND(LEN(BC41)>0,(COUNTIF($AE41:AL41,\"=FAIL\")-COUNTIF($AY41:AZ41,\"=, \"))>0),\", \",\"\")","v":""},"",{"$f":"IF(AND(LEN(BE41)>0,(COUNTIF($AE41:AP41,\"=FAIL\")-COUNTIF($AY41:BB41,\"=, \"))>0),\", \",\"\")","v":""},"",{"$f":"IF(AND(LEN(BG41)>0,(COUNTIF($AE41:AT41,\"=FAIL\")-COUNTIF($AY41:BD41,\"=, \"))>0),\", \",\"\")","v":""},"","","",0,"","","","","","","","","","","","","","","","","",31,null,null,null,0,0,0,null,0,0,0,"no data","Yes","","","?",0,0,0,null,null,"XXXXX000--------000.00AIS0-0-01","New Point","No","n/a","n/a",0,"n/a","00:00:00",0,0,0,"",null,"0--S-0--0-",0,"01",0,"?","?","?","?","?","?","?","I","000.00","A","?","000",0,null,null,null,"+ (blank)",null,null,null,null,null,null,null,null,null,null,null,"0-","S","0-","0-",0]
[null,null,null,null,"",null,null,null,null,null,null,null,null,null,null,"ft Min",null,null,"ft Min",null,null,"ft Min",null,null,"% Max",null,null,"% Max",null,"pass","","no data",">=",2,"","no data",">=",10,"","no data",">=",2,"","no data","<=",2,"","no data","<=",5,"",{"$f":"IF(AND(LEN(BA42)>0,(COUNTIF($AE42:AH42,\"=FAIL\")-COUNTIF($AY42:AY42,\"=, \"))>0),\", \",\"\")","v":""},"",{"$f":"IF(AND(LEN(BC42)>0,(COUNTIF($AE42:AL42,\"=FAIL\")-COUNTIF($AY42:AZ42,\"=, \"))>0),\", \",\"\")","v":""},"",{"$f":"IF(AND(LEN(BE42)>0,(COUNTIF($AE42:AP42,\"=FAIL\")-COUNTIF($AY42:BB42,\"=, \"))>0),\", \",\"\")","v":""},"",{"$f":"IF(AND(LEN(BG42)>0,(COUNTIF($AE42:AT42,\"=FAIL\")-COUNTIF($AY42:BD42,\"=, \"))>0),\", \",\"\")","v":""},"","","",0,"","","","","","","","","","","","","","","","","",31,null,null,null,0,0,0,null,0,0,0,"no data","Yes","","","?",0,0,0,null,null,"XXXXX000--------000.00AIS0-0-01","New Point","No","n/a","n/a",0,"n/a","00:00:00",0,0,0,"",null,"0--S-0--0-",0,"01",0,"?","?","?","?","?","?","?","I","000.00","A","?","000",0,null,null,null,"+ (blank)",null,null,null,null,null,null,null,null,null,null,null,"0-","S","0-","0-",0]
[null,null,null,null,"",null,null,null,null,null,null,null,null,null,null,"ft Min",null,null,"ft Min",null,null,"ft Min",null,null,"% Max",null,null,"% Max",null,"pass","","no data",">=",2,"","no data",">=",10,"","no data",">=",2,"","no data","<=",2,"","no data","<=",5,"",{"$f":"IF(AND(LEN(BA43)>0,(COUNTIF($AE43:AH43,\"=FAIL\")-COUNTIF($AY43:AY43,\"=, \"))>0),\", \",\"\")","v":""},"",{"$f":"IF(AND(LEN(BC43)>0,(COUNTIF($AE43:AL43,\"=FAIL\")-COUNTIF($AY43:AZ43,\"=, \"))>0),\", \",\"\")","v":""},"",{"$f":"IF(AND(LEN(BE43)>0,(COUNTIF($AE43:AP43,\"=FAIL\")-COUNTIF($AY43:BB43,\"=, \"))>0),\", \",\"\")","v":""},"",{"$f":"IF(AND(LEN(BG43)>0,(COUNTIF($AE43:AT43,\"=FAIL\")-COUNTIF($AY43:BD43,\"=, \"))>0),\", \",\"\")","v":""},"","","",0,"","","","","","","","","","","","","","","","",""]
[null,null,null,null,"",null,null,null,null,null,null,null,null,null,null,"ft Min",null,null,"ft Min",null,null,"ft Min",null,null,"% Max",null,null,"% Max",null,"pass","","no data",">=",2,"","no data",">=",10,"","no data",">=",2,"","no data","<=",2,"","no data","<=",5,"",{"$f":"IF(AND(LEN(BA44)>0,(COUNTIF($AE44:AH44,\"=FAIL\")-COUNTIF($AY44:AY44,\"=, \"))>0),\", \",\"\")","v":""},"",{"$f":"IF(AND(LEN(BC44)>0,(COUNTIF($AE44:AL44,\"=FAIL\")-COUNTIF($AY44:AZ44,\"=, \"))>0),\", \",\"\")","v":""},"",{"$f":"IF(AND(LEN(BE44)>0,(COUNTIF($AE44:AP44,\"=FAIL\")-COUNTIF($AY44:BB44,\"=, \"))>0),\", \",\"\")","v":""},"",{"$f":"IF(AND(LEN(BG44)>0,(COUNTIF($AE44:AT44,\"=FAIL\")-COUNTIF($AY44:BD44,\"=, \"))>0),\", \",\"\")","v":""},"","","",0,"","","","","","","","","","","","","","","","",""]
[null,null,null,null,"",null,null,null,null,null,null,null,null,null,null,"ft Min",null,null,"ft Min",null,null,"ft Min",null,null,"% Max",null,null,"% Max",null,"pass","","no data",">=",2,"","no data",">=",10,"","no data",">=",2,"","no data","<=",2,"","no data","<=",5,"",{"$f":"IF(AND(LEN(BA45)>0,(COUNTIF($AE45:AH45,\"=FAIL\")-COUNTIF($AY45:AY45,\"=, \"))>0),\", \",\"\")","v":""},"",{"$f":"IF(AND(LEN(BC45)>0,(COUNTIF($AE45:AL45,\"=FAIL\")-COUNTIF($AY45:AZ45,\"=, \"))>0),\", \",\"\")","v":""},"",{"$f":"IF(AND(LEN(BE45)>0,(COUNTIF($AE45:AP45,\"=FAIL\")-COUNTIF($AY45:BB45,\"=, \"))>0),\", \",\"\")","v":""},"",{"$f":"IF(AND(LEN(BG45)>0,(COUNTIF($AE45:AT45,\"=FAIL\")-COUNTIF($AY45:BD45,\"=, \"))>0),\", \",\"\")","v":""},"","","",0,"","","","","","","","","","","","","","","","",""]
[null,null,null,null,"",null,null,null,null,null,null,null,null,null,null,"ft Min",null,null,"ft Min",null,null,"ft Min",null,null,"% Max",null,null,"% Max",null,"pass","","no data",">=",2,"","no data",">=",10,"","no data",">=",2,"","no data","<=",2,"","no data","<=",5,"",{"$f":"IF(AND(LEN(BA46)>0,(COUNTIF($AE46:AH46,\"=FAIL\")-COUNTIF($AY46:AY46,\"=, \"))>0),\", \",\"\")","v":""},"",{"$f":"IF(AND(LEN(BC46)>0,(COUNTIF($AE46:AL46,\"=FAIL\")-COUNTIF($AY46:AZ46,\"=, \"))>0),\", \",\"\")","v":""},"",{"$f":"IF(AND(LEN(BE46)>0,(COUNTIF($AE46:AP46,\"=FAIL\")-COUNTIF($AY46:BB46,\"=, \"))>0),\", \",\"\")","v":""},"",{"$f":"IF(AND(LEN(BG46)>0,(COUNTIF($AE46:AT46,\"=FAIL\")-COUNTIF($AY46:BD46,\"=, \"))>0),\", \",\"\")","v":""},"","","",0,"","","","","","","","","","","","","","","","",""]
[null,null,null,null,"",null,null,null,null,null,null,null,null,null,null,"ft Min",null,null,"ft Min",null,null,"ft Min",null,null,"% Max",null,null,"% Max",null,"pass","","no data",">=",2,"","no data",">=",10,"","no data",">=",2,"","no data","<=",2,"","no data","<=",5,"",{"$f":"IF(AND(LEN(BA47)>0,(COUNTIF($AE47:AH47,\"=FAIL\")-COUNTIF($AY47:AY47,\"=, \"))>0),\", \",\"\")","v":""},"",{"$f":"IF(AND(LEN(BC47)>0,(COUNTIF($AE47:AL47,\"=FAIL\")-COUNTIF($AY47:AZ47,\"=, \"))>0),\", \",\"\")","v":""},"",{"$f":"IF(AND(LEN(BE47)>0,(COUNTIF($AE47:AP47,\"=FAIL\")-COUNTIF($AY47:BB47,\"=, \"))>0),\", \",\"\")","v":""},"",{"$f":"IF(AND(LEN(BG47)>0,(COUNTIF($AE47:AT47,\"=FAIL\")-COUNTIF($AY47:BD47,\"=, \"))>0),\", \",\"\")","v":""},"","","",0,"","","","","","","","","","","","","","","","",""]
[null,null,null,null,"",null,null,null,null,null,null,null,null,null,null,"ft Min",null,null,"ft Min",null,null,"ft Min",null,null,"% Max",null,null,"% Max",null,"pass","","no data",">=",2,"","no data",">=",10,"","no data",">=",2,"","no data","<=",2,"","no data","<=",5,"",{"$f":"IF(AND(LEN(BA48)>0,(COUNTIF($AE48:AH48,\"=FAIL\")-COUNTIF($AY48:AY48,\"=, \"))>0),\", \",\"\")","v":""},"",{"$f":"IF(AND(LEN(BC48)>0,(COUNTIF($AE48:AL48,\"=FAIL\")-COUNTIF($AY48:AZ48,\"=, \"))>0),\", \",\"\")","v":""},"",{"$f":"IF(AND(LEN(BE48)>0,(COUNTIF($AE48:AP48,\"=FAIL\")-COUNTIF($AY48:BB48,\"=, \"))>0),\", \",\"\")","v":""},"",{"$f":"IF(AND(LEN(BG48)>0,(COUNTIF($AE48:AT48,\"=FAIL\")-COUNTIF($AY48:BD48,\"=, \"))>0),\", \",\"\")","v":""},"","","",0,"","","","","","","","","","","","","","","","",""]
[null,null,null,null,"",null,null,null,null,null,null,null,null,null,null,"ft Min",null,null,"ft Min",null,null,"ft Min",null,null,"% Max",null,null,"% Max",null,"pass","","no data",">=",2,"","no data",">=",10,"","no data",">=",2,"","no data","<=",2,"","no data","<=",5,"",{"$f":"IF(AND(LEN(BA49)>0,(COUNTIF($AE49:AH49,\"=FAIL\")-COUNTIF($AY49:AY49,\"=, \"))>0),\", \",\"\")","v":""},"",{"$f":"IF(AND(LEN(BC49)>0,(COUNTIF($AE49:AL49,\"=FAIL\")-COUNTIF($AY49:AZ49,\"=, \"))>0),\", \",\"\")","v":""},"",{"$f":"IF(AND(LEN(BE49)>0,(COUNTIF($AE49:AP49,\"=FAIL\")-COUNTIF($AY49:BB49,\"=, \"))>0),\", \",\"\")","v":""},"",{"$f":"IF(AND(LEN(BG49)>0,(COUNTIF($AE49:AT49,\"=FAIL\")-COUNTIF($AY49:BD49,\"=, \"))>0),\", \",\"\")","v":""},"","","",0,"","","","","","","","","","","","","","","","",""]
[null,null,null,null,"",null,null,null,null,null,null,null,null,null,null,"ft Min",null,null,"ft Min",null,null,"ft Min",null,null,"% Max",null,null,"% Max",null,"pass","","no data",">=",2,"","no data",">=",10,"","no data",">=",2,"","no data","<=",2,"","no data","<=",5,"",{"$f":"IF(AND(LEN(BA50)>0,(COUNTIF($AE50:AH50,\"=FAIL\")-COUNTIF($AY50:AY50,\"=, \"))>0),\", \",\"\")","v":""},"",{"$f":"IF(AND(LEN(BC50)>0,(COUNTIF($AE50:AL50,\"=FAIL\")-COUNTIF($AY50:AZ50,\"=, \"))>0),\", \",\"\")","v":""},"",{"$f":"IF(AND(LEN(BE50)>0,(COUNTIF($AE50:AP50,\"=FAIL\")-COUNTIF($AY50:BB50,\"=, \"))>0),\", \",\"\")","v":""},"",{"$f":"IF(AND(LEN(BG50)>0,(COUNTIF($AE50:AT50,\"=FAIL\")-COUNTIF($AY50:BD50,\"=, \"))>0),\", \",\"\")","v":""},"","","",0,"","","","","","","","","","","","","","","","",""]
[null,null,null,null,"",null,null,null,null,null,null,null,null,null,null,"ft Min",null,null,"ft Min",null,null,"ft Min",null,null,"% Max",null,null,"% Max",null,"pass","","no data",">=",2,"","no data",">=",10,"","no data",">=",2,"","no data","<=",2,"","no data","<=",5,"",{"$f":"IF(AND(LEN(BA51)>0,(COUNTIF($AE51:AH51,\"=FAIL\")-COUNTIF($AY51:AY51,\"=, \"))>0),\", \",\"\")","v":""},"",{"$f":"IF(AND(LEN(BC51)>0,(COUNTIF($AE51:AL51,\"=FAIL\")-COUNTIF($AY51:AZ51,\"=, \"))>0),\", \",\"\")","v":""},"",{"$f":"IF(AND(LEN(BE51)>0,(COUNTIF($AE51:AP51,\"=FAIL\")-COUNTIF($AY51:BB51,\"=, \"))>0),\", \",\"\")","v":""},"",{"$f":"IF(AND(LEN(BG51)>0,(COUNTIF($AE51:AT51,\"=FAIL\")-COUNTIF($AY51:BD51,\"=, \"))>0),\", \",\"\")","v":""},"","","",0,"","","","","","","","","","","","","","","","",""]
[]
[null,"Measurement Instrument \nSerial Number:",null,null,"Calibrated by:",null,null,null,null,null,null,null,null,null,null,null,null,null,null,null,null,null,null,null,null,null,"Form Updated",null,null,null,null,null,null,null,null,null,null,"SIDEWALK CHARACTERISTICS"]
[null,null,null,null,"Date:",null,null,null,null,null,null,null,null,null,null,null,null,null,null,null,null,null,null,null,null,null,"2018-07-31",null,null,null,"StructComp",null,"Structurally Compliant?",null,null,null,null,null,"1. Start of ISUP","ISUP Interval","ISUPI",{"$f":"\"\"","v":""},null,null,null,null,null,null,{"$f":"CHOOSE(LEFT(AM54,2),1,1,0,1,1,1,1,1,0,0)","v":1}]
[null,"1\" = 0.08'","2\" = 0.17'","3\" = 0.25'","4\" = 0.33'","5\" = 0.42'","6\" = 0.50'","7\" = 0.58'","8\" = 0.67'","9\" = 0.75'","10\" = 0.83'","11\" = 0.92'",null,null,null,null,null,null,null,null,null,null,null,null,null,null,null,null,null,null,"DiagToCenterIntersection",null,null,null,null,null,null,null,"2. Interval Measurement","ISUP Interval","ISUPI",{"$f":"\"\"","v":""},null,null,null,null,null,null,{"$f":"CHOOSE(LEFT(AM55,2),1,1,0,1,1,1,1,1,0,0)","v":1}]
[null,null,null,null,null,null,null,null,null,null,null,null,null,null,null,null,null,null,null,null,null,null,null,null,null,null,null,null,null,null,"ClearSpaceWidth",null,null,null,null,null,null,null,"3. Vertical Surface Discontinuity (> ¼”)","ISUP Interval","ISUPI","Repair Vertical Surface Discontinuity",null,null,null,null,null,null,0]
[null,null,null,null,null,null,null,null,null,null,null,null,null,null,null,null,null,null,null,null,null,null,null,null,null,null,null,null,null,null,"FeatureLocationCode",{"$f":"E7","v":0},"From Plan Sheet",null,null,null,null,null,"4. Change in Width","ISUP Interval","ISUPI",{"$f":"\"\"","v":""},null,null,null,null,null,null,1]
[null,null,null,null,null,null,null,null,null,null,null,null,null,null,null,null,null,null,null,null,null,null,null,null,null,null,null,null,null,null,"WSDOTFeatureNumber",null,"Feature ID Code",null,null,null,null,null,"5. Change in Cross Slope","ISUP Interval","ISUPI",{"$f":"\"\"","v":""},null,null,null,null,null,null,1]
[null,null,null,null,null,null,null,null,null,null,null,null,null,null,null,null,null,null,null,null,null,null,null,null,null,null,null,null,null,null,"Note",{"$f":"#REF!","v":{"$error":"#REF!"}},null,null,null,null,null,null,"6. Change in Running-Slope","ISUP Interval","ISUPI",{"$f":"\"\"","v":""},null,null,null,null,null,null,1]
[null,null,null,null,null,null,null,null,null,null,null,null,null,null,null,null,null,null,null,null,null,null,null,null,null,null,null,null,null,null,"CrossStreet",{"$f":"E5","v":0}," ",null,null,null,null,null,"7. End of ISUP","ISUP Interval","ISUPI",{"$f":"\"\"","v":""},null,null,null,null,null,null,1]
[null,null,null,null,null,null,null,null,null,null,null,null,null,null,null,null,null,null,null,null,null,null,null,null,null,null,null,null,null,null,"CornerSide",{"$f":"#REF!","v":{"$error":"#REF!"}},null,null,null,null,null,null,"8. Transition Segment to Existing ISUP ","ISUP Interval","ISUPI",null,null,null,null,null,null,null,1]
[null,null,null,null,null,null,null,null,null,null,null,null,null,null,null,null,null,null,null,null,null,null,null,null,null,null,null,null,null,null,"PlanShtRef",{"$f":"E6","v":0}," ",null,null,null,null,null,"9. Obstruction","ISUP Interval","ISUPI","Remove Obstruction",null,null,null,null,null,null,0]
[null,null,null,null,null,null,null,null,null,null,null,null,null,null,null,null,null,null,null,null,null,null,null,null,null,null,null,null,null,null,"MEFRef",{"$f":"AA5","v":0},null,null,null,null,null,null,{"$f":"IF(COUNTIF(D2,\"Scoping\")>0,\"10. No Curb Ramp\",\"\")","v":""},"Curb Ramp None","CRNon","Install Curb Ramp",null,null,null,null,null,null,{"$error":"#VALUE!"}]
[null,null,null,null,null,null,null,null,null,null,null,null,null,null,null,null,null,null,null,null,null,null,null,null,null,null,null,null,null,null,"SiteHist",{"$f":"E8","v":0}," ",null,null,null,null,null,null,"no data","XXXXX",null,null,null,null,null,null,null,{"$error":"#VALUE!"}]
[null,null,null,null,null,null,null,null,null,null,null,null,null,null,null,null,null,null,null,null,null,null,null,null,null,null,null,null,null,null,"Station",null,null,null,null,null,null,"OBSTRUCTION TYPES"]
[null,null,null,null,null,null,null,null,null,null,null,null,null,null,null,null,null,null,null,null,null,null,null,null,null,null,null,null,null,null,null,null,null,null,null,null,null,"1. Bench","Bench"]
[null,null,null,null,null,null,null,null,null,null,null,null,null,null,null,null,null,null,null,null,null,null,null,null,null,null,null,null,null,null,null,null,null,null,null,null,null,"2. Branch","Branch"]
[null,null,null,null,null,null,null,null,null,null,null,null,null,null,null,null,null,null,null,null,null,null,null,null,null,null,null,null,null,null,null,null,null,null,null,null,null,"3. Bridge Exp. Joint","Bridge Exp. Joint"]
[null,null,null,null,null,null,null,null,null,null,null,null,null,null,null,null,null,null,null,null,null,null,null,null,null,null,null,null,null,null,null,null,null,null,null,null,null,"4. Building","Building"]
[null,null,null,null,null,null,null,null,null,null,null,null,null,null,null,null,null,null,null,null,null,null,null,null,null,null,null,null,null,null,null,null,null,null,null,null,null,"5. Catch Basin","Catch Basin"]
[null,null,null,null,null,null,null,null,null,null,null,null,null,null,null,null,null,null,null,null,null,null,null,null,null,null,null,null,null,null,null,null,null,null,null,null,null,"6. Fence","Fence"]
[null,null,null,null,null,null,null,null,null,null,null,null,null,null,null,null,null,null,null,null,null,null,null,null,null,null,null,null,null,null,null,null,null,null,null,null,null,"7. Fire Hydrant","Fire Hydrant"]
[null,null,null,null,null,null,null,null,null,null,null,null,null,null,null,null,null,null,null,null,null,null,null,null,null,null,null,null,null,null,null,null,null,null,null,null,null,"8. Grate Inlet","Grate Inlet"]
[null,null,null,null,null,null,null,null,null,null,null,null,null,null,null,null,null,null,null,null,null,null,null,null,null,null,null,null,null,null,null,null,null,null,null,null,null,"9. Ground Cover","Ground Cover"]
[null,null,null,null,null,null,null,null,null,null,null,null,null,null,null,null,null,null,null,null,null,null,null,null,null,null,null,null,null,null,null,null,null,null,null,null,null,"10. Guardrail","Guardrail"]
[null,null,null,null,null,null,null,null,null,null,null,null,null,null,null,null,null,null,null,null,null,null,null,null,null,null,null,null,null,null,null,null,null,null,null,null,null,"11. Guy Anchor","Guy Anchor"]
[null,null,null,null,null,null,null,null,null,null,null,null,null,null,null,null,null,null,null,null,null,null,null,null,null,null,null,null,null,null,null,null,null,null,null,null,null,"12. Guy Wire","Guy Wire"]
[null,null,null,null,null,null,null,null,null,null,null,null,null,null,null,null,null,null,null,null,null,null,null,null,null,null,null,null,null,null,null,null,null,null,null,null,null,"13. Junction Box","Junction Box"]
[null,null,null,null,null,null,null,null,null,null,null,null,null,null,null,null,null,null,null,null,null,null,null,null,null,null,null,null,null,null,null,null,null,null,null,null,null,"14. Large Vault - Electric","Large Vault - Electric"]
[null,null,null,null,null,null,null,null,null,null,null,null,null,null,null,null,null,null,null,null,null,null,null,null,null,null,null,null,null,null,null,null,null,null,null,null,null,"15. Large Vault - Utility","Large Vault - Utility"]
[null,null,null,null,null,null,null,null,null,null,null,null,null,null,null,null,null,null,null,null,null,null,null,null,null,null,null,null,null,null,null,null,null,null,null,null,null,"16. Manhole","Manhole"]
[null,null,null,null,null,null,null,null,null,null,null,null,null,null,null,null,null,null,null,null,null,null,null,null,null,null,null,null,null,null,null,null,null,null,null,null,null,"17. MEF","MEF"]
[null,null,null,null,null,null,null,null,null,null,null,null,null,null,null,null,null,null,null,null,null,null,null,null,null,null,null,null,null,null,"SiteHist",null,null,null,null,null,null,"18. Newspaper Stand","Newspaper Stand"]
[null,null,null,null,null,null,null,null,null,null,null,null,null,null,null,null,null,null,null,null,null,null,null,null,null,null,null,null,null,null,"Station",{"$f":"IF(COUNTIF(G11:J34,\"FAIL\")>0,\"No\",IF(COUNTIF(G11:J34,\"pass\")=22,\"Yes\",\"incomplete\"))","v":"incomplete"},null,null,null,null,null,"19. Parked Car","Parked Car"]
[null,null,null,null,null,null,null,null,null,null,null,null,null,null,null,null,null,null,null,null,null,null,null,null,null,null,null,null,null,null,null,{"$f":"F10","v":0},null,null,null,null,null,"20. Parking Meter","Parking Meter"]
[null,null,null,null,null,null,null,null,null,null,null,null,null,null,null,null,null,null,null,null,null,null,null,null,null,null,null,null,null,null,null,{"$f":"E9","v":"Instructions"},null,null,null,null,null,"21. Portable Sign Board","Portable Sign Board"]
[null,null,null,null,null,null,null,null,null,null,null,null,null,null,null,null,null,null,null,null,null,null,null,null,null,null,null,null,null,null,null,{"$f":"E7","v":0},null,null,null,null,null,"22. Power Pole","Power Pole"]
[null,null,null,null,null,null,null,null,null,null,null,null,null,null,null,null,null,null,null,null,null,null,null,null,null,null,null,null,null,null,null,{"$f":"#REF!","v":{"$error":"#REF!"}},null,null,null,null,null,"23. Shrubs","Shrubs"]
[null,null,null,null,null,null,null,null,null,null,null,null,null,null,null,null,null,null,null,null,null,null,null,null,null,null,null,null,null,null,null,{"$f":"E5","v":0},null,null,null,null,null,"24. Sign","Sign"]
[null,null,null,null,null,null,null,null,null,null,null,null,null,null,null,null,null,null,null,null,null,null,null,null,null,null,null,null,null,null,null,{"$f":"#REF!","v":{"$error":"#REF!"}},null,null,null,null,null,"25. Signal Pole","Signal Pole"]
[null,null,null,null,null,null,null,null,null,null,null,null,null,null,null,null,null,null,null,null,null,null,null,null,null,null,null,null,null,null,null,{"$f":"E6","v":0},null,null,null,null,null,"26. Telephone Booth","Telephone Booth"]
[null,null,null,null,null,null,null,null,null,null,null,null,null,null,null,null,null,null,null,null,null,null,null,null,null,null,null,null,null,null,null,{"$f":"AA5","v":0},null,null,null,null,null,"27. Tree","Tree"]
[null,null,null,null,null,null,null,null,null,null,null,null,null,null,null,null,null,null,null,null,null,null,null,null,null,null,null,null,null,null,null,{"$f":"E8","v":0},null,null,null,null,null,"28. Wall","Wall"]
[null,null,null,null,null,null,null,null,null,null,null,null,null,null,null,null,null,null,null,null,null,null,null,null,null,null,null,null,null,null,null,{"$f":"#REF!","v":{"$error":"#REF!"}},null,null,null,null,null,"29. Water Valve","Water Valve"]
[null,null,null,null,null,null,null,null,null,null,null,null,null,null,null,null,null,null,null,null,null,null,null,null,null,null,null,null,null,null,null,null,null,null,null,null,null,"30. Other","Other Obstruction"]

{"sheet":"Driveway","index":8,"n_rows":39,"n_cols":149,"rows_kept":39,"cut":false,"hidden":false,"merged":[[5,11,5,12],[6,11,6,12],[1,2,1,8],[7,12,8,14],[2,9,2,10],[4,1,4,3],[2,4,2,5],[3,1,3,3],[4,9,4,10],[5,4,5,6],[0,22,0,23],[1,22,1,23],[11,15,11,16],[3,17,3,18],[6,4,6,6],[8,0,8,10],[6,9,6,10],[3,4,3,7],[2,17,2,18],[4,17,4,18],[4,4,4,7],[1,11,1,12],[1,13,1,14],[0,1,0,9],[7,4,7,6],[7,9,7,10],[10,15,10,16],[23,13,23,16],[8,17,8,18],[7,16,8,16],[2,33,2,34],[2,13,2,14],[36,17,36,18],[25,15,25,16],[26,15,26,16],[32,1,32,4],[32,5,32,8],[33,5,33,8],[33,9,33,11],[33,1,33,4],[29,1,31,11],[28,1,28,11],[35,17,35,18],[24,1,27,11],[32,9,32,11],[27,15,27,16],[24,15,24,16]]}
[null,"ADA Feature - Driveway Measurements",null,null,null,null,null,null,null,null,null,null,null,null,null,null,null,null,null,null,"FeatureName",{"$f":"S2","v":"DW"},"Complete Header",null,{"$f":"IF(AND(N2<>\"Scoping\",OR(E3=\"\",J3=\"\",E4=\"\",N2=\"\",N3=\"\",N4=\"\",O4=\"A/B\",E7=\"\",O5=\"Lt or Rt?\",J5=\"\",J6=\"\",K6=\"\",J7=\"\",J8=\"\",N6=\"\",O6=\"\",P6=\"\",B34=\"\",F34=\"\",J34=\"\",E8=\"\")),\"incomplete\",\"pass\")","v":"incomplete"},null,null,null,null,null,null,null,null,null,null,null,null,null,null,null,null,null,null,null,null,null,null,null,null,null,null,null,null,null,null,null,null,null,null,null,null,null,null,null,null,null,null,null,null,null,null,null,null,null,null,null,null,null,null,null,null,null,null,null,null,null,null,null,null,null,{"$f":"MID(CELL(\"filename\",A1),FIND(\"]\",CELL(\"filename\",A1))+1,255)","v":"Driveway"}]
[null,null,"Record measurements in the appropriate diagram according to driveway type. ONLY 1 driveway per form.",null,null,null,null,null,null,null,null,"Phase",null,null,null,null,"Database Schema:",null,"DW",null,"CompletedUnderContract",{"$f":"E3","v":0},"Complete Header \"Scoping\"",null,{"$f":"IF(AND(N2=\"Scoping\",OR(E3=\"\",J3=\"\",E4=\"\",N3=\"\",N4=\"\",O4=\"A/B\",O5=\"Lt or Rt?\",J5=\"\",J6=\"\",K6=\"\",J7=\"\",N6=\"\",O6=\"\",P6=\"\")),\"incomplete\",\"pass\")","v":"pass"},null,null,"Driveway",null,null,null,null,null,null,null,null,"Drawing 12","Drawing 13",null,null,null,null,null,null,null,null,null,null,null,null,null,null,null,null,null,null,null,null,null,null,null,null,null,null,null,null,null,null,null,null,null,null,null,null,null,null,null,null,null,null,null,null,{"$f":"LEN(CF4)","v":1},{"$f":"N3","v":0},{"$f":"TEXT(N4,\"0.00\")&IF(O4=\"B\",\"B\",\"\")","v":"0.00"},null,{"$f":"E5","v":0},null,null,null,null,null,null,null,null,null,null,null,null,null,{"$f":"LEN(CW4)","v":28},null,{"$f":"R3","v":"incomplete form"},null,null,{"$f":"J7","v":0},null,{"$f":"J3","v":"00:00:00"},{"$f":"J8","v":0},{"$f":"E8","v":0},{"$f":"E3","v":0},{"$f":"IF(AND(R4=\"Standard ADA\",LEN(R5)=0),\"n/a\",R5)","v":"n/a"},null,null,{"$f":"P6","v":0},"01",{"$f":"N2","v":0},null,null,null,null,null,null,null,null,null,null,null,null,null,null,null,null,null,null,null,null,null,null,null,null,null,null,null,null,{"$f":"IF(RIGHT(O5,1)=\"?\",\"?\",LEFT(O5&\"-\",2))","v":"?"},{"$f":"LEFT(J5,1)","v":""},{"$f":"IF(LEN(J6)=0,\"!\",LEFT(TEXT(J6,\"0\")&\"-\",2))","v":"!"},{"$f":"IF(LEN(K6)=0,\"!\",LEFT(TEXT(K6,\"0\")&\"-\",2))","v":"!"}]
[null,null,null,"Contract / Work Order",null,null,null,null,"Date Measured",null,null,null,"SR",null,null,null,"Survey/Feature Status",{"$f":"IF(COUNTIF(L9,\"Yes\")>0,\"FAIL\",IF(COUNTIF(N11:N28,\"FAIL\")>0,\"FAIL\",IF(COUNTIF(Y1:Y2,\"pass\")<2,\"incomplete form\",IF(OR(AND(P11<>\"Parallel Access\",COUNTIF(N11:N23,\"pass\")=10),AND(P11=\"Parallel Access\",COUNTIF(N11:N28,\"pass\")=14)),\"pass\",\"incomplete form\"))))","v":"incomplete form"},null,null,"GPSDate",{"$f":"J3","v":"00:00:00"},"Date Measured",null,null,null,null,null,null,null,null,null,null,"Requirements",null,null,null,"4 ft Min","2% Max","8.3% Max","4 ft Min","2% Max","4 ft Min","2% Max","8.3% Max","Flush","Flush","Flush","Flush",null,null,null,null,null,null,null,null,null,null,null,null,null,null,null,null,null,null,null,null,null,null,null,null,null,null,null,null,null,null,null,"SR View","Gmap","Gmap2","State Route","Mile- post","Primary St, Bridge, or Facility Name","Intersecting or Related St or Route","City","County","Region","ADA Feature","Meas?","Summary of Non-Compliance","Solution","Sched. Fiscal Year","Estimated Cost","Lat","Long","Lat2","Long2","FeatureID","GIS Table","Fully Compliant?","DWS Non-Comp Only?","Length","Jurisdiction","SubOwner","MeasDate","ConstructedBy","SiteHistory","Contract","MEFRef","DocRef","LocCode","LocMethod","History","Project Phase","Path Priority Index Tier","Barrier Severity","Date made Compliant","Access Level","Rural or Urban","PaveBienn_within_100ft","PaveDue+2","Direction","MP","A/B","ARM","SRSort","MPSort","BridgeNo","Site Key","Issue","Issue Summary","Rest Area","multiples","CityAccess","RecordCreateDate","GPSDate","End_SR","End_MP","ProjectID","ADAGroup","Plan 2016","Planning Set","Side","Site","SiteCompass","FeatCompass"]
[null,"Measured By",null,null,null,null,null,null,null,null,null,null,"Milepost",null,"A/B",{"$f":"HYPERLINK(\"#'READ-ME'!A252:A264\",\"?\")","v":"?"},"MEF Status",{"$f":"IF(SUM(R14:R23)>0,\"Has MEF\",\"Standard ADA\")","v":"Standard ADA"},null,null,"Datafile",{"$f":"E4","v":0},"Measured By",null,null,null,null,null,null,null,null,null,null,null,null,"Driveway","Driveway","Point 1","Point 1","Point 1","Point 2","Point 2","Point 3","Point 3","Point 3","Grade Break","Grade Break","Grade Break","Grade Break",null,null,null,null,null,null,null,null,null,null,null,null,null,null,null,null,null,null,null,null,null,null,null,null,null,null,null,null,null,null,null,{"$f":"HYPERLINK(\"http://srview3i.wsdot.loc/stateroute/picturelog/v3/client/SRview.Windows.Viewer.application?srnum=\"&LEFT(CF4,3)&\"&rrt=\"&IF(LEN(CF4)>3,RIGHT(LEFT(CF4,5),2),\"\")&\"&rrq=\"&IF(LEN(CF4)=11,RIGHT(CF4,6),IF(LEN(CF4)=10,RIGHT(CF4,5),\"\"))&\"&srmp=\"&CG4,\"SRV\")","v":"SRV"},{"$f":"HYPERLINK(\"http://maps.google.com/maps?z=20&t=k&q=loc:\"&CS4&\",\"&CT4,\"GMap\")","v":{"$error":"#VALUE!"}},{"$f":"IF(LEN(CU4)>0,HYPERLINK(\"http://maps.google.com/maps?z=20&t=k&q=loc:\"&CU4&\",\"&CV4,\"GMap\"),\"\")","v":""},{"$f":"CF2","v":0},{"$f":"CG2","v":"0.00"},null,null,null,null,null,"Driveway","Yes",null,"Fully Compliant","?",0,{"$f":"IF(LEN(N6)=0,VALUE(LEFT(CS2,FIND(\",\",CS2)-1)),N6)","v":{"$error":"#VALUE!"}},{"$f":"IF(LEN(O6)=0,VALUE(RIGHT(CS2,LEN(CS2)-FIND(\",\",CS2)-1)),O6)","v":{"$error":"#VALUE!"}},null,null,{"$f":"\"Drvwy\"&LEFT(TEXT(CF4,\"000\")&\"-----------\",11)&TEXT(DV4,\"000.00\")&DW4&DU4&EQ4&ER4&ES4&DL2","v":"Drvwy000--------000.00AI!!01"},"New Point",{"$f":"IF(CY2=\"pass\",\"Yes\",\"No\")","v":"No"},"No","n/a",{"$f":"DB2","v":0},"n/a",{"$f":"DD2","v":"00:00:00"},{"$f":"DE2","v":0},{"$f":"DF2","v":0},{"$f":"DG2","v":0},{"$f":"DH2","v":"n/a"},null,{"$f":"EP4&\"-\"&EQ4&\"-\"&ER4&\"-\"&ES4","v":"?--!-!"},{"$f":"DK2","v":0},"Latest",{"$f":"DM2","v":0},"?","no barrier","?","?","?","?","?","I",{"$f":"TEXT(IF(DW4=\"B\",VALUE(LEFT(CG4,FIND(\"B\",CG4)-1)),CG4),\"000.00\")","v":"000.00"},{"$f":"IF(O4=\"B\",\"B\",\"A\")","v":"A"},"?",{"$f":"LEFT(CF4,3)","v":"0"},{"$f":"IF(LEN(CF4)>9,VALUE(RIGHT(CF4,5))/100,CG4)","v":"0.00"},"n/a","Intersection",null,"+ (blank)",null,null,null,null,null,null,null,null,null,null,null,{"$f":"EP2","v":"?"},{"$f":"EQ2","v":""},{"$f":"ER2","v":"!"},{"$f":"ES2","v":"!"}]
[null,"Cross Street Name",null,null,null,null,null,null,{"$f":"HYPERLINK(\"#'READ-ME'!A61:A88\",\"Site\")","v":"Site"},null,null,null,"Station",null,{"$f":"HYPERLINK(\"#'READ-ME'!A222:A240\",\"Lt or Rt?\")","v":"Lt or Rt?"},null,"MEF Reference",null,null,null,"StateRouteRRT",{"$f":"M3","v":"SR"},null,null,null,null,null,"Database Schema","Contract","Date Measured","Measured By","SR","SRMP","A/B","Lt or Rt","Type","PAR Material","W","CS","RS","W","CS","W","CS","RS"," GB#1"," GB#2"," GB#3"," GB#4","NOTES","Feature ID Code","Feature Location Code","Cross Street Name","Corner/Side","Plan Sheet Reference","MEF Reference","Site History","Station","Structurally Compliant?",null,null,null,null,null,null,null,null,null,null,null,null,null,null,null,null,null,null,null,null,null,{"$f":"HYPERLINK(\"http://www.wsdot.wa.gov/data/tools/geoportal/?layers=%7B%22layer0%22%3A%5B%5D%2C%22Buffer%22%3Atrue%2C%22Drawn+Features%22%3Atrue%7D\",\"Geoportal\")","v":"Geoportal"},null,null,null,null,null,null,null,null,null,null,null,null,null,null,null,null,null,null,null,null,null,null,null,null,null,null,null,null,null,null,null,null,null,null,null,null,null,null,null,null,null,null,null,null,null,null,null,null,null,null,null,null,null,null,null,null,null,null,null,null,null,null,null,null,"LEFT(TEXT(CF4,\"000\")&\"-----------\",11)"]
[null,null,null,"Plan Sheet Reference",null,null,null,null,{"$f":"HYPERLINK(\"#'READ-ME'!A112:A138\",\"Location\")","v":"Location"},null,null,"Geoportal",null,null,null,null,null,null,null,null,"SRMP",{"$f":"M4","v":"Milepost"},null,null,null,null,null,"FeatureName","CompletedUnderContract","GPSDate","Datafile","StateRouteRRT","SRMP","AheadBackIndicator","DirectionOfInventory","DrivewayType","PARMaterialType","Point1Width","Point1CrossSlope","Point1RunSlope","Point2Width","Point2CrossSlope","Point3Width","Point3CrossSlope","Point3RunSlope","GradeBreak1","GradeBreak2","GradeBreak3","GradeBreak4","Note","WSDOTFeatureNumber","FeatureLocationCode","CrossStreet","CornerSide","PlanShtRef","MEFRef","SiteHist","Station","StructComp"]
[null,null,null,"Feature Location Code",null,null,null,null,"Jurisdiction",null,null,{"$f":"HYPERLINK(\"#'READ-ME'!A148:A189\",\"Instructions\")","v":"Instructions"},null,"Latitude","Longitude",{"$f":"HYPERLINK(\"#'READ-ME'!A201:A207\",\"Accuracy\")","v":"Accuracy"},null,null,null,null,"AheadBackIndicator",{"$f":"O4","v":"A/B"},null,null,null,null,null,"DW",{"$f":"VLOOKUP(AC6,$U:$V,2,FALSE)","v":0},0,0,"SR","Milepost","A/B",0,"no data","no data","no data","no data","no data","no data","no data","no data","no data","no data","no data","no data","no data","no data",0,0,0,0,0,0,0,0,"Station","incomplete"]
[null,null,null,"Site History",null,null,null,null,"Constructed By",null,null,null,"Enter numbers only\n1 = 1.00%, 2.25 = 2.25 ft, etc.",null,null,null,"ADA Compliance Criteria",null,null,null,"DirectionOfInventory",{"$f":"M6","v":0},"Lt or Rt"]
[{"$f":"IF(COUNTIF($N$2,\"Scoping\")>0,\"Visually Identified the Feature is ADA non-Compliant, no measurements taken\",\"\")","v":""},null,null,null,null,null,null,null,null,null,null,null,null,null,null,"Measurement",null,"MEF Criteria"]
[null,null,null,null,null,null,null,null,null,null,null,null,null,"Driveway"]
[null,null,null,null,null,null,null,null,null,null,null,null,null,{"$f":"IF(ISBLANK(P11),\"\",IF(COUNTIF(AB12:AB14,P11)>0,\"pass\",\"FAIL\"))","v":""},"Type",null,null,null,null,null,"DrivewayType",{"$f":"IF(ISBLANK(P11),\"no data\",P11)","v":"no data"},null,null,null,null,null,"Driveway Type",null,null,"PAR Material Type"]
[null,null,null,null,null,null,null,null,null,null,null,null,null,{"$f":"IF(ISBLANK(P12),\"\",IF(COUNTIF(AE12:AE14,P12)>0,\"pass\",\"FAIL\"))","v":""},"PAR Material",null,null,null,null,null,"PARMaterialType",{"$f":"IF(ISBLANK(P12),\"no data\",P12)","v":"no data"},null,null,null,null,null,"Access Across",null,null,"Asphalt"]
[null,null,null,null,null,null,null,null,null,null,null,null,null,"Point ❶",null,null,null,null,null,null,null,null,null,null,null,null,null,"Access Jogs Around",null,null,"Cement Concrete"]
[null,null,null,null,null,null,null,null,null,null,null,null,null,{"$f":"IF(ISBLANK(P14),\"\",IF(COUNTIF(V14,W14&X14)>0,\"pass\",\"FAIL\"))","v":""},"W",null,"4.00 ft Min",null,"ft Min",null,"Point1Width",{"$f":"IF(ISBLANK(P14),\"no data\",P14)","v":"no data"},{"$f":"IF(ISBLANK(R14),CHOOSE(IF(RIGHT(Q14,3)=\"Min\",1,IF(RIGHT(Q14,3)=\"Max\",3,2)),\">=\",\"=\",\"<=\"),CHOOSE(IF(RIGHT(S14,3)=\"Min\",1,IF(RIGHT(S14,3)=\"Max\",3,2)),\">=\",\"=\",\"<=\"))","v":">="},{"$f":"IF(ISBLANK(R14),Z14,R14)","v":4},"ft Min",4,null,"Parallel Access",null,null,"Dirt"]
[null,null,null,null,null,null,null,null,null,null,null,null,null,{"$f":"IF(ISBLANK(P15),\"\",IF(COUNTIF(V15,W15&X15)>0,\"pass\",\"FAIL\"))","v":""},"CS",null,"2.00% Max",null,"% Max",null,"Point1CrossSlope",{"$f":"IF(ISBLANK(P15),\"no data\",P15)","v":"no data"},{"$f":"IF(ISBLANK(R15),CHOOSE(IF(RIGHT(Q15,3)=\"Min\",1,IF(RIGHT(Q15,3)=\"Max\",3,2)),\">=\",\"=\",\"<=\"),CHOOSE(IF(RIGHT(S15,3)=\"Min\",1,IF(RIGHT(S15,3)=\"Max\",3,2)),\">=\",\"=\",\"<=\"))","v":"<="},{"$f":"IF(ISBLANK(R15),Z15,R15)","v":2},"% Max",2,null,{"$f":"IF(COUNTIF(N2,\"Scoping\")>0,\"No PAR\",\"\")","v":""},null,null,"Other"]
[null,null,null,null,null,null,null,null,null,null,null,null,null,{"$f":"IF(LEFT($P$11,1)=\"A\",\"pass\",IF(ISBLANK(P16),\"\",IF(COUNTIF(V16,W16&X16)>0,\"pass\",\"FAIL\")))","v":""},"RS",null,"8.30% Max",null,"% Max",null,"Point1RunSlope",{"$f":"IF(LEFT($P$11,1)=\"A\",\"n/a\",IF(ISBLANK(P16),\"no data\",P16))","v":"no data"},{"$f":"IF(ISBLANK(R16),CHOOSE(IF(RIGHT(Q16,3)=\"Min\",1,IF(RIGHT(Q16,3)=\"Max\",3,2)),\">=\",\"=\",\"<=\"),CHOOSE(IF(RIGHT(S16,3)=\"Min\",1,IF(RIGHT(S16,3)=\"Max\",3,2)),\">=\",\"=\",\"<=\"))","v":"<="},{"$f":"IF(ISBLANK(R16),Z16,R16)","v":8.3000000000000007},"% Max",8.3000000000000007]
[null,null,null,null,null,null,null,null,null,null,null,null,null,"Point ❷"]
[null,null,null,null,null,null,null,null,null,null,null,null,null,{"$f":"IF(ISBLANK(P18),\"\",IF(COUNTIF(V18,W18&X18)>0,\"pass\",\"FAIL\"))","v":""},"W",null,"4.00 ft Min",null,"ft Min",null,"Point2Width",{"$f":"IF(ISBLANK(P18),\"no data\",P18)","v":"no data"},{"$f":"IF(ISBLANK(R18),CHOOSE(IF(RIGHT(Q18,3)=\"Min\",1,IF(RIGHT(Q18,3)=\"Max\",3,2)),\">=\",\"=\",\"<=\"),CHOOSE(IF(RIGHT(S18,3)=\"Min\",1,IF(RIGHT(S18,3)=\"Max\",3,2)),\">=\",\"=\",\"<=\"))","v":">="},{"$f":"IF(ISBLANK(R18),Z18,R18)","v":4},"ft Min",4]
[null,null,null,null,null,null,null,null,null,null,null,null,null,{"$f":"IF(ISBLANK(P19),\"\",IF(COUNTIF(V19,W19&X19)>0,\"pass\",\"FAIL\"))","v":""},"CS",null,"2.00% Max",null,"% Max",null,"Point2CrossSlope",{"$f":"IF(ISBLANK(P19),\"no data\",P19)","v":"no data"},{"$f":"IF(ISBLANK(R19),CHOOSE(IF(RIGHT(Q19,3)=\"Min\",1,IF(RIGHT(Q19,3)=\"Max\",3,2)),\">=\",\"=\",\"<=\"),CHOOSE(IF(RIGHT(S19,3)=\"Min\",1,IF(RIGHT(S19,3)=\"Max\",3,2)),\">=\",\"=\",\"<=\"))","v":"<="},{"$f":"IF(ISBLANK(R19),Z19,R19)","v":2},"% Max",2]
[null,null,null,null,null,null,null,null,null,null,null,null,null,"Point ❸"]
[null,null,null,null,null,null,null,null,null,null,null,null,null,{"$f":"IF(ISBLANK(P21),\"\",IF(COUNTIF(V21,W21&X21)>0,\"pass\",\"FAIL\"))","v":""},"W",null,"4.00 ft Min",null,"ft Min",null,"Point3Width",{"$f":"IF(ISBLANK(P21),\"no data\",P21)","v":"no data"},{"$f":"IF(ISBLANK(R21),CHOOSE(IF(RIGHT(Q21,3)=\"Min\",1,IF(RIGHT(Q21,3)=\"Max\",3,2)),\">=\",\"=\",\"<=\"),CHOOSE(IF(RIGHT(S21,3)=\"Min\",1,IF(RIGHT(S21,3)=\"Max\",3,2)),\">=\",\"=\",\"<=\"))","v":">="},{"$f":"IF(ISBLANK(R21),Z21,R21)","v":4},"ft Min",4]
[null,null,null,null,null,null,null,null,null,null,null,null,null,{"$f":"IF(ISBLANK(P22),\"\",IF(COUNTIF(V22,W22&X22)>0,\"pass\",\"FAIL\"))","v":""},"CS",null,"2.00% Max",null,"% Max",null,"Point3CrossSlope",{"$f":"IF(ISBLANK(P22),\"no data\",P22)","v":"no data"},{"$f":"IF(ISBLANK(R22),CHOOSE(IF(RIGHT(Q22,3)=\"Min\",1,IF(RIGHT(Q22,3)=\"Max\",3,2)),\">=\",\"=\",\"<=\"),CHOOSE(IF(RIGHT(S22,3)=\"Min\",1,IF(RIGHT(S22,3)=\"Max\",3,2)),\">=\",\"=\",\"<=\"))","v":"<="},{"$f":"IF(ISBLANK(R22),Z22,R22)","v":2},"% Max",2]
[null,null,null,null,null,null,null,null,null,null,null,null,null,{"$f":"IF(LEFT($P$11,1)=\"A\",\"pass\",IF(ISBLANK(P23),\"\",IF(COUNTIF(V23,W23&X23)>0,\"pass\",\"FAIL\")))","v":""},"RS",null,"8.30% Max",null,"% Max",null,"Point3RunSlope",{"$f":"IF(LEFT($P$11,1)=\"A\",\"n/a\",IF(ISBLANK(P23),\"no data\",P23))","v":"no data"},{"$f":"IF(ISBLANK(R23),CHOOSE(IF(RIGHT(Q23,3)=\"Min\",1,IF(RIGHT(Q23,3)=\"Max\",3,2)),\">=\",\"=\",\"<=\"),CHOOSE(IF(RIGHT(S23,3)=\"Min\",1,IF(RIGHT(S23,3)=\"Max\",3,2)),\">=\",\"=\",\"<=\"))","v":"<="},{"$f":"IF(ISBLANK(R23),Z23,R23)","v":8.3000000000000007},"% Max",8.3000000000000007]
[null,null,null,null,null,null,null,null,null,null,null,null,null,"Grade Breaks  (Parallel Access ONLY) \n(paper form: enter fraction or decimal of an inch)"]
[null,null,null,null,null,null,null,null,null,null,null,null,null,{"$f":"IF(ISBLANK(P25),\"\",IF(COUNTIF(AB27:AB29,P25)>0,\"pass\",\"FAIL\"))","v":""},"GB#1",null,null,null,null,null,"GradeBreak1",{"$f":"IF(LEFT($P$11,1)=\"A\",\"n/a\",IF(ISBLANK(P25),\"no data\",P25))","v":"no data"},{"$f":"IF(ISBLANK(R25),CHOOSE(IF(RIGHT(Q25,3)=\"Min\",1,IF(RIGHT(Q25,3)=\"Max\",3,2)),\">=\",\"=\",\"<=\"),CHOOSE(IF(RIGHT(S25,3)=\"Min\",1,IF(RIGHT(S25,3)=\"Max\",3,2)),\">=\",\"=\",\"<=\"))","v":"="},{"$f":"IF(ISBLANK(R25),Z25,R25)","v":0},"flush",0]
[null,null,null,null,null,null,null,null,null,null,null,null,null,{"$f":"IF(ISBLANK(P26),\"\",IF(COUNTIF(AB27:AB29,P26)>0,\"pass\",\"FAIL\"))","v":""},"GB#2",null,null,null,null,null,"GradeBreak2",{"$f":"IF(LEFT($P$11,1)=\"A\",\"n/a\",IF(ISBLANK(P26),\"no data\",P26))","v":"no data"},{"$f":"IF(ISBLANK(R26),CHOOSE(IF(RIGHT(Q26,3)=\"Min\",1,IF(RIGHT(Q26,3)=\"Max\",3,2)),\">=\",\"=\",\"<=\"),CHOOSE(IF(RIGHT(S26,3)=\"Min\",1,IF(RIGHT(S26,3)=\"Max\",3,2)),\">=\",\"=\",\"<=\"))","v":"="},{"$f":"IF(ISBLANK(R26),Z26,R26)","v":0},"flush",0,null,"Grade Breaks"]
[null,null,null,null,null,null,null,null,null,null,null,null,null,{"$f":"IF(ISBLANK(P27),\"\",IF(COUNTIF(AB27:AB29,P27)>0,\"pass\",\"FAIL\"))","v":""},"GB#3",null,null,null,null,null,"GradeBreak3","no data",{"$f":"IF(ISBLANK(R27),CHOOSE(IF(RIGHT(Q27,3)=\"Min\",1,IF(RIGHT(Q27,3)=\"Max\",3,2)),\">=\",\"=\",\"<=\"),CHOOSE(IF(RIGHT(S27,3)=\"Min\",1,IF(RIGHT(S27,3)=\"Max\",3,2)),\">=\",\"=\",\"<=\"))","v":"="},{"$f":"IF(ISBLANK(R27),Z27,R27)","v":0},"flush",0,null,"Flush","Flush (0.00\") No vertical Difference"]
[null,null,null,null,null,null,null,null,null,null,null,null,null,{"$f":"IF(ISBLANK(P28),\"\",IF(COUNTIF(AB27:AB29,P28)>0,\"pass\",\"FAIL\"))","v":""},"GB#4",null,null,null,null,null,"GradeBreak4","no data",{"$f":"IF(ISBLANK(R28),CHOOSE(IF(RIGHT(Q28,3)=\"Min\",1,IF(RIGHT(Q28,3)=\"Max\",3,2)),\">=\",\"=\",\"<=\"),CHOOSE(IF(RIGHT(S28,3)=\"Min\",1,IF(RIGHT(S28,3)=\"Max\",3,2)),\">=\",\"=\",\"<=\"))","v":"="},{"$f":"IF(ISBLANK(R28),Z28,R28)","v":0},"flush",0,null,"¼-Inch or Less","¼-Inch (0.02 ft) or Less"]
[null,"NOTES",null,null,null,null,null,null,null,null,null,null,null,null,null,null,null,null,null,null,"StructComp",{"$f":"IF(COUNTIF(N11:N28,\"FAIL\")>0,\"No\",IF(COUNTIF(N11:N28,\"pass\")=14,\"Yes\",\"incomplete\"))","v":"incomplete"},"Structurally Compliant?",null,null,null,null,"¼ to ½-Inch YES Bevel","Between  ¼ - ½-Inch WITH ¼-inch Beveled at 2:1"]
[null,null,null,null,null,null,null,null,null,null,null,null,null,null,null,null,null,null,null,null,null,null,null,null,null,null,null,"¼ to ½-Inch NO Bevel","Between  ¼ - ½-Inch WITHOUT ¼-inch Beveled at 2:1"]
[null,null,null,null,null,null,null,null,null,null,null,null,null,null,null,null,null,null,null,null,"WSDOTFeatureNumber",null,"Feature ID Code",null,null,null,null,"Greater than ½-Inch","Greater than ½-Inch"]
[null,null,null,null,null,null,null,null,null,null,null,null,null,null,null,null,null,null,null,null,"FeatureLocationCode",{"$f":"E7","v":0},"From Plan Sheet"]
[null,"Measurement Instrument \nSerial Number:",null,null,null,"Calibrated by:",null,null,null,"Date:",null,null,null,null,null,null,null,null,null,null,"Note",{"$f":"B30","v":0}," "]
[null,null,null,null,null,null,null,null,null,null,null,null,null,null,null,null,null,null,null,null,"CrossStreet",{"$f":"E5","v":0}," "]
[null,"1\" = 0.08'","2\" = 0.17'","3\" = 0.25'","4\" = 0.33'","5\" = 0.42'","6\" = 0.50'","7\" = 0.58'","8\" = 0.67'","9\" = 0.75'","10\" = 0.83'","11\" = 0.92'",null,null,null,null,null,null,null,null,"CornerSide",{"$f":"J5","v":0}," "]
[null,null,null,null,null,null,null,null,null,null,null,null,null,null,null,null,null,"Form Updated",null,null,"PlanShtRef",{"$f":"E6","v":0}," "]
[null,null,null,null,null,null,null,null,null,null,null,null,null,null,null,null,null,"2018-07-31",null,null,"MEFRef",{"$f":"R5","v":0}," "]
[null,null,null,null,null,null,null,null,null,null,null,null,null,null,null,null,null,null,null,null,"SiteHist",{"$f":"IF(N2=\"Scoping\",\"Existing Feature\",E8)","v":0}," "]
[null,null,null,null,null,null,null,null,null,null,null,null,null,null,null,null,null,null,null,null,"Station",{"$f":"M5","v":"Station"}]

{"sheet":"End Ramp","index":9,"n_rows":36,"n_cols":149,"rows_kept":36,"cut":false,"hidden":false,"merged":[[6,11,6,12],[7,12,8,14],[2,13,2,14],[32,9,32,11],[31,1,31,4],[5,4,5,6],[6,0,6,3],[6,4,6,6],[6,9,6,10],[5,0,5,3],[5,11,5,12],[4,1,4,3],[2,0,2,3],[3,4,3,7],[4,4,4,7],[4,9,4,10],[2,33,2,34],[3,1,3,3],[3,17,3,18],[0,22,0,23],[1,22,1,23],[1,16,1,18],[2,4,2,5],[2,9,2,10],[2,17,2,18],[1,11,1,12],[1,13,1,14],[0,1,1,9],[4,17,4,18],[7,4,7,6],[7,9,7,10],[35,17,35,18],[7,16,8,16],[8,17,8,18],[24,1,24,11],[15,15,15,16],[16,15,16,16],[9,15,9,18],[25,1,30,11],[34,17,34,18],[32,1,32,4],[31,5,31,8],[32,5,32,8],[31,9,31,11]]}
[null,"ADA Feature - End Ramp Measurements",null,null,null,null,null,null,null,null,null,{"$f":"IF(AND(OR(Y2=\"incomplete\",Y1=\"incomplete\"),LEN(N2)>0),\"= Required Field\",\"\")","v":""},null,null,null,null,null,null,null,null,"FeatureName",{"$f":"Q2","v":"Select Ramp Type"},"Complete Header",null,{"$f":"IF(AND(N2<>\"Scoping\",OR(E3=\"\",J3=\"\",E4=\"\",N2=\"\",N3=\"\",N4=\"\",O4=\"A/B\",E7=\"\",O5=\"Lt or Rt?\",J5=\"\",J6=\"\",K6=\"\",J7=\"\",J8=\"\",N6=\"\",O6=\"\",P6=\"\",B33=\"\",F33=\"\",J33=\"\",E8=\"\")),\"incomplete\",\"pass\")","v":"incomplete"},null,null,null,null,null,null,null,null,null,null,null,null,null,null,null,null,null,null,null,null,null,null,null,null,null,null,null,null,null,null,null,null,null,null,null,null,null,null,null,null,null,null,null,null,null,null,null,null,null,null,null,null,null,null,null,null,null,null,null,null,null,null,null,null,null,{"$f":"MID(CELL(\"filename\",A1),FIND(\"]\",CELL(\"filename\",A1))+1,255)","v":"End Ramp"}]
[null,null,null,null,null,null,null,null,null,null,null,"Phase",null,null,null,null,{"$f":"IF(P10=\"Sidewalk\",\"SW_-_END\",IF(P10=\"Bridge\",\"BRIDGE_E\",\"Select Ramp Type\"))","v":"Select Ramp Type"},null,null,null,"CompletedUnderContract",{"$f":"E3","v":0},"Complete Header \"Scoping\"",null,{"$f":"IF(AND(N2=\"Scoping\",OR(E3=\"\",J3=\"\",E4=\"\",N3=\"\",N4=\"\",O4=\"A/B\",O5=\"Lt or Rt?\",J5=\"\",J6=\"\",K6=\"\",J7=\"\",N6=\"\",O6=\"\",P6=\"\")),\"incomplete\",\"pass\")","v":"pass"},null,null,"Sidewalk End Ramp",null,null,null,null,null,null,null,null,"Drawing 5",null,null,null,null,null,null,null,null,null,null,null,null,null,null,null,null,null,null,null,null,null,null,null,null,null,null,null,null,null,null,null,null,null,null,null,null,null,null,null,null,null,null,null,null,null,{"$f":"LEN(CF4)","v":1},{"$f":"N3","v":0},{"$f":"TEXT(N4,\"0.00\")&IF(O4=\"B\",\"B\",\"\")","v":"0.00"},null,{"$f":"E5","v":0},null,null,null,null,null,null,null,null,null,null,null,null,null,{"$f":"LEN(CW4)","v":30},null,{"$f":"R3","v":"incomplete form"},null,null,{"$f":"J7","v":0},null,{"$f":"J3","v":"00:00:00"},{"$f":"J8","v":0},{"$f":"E8","v":0},{"$f":"E3","v":0},{"$f":"IF(AND(R4=\"Standard ADA\",LEN(R5)=0),\"n/a\",R5)","v":"n/a"},null,null,{"$f":"P6","v":0},"01",{"$f":"N2","v":0},null,null,null,null,null,null,null,null,null,null,null,null,null,null,null,null,null,null,null,null,null,null,null,null,null,null,null,null,{"$f":"IF(RIGHT(O5,1)=\"?\",\"?\",LEFT(O5&\"-\",2))","v":"?"},{"$f":"LEFT(J5,1)","v":"S"},{"$f":"IF(LEN(J6)=0,\"!\",LEFT(TEXT(J6,\"0\")&\"-\",2))","v":"!"},{"$f":"IF(LEN(K6)=0,\"!\",LEFT(TEXT(K6,\"0\")&\"-\",2))","v":"0-"}]
["Contract / Work Order",null,null,null,null,null,null,null,"Date Measured",null,null,null,"SR",null,null,null,"Survey/Feature Status",{"$f":"IF(ISBLANK(P10),\"incomplete form\",IF(COUNTIF(L9,\"Yes\")>0,\"FAIL\",IF(COUNTIF(N12:N17,\"FAIL\")>0,\"FAIL\",IF(COUNTIF(Y1:Y2,\"pass\")<2,\"incomplete form\",IF(COUNTIF(N12:N17,\"pass\")=5,\"pass\",\"incomplete form\")))))","v":"incomplete form"},null,null,"GPSDate",{"$f":"J3","v":"00:00:00"},"Date Measured",null,null,null,null,null,null,null,null,null,null,"Requirements",null,null,"4 ft Min","4 ft Min","Flush","Flush",null,null,null,null,null,null,null,null,null,null,null,null,null,null,null,null,null,null,null,null,null,null,null,null,null,null,null,null,null,null,null,null,null,null,null,null,null,null,null,null,"SR View","Gmap","Gmap2","State Route","Mile- post","Primary St, Bridge, or Facility Name","Intersecting or Related St or Route","City","County","Region","ADA Feature","Meas?","Summary of Non-Compliance","Solution","Sched. Fiscal Year","Estimated Cost","Lat","Long","Lat2","Long2","FeatureID","GIS Table","Fully Compliant?","DWS Non-Comp Only?","Length","Jurisdiction","SubOwner","MeasDate","ConstructedBy","SiteHistory","Contract","MEFRef","DocRef","LocCode","LocMethod","History","Project Phase","Path Priority Index Tier","Barrier Severity","Date made Compliant","Access Level","Rural or Urban","PaveBienn_within_100ft","PaveDue+2","Direction","MP","A/B","ARM","SRSort","MPSort","BridgeNo","Site Key","Issue","Issue Summary","Rest Area","multiples","CityAccess","RecordCreateDate","GPSDate","End_SR","End_MP","ProjectID","ADAGroup","Plan 2016","Planning Set","Side","Site","SiteCompass","FeatCompass"]
[null,"Measured By",null,null,null,null,null,null,null,null,null,null,"Milepost",null,"A/B",{"$f":"HYPERLINK(\"#'READ-ME'!A252:A264\",\"?\")","v":"?"},"MEF Status",{"$f":"IF(SUM(R12:R14)>0,\"Has MEF\",\"Standard ADA\")","v":"Standard ADA"},null,null,"Datafile",{"$f":"E4","v":0},"Measured By",null,null,null,null,null,null,null,null,null,null,null,null,"Ramp","Ramp","Ramp","Grade Break","Grade Break",null,null,null,null,null,null,null,null,null,null,null,null,null,null,null,null,null,null,null,null,null,null,null,null,null,null,null,null,null,null,null,null,null,null,null,null,null,null,null,null,{"$f":"HYPERLINK(\"http://srview3i.wsdot.loc/stateroute/picturelog/v3/client/SRview.Windows.Viewer.application?srnum=\"&LEFT(CF4,3)&\"&rrt=\"&IF(LEN(CF4)>3,RIGHT(LEFT(CF4,5),2),\"\")&\"&rrq=\"&IF(LEN(CF4)=11,RIGHT(CF4,6),IF(LEN(CF4)=10,RIGHT(CF4,5),\"\"))&\"&srmp=\"&CG4,\"SRV\")","v":"SRV"},{"$f":"HYPERLINK(\"http://maps.google.com/maps?z=20&t=k&q=loc:\"&CS4&\",\"&CT4,\"GMap\")","v":{"$error":"#VALUE!"}},{"$f":"IF(LEN(CU4)>0,HYPERLINK(\"http://maps.google.com/maps?z=20&t=k&q=loc:\"&CU4&\",\"&CV4,\"GMap\"),\"\")","v":""},{"$f":"CF2","v":0},{"$f":"CG2","v":"0.00"},null,null,null,null,null,{"$f":"IF(P10=\"Sidewalk\",\"Sidewalk End Ramp\",IF(P10=\"Bridge\",\"Bridge End Ramp\",\"End Ramp\"))","v":"End Ramp"},"Yes",null,"Fully Compliant","?",0,{"$f":"IF(LEN(N6)=0,VALUE(LEFT(CS2,FIND(\",\",CS2)-1)),N6)","v":{"$error":"#VALUE!"}},{"$f":"IF(LEN(O6)=0,VALUE(RIGHT(CS2,LEN(CS2)-FIND(\",\",CS2)-1)),O6)","v":{"$error":"#VALUE!"}},null,null,{"$f":"IF(P10=\"Sidewalk\",\"ERSwk\",IF(P10=\"Bridge\",\"ERBrg\",\"XXXXX\"))&LEFT(TEXT(CF4,\"000\")&\"-----------\",11)&TEXT(DV4,\"000.00\")&DW4&DU4&EQ4&ER4&ES4&DL2","v":"XXXXX000--------000.00AIS!0-01"},"New Point",{"$f":"IF(CY2=\"pass\",\"Yes\",\"No\")","v":"No"},"No","n/a",{"$f":"DB2","v":0},"n/a",{"$f":"DD2","v":"00:00:00"},{"$f":"DE2","v":0},{"$f":"DF2","v":0},{"$f":"DG2","v":0},{"$f":"DH2","v":"n/a"},null,{"$f":"EP4&\"-\"&EQ4&\"-\"&ER4&\"-\"&ES4","v":"?-S-!-0-"},{"$f":"DK2","v":0},"Latest",{"$f":"DM2","v":0},"?","no barrier","?","?","?","?","?","I",{"$f":"TEXT(IF(DW4=\"B\",VALUE(LEFT(CG4,FIND(\"B\",CG4)-1)),CG4),\"000.00\")","v":"000.00"},{"$f":"IF(O4=\"B\",\"B\",\"A\")","v":"A"},"?",{"$f":"LEFT(CF4,3)","v":"0"},{"$f":"IF(LEN(CF4)>9,VALUE(RIGHT(CF4,5))/100,CG4)","v":"0.00"},"n/a","Intersection",null,"+ (blank)",null,null,null,null,null,null,null,null,null,null,null,{"$f":"EP2","v":"?"},{"$f":"EQ2","v":"S"},{"$f":"ER2","v":"!"},{"$f":"ES2","v":"0-"}]
[null,"Cross Street Name",null,null,null,null,null,null,{"$f":"HYPERLINK(\"#'READ-ME'!A61:A88\",\"Site\")","v":"Site"},"Side",null,null,"Station",null,{"$f":"HYPERLINK(\"#'READ-ME'!A222:A240\",\"Lt or Rt?\")","v":"Lt or Rt?"},null,"MEF Reference",null,null,null,"StateRouteRRT",{"$f":"M3","v":"SR"},null,null,null,null,null,"Database Schema","Contract","Date Measured","Measured By","SR","SRMP","A/B","Lt or Rt","W","CS","RS","GB#1","GB#2","NOTES","Feature ID Code","Feature Location Code","Cross Street Name","Corner/Side","Plan Sheet Reference","MEF Reference","Site History","Station","Structurally Compliant?",null,null,null,null,null,null,null,null,null,null,null,null,null,null,null,null,null,null,null,null,null,null,null,null,null,null,null,null,null,null,{"$f":"HYPERLINK(\"http://www.wsdot.wa.gov/data/tools/geoportal/?layers=%7B%22layer0%22%3A%5B%5D%2C%22Buffer%22%3Atrue%2C%22Drawn+Features%22%3Atrue%7D\",\"Geoportal\")","v":"Geoportal"},null,null,null,null,null,null,null,null,null,null,null,null,null,null,null,null,null,null,null,null,null,null,null,null,null,null,null,null,null,null,null,null,null,null,null,null,null,null,null,null,null,null,null,null,null,null,null,null,null,null,null,null,null,null,null,null,null,null,null,null,null,null,null,null,"LEFT(TEXT(CF4,\"000\")&\"-----------\",11)"]
["Plan Sheet Reference",null,null,null,null,null,null,null,{"$f":"HYPERLINK(\"#'READ-ME'!A112:A138\",\"Location\")","v":"Location"},null,0,"Geoportal",null,null,null,null,null,null,null,null,"SRMP",{"$f":"M4","v":"Milepost"},null,null,null,null,null,"FeatureName","CompletedUnderContract","GPSDate","Datafile","StateRouteRRT","SRMP","AheadBackIndicator","DirectionOfInventory","RampWidth","RampCrossSlope","RampRunningSlope","GradeBreak1","GradeBreak2","Note","WSDOTFeatureNumber","FeatureLocationCode","CrossStreet","CornerSide","PlanShtRef","MEFRef","SiteHist","Station","StructComp"]
["Feature Location Code",null,null,null,null,null,null,null,"Jurisdiction",null,null,{"$f":"HYPERLINK(\"#'READ-ME'!A148:A189\",\"Instructions\")","v":"Instructions"},null,"Latitude","Longitude",{"$f":"HYPERLINK(\"#'READ-ME'!A201:A207\",\"Accuracy\")","v":"Accuracy"},null,null,null,null,"AheadBackIndicator",{"$f":"O4","v":"A/B"},null,null,null,null,null,{"$f":"V1","v":"Select Ramp Type"},{"$f":"VLOOKUP(AC6,$U:$V,2,FALSE)","v":0},0,0,"SR","Milepost","A/B",0,"no data","no data","no data","no data","no data",0,0,0,0,"Side",0,0,0,"Station","incomplete"]
[null,null,null,"Site History",null,null,null,null,"Constructed By",null,null,null,"Enter numbers only\n1 = 1.00%, 2.25 = 2.25 ft, etc.",null,null,null,"ADA Compliance Criteria",null,null,null,"DirectionOfInventory",{"$f":"M6","v":0},"Lt or Rt"]
[null,null,null,null,null,null,null,null,null,null,{"$f":"IF(COUNTIF(N2,\"Scoping\")>0,\"Visually Identified the Feature is ADA non-Compliant, no measurements taken\",\"\")","v":""},null,null,null,null,"Measurement",null,"MEF Criteria"]
[null,null,null,null,null,null,null,null,null,null,null,null,null,"End Ramp Type",null,null,null,null,null,null,null,null,null,null,null,null,null,null,null,null,null,null,null,"GradeBreakNote","Note","PhotosTaken","GPSDate","GradeBreak4","Point1Width","Point1CrossSlope","Point1RunSlope","Point2Width","Point2CrossSlope","Point3Width","Point3CrossSlope","Point3RunSlope","Note"]
[null,null,null,null,null,null,null,null,null,null,null,null,null,"Ramp"]
[null,null,null,null,null,null,null,null,null,null,null,null,null,{"$f":"IF(ISBLANK(P12),\"\",IF(COUNTIF(V12,W12&X12)>0,\"pass\",\"FAIL\"))","v":""},"RS",null,"8.30% Max",null,"% Max",null,"RampRunningSlope",{"$f":"IF(ISBLANK(P12),\"no data\",P12)","v":"no data"},{"$f":"IF(ISBLANK(R12),CHOOSE(IF(RIGHT(Q12,3)=\"Min\",1,IF(RIGHT(Q12,3)=\"Max\",3,2)),\">=\",\"=\",\"<=\"),CHOOSE(IF(RIGHT(S12,3)=\"Min\",1,IF(RIGHT(S12,3)=\"Max\",3,2)),\">=\",\"=\",\"<=\"))","v":"<="},{"$f":"IF(ISBLANK(R12),Z12,R12)","v":8.3000000000000007},"% Max",8.3000000000000007]
[null,null,null,null,null,null,null,null,null,null,null,null,null,{"$f":"IF(ISBLANK(P13),\"\",IF(COUNTIF(V13,W13&X13)>0,\"pass\",\"FAIL\"))","v":""},"CS",null,"2.00% Max",null,"% Max",null,"RampCrossSlope",{"$f":"IF(ISBLANK(P13),\"no data\",P13)","v":"no data"},{"$f":"IF(ISBLANK(R13),CHOOSE(IF(RIGHT(Q13,3)=\"Min\",1,IF(RIGHT(Q13,3)=\"Max\",3,2)),\">=\",\"=\",\"<=\"),CHOOSE(IF(RIGHT(S13,3)=\"Min\",1,IF(RIGHT(S13,3)=\"Max\",3,2)),\">=\",\"=\",\"<=\"))","v":"<="},{"$f":"IF(ISBLANK(R13),Z13,R13)","v":2},"% Max",2]
[null,null,null,null,null,null,null,null,null,null,null,null,null,{"$f":"IF(ISBLANK(P14),\"\",IF(COUNTIF(V14,W14&X14)>0,\"pass\",\"FAIL\"))","v":""},"W",null,"4.00 ft Min",null,"ft Min",null,"RampWidth",{"$f":"IF(ISBLANK(P14),\"no data\",P14)","v":"no data"},{"$f":"IF(ISBLANK(R14),CHOOSE(IF(RIGHT(Q14,3)=\"Min\",1,IF(RIGHT(Q14,3)=\"Max\",3,2)),\">=\",\"=\",\"<=\"),CHOOSE(IF(RIGHT(S14,3)=\"Min\",1,IF(RIGHT(S14,3)=\"Max\",3,2)),\">=\",\"=\",\"<=\"))","v":">="},{"$f":"IF(ISBLANK(R14),Z14,R14)","v":4},"ft Min",4]
[null,null,null,null,null,null,null,null,null,null,null,null,null,"Grade Breaks",null,null,null,null,"(paper form: enter fraction or decimal of an inch)"]
[null,null,null,null,null,null,null,null,null,null,null,null,null,{"$f":"IF(ISBLANK(P16),\"\",IF(COUNTIF(AB27:AB29,P16)>0,\"pass\",\"FAIL\"))","v":""},"GB#1",null,null,null,null,null,"GradeBreak1",{"$f":"IF(ISBLANK(P16),\"no data\",P16)","v":"no data"},{"$f":"IF(ISBLANK(R16),CHOOSE(IF(RIGHT(Q16,3)=\"Min\",1,IF(RIGHT(Q16,3)=\"Max\",3,2)),\">=\",\"=\",\"<=\"),CHOOSE(IF(RIGHT(S16,3)=\"Min\",1,IF(RIGHT(S16,3)=\"Max\",3,2)),\">=\",\"=\",\"<=\"))","v":"="},{"$f":"IF(ISBLANK(R16),Z16,R16)","v":0},"flush",0]
[null,null,null,null,null,null,null,null,null,null,null,null,null,{"$f":"IF(ISBLANK(P17),\"\",IF(COUNTIF(AB27:AB29,P17)>0,\"pass\",\"FAIL\"))","v":""},"GB#2",null,null,null,null,null,"GradeBreak2",{"$f":"IF(ISBLANK(P17),\"no data\",P17)","v":"no data"},{"$f":"IF(ISBLANK(R17),CHOOSE(IF(RIGHT(Q17,3)=\"Min\",1,IF(RIGHT(Q17,3)=\"Max\",3,2)),\">=\",\"=\",\"<=\"),CHOOSE(IF(RIGHT(S17,3)=\"Min\",1,IF(RIGHT(S17,3)=\"Max\",3,2)),\">=\",\"=\",\"<=\"))","v":"="},{"$f":"IF(ISBLANK(R17),Z17,R17)","v":0},"flush",0]
[null,null,null,null,null,null,null,null,null,null,null,null,null,null,null,null,null,null,null,null,"StructComp",{"$f":"IF(COUNTIF(N9:N10,\"FAIL\")>0,\"No\",IF(COUNTIF(N9:N10,\"pass\")=5,\"Yes\",\"incomplete\"))","v":"incomplete"},"Structurally Compliant?"]
[]
[null,null,null,null,null,null,null,null,null,null,null,null,null,null,null,null,null,null,null,null,"WSDOTFeatureNumber",null,"Feature ID Code"]
[null,null,null,null,null,null,null,null,null,null,null,null,null,null,null,null,null,null,null,null,"FeatureLocationCode",{"$f":"E7","v":0},"From Plan Sheet"]
[null,null,null,null,null,null,null,null,null,null,null,null,null,null,null,null,null,null,null,null,"Note",{"$f":"B26","v":0}," "]
[null,null,null,null,null,null,null,null,null,null,null,null,null,null,null,null,null,null,null,null,"CrossStreet",{"$f":"E5","v":0}," "]
[null,null,null,null,null,null,null,null,null,null,null,null,null,null,null,null,null,null,null,null,"CornerSide",{"$f":"J5","v":"Side"}," "]
[null,"NOTES",null,null,null,null,null,null,null,null,null,null,null,null,null,null,null,null,null,null,"PlanShtRef",{"$f":"E6","v":0}," "]
[null,null,null,null,null,null,null,null,null,null,null,null,null,null,null,null,null,null,null,null,"MEFRef",{"$f":"R6","v":0},null,null,null,null,null,"Grade Breaks"]
[null,null,null,null,null,null,null,null,null,null,null,null,null,null,null,null,null,null,null,null,"SiteHist",{"$f":"IF(N2=\"Scoping\",\"Existing Feature\",E8)","v":0}," ",null,null,null,null,"Flush","Flush (0.00\") No vertical Difference"]
[null,null,null,null,null,null,null,null,null,null,null,null,null,null,null,null,null,null,null,null,"Station",{"$f":"M5","v":"Station"},null,null,null,null,null,"¼-Inch or Less","¼-Inch (0.02 ft) or Less"]
[null,null,null,null,null,null,null,null,null,null,null,null,null,null,null,null,null,null,null,null,null,null,null,null,null,null,null,"¼ to ½-Inch YES Bevel","Between  ¼ - ½-Inch WITH ¼-inch Beveled at 2:1"]
[null,null,null,null,null,null,null,null,null,null,null,null,null,null,null,null,null,null,null,null,null,null,null,null,null,null,null,"¼ to ½-Inch NO Bevel","Between  ¼ - ½-Inch WITHOUT ¼-inch Beveled at 2:1"]
[null,null,null,null,null,null,null,null,null,null,null,null,null,null,null,null,null,null,null,null,null,null,null,null,null,null,null,"Greater than ½-Inch","Greater than ½-Inch"]
[null,"Measurement Instrument \nSerial Number:",null,null,null,"Calibrated by:",null,null,null,"Date:"]
[]
[null,"1\" = 0.08'","2\" = 0.17'","3\" = 0.25'","4\" = 0.33'","5\" = 0.42'","6\" = 0.50'","7\" = 0.58'","8\" = 0.67'","9\" = 0.75'","10\" = 0.83'","11\" = 0.92'"]
[null,null,null,null,null,null,null,null,null,null,null,null,null,null,null,null,null,"Form Updated"]
[null,null,null,null,null,null,null,null,null,null,null,null,null,null,null,null,null,"2018-07-31"]

{"sheet":"APS Button_Signal","index":10,"n_rows":62,"n_cols":149,"rows_kept":62,"cut":false,"hidden":false,"merged":[[0,31,0,32],[1,31,1,32],[53,25,53,26],[37,1,49,19],[41,21,41,22],[36,1,36,19],[6,14,6,15],[7,9,7,11],[7,14,7,15],[1,19,1,20],[1,21,1,22],[5,19,5,20],[51,1,51,4],[51,5,51,8],[2,21,2,22],[0,1,1,13],[54,25,54,26],[45,24,45,26],[46,24,46,26],[44,24,44,26],[1,25,1,26],[7,24,7,26],[3,25,3,26],[4,25,4,26],[5,24,6,27],[8,21,8,22],[32,46,32,47],[33,46,33,47],[34,46,34,47],[16,24,16,26],[17,24,17,26],[18,24,18,26],[27,46,27,47],[28,46,28,47],[29,46,29,47],[30,46,30,47],[31,46,31,47],[2,44,2,45],[2,9,2,10],[2,14,2,15],[2,25,2,26],[9,1,9,10],[9,11,9,19],[4,6,4,8],[4,9,4,12],[5,9,5,11],[6,6,6,8],[6,9,6,11],[5,6,5,8],[3,6,3,8],[4,14,4,15],[2,6,2,8],[3,9,3,12],[51,9,51,11],[50,1,50,4],[50,5,50,8],[50,9,50,11],[6,18,6,20]]}
[null,"ADA Feature - Accessible Pedestrian Signal Pushbuttons\nand Pedestrian Displays/Signals",null,null,null,null,null,null,null,null,null,null,null,null,null,null,{"$f":"IF(AND(OR(AH2=\"incomplete\",AH1=\"incomplete\"),LEN(V2)>0),\"= Required Field\",\"\")","v":""},null,null,null,null,null,null,null,null,null,null,null,null,"FeatureName",{"$f":"Z2","v":"APS_BUTT\nAPS_SIGN"},"Complete Header",null,{"$f":"IF(AND(V2<>\"Scoping\",OR(J3=\"\",O3=\"\",J4=\"\",V2=\"\",V3=\"\",V4=\"\",W4=\"A/B\",J7=\"\",W5=\"Lt or Rt?\",J5=\"\",O5=\"\",O6=\"\",P6=\"\",O7=\"\",O8=\"\",V6=\"\",W6=\"\",X6=\"\",B52=\"\",F52=\"\",J52=\"\",J8=\"\")),\"incomplete\",\"pass\")","v":"incomplete"},null,null,null,null,null,null,null,null,null,null,null,null,null,null,null,null,null,null,null,null,null,null,null,null,null,null,null,null,null,null,null,null,null,null,null,null,null,null,null,null,null,null,null,null,null,null,null,null,null,null,null,null,null,null,null,null,{"$f":"MID(CELL(\"filename\",A1),FIND(\"]\",CELL(\"filename\",A1))+1,255)","v":"APS Button_Signal"}]
[null,null,null,null,null,null,null,null,null,null,null,null,null,null,null,null,null,null,null,"Phase",null,null,null,null,"Database Schema:","APS_BUTT\nAPS_SIGN",null,null,null,"CompletedUnderContract",{"$f":"J3","v":0},"Complete Header \"Scoping\"",null,{"$f":"IF(AND(V2=\"Scoping\",OR(J3=\"\",O3=\"\",J4=\"\",V3=\"\",V4=\"\",W4=\"A/B\",J5=\"\",W5=\"Lt or Rt?\",O5=\"\",O6=\"\",P6=\"\",O7=\"\",V6=\"\",W6=\"\",X6=\"\")),\"incomplete\",\"pass\")","v":"pass"},null,null,null,null,"APS Button Signal",null,"Drawing 16","Drawing 17","Drawing 18","Drawing 19","Drawing 20","Drawing 21","Drawing 22","Drawing 23","Drawing 24","Drawing 25","Drawing 26",null,null,null,null,null,null,null,null,null,null,null,null,null,null,null,null,null,null,null,null,null,null,null,null,null,null,null,null,null,null,null,{"$f":"LEN(CF4)","v":1},{"$f":"V3","v":0},{"$f":"TEXT(V4,\"0.00\")&IF(W4=\"B\",\"B\",\"\")","v":"0.00"},null,{"$f":"J5","v":0},null,null,null,null,null,null,null,null,null,null,null,null,null,{"$f":"LEN(CW4)","v":28},null,{"$f":"IF(COUNTIF(Z4:AA5,\"pass\")=2,\"pass\",\"x\")","v":"x"},null,null,{"$f":"O7","v":0},null,{"$f":"O3","v":"00:00:00"},{"$f":"O8","v":0},{"$f":"J8","v":0},{"$f":"J3","v":0},{"$f":"IF(AND(R4=\"Standard ADA\",LEN(R5)=0),\"n/a\",R5)","v":0},null,null,{"$f":"X6","v":0},"01",{"$f":"V2","v":0},null,null,null,null,null,null,null,null,null,null,null,null,null,null,null,null,null,null,null,null,null,null,null,null,null,null,null,null,{"$f":"IF(RIGHT(W5,1)=\"?\",\"?\",LEFT(W5&\"-\",2))","v":"?"},{"$f":"LEFT(O5,1)","v":""},{"$f":"IF(LEN(O6)=0,\"!\",LEFT(TEXT(O6,\"0\")&\"-\",2))","v":"!"},{"$f":"IF(LEN(P6)=0,\"!\",LEFT(TEXT(P6,\"0\")&\"-\",2))","v":"!"}]
[null,null,null,null,null,null,"Contract / Work Order",null,null,null,null,null,null,"Date Measured",null,null,null,null,null,null,"SR",null,null,null,"Survey/Feature Status",{"$f":"IF(COUNTIF(P9,\"Yes\")>0,\"FAIL\",IF(COUNTIF(Z4:AA5,\"FAIL\")>0,\"FAIL\",IF(COUNTIF(AH1:AH2,\"pass\")<2,\"incomplete form\",IF(COUNTIF(Z4:AA5,\"pass\")=2,\"pass\",\"incomplete form\"))))","v":"incomplete form"},null,null,null,"GPSDate",{"$f":"O3","v":"00:00:00"},null,null,"Date Measured",null,null,null,null,null,null,null,null,null,null,"Requirements",null,null,null,"10 ft Max","10 in Max","2 ft Max","10 in Max","2.5 ft by 4.0 ft Min","No","2.0% Max","2.0% Max","Yes","0.17 ft Min","3.00 Min\n4.00 Max","Yes","Yes","Yes","Yes","Yes","If separarted, 10 ft Min","If separarted, 10 ft Min","If separarted, 10 ft Min","Yes","Yes","Yes","Yes",null,"Yes",null,null,null,null,null,null,null,"SR View","Gmap","Gmap2","State Route","Mile- post","Primary St, Bridge, or Facility Name","Intersecting or Related St or Route","City","County","Region","ADA Feature","Meas?","Summary of Non-Compliance","Solution","Sched. Fiscal Year","Estimated Cost","Lat","Long","Lat2","Long2","FeatureID","GIS Table","Fully Compliant?","DWS Non-Comp Only?","Length","Jurisdiction","SubOwner","MeasDate","ConstructedBy","SiteHistory","Contract","MEFRef","DocRef","LocCode","LocMethod","History","Project Phase","Path Priority Index Tier","Barrier Severity","Date made Compliant","Access Level","Rural or Urban","PaveBienn_within_100ft","PaveDue+2","Direction","MP","A/B","ARM","SRSort","MPSort","BridgeNo","Site Key","Issue","Issue Summary","Rest Area","multiples","CityAccess","RecordCreateDate","GPSDate","End_SR","End_MP","ProjectID","ADAGroup","Plan 2016","Planning Set","Side","Site","SiteCompass","FeatCompass"]
[null,null,null,null,null,null,"Measured By",null,null,null,null,null,null,null,null,null,null,null,null,null,"Milepost",null,"A/B",{"$f":"HYPERLINK(\"#'READ-ME'!A252:A264\",\"?\")","v":"?"},"Button",{"$f":"IF(COUNTIF(P9,\"Yes\")>0,\"FAIL\",IF(COUNTIF(V11:V41,\"FAIL\")>0,\"FAIL\",IF(COUNTIF(AM53:AM58,\"pass\")=1,\"pass\",\"incomplete form\")))","v":"incomplete form"},null,null,null,"Datafile",{"$f":"J4","v":0},null,null,"Measured By",null,null,null,null,null,null,null,null,null,null,null,null,null,"Button",null,null,null,null,null,null,null,null,null,null,null,null,null,null,null,null,null,null,null,null,null,null,null,null,null,null,null,null,null,null,null,null,{"$f":"HYPERLINK(\"http://srview3i.wsdot.loc/stateroute/picturelog/v3/client/SRview.Windows.Viewer.application?srnum=\"&LEFT(CF4,3)&\"&rrt=\"&IF(LEN(CF4)>3,RIGHT(LEFT(CF4,5),2),\"\")&\"&rrq=\"&IF(LEN(CF4)=11,RIGHT(CF4,6),IF(LEN(CF4)=10,RIGHT(CF4,5),\"\"))&\"&srmp=\"&CG4,\"SRV\")","v":"SRV"},{"$f":"HYPERLINK(\"http://maps.google.com/maps?z=20&t=k&q=loc:\"&CS4&\",\"&CT4,\"GMap\")","v":{"$error":"#VALUE!"}},{"$f":"IF(LEN(CU4)>0,HYPERLINK(\"http://maps.google.com/maps?z=20&t=k&q=loc:\"&CU4&\",\"&CV4,\"GMap\"),\"\")","v":""},{"$f":"CF2","v":0},{"$f":"CG2","v":"0.00"},null,null,null,null,null,"APS Button/Signal","Yes",null,"Fully Compliant","?",0,{"$f":"IF(LEN(V6)=0,VALUE(LEFT(CS2,FIND(\",\",CS2)-1)),V6)","v":{"$error":"#VALUE!"}},{"$f":"IF(LEN(W6)=0,VALUE(RIGHT(CS2,LEN(CS2)-FIND(\",\",CS2)-1)),W6)","v":{"$error":"#VALUE!"}},null,null,{"$f":"\"APSBS\"&LEFT(TEXT(CF4,\"000\")&\"-----------\",11)&TEXT(DV4,\"000.00\")&DW4&DU4&EQ4&ER4&ES4&DL2","v":"APSBS000--------000.00AI!!01"},"New Point",{"$f":"IF(CY2=\"pass\",\"Yes\",\"No\")","v":"No"},"No","n/a",{"$f":"DB2","v":0},"n/a",{"$f":"DD2","v":"00:00:00"},{"$f":"DE2","v":0},{"$f":"DF2","v":0},{"$f":"DG2","v":0},"n/a",null,{"$f":"EP4&\"-\"&EQ4&\"-\"&ER4&\"-\"&ES4","v":"?--!-!"},{"$f":"DK2","v":0},"Latest",{"$f":"DM2","v":0},"?","no barrier","?","?","?","?","?","I",{"$f":"TEXT(IF(DW4=\"B\",VALUE(LEFT(CG4,FIND(\"B\",CG4)-1)),CG4),\"000.00\")","v":"000.00"},{"$f":"IF(W4=\"B\",\"B\",\"A\")","v":"A"},"?",{"$f":"LEFT(CF4,3)","v":"0"},{"$f":"IF(LEN(CF4)>9,VALUE(RIGHT(CF4,5))/100,CG4)","v":"0.00"},"n/a","Intersection",null,"+ (blank)",null,null,null,null,null,null,null,null,null,null,null,{"$f":"EP2","v":"?"},{"$f":"EQ2","v":""},{"$f":"ER2","v":"!"},{"$f":"ES2","v":"!"}]
[null,null,null,null,null,null,"Cross Street Name",null,null,null,null,null,null,{"$f":"HYPERLINK(\"#'READ-ME'!A61:A88\",\"Site\")","v":"Site"},null,null,null,null,null,null,"Station",null,{"$f":"HYPERLINK(\"#'READ-ME'!A222:A240\",\"Lt or Rt?\")","v":"Lt or Rt?"},null,"Signal",{"$f":"IF(COUNTIF(P9,\"Yes\")>0,\"FAIL\",IF(COUNTIF(V43:V52,\"FAIL\")>0,\"FAIL\",IF(COUNTIF(AO53:AO58,\"pass\")=1,\"pass\",\"incomplete form\")))","v":"incomplete form"},null,null,null,"StateRouteRRT",{"$f":"V3","v":0},null,null,null,null,null,null,null,"Database Schema","Contract","Date Measured","Measured By","SR","SRMP","A/B","Lt or Rt","Button #","Button Support Pole","Button to Curb","Button to Pass Thru","Button to Landing","Button to Clear Space","APS Clear Space Size","Obstruction between PAR & Clear Space","Clear Space 1","Clear Space 2","Button Contrast","Button Width","Button Height","Arrow Parallel to Crosswalk","Button Arrow Contrast","Button Audible","Button Vibrate","Button Arrow Tactile","Dist 1-2","Dist 2-3","Dist 3-1","Sign On Housing","Sign Street Name","Sign Street Name Braille","Sign Street Name Parrallel to Crosswalk","Arrow on Sign","Sign Street Name Audio","SignStreetNameVibrate","NOTES","Feature ID Code","Feature Location Code","Cross Street Name",null,null,{"$f":"HYPERLINK(\"http://www.wsdot.wa.gov/data/tools/geoportal/?layers=%7B%22layer0%22%3A%5B%5D%2C%22Buffer%22%3Atrue%2C%22Drawn+Features%22%3Atrue%7D\",\"Geoportal\")","v":"Geoportal"},null,null,null,null,null,null,null,null,null,null,null,null,null,null,null,null,null,null,null,null,null,null,null,null,null,null,null,null,null,null,null,null,null,null,null,null,null,null,null,null,null,null,null,null,null,null,null,null,null,null,null,null,null,null,null,null,null,null,null,null,null,null,null,null,"LEFT(TEXT(CF4,\"000\")&\"-----------\",11)"]
[null,null,null,null,null,null,"Plan Sheet Reference",null,null,null,null,null,null,{"$f":"HYPERLINK(\"#'READ-ME'!A112:A138\",\"Location\")","v":"Location"},null,null,null,null,null,"Geoportal",null,null,null,null,"Enter numbers only\n1 = 1.00%, 2.25 = 2.25 ft, etc.\nLeave nothing blank (NA if NOT Applicable)",null,null,null,null,"SRMP",{"$f":"V4","v":0},null,null,null,null,null,null,null,"FeatureName","CompletedUnderContract","GPSDate","Datafile","StateRouteRRT","SRMP","AheadBackIndicator","DirectionOfInventory","ApsButtonNumber","ButtonSupportPole","DistanceButtonToCurb","DistanceButtonPassThruToCurb","DistBetweenButtonEdgeOfLanding","DistBetweenButtonAndClearSpace","ApsClearSpaceSize","ObstructBtweenParAndClearSpace","ClearSpaceCS1","ClearSpaceCS2","ButtonContrast","ButtonWidth","ButtonHeight","ArrowParallelToCrosswalk","ButtonArrrowContrast","ButtonAudible","ButtonVibrate","ButtonArrowTactile","DistBetweenBut1and2","DistBetweenBut2and3","DistBetweenBut3and1","SignOnHousing","SignStreetName","SignStreetNameBraille","SignStreetNameParrallelToCrw","ArrowOnSign","SignStreetNameAudio","SignStreetNameVibrate","Note","WSDOTFeatureNumber","FeatureLocationCode","CrossStreet"]
[null,null,null,null,null,null,"Feature Location Code",null,null,null,null,null,null,"Jurisdiction",null,null,null,null,{"$f":"HYPERLINK(\"#'READ-ME'!A148:A189\",\"Instructions\")","v":"Instructions"},null,null,"Latitude","Longitude",{"$f":"HYPERLINK(\"#'READ-ME'!A201:A207\",\"Accuracy\")","v":"Accuracy"},null,null,null,null,null,"AheadBackIndicator",{"$f":"W4","v":"A/B"},null,null,"A / B",null,null,null,"APSButton #1","APS_BUTT",{"$f":"VLOOKUP(AN$6,$AD:$AE,2,FALSE)","v":0},0,0,0,0,"A/B","Lt or Rt?",{"$f":"VLOOKUP(AU$6,$AD:$AG,2,FALSE)","v":"APSButton #1"},"no data","no data","no data","no data","no data","no data","no data","no data","no data","no data","no data","no data","no data","no data","no data","no data","no data","no data","NA",{"$f":"VLOOKUP(BO$6,$AD:$AG,3,FALSE)","v":"NA"},{"$f":"VLOOKUP(BP$6,$AD:$AG,2,FALSE)","v":"no data"},"no data","no data","no data","no data","no data","no data",{"$f":"VLOOKUP(BW$6,$AD:$AE,2,FALSE)","v":0},0,{"$f":"VLOOKUP(BY6,$AD:$AE,2,FALSE)","v":0},{"$f":"VLOOKUP(BZ$6,$AD:$AE,2,FALSE)","v":0},null,null,"APS Signal","APSSi"]
[null,null,null,null,null,null,null,null,"Site History",null,null,null,null,"Constructed By",null,null,null,null,null,null,null,null,null,"Compliance Criteria","Measurement",null,null,null,null,"DirectionOfInventory",{"$f":"W5","v":"Lt or Rt?"},null,null,"Lt or Rt",null,null,null,"APSButton #2","APS_BUTT",0,0,0,0,0,"A/B","Lt or Rt?",{"$f":"VLOOKUP(AU$6,$AD:$AG,3,FALSE)","v":"APSButton #2"},"no data","no data","no data","no data","no data","no data","no data","no data","no data","no data","no data","no data","no data","no data","no data","no data","no data","no data","no data",{"$f":"VLOOKUP(BO$6,$AD:$AG,4,FALSE)","v":"no data"},{"$f":"VLOOKUP(BP$6,$AD:$AG,3,FALSE)","v":"no data"},"no data","no data","no data","no data","no data","no data",0,0,{"$f":"VLOOKUP(BY6,$AD:$AE,2,FALSE)","v":0},{"$f":"VLOOKUP(BZ$6,$AD:$AE,2,FALSE)","v":0}]
[null,null,null,null,null,null,null,null,null,null,null,null,null,null,{"$f":"IF(COUNTIF($V$2,\"Scoping\")>0,\"Visually Identified the Feature is ADA non-Compliant, no measurements taken\",\"\")","v":""},null,null,null,null,null,null,"APS Pushbutton",null,"↓","APSButton #1","APSButton #2","APSButton #3",null,null,"ApsButtonNumber","APSButton #1","APSButton #2","APSButton #3","APSButton #1","APSButton #2","APSButton #3",null,"APSButton #3","APS_BUTT",0,0,0,0,0,"A/B","Lt or Rt?",{"$f":"VLOOKUP(AU$6,$AD:$AG,4,FALSE)","v":"APSButton #3"},"no data","no data","no data","no data","no data","no data","no data","no data","no data","no data","no data","no data","no data","no data","no data","no data","no data","NA","no data",{"$f":"VLOOKUP(BO$6,$AD:$AG,2,FALSE)","v":"no data"},{"$f":"VLOOKUP(BP$6,$AD:$AG,4,FALSE)","v":"no data"},"no data","no data","no data","no data","no data","no data",0,0,{"$f":"VLOOKUP(BY6,$AD:$AE,2,FALSE)","v":0},{"$f":"VLOOKUP(BZ$6,$AD:$AE,2,FALSE)","v":0}]
[null,"APS - PUSH BUTTON LOCATION SEPARATE POLE",null,null,null,null,null,null,null,null,null,"APS - PUSH BUTTON LOCATION SHARED POLE",null,null,null,null,null,null,null,null,null,null,"Button Support Pole",{"$f":"IF(COUNTIF(Y10:AA10,\"Shared\")=1,\"INVALID - Check Support Pole\",\"\")","v":""},null,null,null,null,null,"ButtonSupportPole",{"$f":"IF(ISBLANK(Y10),\"no data\",Y10)","v":"no data"},{"$f":"IF(ISBLANK(Z10),\"no data\",Z10)","v":"no data"},{"$f":"IF(ISBLANK(AA10),\"no data\",AA10)","v":"no data"}]
[null,null,null,null,null,null,null,null,null,null,null,null,null,null,null,null,null,null,null,null,null,"Distance",null,null,null,null,null,null,null,null,null,null,null,null,null,null,null,null,null,null,null,null,null,null,null,null,null,"Signal",null,"7 ft Min","Yes",null,"If separarted, 10 ft Min","If separarted, 10 ft Min","If separarted, 10 ft Min"]
[null,null,null,null,null,null,null,null,null,null,null,null,null,null,null,null,null,null,null,null,null,null,"Button to crosswalk edge","10 ft Max"]
[null,null,null,null,null,null,null,null,null,null,null,null,null,null,null,null,null,null,null,null,null,{"$f":"IF(AND($Y13=\"\",$Y$10=\"\",$Z$10=\"\",$AA$10=\"\"),\"\",IF(COUNTIF($AH13:$AJ13,\"FAIL\")>0,\"FAIL\",IF(COUNTIF($AH13:$AJ13,\"incomplete\")>0,\"incomplete\",\"pass\")))","v":""},"Button to Curb Face","10 ft Max",null,null,null,null,null,"DistanceButtonToCurb",{"$f":"IF(ISBLANK(Y13),\"no data\",Y13)","v":"no data"},{"$f":"IF(Z13<>\"\",Z13,IF(AND(ISBLANK(Z13),$Z$10<>\"NA\"),\"no data\",\"NA\"))","v":"no data"},{"$f":"IF(AA13<>\"\",AA13,IF(AND(ISBLANK(AA13),$AA$10<>\"NA\"),\"no data\",\"NA\"))","v":"no data"},{"$f":"IF(AE13=\"no data\",\"incomplete\",IF(COUNTIF(AE13,\"<=10\"),\"pass\",\"FAIL\"))","v":"incomplete"},{"$f":"IF(AF13=\"NA\",\"NA\",IF(COUNTIF(AF13,\">10\"),\"FAIL\",IF(COUNTIF(AF13,\"<=10\"),\"pass\",\"incomplete\")))","v":"incomplete"},{"$f":"IF(AG13=\"NA\",\"NA\",IF(COUNTIF(AG13,\">10\"),\"FAIL\",IF(COUNTIF(AG13,\"<=10\"),\"pass\",\"incomplete\")))","v":"incomplete"},null,null,"Database Schema","Contract","Date Measured","Measured By","SR","SRMP","A/B","Lt or Rt","Signal #","Button Support Pole","Type","Height","Audible Signal","Audible Type","Dist 1-2","Dist 2-3","Dist 3-1","NOTES","Feature ID Code","Feature Location Code","Cross Street Name","Corner/Side","Plan Sheet Reference","Site History","Station","Structurally Compliant?"]
[null,null,null,null,null,null,null,null,null,null,null,null,null,null,null,null,null,null,null,null,null,{"$f":"IF(AND($Y14=\"\",$Y$10=\"\",$Z$10=\"\",$AA$10=\"\"),\"\",IF(COUNTIF($AH14:$AJ14,\"FAIL\")>0,\"FAIL\",IF(COUNTIF($AH14:$AJ14,\"incomplete\")>0,\"incomplete\",\"pass\")))","v":""},"Button-PassThru","10 inches max",null,null,null,null,null,"DistanceButtonPassThruToCurb",{"$f":"IF(ISBLANK(Y14),\"no data\",Y14)","v":"no data"},{"$f":"IF(Z14<>\"\",Z14,IF(AND(ISBLANK(Z14),$Z$10<>\"NA\"),\"no data\",\"NA\"))","v":"no data"},{"$f":"IF(AA14<>\"\",AA14,IF(AND(ISBLANK(AA14),$AA$10<>\"NA\"),\"no data\",\"NA\"))","v":"no data"},{"$f":"IF(AE14=\"no data\",\"incomplete\",IF(COUNTIF(AE14,\"<=2\"),\"pass\",\"FAIL\"))","v":"incomplete"},{"$f":"IF(AF14=\"NA\",\"NA\",IF(COUNTIF(AF14,\">2\"),\"FAIL\",IF(COUNTIF(AF14,\"<=2\"),\"pass\",\"incomplete\")))","v":"incomplete"},{"$f":"IF(AG14=\"NA\",\"NA\",IF(COUNTIF(AG14,\">2\"),\"FAIL\",IF(COUNTIF(AG14,\"<=2\"),\"pass\",\"incomplete\")))","v":"incomplete"},null,null,"FeatureName","CompletedUnderContract","GPSDate","Datafile","StateRouteRRT","SRMP","AheadBackIndicator","DirectionOfInventory","APSSignalNumber","NumberSignalsOnSupportPole","SignalType","SignalHeight","SignalAudibleWalkPresent","SignalAudibleType","DistBetween1and2","DistBetween2and3","DistBetween3and1","Note","WSDOTFeatureNumber","FeatureLocationCode","CrossStreet","CornerSide","PlanShtRef","SiteHist","Station","StructComp"]
[null,null,null,null,null,null,null,null,null,null,null,null,null,null,null,null,null,null,null,null,null,{"$f":"IF(AND($Y15=\"\",$Y$10=\"\",$Z$10=\"\",$AA$10=\"\"),\"\",IF(COUNTIF($AH15:$AJ15,\"FAIL\")>0,\"FAIL\",IF(COUNTIF($AH15:$AJ15,\"incomplete\")>0,\"incomplete\",\"pass\")))","v":""},"Button-Landing","2 ft Max",null,null,null,null,null,"DistBetweenButtonEdgeOfLanding","no data",{"$f":"IF(Z15<>\"\",Z15,IF(AND(ISBLANK(Z15),$Z$10<>\"NA\"),\"no data\",\"NA\"))","v":"no data"},"no data",{"$f":"IF(AE15=\"no data\",\"incomplete\",IF(COUNTIF(AE15,\"<=2\"),\"pass\",\"FAIL\"))","v":"incomplete"},{"$f":"IF(AF15=\"NA\",\"NA\",IF(COUNTIF(AF15,\">2\"),\"FAIL\",IF(COUNTIF(AF15,\"<=2\"),\"pass\",\"incomplete\")))","v":"incomplete"},{"$f":"IF(AG15=\"NA\",\"NA\",IF(COUNTIF(AG15,\">2\"),\"FAIL\",IF(COUNTIF(AG15,\"<=2\"),\"pass\",\"incomplete\")))","v":"incomplete"},null,"Signal","APS_SIGN",{"$f":"VLOOKUP(AN$14,$AD:$AE,2,FALSE)","v":0},0,0,0,0,"A/B","Lt or Rt?",{"$f":"VLOOKUP(AU$14,$AD:$AG,2,FALSE)","v":"APSSignal #1"},"Separate","no data","no data","no data","no data","no data","NA","no data",{"$f":"VLOOKUP(BD$14,$AD:$AE,2,FALSE)","v":0},0,{"$f":"VLOOKUP(BF14,$AD:$AE,2,FALSE)","v":0},{"$f":"VLOOKUP(BG$14,$AD:$AE,2,FALSE)","v":0},0,0,0,0,"incomplete"]
[null,null,null,null,null,null,null,null,null,null,null,null,null,null,null,null,null,null,null,null,null,{"$f":"IF(AND($Y16=\"\",$Y$10=\"\",$Z$10=\"\",$AA$10=\"\"),\"\",IF(COUNTIF($AH16:$AJ16,\"FAIL\")>0,\"FAIL\",IF(COUNTIF($AH16:$AJ16,\"incomplete\")>0,\"incomplete\",\"pass\")))","v":""},"Button-Clr Space","10 inches max",null,null,null,null,null,"DistBetweenButtonAndClearSpace","no data","no data","no data","incomplete","incomplete","incomplete",null,null,"APS_SIGN",0,0,0,0,0,"A/B","Lt or Rt?",{"$f":"VLOOKUP(AU$14,$AD:$AG,3,FALSE)","v":"APSSignal #2"},"Separate","no data","no data","no data","no data","no data","no data","NA",0,0,{"$f":"VLOOKUP(BF14,$AD:$AE,2,FALSE)","v":0},0,0,0,0,0,"incomplete"]
[null,null,null,null,null,null,null,null,null,null,null,null,null,null,null,null,null,null,null,null,null,{"$f":"IF(OR(Z10=\"\",Z10=\"NA\"),\"\",IF(ISBLANK(Y17),\"incomplete\",IF(Y17>=10,\"pass\",\"Speech Required\")))","v":""},"Between \nButtons 1-2","10 ft min. preferable",null,null,null,null,null,"DistBetweenBut1and2",{"$f":"IF(AND(Y10=\"Shared\",Z10=\"Shared\"),\"NA\",IF(COUNTIF(Y10:AA10,\"Shared\")>2,\"NA\",IF(AND(ISBLANK(Y17),Z10<>\"NA\"),\"no data\",IF(AND(ISBLANK(Y17),Z10=\"NA\"),\"NA\",Y17))))","v":"no data"},{"$f":"IF(AND(Z10=\"NA\",AA10=\"NA\"),\"NA\",IF(AND(Y10=\"Shared\",Z10=\"Shared\"),\"NA\",IF(COUNTIF(Y10:AA10,\"Shared\")>2,\"NA\",IF(ISBLANK(Y17),\"no data\",Y17))))","v":"no data"},"NA",null,null,null,null,null,"APS_SIGN",0,0,0,0,0,"A/B","Lt or Rt?",{"$f":"VLOOKUP(AU$14,$AD:$AG,4,FALSE)","v":"APSSignal #3"},"Separate","no data","no data","no data","no data","NA","no data","no data",0,0,{"$f":"VLOOKUP(BF14,$AD:$AE,2,FALSE)","v":0},0,0,0,0,0,"incomplete"]
[null,null,null,null,null,null,null,null,null,null,null,null,null,null,null,null,null,null,null,null,null,{"$f":"IF(OR(AA10=\"\",AA10=\"NA\"),\"\",IF(ISBLANK(Y18),\"incomplete\",IF(Y18>=10,\"pass\",\"Speech Required\")))","v":""},"Between \nButtons 2-3","10 ft min. preferable",null,null,null,null,null,"DistBetweenBut2and3","NA",{"$f":"IF(AND(Z10=\"Shared\",AA10=\"Shared\"),\"NA\",IF(AA10=\"NA\",\"NA\",IF(COUNTIF(Y10:AA10,\"Shared\")>2,\"NA\",IF(ISBLANK(Y18),\"no data\",Y18))))","v":"no data"},{"$f":"IF(AND(Z10=\"Shared\",AA10=\"Shared\"),\"NA\",IF(AA10=\"NA\",\"NA\",IF(COUNTIF(Y10:AA10,\"Shared\")>2,\"NA\",IF(ISBLANK(Y18),\"no data\",Y18))))","v":"no data"}]
[null,null,null,null,null,null,null,null,null,null,null,null,null,null,null,null,null,null,null,null,null,{"$f":"IF(OR(AA10=\"\",AA10=\"NA\"),\"\",IF(ISBLANK(Y19),\"incomplete\",IF(Y19>=10,\"pass\",\"Speech Required\")))","v":""},"Between \nButtons 3-1","10 ft min. preferable",null,null,null,null,null,"DistBetweenBut3and1",{"$f":"IF(AA10=\"NA\",\"NA\",IF(AND(Z10=\"NA\",AA10=\"NA\"),\"NA\",IF(AND(Y10=\"Shared\",AA10=\"Shared\"),\"NA\",IF(COUNTIF(Y10:AA10,\"Shared\")>2,\"NA\",IF(ISBLANK(Y19),\"no data\",Y19)))))","v":"no data"},"NA",{"$f":"IF(AND(Y10=\"Shared\",AA10=\"Shared\"),\"NA\",IF(AA10=\"NA\",\"NA\",IF(COUNTIF(Y10:AA10,\"Shared\")>2,\"NA\",IF(ISBLANK(Y19),\"no data\",Y19))))","v":"no data"}]
[null,null,null,null,null,null,null,null,null,null,null,null,null,null,null,null,null,null,null,null,null,"Clear Space"]
[null,null,null,null,null,null,null,null,null,null,null,null,null,null,null,null,null,null,null,null,null,{"$f":"IF(AND($Y21=\"\",$Y$10=\"\",$Z$10=\"\",$AA$10=\"\"),\"\",IF(COUNTIF(AH21:AJ21,\"FAIL\")>0,\"FAIL\",IF(COUNTIF(AH21:AJ21,\"incomplete\")>0,\"incomplete\",\"pass\")))","v":""},"APS Clr Space Size","2.50 ft by 4.00 ft Min",null,null,null,null,null,"ApsClearSpaceSize",{"$f":"IF(ISBLANK(Y21),\"no data\",Y21)","v":"no data"},{"$f":"IF(Z21<>\"\",Z21,IF(AND(ISBLANK(Z21),$Z$10<>\"NA\"),\"no data\",\"NA\"))","v":"no data"},{"$f":"IF(AA21<>\"\",AA21,IF(AND(ISBLANK(AA21),$AA$10<>\"NA\"),\"no data\",\"NA\"))","v":"no data"},{"$f":"IF(AE21=\"no data\",\"incomplete\",IF(COUNTIF($AO$29:$AO$30,AE21)>0,\"pass\",\"FAIL\"))","v":"incomplete"},{"$f":"IF(AF21=\"NA\",\"NA\",IF(COUNTIF($AO$29:$AO$30,AF21)>0,\"pass\",IF(AF21=\"no data\",\"incomplete\",\"FAIL\")))","v":"incomplete"},{"$f":"IF(AG21=\"NA\",\"NA\",IF(COUNTIF($AO$29:$AO$30,AG21)>0,\"pass\",IF(AG21=\"no data\",\"incomplete\",\"FAIL\")))","v":"incomplete"}]
[null,null,null,null,null,null,null,null,null,null,null,null,null,null,null,null,null,null,null,null,null,{"$f":"IF(AND($Y22=\"\",$Y$10=\"\",$Z$10=\"\",$AA$10=\"\"),\"\",IF(COUNTIF(AH22:AJ22,\"FAIL\")>0,\"FAIL\",IF(COUNTIF(AH22:AJ22,\"incomplete\")>0,\"incomplete\",\"pass\")))","v":""},"Clr Space CS1","2.00% Max",null,null,null,null,null,"ClearSpaceCS1",{"$f":"IF(ISBLANK(Y22),\"no data\",Y22)","v":"no data"},{"$f":"IF(Z22<>\"\",Z22,IF(AND(ISBLANK(Z22),$Z$10<>\"NA\"),\"no data\",\"NA\"))","v":"no data"},{"$f":"IF(AA22<>\"\",AA22,IF(AND(ISBLANK(AA22),$AA$10<>\"NA\"),\"no data\",\"NA\"))","v":"no data"},{"$f":"IF(AE22=\"no data\",\"incomplete\",IF(COUNTIF(AE22,\"<=2\"),\"pass\",\"FAIL\"))","v":"incomplete"},{"$f":"IF(AF22=\"NA\",\"NA\",IF(COUNTIF(AF22,\">2\"),\"FAIL\",IF(COUNTIF(AF22,\"<=2\"),\"pass\",\"incomplete\")))","v":"incomplete"},{"$f":"IF(AG22=\"NA\",\"NA\",IF(COUNTIF(AG22,\">2\"),\"FAIL\",IF(COUNTIF(AG22,\"<=2\"),\"pass\",\"incomplete\")))","v":"incomplete"}]
[null,null,null,null,null,null,null,null,null,null,null,null,null,null,null,null,null,null,null,null,null,{"$f":"IF(AND($Y23=\"\",$Y$10=\"\",$Z$10=\"\",$AA$10=\"\"),\"\",IF(COUNTIF(AH23:AJ23,\"FAIL\")>0,\"FAIL\",IF(COUNTIF(AH23:AJ23,\"incomplete\")>0,\"incomplete\",\"pass\")))","v":""},"Clr Space CS2","2.00% Max",null,null,null,null,null,"ClearSpaceCS2",{"$f":"IF(ISBLANK(Y23),\"no data\",Y23)","v":"no data"},{"$f":"IF(Z23<>\"\",Z23,IF(AND(ISBLANK(Z23),$Z$10<>\"NA\"),\"no data\",\"NA\"))","v":"no data"},{"$f":"IF(AA23<>\"\",AA23,IF(AND(ISBLANK(AA23),$AA$10<>\"NA\"),\"no data\",\"NA\"))","v":"no data"},{"$f":"IF(AE23=\"no data\",\"incomplete\",IF(COUNTIF(AE23,\"<=2\"),\"pass\",\"FAIL\"))","v":"incomplete"},{"$f":"IF(AF23=\"NA\",\"NA\",IF(COUNTIF(AF23,\">2\"),\"FAIL\",IF(COUNTIF(AF23,\"<=2\"),\"pass\",\"incomplete\")))","v":"incomplete"},{"$f":"IF(AG23=\"NA\",\"NA\",IF(COUNTIF(AG23,\">2\"),\"FAIL\",IF(COUNTIF(AG23,\"<=2\"),\"pass\",\"incomplete\")))","v":"incomplete"}]
[null,null,null,null,null,null,null,null,null,null,null,null,null,null,null,null,null,null,null,null,null,{"$f":"IF(AND($Y24=\"\",$Y$10=\"\",$Z$10=\"\",$AA$10=\"\"),\"\",IF(COUNTIF(AE24:AG24,\"YES\")>0,\"FAIL\",IF(COUNTIF(AE24:AG24,\"no data\")>0,\"incomplete\",\"pass\")))","v":""},"Obstruction btwn PAR & Clear Space","No",null,null,null,null,null,"ObstructBtweenParAndClearSpace",{"$f":"IF(ISBLANK(Y24),\"no data\",Y24)","v":"no data"},"no data","no data"]
[null,null,null,null,null,null,null,null,null,null,null,null,null,null,null,null,null,null,null,null,null,"Button"]
[null,null,null,null,null,null,null,null,null,null,null,null,null,null,null,null,null,null,null,null,null,{"$f":"IF(AND($Y26=\"\",$Y$10=\"\",$Z$10=\"\",$AA$10=\"\"),\"\",IF(COUNTIF(AH26:AJ26,\"FAIL\")>0,\"FAIL\",IF(COUNTIF(AH26:AJ26,\"incomplete\")>0,\"incomplete\",\"pass\")))","v":""},"Button Vertical Height","3.00 ft min\n4.00 ft max",null,null,null,null,null,"ButtonHeight",{"$f":"IF(ISBLANK(Y26),\"no data\",Y26)","v":"no data"},{"$f":"IF(Z26<>\"\",Z26,IF(AND(ISBLANK(Z26),$Z$10<>\"NA\"),\"no data\",\"NA\"))","v":"no data"},{"$f":"IF(AA26<>\"\",AA26,IF(AND(ISBLANK(AA26),$AA$10<>\"NA\"),\"no data\",\"NA\"))","v":"no data"},{"$f":"IF(AE26=\"no data\",\"incomplete\",IF(AND(AE26>=3,AE26<=4),\"pass\",\"FAIL\"))","v":"incomplete"},{"$f":"IF(AF26=\"NA\",\"NA\",IF(AF26=\"no data\",\"incomplete\",IF(AND(AF26>=3,AF26<=4),\"pass\",\"FAIL\")))","v":"incomplete"},{"$f":"IF(AG26=\"NA\",\"NA\",IF(AG26=\"no data\",\"incomplete\",IF(AND(AG26>=3,AG26<=4),\"pass\",\"FAIL\")))","v":"incomplete"}]
[null,null,null,null,null,null,null,null,null,null,null,null,null,null,null,null,null,null,null,null,null,{"$f":"IF(AND($Y27=\"\",$Y$10=\"\",$Z$10=\"\",$AA$10=\"\"),\"\",IF(COUNTIF(AH27:AJ27,\"FAIL\")>0,\"FAIL\",IF(COUNTIF(AH27:AJ27,\"incomplete\")>0,\"incomplete\",\"pass\")))","v":""},"Button Diameter","0.17 ft Min",null,null,null,null,null,"ButtonWidth",{"$f":"IF(ISBLANK(Y27),\"no data\",Y27)","v":"no data"},{"$f":"IF(Z27<>\"\",Z27,IF(AND(ISBLANK(Z27),$Z$10<>\"NA\"),\"no data\",\"NA\"))","v":"no data"},{"$f":"IF(AA27<>\"\",AA27,IF(AND(ISBLANK(AA27),$AA$10<>\"NA\"),\"no data\",\"NA\"))","v":"no data"},{"$f":"IF(AE27=\"no data\",\"incomplete\",IF(COUNTIF(AE27,\">=0.17\"),\"pass\",\"FAIL\"))","v":"incomplete"},{"$f":"IF(AF27=\"NA\",\"NA\",IF(COUNTIF(AF27,\"<0.17\"),\"FAIL\",IF(COUNTIF(AF27,\">=0.17\"),\"pass\",\"incomplete\")))","v":"incomplete"},{"$f":"IF(AG27=\"NA\",\"NA\",IF(COUNTIF(AG27,\"<0.17\"),\"FAIL\",IF(COUNTIF(AG27,\">=0.17\"),\"pass\",\"incomplete\")))","v":"incomplete"},null,null,null,null,"APS Clear Space Size",null,null,"Pole",null,null,"Signal Type",null,null,"Button Audible"]
[null,null,null,null,null,null,null,null,null,null,null,null,null,null,null,null,null,null,null,null,null,{"$f":"IF(AND($Y28=\"\",$Y$10=\"\",$Z$10=\"\",$AA$10=\"\"),\"\",IF(COUNTIF(AE28:AG28,\"No\")>0,\"FAIL\",IF(COUNTIF(AE28:AG28,\"no data\")>0,\"incomplete\",\"pass\")))","v":""},"Button Contrasts With Housing","Contrast",null,null,null,null,null,"ButtonContrast",{"$f":"IF(ISBLANK(Y28),\"no data\",Y28)","v":"no data"},{"$f":"IF(Z28<>\"\",Z28,IF(AND(ISBLANK(Z28),$Z$10<>\"NA\"),\"no data\",\"NA\"))","v":"no data"},{"$f":"IF(AA28<>\"\",AA28,IF(AND(ISBLANK(AA28),$AA$10<>\"NA\"),\"no data\",\"NA\"))","v":"no data"},null,null,null,null,null,null,"No Clear Space","No Clear Space",null,null,"Shared",null,null,"Countdown",null,null,"Beep"]
[null,null,null,null,null,null,null,null,null,null,null,null,null,null,null,null,null,null,null,null,null,{"$f":"IF(AND($Y29=\"\",$Y$10=\"\",$Z$10=\"\",$AA$10=\"\"),\"\",IF(COUNTIF(AE29:AG29,\"No\")>0,\"FAIL\",IF(COUNTIF(AE29:AG29,\"no data\")>0,\"incomplete\",\"pass\")))","v":""},"Button - Vibrate","Yes",null,null,null,null,null,"ButtonVibrate","no data","no data","no data",null,null,null,null,null,null,"More than 2.50 ft by 4.00 ft","Size Greater Than",null,null,"Separate",null,null,"Signal - Other",null,null,"Voice"]
[null,null,null,null,null,null,null,null,null,null,null,null,null,null,null,null,null,null,null,null,null,{"$f":"IF(AND($Y30=\"\",$Y$10=\"\",$Z$10=\"\",$AA$10=\"\"),\"\",IF(COUNTIF(AE30:AG30,\"None\")>0,\"FAIL\",IF(COUNTIF(AE30:AG30,\"no data\")>0,\"incomplete\",\"pass\")))","v":""},"Button - Audible","Yes",null,null,null,null,null,"ButtonAudible","no data","no data","no data",null,null,null,null,null,null,"2.50 ft by 4.00 ft","Size Meets",null,null,"NA",null,null,"Symbol",null,null,"None"]
[null,null,null,null,null,null,null,null,null,null,null,null,null,null,null,null,null,null,null,null,null,{"$f":"IF(AND($Y31=\"\",$Y$10=\"\",$Z$10=\"\",$AA$10=\"\"),\"\",IF(COUNTIF(AE31:AG31,\"No\")>0,\"FAIL\",IF(COUNTIF(AE31:AG31,\"no data\")>0,\"incomplete\",\"pass\")))","v":""},"Arrow Parallel to Crosswalk","Yes",null,null,null,null,null,"ArrowParallelToCrosswalk","no data","no data","no data",null,null,null,null,null,null,"Less than 2.50 ft by 4.00 ft","Size Less Than",null,null,null,null,null,"Symbol AND Countdown"]
[null,null,null,null,null,null,null,null,null,null,null,null,null,null,null,null,null,null,null,null,null,{"$f":"IF(AND($Y32=\"\",$Y$10=\"\",$Z$10=\"\",$AA$10=\"\"),\"\",IF(COUNTIF(AE32:AG32,\"No\")>0,\"FAIL\",IF(COUNTIF(AE32:AG32,\"no data\")>0,\"incomplete\",\"pass\")))","v":""},"Button Arrow Contrast","Yes",null,null,null,null,null,"ButtonArrrowContrast","no data","no data","no data",null,null,null,null,null,null,null,null,null,null,null,null,null,"Symbol AND Word"]
[null,null,null,null,null,null,null,null,null,null,null,null,null,null,null,null,null,null,null,null,null,{"$f":"IF(AND($Y33=\"\",$Y$10=\"\",$Z$10=\"\",$AA$10=\"\"),\"\",IF(COUNTIF(AE33:AG33,\"No\")>0,\"FAIL\",IF(COUNTIF(AE33:AG33,\"no data\")>0,\"incomplete\",\"pass\")))","v":""},"Button Arrow Tactile","Yes",null,null,null,null,null,"ButtonArrowTactile","no data","no data","no data",null,null,null,null,null,null,null,null,null,null,null,null,null,"Word"]
[null,null,null,null,null,null,null,null,null,null,null,null,null,null,null,null,null,null,null,null,null,"Sign (informational only)",null,null,null,null,null,null,null,null,null,null,null,null,null,null,null,null,null,null,null,null,null,null,null,null,"Word AND Countdown"]
[null,null,null,null,null,null,null,null,null,null,null,null,null,null,null,null,null,null,null,null,null,null,"Sign on Housing",null,null,null,null,null,null,"SignOnHousing",{"$f":"IF(ISBLANK(Y35),\"no data\",Y35)","v":"no data"},{"$f":"IF(Z35<>\"\",Z35,IF(AND(ISBLANK(Z35),$Z$10<>\"NA\"),\"no data\",\"NA\"))","v":"no data"},{"$f":"IF(AA35<>\"\",AA35,IF(AND(ISBLANK(AA35),$AA$10<>\"NA\"),\"no data\",\"NA\"))","v":"no data"},null,null,null,null,null,null,null,null,null,null,null,null,null,"Other"]
[null,null,null,null,null,null,null,null,null,null,null,null,null,null,null,null,null,null,null,null,null,null,"Sign - Street Name",null,null,null,null,null,null,"SignStreetName","no data","no data","no data"]
[null,"NOTES",null,null,null,null,null,null,null,null,null,null,null,null,null,null,null,null,null,null,null,null,"Sign - St Name Braille",null,null,null,null,null,null,"SignStreetNameBraille","no data","no data","no data"]
[null,null,null,null,null,null,null,null,null,null,null,null,null,null,null,null,null,null,null,null,null,null,"Sign - St Name Parallel to Crw",null,null,null,null,null,null,"SignStreetNameParrallelToCrw","no data","no data","no data"]
[null,null,null,null,null,null,null,null,null,null,null,null,null,null,null,null,null,null,null,null,null,null,"Sign - St Name  Audio",null,null,null,null,null,null,"SignStreetNameAudio","no data","no data","no data"]
[null,null,null,null,null,null,null,null,null,null,null,null,null,null,null,null,null,null,null,null,null,null,"Arrow on Sign",null,null,null,null,null,null,"ArrowOnSign","no data","no data","no data"]
[null,null,null,null,null,null,null,null,null,null,null,null,null,null,null,null,null,null,null,null,null,null,"Sign - St Name  Vibro",null,null,null,null,null,null,"SignStreetNameVibrate","no data","no data","no data"]
[null,null,null,null,null,null,null,null,null,null,null,null,null,null,null,null,null,null,null,null,null,"APS Display/Signal",null,null,"APSSignal #1","APSSignal #2","APSSignal #3",null,null,"APSSignalNumber","APSSignal #1","APSSignal #2","APSSignal #3","APSSignal #1","APSSignal #2","APSSignal #3"]
[null,null,null,null,null,null,null,null,null,null,null,null,null,null,null,null,null,null,null,null,null,null,"Signal Support Pole",{"$f":"IF(COUNTIF(Y43:AA43,\"Shared\")=1,\"INVALID - Check Support Pole\",\"\")","v":""},"Separate","Separate","Separate",null,null,"NumberSignalsOnSupportPole",{"$f":"IF(ISBLANK(Y43),\"no data\",Y43)","v":"Separate"},{"$f":"IF(ISBLANK(Z43),\"no data\",Z43)","v":"Separate"},{"$f":"IF(ISBLANK(AA43),\"no data\",AA43)","v":"Separate"}]
[null,null,null,null,null,null,null,null,null,null,null,null,null,null,null,null,null,null,null,null,null,"Distance"]
[null,null,null,null,null,null,null,null,null,null,null,null,null,null,null,null,null,null,null,null,null,{"$f":"IF(ISBLANK(Y45),\"\",IF(COUNTIF(Y45,\">=10\"),\"pass\",\"FAIL\"))","v":""},"Between \nSignals 1-2","If separated, \n10 ft Min ",null,null,null,null,null,"DistBetween1and2",{"$f":"IF(AND(Y43=\"Shared\",Z43=\"Shared\"),\"NA\",IF(COUNTIF(Y43:AA43,\"Shared\")>2,\"NA\",IF(AND(ISBLANK(Y45),Z43<>\"NA\"),\"no data\",IF(AND(ISBLANK(Y45),Z43=\"NA\"),\"NA\",Y45))))","v":"no data"},{"$f":"IF(AND(Z43=\"NA\",AA43=\"NA\"),\"NA\",IF(AND(Y43=\"Shared\",Z43=\"Shared\"),\"NA\",IF(COUNTIF(Y43:AA43,\"Shared\")>2,\"NA\",IF(ISBLANK(Y45),\"no data\",Y45))))","v":"no data"},"NA"]
[null,null,null,null,null,null,null,null,null,null,null,null,null,null,null,null,null,null,null,null,null,{"$f":"IF(ISBLANK(Y46),\"\",IF(COUNTIF(Y46,\">=10\"),\"pass\",\"FAIL\"))","v":""},"Between \nSignals 2-3","If separated, \n10 ft Min ",null,null,null,null,null,"DistBetween2and3","NA",{"$f":"IF(AND(Z43=\"Shared\",AA43=\"Shared\"),\"NA\",IF(AA43=\"NA\",\"NA\",IF(COUNTIF(Y43:AA43,\"Shared\")>2,\"NA\",IF(ISBLANK(Y46),\"no data\",Y46))))","v":"no data"},{"$f":"IF(AND(Z43=\"Shared\",AA43=\"Shared\"),\"NA\",IF(AA43=\"NA\",\"NA\",IF(COUNTIF(Y43:AA43,\"Shared\")>2,\"NA\",IF(ISBLANK(Y46),\"no data\",Y46))))","v":"no data"}]
[null,null,null,null,null,null,null,null,null,null,null,null,null,null,null,null,null,null,null,null,null,{"$f":"IF(ISBLANK(Y47),\"\",IF(COUNTIF(Y47,\">=10\"),\"pass\",\"FAIL\"))","v":""},"Between \nSignals 3-1","If separated, \n10 ft Min ",null,null,null,null,null,"DistBetween3and1",{"$f":"IF(AA43=\"NA\",\"NA\",IF(AND(Z43=\"NA\",AA43=\"NA\"),\"NA\",IF(AND(Y43=\"Shared\",AA43=\"Shared\"),\"NA\",IF(COUNTIF(Y43:AA43,\"Shared\")>2,\"NA\",IF(ISBLANK(Y47),\"no data\",Y47)))))","v":"no data"},"NA",{"$f":"IF(AND(Y43=\"Shared\",AA43=\"Shared\"),\"NA\",IF(AA43=\"NA\",\"NA\",IF(COUNTIF(Y43:AA43,\"Shared\")>2,\"NA\",IF(ISBLANK(Y47),\"no data\",Y47))))","v":"no data"}]
[null,null,null,null,null,null,null,null,null,null,null,null,null,null,null,null,null,null,null,null,null,"Display/Signal"]
[null,null,null,null,null,null,null,null,null,null,null,null,null,null,null,null,null,null,null,null,null,null,"Signal Type",null,null,null,null,null,null,"SignalType",{"$f":"IF(ISBLANK(Y49),\"no data\",Y49)","v":"no data"},{"$f":"IF(Z49<>\"\",Z49,IF(AND(ISBLANK(Z49),$Z$10<>\"NA\"),\"no data\",\"NA\"))","v":"no data"},{"$f":"IF(AA49<>\"\",AA49,IF(AND(ISBLANK(AA49),$AA$10<>\"NA\"),\"no data\",\"NA\"))","v":"no data"}]
[null,null,null,null,null,null,null,null,null,null,null,null,null,null,null,null,null,null,null,null,null,{"$f":"IF(AND($Y50=\"\",$Y$43=\"\",$Z$43=\"\",$AA$43=\"\"),\"\",IF(COUNTIF(AH50:AJ50,\"FAIL\")>0,\"FAIL\",IF(COUNTIF(AH50:AJ50,\"incomplete\")>0,\"incomplete\",\"pass\")))","v":"incomplete"},"Signal Height","7 ft Min",null,null,null,null,null,"SignalHeight",{"$f":"IF(ISBLANK(Y50),\"no data\",Y50)","v":"no data"},{"$f":"IF(Z50<>\"\",Z50,IF(AND(ISBLANK(Z50),$Z$10<>\"NA\"),\"no data\",\"NA\"))","v":"no data"},{"$f":"IF(AA50<>\"\",AA50,IF(AND(ISBLANK(AA50),$AA$10<>\"NA\"),\"no data\",\"NA\"))","v":"no data"},{"$f":"IF(AE50=\"no data\",\"incomplete\",IF(COUNTIF(AE50,\">=7\"),\"pass\",\"FAIL\"))","v":"incomplete"},{"$f":"IF(Z43=\"NA\",\"NA\",IF(COUNTIF(AF50,\"<7\"),\"FAIL\",IF(COUNTIF(AF50,\">=7\"),\"pass\",\"incomplete\")))","v":"incomplete"},{"$f":"IF(AA43=\"NA\",\"NA\",IF(COUNTIF(AG50,\"<7\"),\"FAIL\",IF(COUNTIF(AG50,\">=7\"),\"pass\",\"incomplete\")))","v":"incomplete"}]
[null,"Measurement Instrument \nSerial Number:",null,null,null,"Calibrated by:",null,null,null,"Date:",null,null,null,null,null,null,null,null,null,null,null,{"$f":"IF(AND($Y51=\"\",$Y$43=\"\",$Z$43=\"\",$AA$43=\"\"),\"\",IF(COUNTIF(AE51:AG51,\"No\")>0,\"FAIL\",IF(COUNTIF(AE51:AG51,\"no data\")>0,\"incomplete\",\"pass\")))","v":"incomplete"},"Signal Audible Walk","Yes",null,null,null,null,null,"SignalAudibleWalkPresent","no data","no data","no data",null,null,null,null,"BUTTON",null,"SIGNAL"]
[null,null,null,null,null,null,null,null,null,null,null,null,null,null,null,null,null,null,null,null,null,null,"Signal Audible Type",null,null,null,null,null,null,"SignalAudibleType","no data","no data","no data",null,null,null,null,"Support Pole","Compliance","Support Pole","Compliance"]
[null,"1\" = 0.08'","2\" = 0.17'","3\" = 0.25'","4\" = 0.33'","5\" = 0.42'","6\" = 0.50'","7\" = 0.58'","8\" = 0.67'","9\" = 0.75'","10\" = 0.83'","11\" = 0.92'",null,null,null,null,null,null,null,null,null,null,null,null,null,null,null,null,null,"StructComp",{"$f":"IF(COUNTIF(V10:V52,\"FAIL\")>0,\"No\",IF(COUNTIF(V10:V52,\"pass\")=29,\"Yes\",\"incomplete\"))","v":"incomplete"},null,null,"Structurally Compliant?",null,null,null,"3 Separate",{"$f":"IF(COUNTIF(Y10:AA10,\"Separate\")=3,IF(COUNTIF(V13:V41,\"pass\")=19,\"pass\",\"incomplete\"))","v":false},"3 Separate",{"$f":"IF(COUNTIF(Y43:AA43,\"Separate\")=3,IF(COUNTIF(V43:V52,\"pass\")=5,\"pass\",\"incomplete\"))","v":"incomplete"}]
[null,null,null,null,null,null,null,null,null,null,null,null,null,null,null,null,null,null,null,null,null,null,null,null,null,"Form Updated",null,null,null,null,null,null,null,null,null,null,null,"3 Shared",{"$f":"IF(COUNTIF(Y10:AA10,\"Shared\")=3,IF(COUNTIF(V13:V41,\"pass\")=16,\"pass\",\"incomplete\"))","v":false},"3 Shared",{"$f":"IF(COUNTIF(Y43:AA43,\"Shared\")=3,IF(COUNTIF(V43:V52,\"pass\")=2,\"pass\",\"incomplete\"))","v":false}]
[null,null,null,null,null,null,null,null,null,null,null,null,null,null,null,null,null,null,null,null,null,null,null,null,null,"2019-05-07",null,null,null,"WSDOTFeatureNumber",null,null,null,"Feature ID Code",null,null,null,"1 Sep; 2 NA",{"$f":"IF(AND(COUNTIFS(Y10:AA10,\"Separate\")=1,(COUNTIF(Y10:AA10,\"NA\")=2)),IF(COUNTIF(V13:V41,\"pass\")=16,\"pass\",\"incomplete\"))","v":false},"1 Sep; 2 NA",{"$f":"IF(AND(COUNTIFS(Y43:AA43,\"Separate\")=1,(COUNTIF(Y43:AA43,\"NA\")=2)),IF(COUNTIF(V43:V52,\"pass\")=2,\"pass\",\"incomplete\"))","v":false}]
[null,null,null,null,null,null,null,null,null,null,null,null,null,null,null,null,null,null,null,null,null,null,null,null,null,null,null,null,null,"FeatureLocationCode",{"$f":"J7","v":0},"From Plan Sheet",null,null,null,null,null,"2 Shared; NA",{"$f":"IF(AND(COUNTIFS(Y10:AA10,\"Shared\")=2,(COUNTIF(Y10:AA10,\"NA\")=1)),IF(COUNTIF(V13:V41,\"pass\")=16,\"pass\",\"incomplete\"))","v":false},"2 Shared; NA",{"$f":"IF(AND(COUNTIFS(Y43:AA43,\"Shared\")=2,(COUNTIF(Y43:AA43,\"NA\")=1)),IF(COUNTIF(V43:V52,\"pass\")=2,\"pass\",\"incomplete\"))","v":false}]
[null,null,null,null,null,null,null,null,null,null,null,null,null,null,null,null,null,null,null,null,null,null,null,null,null,null,null,null,null,"Note",{"$f":"B58","v":0},null,null," ",null,null,null,"2 Sep; NA",{"$f":"IF(AND(COUNTIFS(Y10:AA10,\"Separate\")=2,(COUNTIF(Y10:AA10,\"NA\")=1)),IF(COUNTIF(V13:V41,\"pass\")>=16,\"pass\",\"incomplete\"))","v":false},"2 Sep; NA",{"$f":"IF(AND(COUNTIFS(Y43:AA43,\"Separate\")=2,(COUNTIF(Y43:AA43,\"NA\")=1)),IF(COUNTIF(V43:V52,\"pass\")=3,\"pass\",\"incomplete\"))","v":false}]
[null,null,null,null,null,null,null,null,null,null,null,null,null,null,null,null,null,null,null,null,null,null,null,null,null,null,null,null,null,"CrossStreet",{"$f":"J5","v":0}," ",null," ",null,null,null,"Sep; 2 Sh",{"$f":"IF(AND(COUNTIFS(Y10:AA10,\"Shared\")=2,(COUNTIF(Y10:AA10,\"Separate\")=1)),IF(COUNTIF(V13:V41,\"pass\")=18,\"pass\",\"incomplete\"))","v":false},"Sep; 2 Sh",{"$f":"IF(AND(COUNTIFS(Y43:AA43,\"Shared\")=2,(COUNTIF(Y43:AA43,\"Separate\")=1)),IF(COUNTIF(V43:V52,\"pass\")=4,\"pass\",\"incomplete\"))","v":false}]
[null,null,null,null,null,null,null,null,null,null,null,null,null,null,null,null,null,null,null,null,null,null,null,null,null,null,null,null,null,"CornerSide",{"$f":"O5","v":0},null,null," "]
[null,null,null,null,null,null,null,null,null,null,null,null,null,null,null,null,null,null,null,null,null,null,null,null,null,null,null,null,null,"PlanShtRef",{"$f":"J6","v":0}," ",null," "]
[null,null,null,null,null,null,null,null,null,null,null,null,null,null,null,null,null,null,null,null,null,null,null,null,null,null,null,null,null,"SiteHist",{"$f":"J8","v":0}," "]
[null,null,null,null,null,null,null,null,null,null,null,null,null,null,null,null,null,null,null,null,null,null,null,null,null,null,null,null,null,"Station",{"$f":"V5","v":0}]

{"sheet":"RRFB Button","index":11,"n_rows":62,"n_cols":150,"rows_kept":62,"cut":false,"hidden":false,"merged":[[51,1,51,4],[51,5,51,8],[51,9,51,11],[53,25,53,26],[54,25,54,26],[50,1,50,4],[50,5,50,8],[50,9,50,11],[30,46,30,47],[31,46,31,47],[32,46,32,47],[33,46,33,47],[34,46,34,47],[36,1,36,19],[37,1,49,19],[41,21,41,22],[44,24,44,26],[45,24,45,26],[46,24,46,26],[29,46,29,47],[7,9,7,11],[7,14,7,15],[7,24,7,26],[8,21,8,22],[9,1,9,10],[9,11,9,19],[16,24,16,26],[17,24,17,26],[18,24,18,26],[27,46,27,47],[28,46,28,47],[5,6,5,8],[5,9,5,11],[5,19,5,20],[5,24,6,27],[6,6,6,8],[6,9,6,11],[6,14,6,15],[6,18,6,20],[3,6,3,8],[3,9,3,12],[3,25,3,26],[4,6,4,8],[4,9,4,12],[4,14,4,15],[4,25,4,26],[2,44,2,45],[0,1,1,13],[0,31,0,32],[1,19,1,20],[1,21,1,22],[1,25,1,26],[1,31,1,32],[2,6,2,8],[2,9,2,10],[2,14,2,15],[2,21,2,22],[2,25,2,26]]}
[null,"ADA Feature - Accessible Pedestrian Signal Pushbuttons\nand Pedestrian Displays/Signals",null,null,null,null,null,null,null,null,null,null,null,null,null,null,{"$f":"IF(AND(OR(AH2=\"incomplete\",AH1=\"incomplete\"),LEN(V2)>0),\"= Required Field\",\"\")","v":""},null,null,null,null,null,null,null,null,null,null,null,null,"FeatureName",{"$f":"Z2","v":"APS_BUTT\nAPS_SIGN"},"Complete Header",null,{"$f":"IF(AND(V2<>\"Scoping\",OR(J3=\"\",O3=\"\",J4=\"\",V2=\"\",V3=\"\",V4=\"\",W4=\"A/B\",J7=\"\",W5=\"Lt or Rt?\",J5=\"\",O5=\"\",O6=\"\",P6=\"\",O7=\"\",O8=\"\",V6=\"\",W6=\"\",X6=\"\",B52=\"\",F52=\"\",J52=\"\",J8=\"\")),\"incomplete\",\"pass\")","v":"incomplete"},null,null,null,null,null,null,null,null,null,null,null,null,null,null,null,null,null,null,null,null,null,null,null,null,null,null,null,null,null,null,null,null,null,null,null,null,null,null,null,null,null,null,null,null,null,null,null,null,null,null,null,null,null,null,null,null,null,{"$f":"MID(CELL(\"filename\",A1),FIND(\"]\",CELL(\"filename\",A1))+1,255)","v":"RRFB Button"}]
[null,null,null,null,null,null,null,null,null,null,null,null,null,null,null,null,null,null,null,"Phase",null,null,null,null,"Database Schema:","APS_BUTT\nAPS_SIGN",null,null,null,"CompletedUnderContract",{"$f":"J3","v":0},"Complete Header \"Scoping\"",null,{"$f":"IF(AND(V2=\"Scoping\",OR(J3=\"\",O3=\"\",J4=\"\",V3=\"\",V4=\"\",W4=\"A/B\",J5=\"\",W5=\"Lt or Rt?\",O5=\"\",O6=\"\",P6=\"\",O7=\"\",V6=\"\",W6=\"\",X6=\"\")),\"incomplete\",\"pass\")","v":"pass"},null,null,null,null,"RRFB Button",null,"Drawing 16","Drawing 17","Drawing 18","Drawing 19","Drawing 20","Drawing 21","Drawing 22","Drawing 23",null,"Drawing 24","Drawing 25","Drawing 26",null,null,null,null,null,null,null,null,null,null,null,null,null,null,null,null,null,null,null,null,null,null,null,null,null,null,null,null,null,null,null,{"$f":"LEN(CG4)","v":1},{"$f":"V3","v":0},{"$f":"TEXT(V4,\"0.00\")&IF(W4=\"B\",\"B\",\"\")","v":"0.00"},null,{"$f":"J5","v":0},null,null,null,null,null,null,null,null,null,null,null,null,null,{"$f":"LEN(CX4)","v":27},null,{"$f":"IF(COUNTIF(Z4:AA5,\"pass\")=2,\"pass\",\"x\")","v":"x"},null,null,{"$f":"O7","v":0},null,{"$f":"O3","v":"00:00:00"},{"$f":"O8","v":0},{"$f":"J8","v":0},{"$f":"J3","v":0},{"$f":"IF(AND(R4=\"Standard ADA\",LEN(R5)=0),\"n/a\",R5)","v":0},null,null,{"$f":"X6","v":0},"01",{"$f":"V2","v":0},null,null,null,null,null,null,null,null,null,null,null,null,null,null,null,null,null,null,null,null,null,null,null,null,null,null,null,null,{"$f":"IF(RIGHT(W5,1)=\"?\",\"?\",LEFT(W5&\"-\",2))","v":"?"},{"$f":"LEFT(O5,1)","v":""},{"$f":"IF(LEN(O6)=0,\"!\",LEFT(TEXT(O6,\"0\")&\"-\",2))","v":"!"},{"$f":"IF(LEN(P6)=0,\"!\",LEFT(TEXT(P6,\"0\")&\"-\",2))","v":"!"}]
[null,null,null,null,null,null,"Contract / Work Order",null,null,null,null,null,null,"Date Measured",null,null,null,null,null,null,"SR",null,null,null,"Survey/Feature Status",{"$f":"IF(COUNTIF(P9,\"Yes\")>0,\"FAIL\",IF(COUNTIF(Z4:AA5,\"FAIL\")>0,\"FAIL\",IF(COUNTIF(AH1:AH2,\"pass\")<2,\"incomplete form\",IF(COUNTIF(Z4:AA5,\"pass\")=2,\"pass\",\"incomplete form\"))))","v":"incomplete form"},null,null,null,"GPSDate",{"$f":"O3","v":"00:00:00"},null,null,"Date Measured",null,null,null,null,null,null,null,null,null,null,"Requirements",null,null,null,null,"10 ft Max","10 in Max.","2 ft Max","10 in Max","2.5 ft by 4.0 ft Min","No","2.0% Max","2.0% Max","Yes","0.17 ft Min","3.00 Min\n4.00 Max","No",null,"No","No",null,"If separarted, 10 ft Min","If separarted, 10 ft Min","If separarted, 10 ft Min","Yes",null,null,null,null,null,null,null,null,null,null,null,null,"SR View","Gmap","Gmap2","State Route","Mile- post","Primary St, Bridge, or Facility Name","Intersecting or Related St or Route","City","County","Region","ADA Feature","Meas?","Summary of Non-Compliance","Solution","Sched. Fiscal Year","Estimated Cost","Lat","Long","Lat2","Long2","FeatureID","GIS Table","Fully Compliant?","DWS Non-Comp Only?","Length","Jurisdiction","SubOwner","MeasDate","ConstructedBy","SiteHistory","Contract","MEFRef","DocRef","LocCode","LocMethod","History","Project Phase","Path Priority Index Tier","Barrier Severity","Date made Compliant","Access Level","Rural or Urban","PaveBienn_within_100ft","PaveDue+2","Direction","MP","A/B","ARM","SRSort","MPSort","BridgeNo","Site Key","Issue","Issue Summary","Rest Area","multiples","CityAccess","RecordCreateDate","GPSDate","End_SR","End_MP","ProjectID","ADAGroup","Plan 2016","Planning Set","Side","Site","SiteCompass","FeatCompass"]
[null,null,null,null,null,null,"Measured By",null,null,null,null,null,null,null,null,null,null,null,null,null,"Milepost",null,"A/B",{"$f":"HYPERLINK(\"#'READ-ME'!A252:A264\",\"?\")","v":"?"},"Button",{"$f":"IF(COUNTIF(P9,\"Yes\")>0,\"FAIL\",IF(COUNTIF(V11:V41,\"FAIL\")>0,\"FAIL\",IF(COUNTIF(AM53:AM58,\"pass\")=1,\"pass\",\"incomplete form\")))","v":"incomplete form"},null,null,null,"Datafile",{"$f":"J4","v":0},null,null,"Measured By",null,null,null,null,null,null,null,null,null,null,null,null,null,"Button",null,null,null,null,null,null,null,null,null,null,null,null,null,null,null,null,null,null,null,null,null,null,null,null,null,null,null,null,null,null,null,null,null,{"$f":"HYPERLINK(\"http://srview3i.wsdot.loc/stateroute/picturelog/v3/client/SRview.Windows.Viewer.application?srnum=\"&LEFT(CG4,3)&\"&rrt=\"&IF(LEN(CG4)>3,RIGHT(LEFT(CG4,5),2),\"\")&\"&rrq=\"&IF(LEN(CG4)=11,RIGHT(CG4,6),IF(LEN(CG4)=10,RIGHT(CG4,5),\"\"))&\"&srmp=\"&CH4,\"SRV\")","v":"SRV"},{"$f":"HYPERLINK(\"http://maps.google.com/maps?z=20&t=k&q=loc:\"&CT4&\",\"&CU4,\"GMap\")","v":{"$error":"#VALUE!"}},{"$f":"IF(LEN(CV4)>0,HYPERLINK(\"http://maps.google.com/maps?z=20&t=k&q=loc:\"&CV4&\",\"&CW4,\"GMap\"),\"\")","v":""},{"$f":"CG2","v":0},{"$f":"CH2","v":"0.00"},null,null,null,null,null,"RRFB Button","Yes",null,"Fully Compliant","?",0,{"$f":"IF(LEN(V6)=0,VALUE(LEFT(CT2,FIND(\",\",CT2)-1)),V6)","v":{"$error":"#VALUE!"}},{"$f":"IF(LEN(W6)=0,VALUE(RIGHT(CT2,LEN(CT2)-FIND(\",\",CT2)-1)),W6)","v":{"$error":"#VALUE!"}},null,null,{"$f":"\"RRFB\"&LEFT(TEXT(CG4,\"000\")&\"-----------\",11)&TEXT(DW4,\"000.00\")&DX4&DV4&ER4&ES4&ET4&DM2","v":"RRFB000--------000.00AI!!01"},"New Point",{"$f":"IF(CZ2=\"pass\",\"Yes\",\"No\")","v":"No"},"No","n/a",{"$f":"DC2","v":0},"n/a",{"$f":"DE2","v":"00:00:00"},{"$f":"DF2","v":0},{"$f":"DG2","v":0},{"$f":"DH2","v":0},"n/a",null,{"$f":"EQ4&\"-\"&ER4&\"-\"&ES4&\"-\"&ET4","v":"?--!-!"},{"$f":"DL2","v":0},"Latest",{"$f":"DN2","v":0},"?","no barrier","?","?","?","?","?","I",{"$f":"TEXT(IF(DX4=\"B\",VALUE(LEFT(CH4,FIND(\"B\",CH4)-1)),CH4),\"000.00\")","v":"000.00"},{"$f":"IF(W4=\"B\",\"B\",\"A\")","v":"A"},"?",{"$f":"LEFT(CG4,3)","v":"0"},{"$f":"IF(LEN(CG4)>9,VALUE(RIGHT(CG4,5))/100,CH4)","v":"0.00"},"n/a","Intersection",null,"+ (blank)",null,null,null,null,null,null,null,null,null,null,null,{"$f":"EQ2","v":"?"},{"$f":"ER2","v":""},{"$f":"ES2","v":"!"},{"$f":"ET2","v":"!"}]
[null,null,null,null,null,null,"Cross Street Name",null,null,null,null,null,null,{"$f":"HYPERLINK(\"#'READ-ME'!A61:A88\",\"Site\")","v":"Site"},null,null,null,null,null,null,"Station",null,{"$f":"HYPERLINK(\"#'READ-ME'!A222:A240\",\"Lt or Rt?\")","v":"Lt or Rt?"},null,"Signal",{"$f":"IF(COUNTIF(P9,\"Yes\")>0,\"FAIL\",IF(COUNTIF(V43:V52,\"FAIL\")>0,\"FAIL\",IF(COUNTIF(AO53:AO58,\"pass\")=1,\"pass\",\"incomplete form\")))","v":"incomplete form"},null,null,null,"StateRouteRRT",{"$f":"V3","v":0},null,null,null,null,null,null,null,"Database Schema","Contract","Date Measured","Measured By","SR","SRMP","A/B","Lt or Rt","Button #","Button Support Pole","Button to Crosswalk","Button to Curb","Button to Pass Thru","Button to Landing","Button to Clear Space","Button Clear Space Size","Obstruction between PAR & Clear Space","Clear Space 1","Clear Space 2","Button Contrast","Button Width","Button Height","Arrow Present",null,"Button Audible","Button Vibrate",null,"Dist 1-2","Dist 2-3","Dist 3-1","Sign On Housing",null,null,null,null,null,null,"NOTES","Feature ID Code","Feature Location Code","Cross Street Name",null,null,{"$f":"HYPERLINK(\"http://www.wsdot.wa.gov/data/tools/geoportal/?layers=%7B%22layer0%22%3A%5B%5D%2C%22Buffer%22%3Atrue%2C%22Drawn+Features%22%3Atrue%7D\",\"Geoportal\")","v":"Geoportal"},null,null,null,null,null,null,null,null,null,null,null,null,null,null,null,null,null,null,null,null,null,null,null,null,null,null,null,null,null,null,null,null,null,null,null,null,null,null,null,null,null,null,null,null,null,null,null,null,null,null,null,null,null,null,null,null,null,null,null,null,null,null,null,null,"LEFT(TEXT(CF4,\"000\")&\"-----------\",11)"]
[null,null,null,null,null,null,"Plan Sheet Reference",null,null,null,null,null,null,{"$f":"HYPERLINK(\"#'READ-ME'!A112:A138\",\"Location\")","v":"Location"},null,null,null,null,null,"Geoportal",null,null,null,null,"Enter numbers only\n1 = 1.00%, 2.25 = 2.25 ft, etc.\nLeave nothing blank (NA if NOT Applicable)",null,null,null,null,"SRMP",{"$f":"V4","v":0},null,null,null,null,null,null,null,"FeatureName","CompletedUnderContract","GPSDate","Datafile","StateRouteRRT","SRMP","AheadBackIndicator","DirectionOfInventory","RRFBButtonNumber","ButtonSupportPole","DistanceButtonToCrosswalk","DistanceButtonToCurb","DistanceButtonPassThruToCurb","DistBetweenButtonEdgeOfLanding","DistBetweenButtonAndClearSpace","ButtonClearSpaceSize","ObstructBtweenParAndClearSpace","ClearSpaceCS1","ClearSpaceCS2","ButtonContrast","ButtonWidth","ButtonHeight","ArrowPresent",null,"ButtonAudible","ButtonVibrate","ButtonArrowTactile","DistBetweenBut1and2","DistBetweenBut2and3","DistBetweenBut3and1","SignOnHousing",null,null,null,null,null,null,"Note","WSDOTFeatureNumber","FeatureLocationCode","CrossStreet"]
[null,null,null,null,null,null,"Feature Location Code",null,null,null,null,null,null,"Jurisdiction",null,null,null,null,{"$f":"HYPERLINK(\"#'READ-ME'!A148:A189\",\"Instructions\")","v":"Instructions"},null,null,"Latitude","Longitude",{"$f":"HYPERLINK(\"#'READ-ME'!A201:A207\",\"Accuracy\")","v":"Accuracy"},null,null,null,null,null,"AheadBackIndicator",{"$f":"W4","v":"A/B"},null,null,"A / B",null,null,null,"RRFBButton #1","RRFB_BUTT",{"$f":"VLOOKUP(AN$6,$AD:$AE,2,FALSE)","v":0},0,0,0,0,"A/B","Lt or Rt?",{"$f":"VLOOKUP(AU$6,$AD:$AG,2,FALSE)","v":"RRFBButton #1"},"no data","no data","no data","no data","no data","no data","no data","no data","no data","no data","no data","no data","no data","no data",null,{"$f":"VLOOKUP(BK$6,$AD:$AG,2,FALSE)","v":"no data"},{"$f":"VLOOKUP(BL$6,$AD:$AG,2,FALSE)","v":"no data"},null,{"$f":"VLOOKUP(BN$6,$AD:$AG,2,FALSE)","v":"no data"},{"$f":"VLOOKUP(BO$6,$AD:$AG,2,FALSE)","v":"NA"},{"$f":"VLOOKUP(BP$6,$AD:$AG,3,FALSE)","v":"NA"},{"$f":"VLOOKUP(BQ$6,$AD:$AG,2,FALSE)","v":"no data"},null,null,null,null,null,null,{"$f":"VLOOKUP(BX$6,$AD:$AE,2,FALSE)","v":0},0,{"$f":"VLOOKUP(BZ6,$AD:$AE,2,FALSE)","v":0},{"$f":"VLOOKUP(CA$6,$AD:$AE,2,FALSE)","v":0},null,null,"RRFB","RRFB"]
[null,null,null,null,null,null,null,null,"Site History",null,null,null,null,"Constructed By",null,null,null,null,null,null,null,null,null,"Compliance Criteria","Measurement",null,null,null,null,"DirectionOfInventory",{"$f":"W5","v":"Lt or Rt?"},null,null,"Lt or Rt",null,null,null,"RRFBButton #2","RRFB_BUTT",0,0,0,0,0,"A/B","Lt or Rt?",{"$f":"VLOOKUP(AU$6,$AD:$AG,3,FALSE)","v":"RRFBButton #2"},"no data","no data","no data","no data","no data","no data","no data","no data","no data","no data","no data","no data","no data","no data",null,{"$f":"VLOOKUP(BK$6,$AD:$AG,3,FALSE)","v":"no data"},{"$f":"VLOOKUP(BL$6,$AD:$AG,3,FALSE)","v":"no data"},null,{"$f":"VLOOKUP(BN$6,$AD:$AG,3,FALSE)","v":"no data"},{"$f":"VLOOKUP(BO$6,$AD:$AG,3,FALSE)","v":"no data"},{"$f":"VLOOKUP(BP$6,$AD:$AG,4,FALSE)","v":"no data"},{"$f":"VLOOKUP(BQ$6,$AD:$AG,3,FALSE)","v":"no data"},null,null,null,null,null,null,0,0,{"$f":"VLOOKUP(BZ6,$AD:$AE,2,FALSE)","v":0},{"$f":"VLOOKUP(CA$6,$AD:$AE,2,FALSE)","v":0}]
[null,null,null,null,null,null,null,null,null,null,null,null,null,null,{"$f":"IF(COUNTIF($V$2,\"Scoping\")>0,\"Visually Identified the Feature is ADA non-Compliant, no measurements taken\",\"\")","v":""},null,null,null,null,null,null,"RRFB Pushbutton",null,"↓","RRFBButton #1","RRFBButton #2","RRFBButton #3",null,null,"RRFBButtonNumber",{"$f":"Y9","v":"RRFBButton #1"},{"$f":"Z9","v":"RRFBButton #2"},{"$f":"AA9","v":"RRFBButton #3"},{"$f":"AE9","v":"RRFBButton #1"},{"$f":"AF9","v":"RRFBButton #2"},{"$f":"AG9","v":"RRFBButton #3"},null,"RRFBButton #3","RRFB_BUTT",0,0,0,0,0,"A/B","Lt or Rt?",{"$f":"VLOOKUP(AU$6,$AD:$AG,4,FALSE)","v":"RRFBButton #3"},"no data","no data","no data","no data","no data","no data","no data","no data","no data","no data","no data","no data","no data","no data",null,{"$f":"VLOOKUP(BK$6,$AD:$AG,4,FALSE)","v":"no data"},{"$f":"VLOOKUP(BL$6,$AD:$AG,4,FALSE)","v":"no data"},null,{"$f":"VLOOKUP(BN$6,$AD:$AG,4,FALSE)","v":"NA"},{"$f":"VLOOKUP(BO$6,$AD:$AG,4,FALSE)","v":"no data"},{"$f":"VLOOKUP(BP$6,$AD:$AG,2,FALSE)","v":"no data"},{"$f":"VLOOKUP(BQ$6,$AD:$AG,4,FALSE)","v":"no data"},null,null,null,null,null,null,0,0,{"$f":"VLOOKUP(BZ6,$AD:$AE,2,FALSE)","v":0},{"$f":"VLOOKUP(CA$6,$AD:$AE,2,FALSE)","v":0}]
[null,"APS - PUSH BUTTON LOCATION SEPARATE POLE",null,null,null,null,null,null,null,null,null,"APS - PUSH BUTTON LOCATION SHARED POLE",null,null,null,null,null,null,null,null,null,null,"Button Support Pole",{"$f":"IF(COUNTIF(Y10:AA10,\"Shared\")=1,\"INVALID - Check Support Pole\",\"\")","v":""},null,null,null,null,null,"ButtonSupportPole",{"$f":"IF(ISBLANK(Y10),\"no data\",Y10)","v":"no data"},{"$f":"IF(ISBLANK(Z10),\"no data\",Z10)","v":"no data"},{"$f":"IF(ISBLANK(AA10),\"no data\",AA10)","v":"no data"}]
[null,null,null,null,null,null,null,null,null,null,null,null,null,null,null,null,null,null,null,null,null,"Distance",null,null,null,null,null,null,null,null,null,null,null,null,null,null,null,null,null,null,null,null,null,null,null,null,null,"Signal",null,null,"7 ft Min",null,null,"If separarted, 10 ft Min","If separarted, 10 ft Min","If separarted, 10 ft Min"]
[null,null,null,null,null,null,null,null,null,null,null,null,null,null,null,null,null,null,null,null,null,{"$f":"IF(AND($Y12=\"\",$Y$10=\"\",$Z$10=\"\",$AA$10=\"\"),\"\",IF(COUNTIF($AH12:$AJ12,\"FAIL\")>0,\"FAIL\",IF(COUNTIF($AH12:$AJ12,\"incomplete\")>0,\"incomplete\",\"pass\")))","v":""},"Button to crosswalk edge","10 ft Max",null,null,null,null,null,"DistanceButtonToCrosswalk",{"$f":"IF(ISBLANK(Y12),\"no data\",Y12)","v":"no data"},{"$f":"IF(Z12<>\"\",Z12,IF(AND(ISBLANK(Z12),$Z$10<>\"NA\"),\"no data\",\"NA\"))","v":"no data"},{"$f":"IF(AA12<>\"\",AA12,IF(AND(ISBLANK(AA12),$AA$10<>\"NA\"),\"no data\",\"NA\"))","v":"no data"},{"$f":"IF(AE12=\"no data\",\"incomplete\",IF(AE12<=10,\"pass\",\"FAIL\"))","v":"incomplete"},{"$f":"IF(AF12=\"NA\",\"NA\",IF(AF12=\"no data\",\"incomplete\",IF(AF12>10,\"FAIL\",\"pass\")))","v":"incomplete"},"incomplete"]
[null,null,null,null,null,null,null,null,null,null,null,null,null,null,null,null,null,null,null,null,null,{"$f":"IF(AND($Y13=\"\",$Y$10=\"\",$Z$10=\"\",$AA$10=\"\"),\"\",IF(COUNTIF($AH13:$AJ13,\"FAIL\")>0,\"FAIL\",IF(COUNTIF($AH13:$AJ13,\"incomplete\")>0,\"incomplete\",\"pass\")))","v":""},"Button to Curb Face","10 ft Max",null,null,null,null,null,"DistanceButtonToCurb",{"$f":"IF(ISBLANK(Y13),\"no data\",Y13)","v":"no data"},{"$f":"IF(Z13<>\"\",Z13,IF(AND(ISBLANK(Z13),$Z$10<>\"NA\"),\"no data\",\"NA\"))","v":"no data"},{"$f":"IF(AA13<>\"\",AA13,IF(AND(ISBLANK(AA13),$AA$10<>\"NA\"),\"no data\",\"NA\"))","v":"no data"},{"$f":"IF(AE13=\"no data\",\"incomplete\",IF(AE13<=10,\"pass\",\"FAIL\"))","v":"incomplete"},"incomplete","incomplete",null,null,"Database Schema","Contract","Date Measured","Measured By","SR","SRMP","A/B","Lt or Rt","Signal #","Button Support Pole",null,null,"Height",null,null,"Dist 1-2","Dist 2-3","Dist 3-1","NOTES","Feature ID Code","Feature Location Code","Cross Street Name","Corner/Side","Plan Sheet Reference","Site History","Station","Structurally Compliant?"]
[null,null,null,null,null,null,null,null,null,null,null,null,null,null,null,null,null,null,null,null,null,{"$f":"IF(AND($Y14=\"\",$Y$10=\"\",$Z$10=\"\",$AA$10=\"\"),\"\",IF(COUNTIF($AH14:$AJ14,\"FAIL\")>0,\"FAIL\",IF(COUNTIF($AH14:$AJ14,\"incomplete\")>0,\"incomplete\",\"pass\")))","v":""},"Button-PassThru","10 inches max",null,null,null,null,null,"DistanceButtonPassThruToCurb",{"$f":"IF(ISBLANK(Y14),\"no data\",Y14)","v":"no data"},{"$f":"IF(Z14<>\"\",Z14,IF(AND(ISBLANK(Z14),$Z$10<>\"NA\"),\"no data\",\"NA\"))","v":"no data"},{"$f":"IF(AA14<>\"\",AA14,IF(AND(ISBLANK(AA14),$AA$10<>\"NA\"),\"no data\",\"NA\"))","v":"no data"},{"$f":"IF(AE14=\"no data\",\"incomplete\",IF(AE14<=10,\"pass\",\"FAIL\"))","v":"incomplete"},"incomplete","incomplete",null,null,"FeatureName","CompletedUnderContract","GPSDate","Datafile","StateRouteRRT","SRMP","AheadBackIndicator","DirectionOfInventory","RRFBSignalNumber","NumberSignalsOnSupportPole",null,null,"RRFBHeight",null,null,"DistBetween1and2","DistBetween2and3","DistBetween3and1","Note","WSDOTFeatureNumber","FeatureLocationCode","CrossStreet","CornerSide","PlanShtRef","SiteHist","Station","StructComp"]
[null,null,null,null,null,null,null,null,null,null,null,null,null,null,null,null,null,null,null,null,null,{"$f":"IF(AND($Y15=\"\",$Y$10=\"\",$Z$10=\"\",$AA$10=\"\"),\"\",IF(COUNTIF($AH15:$AJ15,\"FAIL\")>0,\"FAIL\",IF(COUNTIF($AH15:$AJ15,\"incomplete\")>0,\"incomplete\",\"pass\")))","v":""},"Button-Landing","2 ft Max",null,null,null,null,null,"DistBetweenButtonEdgeOfLanding","no data",{"$f":"IF(Z15<>\"\",Z15,IF(AND(ISBLANK(Z15),$Z$10<>\"NA\"),\"no data\",\"NA\"))","v":"no data"},"no data",{"$f":"IF(AE15=\"no data\",\"incomplete\",IF(AE15<=2,\"pass\",\"FAIL\"))","v":"incomplete"},{"$f":"IF(AF15=\"NA\",\"NA\",IF(AF15=\"no data\",\"incomplete\",IF(AF15>2,\"FAIL\",\"pass\")))","v":"incomplete"},{"$f":"IF(AG15=\"NA\",\"NA\",IF(AG15=\"no data\",\"incomplete\",IF(AG15>2,\"FAIL\",\"pass\")))","v":"incomplete"},null,"Signal","RRFB_SIGN",{"$f":"VLOOKUP(AN$14,$AD:$AE,2,FALSE)","v":0},0,0,0,0,"A/B","Lt or Rt?",{"$f":"VLOOKUP(AU$14,$AD:$AG,2,FALSE)","v":"RRFBSignal #1"},{"$f":"VLOOKUP(AV$14,$AD:$AG,2,FALSE)","v":"no data"},null,null,{"$f":"VLOOKUP(AY$14,$AD:$AG,2,FALSE)","v":"no data"},null,null,{"$f":"VLOOKUP(BB$14,$AD:$AG,2,FALSE)","v":"no data"},{"$f":"VLOOKUP(BC$14,$AD:$AG,2,FALSE)","v":"NA"},{"$f":"VLOOKUP(BD$14,$AD:$AG,2,FALSE)","v":"no data"},{"$f":"VLOOKUP(BE$14,$AD:$AE,2,FALSE)","v":0},0,{"$f":"VLOOKUP(BG14,$AD:$AE,2,FALSE)","v":0},{"$f":"VLOOKUP(BH$14,$AD:$AE,2,FALSE)","v":0},0,0,0,0,"incomplete"]
[null,null,null,null,null,null,null,null,null,null,null,null,null,null,null,null,null,null,null,null,null,{"$f":"IF(AND($Y16=\"\",$Y$10=\"\",$Z$10=\"\",$AA$10=\"\"),\"\",IF(COUNTIF($AH16:$AJ16,\"FAIL\")>0,\"FAIL\",IF(COUNTIF($AH16:$AJ16,\"incomplete\")>0,\"incomplete\",\"pass\")))","v":""},"Button-Clr Space","10 inches max",null,null,null,null,null,"DistBetweenButtonAndClearSpace","no data","no data","no data",{"$f":"IF(AE16=\"no data\",\"incomplete\",IF(AE16<=10,\"pass\",\"FAIL\"))","v":"incomplete"},{"$f":"IF(AF16=\"NA\",\"NA\",IF(AF16=\"no data\",\"incomplete\",IF(AF16>10,\"FAIL\",\"pass\")))","v":"incomplete"},{"$f":"IF(AG16=\"NA\",\"NA\",IF(AG16=\"no data\",\"incomplete\",IF(AG16>10,\"FAIL\",\"pass\")))","v":"incomplete"},null,null,"RRFB_SIGN",0,0,0,0,0,"A/B","Lt or Rt?",{"$f":"VLOOKUP(AU$14,$AD:$AG,3,FALSE)","v":"RRFBSignal #2"},{"$f":"VLOOKUP(AV$14,$AD:$AG,3,FALSE)","v":"no data"},null,null,{"$f":"VLOOKUP(AY$14,$AD:$AG,3,FALSE)","v":"no data"},null,null,{"$f":"VLOOKUP(BB$14,$AD:$AG,3,FALSE)","v":"no data"},{"$f":"VLOOKUP(BC$14,$AD:$AG,3,FALSE)","v":"no data"},{"$f":"VLOOKUP(BD$14,$AD:$AG,3,FALSE)","v":"NA"},0,0,{"$f":"VLOOKUP(BG14,$AD:$AE,2,FALSE)","v":0},0,0,0,0,0,"incomplete"]
[null,null,null,null,null,null,null,null,null,null,null,null,null,null,null,null,null,null,null,null,null,{"$f":"IF(OR(Z10=\"\",Z10=\"NA\"),\"\",IF(ISBLANK(Y17),\"incomplete\",IF(Y17>=10,\"pass\",\"Speech Required\")))","v":""},"Between \nButtons 1-2","10 ft min. preferable",null,null,null,null,null,"DistBetweenBut1and2",{"$f":"IF(AND(Y10=\"Shared\",Z10=\"Shared\"),\"NA\",IF(COUNTIF(Y10:AA10,\"Shared\")>2,\"NA\",IF(AND(ISBLANK(Y17),Z10<>\"NA\"),\"no data\",IF(AND(ISBLANK(Y17),Z10=\"NA\"),\"NA\",Y17))))","v":"no data"},{"$f":"IF(AND(Z10=\"NA\",AA10=\"NA\"),\"NA\",IF(AND(Y10=\"Shared\",Z10=\"Shared\"),\"NA\",IF(COUNTIF(Y10:AA10,\"Shared\")>2,\"NA\",IF(ISBLANK(Y17),\"no data\",Y17))))","v":"no data"},"NA",null,null,null,null,null,"RRFB_SIGN",0,0,0,0,0,"A/B","Lt or Rt?",{"$f":"VLOOKUP(AU$14,$AD:$AG,4,FALSE)","v":"RRFBSignal #3"},{"$f":"VLOOKUP(AV$14,$AD:$AG,4,FALSE)","v":"no data"},null,null,{"$f":"VLOOKUP(AY$14,$AD:$AG,4,FALSE)","v":"no data"},null,null,{"$f":"VLOOKUP(BB$14,$AD:$AG,4,FALSE)","v":"NA"},{"$f":"VLOOKUP(BC$14,$AD:$AG,4,FALSE)","v":"no data"},{"$f":"VLOOKUP(BD$14,$AD:$AG,4,FALSE)","v":"no data"},0,0,{"$f":"VLOOKUP(BG14,$AD:$AE,2,FALSE)","v":0},0,0,0,0,0,"incomplete"]
[null,null,null,null,null,null,null,null,null,null,null,null,null,null,null,null,null,null,null,null,null,{"$f":"IF(OR(AA10=\"\",AA10=\"NA\"),\"\",IF(ISBLANK(Y18),\"incomplete\",IF(Y18>=10,\"pass\",\"Speech Required\")))","v":""},"Between \nButtons 2-3","10 ft min. preferable",null,null,null,null,null,"DistBetweenBut2and3","NA",{"$f":"IF(AND(Z10=\"Shared\",AA10=\"Shared\"),\"NA\",IF(AA10=\"NA\",\"NA\",IF(COUNTIF(Y10:AA10,\"Shared\")>2,\"NA\",IF(ISBLANK(Y18),\"no data\",Y18))))","v":"no data"},{"$f":"IF(AND(Z10=\"Shared\",AA10=\"Shared\"),\"NA\",IF(AA10=\"NA\",\"NA\",IF(COUNTIF(Y10:AA10,\"Shared\")>2,\"NA\",IF(ISBLANK(Y18),\"no data\",Y18))))","v":"no data"}]
[null,null,null,null,null,null,null,null,null,null,null,null,null,null,null,null,null,null,null,null,null,{"$f":"IF(OR(AA10=\"\",AA10=\"NA\"),\"\",IF(ISBLANK(Y19),\"incomplete\",IF(Y19>=10,\"pass\",\"Speech Required\")))","v":""},"Between \nButtons 3-1","10 ft min. preferable",null,null,null,null,null,"DistBetweenBut3and1",{"$f":"IF(AA10=\"NA\",\"NA\",IF(AND(Z10=\"NA\",AA10=\"NA\"),\"NA\",IF(AND(Y10=\"Shared\",AA10=\"Shared\"),\"NA\",IF(COUNTIF(Y10:AA10,\"Shared\")>2,\"NA\",IF(ISBLANK(Y19),\"no data\",Y19)))))","v":"no data"},"NA",{"$f":"IF(AND(Y10=\"Shared\",AA10=\"Shared\"),\"NA\",IF(AA10=\"NA\",\"NA\",IF(COUNTIF(Y10:AA10,\"Shared\")>2,\"NA\",IF(ISBLANK(Y19),\"no data\",Y19))))","v":"no data"}]
[null,null,null,null,null,null,null,null,null,null,null,null,null,null,null,null,null,null,null,null,null,"Clear Space"]
[null,null,null,null,null,null,null,null,null,null,null,null,null,null,null,null,null,null,null,null,null,{"$f":"IF(AND($Y21=\"\",$Y$10=\"\",$Z$10=\"\",$AA$10=\"\"),\"\",IF(COUNTIF(AH21:AJ21,\"FAIL\")>0,\"FAIL\",IF(COUNTIF(AH21:AJ21,\"incomplete\")>0,\"incomplete\",\"pass\")))","v":""},"APS Clr Space Size","2.50 ft by 4.00 ft Min",null,null,null,null,null,"ButtonClearSpaceSize",{"$f":"IF(ISBLANK(Y21),\"no data\",Y21)","v":"no data"},{"$f":"IF(Z21<>\"\",Z21,IF(AND(ISBLANK(Z21),$Z$10<>\"NA\"),\"no data\",\"NA\"))","v":"no data"},{"$f":"IF(AA21<>\"\",AA21,IF(AND(ISBLANK(AA21),$AA$10<>\"NA\"),\"no data\",\"NA\"))","v":"no data"},{"$f":"IF(AE21=\"no data\",\"incomplete\",IF(OR(AE21=$AO29,AE21=$AO$30),\"pass\",\"FAIL\"))","v":"incomplete"},{"$f":"IF(AF21=\"NA\",\"NA\",IF(OR(AE21=$AO29,AE21=$AO$30),\"pass\",IF(AF21=\"no data\",\"incomplete\",\"FAIL\")))","v":"incomplete"},{"$f":"IF(AG21=\"NA\",\"NA\",IF(OR(AE21=$AO29,AE21=$AO$30),\"pass\",IF(AG21=\"no data\",\"incomplete\",\"FAIL\")))","v":"incomplete"}]
[null,null,null,null,null,null,null,null,null,null,null,null,null,null,null,null,null,null,null,null,null,{"$f":"IF(AND($Y22=\"\",$Y$10=\"\",$Z$10=\"\",$AA$10=\"\"),\"\",IF(COUNTIF(AH22:AJ22,\"FAIL\")>0,\"FAIL\",IF(COUNTIF(AH22:AJ22,\"incomplete\")>0,\"incomplete\",\"pass\")))","v":""},"Clr Space CS1","2.00% Max",null,null,null,null,null,"ClearSpaceCS1",{"$f":"IF(ISBLANK(Y22),\"no data\",Y22)","v":"no data"},{"$f":"IF(Z22<>\"\",Z22,IF(AND(ISBLANK(Z22),$Z$10<>\"NA\"),\"no data\",\"NA\"))","v":"no data"},{"$f":"IF(AA22<>\"\",AA22,IF(AND(ISBLANK(AA22),$AA$10<>\"NA\"),\"no data\",\"NA\"))","v":"no data"},{"$f":"IF(AE22=\"no data\",\"incomplete\",IF(COUNTIF(AE22,\"<=2\"),\"pass\",\"FAIL\"))","v":"incomplete"},{"$f":"IF(AF22=\"NA\",\"NA\",IF(COUNTIF(AF22,\">2\"),\"FAIL\",IF(COUNTIF(AF22,\"<=2\"),\"pass\",\"incomplete\")))","v":"incomplete"},{"$f":"IF(AG22=\"NA\",\"NA\",IF(COUNTIF(AG22,\">2\"),\"FAIL\",IF(COUNTIF(AG22,\"<=2\"),\"pass\",\"incomplete\")))","v":"incomplete"}]
[null,null,null,null,null,null,null,null,null,null,null,null,null,null,null,null,null,null,null,null,null,{"$f":"IF(AND($Y23=\"\",$Y$10=\"\",$Z$10=\"\",$AA$10=\"\"),\"\",IF(COUNTIF(AH23:AJ23,\"FAIL\")>0,\"FAIL\",IF(COUNTIF(AH23:AJ23,\"incomplete\")>0,\"incomplete\",\"pass\")))","v":""},"Clr Space CS2","2.00% Max",null,null,null,null,null,"ClearSpaceCS2",{"$f":"IF(ISBLANK(Y23),\"no data\",Y23)","v":"no data"},{"$f":"IF(Z23<>\"\",Z23,IF(AND(ISBLANK(Z23),$Z$10<>\"NA\"),\"no data\",\"NA\"))","v":"no data"},{"$f":"IF(AA23<>\"\",AA23,IF(AND(ISBLANK(AA23),$AA$10<>\"NA\"),\"no data\",\"NA\"))","v":"no data"},{"$f":"IF(AE23=\"no data\",\"incomplete\",IF(COUNTIF(AE23,\"<=2\"),\"pass\",\"FAIL\"))","v":"incomplete"},{"$f":"IF(AF23=\"NA\",\"NA\",IF(COUNTIF(AF23,\">2\"),\"FAIL\",IF(COUNTIF(AF23,\"<=2\"),\"pass\",\"incomplete\")))","v":"incomplete"},{"$f":"IF(AG23=\"NA\",\"NA\",IF(COUNTIF(AG23,\">2\"),\"FAIL\",IF(COUNTIF(AG23,\"<=2\"),\"pass\",\"incomplete\")))","v":"incomplete"}]
[null,null,null,null,null,null,null,null,null,null,null,null,null,null,null,null,null,null,null,null,null,{"$f":"IF(AND($Y24=\"\",$Y$10=\"\",$Z$10=\"\",$AA$10=\"\"),\"\",IF(COUNTIF(AE24:AG24,\"YES\")>0,\"FAIL\",IF(COUNTIF(AE24:AG24,\"no data\")>0,\"incomplete\",\"pass\")))","v":""},"Obstruction btwn PAR & Clear Space","No",null,null,null,null,null,"ObstructBtweenParAndClearSpace",{"$f":"IF(ISBLANK(Y24),\"no data\",Y24)","v":"no data"},"no data","no data"]
[null,null,null,null,null,null,null,null,null,null,null,null,null,null,null,null,null,null,null,null,null,"Button"]
[null,null,null,null,null,null,null,null,null,null,null,null,null,null,null,null,null,null,null,null,null,{"$f":"IF(AND($Y26=\"\",$Y$10=\"\",$Z$10=\"\",$AA$10=\"\"),\"\",IF(COUNTIF(AH26:AJ26,\"FAIL\")>0,\"FAIL\",IF(COUNTIF(AH26:AJ26,\"incomplete\")>0,\"incomplete\",\"pass\")))","v":""},"Button Vertical Height","3.00 ft min\n4.00 ft max",null,null,null,null,null,"ButtonHeight",{"$f":"IF(ISBLANK(Y26),\"no data\",Y26)","v":"no data"},{"$f":"IF(Z26<>\"\",Z26,IF(AND(ISBLANK(Z26),$Z$10<>\"NA\"),\"no data\",\"NA\"))","v":"no data"},{"$f":"IF(AA26<>\"\",AA26,IF(AND(ISBLANK(AA26),$AA$10<>\"NA\"),\"no data\",\"NA\"))","v":"no data"},{"$f":"IF(AE26=\"no data\",\"incomplete\",IF(AND(AE26>=3,AE26<=4),\"pass\",\"FAIL\"))","v":"incomplete"},{"$f":"IF(AF26=\"NA\",\"NA\",IF(AF26=\"no data\",\"incomplete\",IF(AND(AF26>=3,AF26<=4),\"pass\",\"FAIL\")))","v":"incomplete"},{"$f":"IF(AG26=\"NA\",\"NA\",IF(AG26=\"no data\",\"incomplete\",IF(AND(AG26>=3,AG26<=4),\"pass\",\"FAIL\")))","v":"incomplete"}]
[null,null,null,null,null,null,null,null,null,null,null,null,null,null,null,null,null,null,null,null,null,{"$f":"IF(AND($Y27=\"\",$Y$10=\"\",$Z$10=\"\",$AA$10=\"\"),\"\",IF(COUNTIF(AH27:AJ27,\"FAIL\")>0,\"FAIL\",IF(COUNTIF(AH27:AJ27,\"incomplete\")>0,\"incomplete\",\"pass\")))","v":""},"Button Diameter","0.17 ft Min",null,null,null,null,null,"ButtonWidth",{"$f":"IF(ISBLANK(Y27),\"no data\",Y27)","v":"no data"},{"$f":"IF(Z27<>\"\",Z27,IF(AND(ISBLANK(Z27),$Z$10<>\"NA\"),\"no data\",\"NA\"))","v":"no data"},{"$f":"IF(AA27<>\"\",AA27,IF(AND(ISBLANK(AA27),$AA$10<>\"NA\"),\"no data\",\"NA\"))","v":"no data"},{"$f":"IF(AE27=\"no data\",\"incomplete\",IF(AE27>=0.17,\"pass\",\"FAIL\"))","v":"incomplete"},{"$f":"IF(AF27=\"NA\",\"NA\",IF(AF27=\"no data\",\"incomplete\",IF(AF27>=0.17,\"pass\",\"FAIL\")))","v":"incomplete"},{"$f":"IF(AG27=\"NA\",\"NA\",IF(AG27=\"no data\",\"incomplete\",IF(AG27>=0.17,\"pass\",\"FAIL\")))","v":"incomplete"},null,null,null,null,"APS Clear Space Size",null,null,"Pole",null,null,"Signal Type",null,null,null,"Button Audible"]
[null,null,null,null,null,null,null,null,null,null,null,null,null,null,null,null,null,null,null,null,null,{"$f":"IF(AND($Y28=\"\",$Y$10=\"\",$Z$10=\"\",$AA$10=\"\"),\"\",IF(COUNTIF(AE28:AG28,\"No\")>0,\"FAIL\",IF(COUNTIF(AE28:AG28,\"no data\")>0,\"incomplete\",\"pass\")))","v":""},"Button Contrasts With Housing","Contrast",null,null,null,null,null,"ButtonContrast",{"$f":"IF(ISBLANK(Y28),\"no data\",Y28)","v":"no data"},{"$f":"IF(Z28<>\"\",Z28,IF(AND(ISBLANK(Z28),$Z$10<>\"NA\"),\"no data\",\"NA\"))","v":"no data"},{"$f":"IF(AA28<>\"\",AA28,IF(AND(ISBLANK(AA28),$AA$10<>\"NA\"),\"no data\",\"NA\"))","v":"no data"},null,null,null,null,null,null,"No Clear Space","No Clear Space",null,null,"Shared",null,null,"Countdown",null,null,null,"Yes"]
[null,null,null,null,null,null,null,null,null,null,null,null,null,null,null,null,null,null,null,null,null,{"$f":"IF(AND($Y29=\"\",$Y$10=\"\",$Z$10=\"\",$AA$10=\"\"),\"\",IF(COUNTIF(AE29:AG29,\"Yes\")>0,\"FAIL\",IF(COUNTIF(AE29:AG29,\"no data\")>0,\"incomplete\",\"pass\")))","v":""},"Button - Vibrate","No",null,null,null,null,null,"ButtonVibrate",{"$f":"IF(ISBLANK(Y29),\"no data\",Y29)","v":"no data"},{"$f":"IF(Z29<>\"\",Z29,IF(AND(ISBLANK(Z29),$Z$10<>\"NA\"),\"no data\",\"NA\"))","v":"no data"},{"$f":"IF(AA29<>\"\",AA29,IF(AND(ISBLANK(AA29),$AA$10<>\"NA\"),\"no data\",\"NA\"))","v":"no data"},null,null,null,null,null,null,"More than 2.50 ft by 4.00 ft","Size Greater Than",null,null,"Separate",null,null,"Signal - Other",null,null,null,"No"]
[null,null,null,null,null,null,null,null,null,null,null,null,null,null,null,null,null,null,null,null,null,{"$f":"IF(AND($Y30=\"\",$Y$10=\"\",$Z$10=\"\",$AA$10=\"\"),\"\",IF(COUNTIF(AE30:AG30,\"Yes\")>0,\"FAIL\",IF(COUNTIF(AE30:AG30,\"no data\")>0,\"incomplete\",\"pass\")))","v":""},"Button - Audible","No",null,null,null,null,null,"ButtonAudible","no data","no data","no data",null,null,null,null,null,null,"2.50 ft by 4.00 ft","Size Meets",null,null,"NA",null,null,"Symbol"]
[null,null,null,null,null,null,null,null,null,null,null,null,null,null,null,null,null,null,null,null,null,{"$f":"IF(AND($Y31=\"\",$Y$10=\"\",$Z$10=\"\",$AA$10=\"\"),\"\",IF(COUNTIF(AE31:AG31,\"Yes\")>0,\"FAIL\",IF(COUNTIF(AE31:AG31,\"no data\")>0,\"incomplete\",\"pass\")))","v":""},"Button - Arrow","No",null,null,null,null,null,"ArrowPresent","no data","no data","no data",null,null,null,null,null,null,"Less than 2.50 ft by 4.00 ft","Size Less Than",null,null,null,null,null,"Symbol AND Countdown"]
[null,null,null,null,null,null,null,null,null,null,null,null,null,null,null,null,null,null,null,null,null,null,null,null,null,null,null,null,null,null,null,null,null,null,null,null,null,null,null,null,null,null,null,null,null,null,"Symbol AND Word"]
[null,null,null,null,null,null,null,null,null,null,null,null,null,null,null,null,null,null,null,null,null,null,null,null,null,null,null,null,null,null,null,null,null,null,null,null,null,null,null,null,null,null,null,null,null,null,"Word"]
[null,null,null,null,null,null,null,null,null,null,null,null,null,null,null,null,null,null,null,null,null,"Sign (informational only)",null,null,null,null,null,null,null,null,null,null,null,null,null,null,null,null,null,null,null,null,null,null,null,null,"Word AND Countdown"]
[null,null,null,null,null,null,null,null,null,null,null,null,null,null,null,null,null,null,null,null,null,null,"Sign on Housing",null,null,null,null,null,null,"SignOnHousing",{"$f":"IF(ISBLANK(Y35),\"no data\",Y35)","v":"no data"},{"$f":"IF(Z35<>\"\",Z35,IF(AND(ISBLANK(Z35),$Z$10<>\"NA\"),\"no data\",\"NA\"))","v":"no data"},{"$f":"IF(AA35<>\"\",AA35,IF(AND(ISBLANK(AA35),$AA$10<>\"NA\"),\"no data\",\"NA\"))","v":"no data"},null,null,null,null,null,null,null,null,null,null,null,null,null,"Other"]
[]
[null,"NOTES"]
[]
[]
[]
[]
[null,null,null,null,null,null,null,null,null,null,null,null,null,null,null,null,null,null,null,null,null,"APS Display/Signal",null,null,"RRFBSignal #1","RRFBSignal #2","RRFBSignal #3",null,null,"RRFBSignalNumber",{"$f":"Y42","v":"RRFBSignal #1"},{"$f":"Z42","v":"RRFBSignal #2"},{"$f":"AA42","v":"RRFBSignal #3"},{"$f":"AE42","v":"RRFBSignal #1"},{"$f":"AF42","v":"RRFBSignal #2"},{"$f":"AG42","v":"RRFBSignal #3"}]
[null,null,null,null,null,null,null,null,null,null,null,null,null,null,null,null,null,null,null,null,null,null,"Signal Support Pole",{"$f":"IF(COUNTIF(Y43:AA43,\"Shared\")=1,\"INVALID - Check Support Pole\",\"\")","v":""},null,null,null,null,null,"NumberSignalsOnSupportPole",{"$f":"IF(ISBLANK(Y43),\"no data\",Y43)","v":"no data"},{"$f":"IF(ISBLANK(Z43),\"no data\",Z43)","v":"no data"},{"$f":"IF(ISBLANK(AA43),\"no data\",AA43)","v":"no data"}]
[null,null,null,null,null,null,null,null,null,null,null,null,null,null,null,null,null,null,null,null,null,"Distance"]
[null,null,null,null,null,null,null,null,null,null,null,null,null,null,null,null,null,null,null,null,null,{"$f":"IF(ISBLANK(Y45),\"\",IF(COUNTIF(Y45,\">=10\"),\"pass\",\"FAIL\"))","v":""},"Between \nSignals 1-2","If separated, \n10 ft Min ",null,null,null,null,null,"DistBetween1and2",{"$f":"IF(AND(Y43=\"Shared\",Z43=\"Shared\"),\"NA\",IF(COUNTIF(Y43:AA43,\"Shared\")>2,\"NA\",IF(AND(ISBLANK(Y45),Z43<>\"NA\"),\"no data\",IF(AND(ISBLANK(Y45),Z43=\"NA\"),\"NA\",Y45))))","v":"no data"},{"$f":"IF(AND(Z43=\"NA\",AA43=\"NA\"),\"NA\",IF(AND(Y43=\"Shared\",Z43=\"Shared\"),\"NA\",IF(COUNTIF(Y43:AA43,\"Shared\")>2,\"NA\",IF(ISBLANK(Y45),\"no data\",Y45))))","v":"no data"},"NA"]
[null,null,null,null,null,null,null,null,null,null,null,null,null,null,null,null,null,null,null,null,null,{"$f":"IF(ISBLANK(Y46),\"\",IF(COUNTIF(Y46,\">=10\"),\"pass\",\"FAIL\"))","v":""},"Between \nSignals 2-3","If separated, \n10 ft Min ",null,null,null,null,null,"DistBetween2and3","NA",{"$f":"IF(AND(Z43=\"Shared\",AA43=\"Shared\"),\"NA\",IF(AA43=\"NA\",\"NA\",IF(COUNTIF(Y43:AA43,\"Shared\")>2,\"NA\",IF(ISBLANK(Y46),\"no data\",Y46))))","v":"no data"},{"$f":"IF(AND(Z43=\"Shared\",AA43=\"Shared\"),\"NA\",IF(AA43=\"NA\",\"NA\",IF(COUNTIF(Y43:AA43,\"Shared\")>2,\"NA\",IF(ISBLANK(Y46),\"no data\",Y46))))","v":"no data"}]
[null,null,null,null,null,null,null,null,null,null,null,null,null,null,null,null,null,null,null,null,null,{"$f":"IF(ISBLANK(Y47),\"\",IF(COUNTIF(Y47,\">=10\"),\"pass\",\"FAIL\"))","v":""},"Between \nSignals 3-1","If separated, \n10 ft Min ",null,null,null,null,null,"DistBetween3and1",{"$f":"IF(AA43=\"NA\",\"NA\",IF(AND(Z43=\"NA\",AA43=\"NA\"),\"NA\",IF(AND(Y43=\"Shared\",AA43=\"Shared\"),\"NA\",IF(COUNTIF(Y43:AA43,\"Shared\")>2,\"NA\",IF(ISBLANK(Y47),\"no data\",Y47)))))","v":"no data"},"NA",{"$f":"IF(AND(Y43=\"Shared\",AA43=\"Shared\"),\"NA\",IF(AA43=\"NA\",\"NA\",IF(COUNTIF(Y43:AA43,\"Shared\")>2,\"NA\",IF(ISBLANK(Y47),\"no data\",Y47))))","v":"no data"}]
[null,null,null,null,null,null,null,null,null,null,null,null,null,null,null,null,null,null,null,null,null,"RRFB Height (FB Pole Only)"]
[]
[null,null,null,null,null,null,null,null,null,null,null,null,null,null,null,null,null,null,null,null,null,{"$f":"IF(AND($Y50=\"\",$Y$43=\"\",$Z$43=\"\",$AA$43=\"\"),\"\",IF(COUNTIF(AH50:AJ50,\"FAIL\")>0,\"FAIL\",IF(COUNTIF(AH50:AJ50,\"incomplete\")>0,\"incomplete\",\"pass\")))","v":""},"RRFB Height","7 ft Min",null,null,null,null,null,"RRFBHeight",{"$f":"IF(ISBLANK(Y50),\"no data\",Y50)","v":"no data"},{"$f":"IF(Z50<>\"\",Z50,IF(AND(ISBLANK(Z50),$Z$10<>\"NA\"),\"no data\",\"NA\"))","v":"no data"},{"$f":"IF(AA50<>\"\",AA50,IF(AND(ISBLANK(AA50),$AA$10<>\"NA\"),\"no data\",\"NA\"))","v":"no data"},{"$f":"IF(AE50=\"no data\",\"incomplete\",IF(COUNTIF(AE50,\">=7\"),\"pass\",\"FAIL\"))","v":"incomplete"},{"$f":"IF(Z43=\"NA\",\"NA\",IF(COUNTIF(AF50,\"<7\"),\"FAIL\",IF(COUNTIF(AF50,\">=7\"),\"pass\",\"incomplete\")))","v":"incomplete"},{"$f":"IF(AA43=\"NA\",\"NA\",IF(COUNTIF(AG50,\"<7\"),\"FAIL\",IF(COUNTIF(AG50,\">=7\"),\"pass\",\"incomplete\")))","v":"incomplete"}]
[null,"Measurement Instrument \nSerial Number:",null,null,null,"Calibrated by:",null,null,null,"Date:",null,null,null,null,null,null,null,null,null,null,null,null,null,null,null,null,null,null,null,null,null,null,null,null,null,null,null,"BUTTON",null,"SIGNAL"]
[null,null,null,null,null,null,null,null,null,null,null,null,null,null,null,null,null,null,null,null,null,null,null,null,null,null,null,null,null,null,null,null,null,null,null,null,null,"Support Pole","Compliance","Support Pole","Compliance"]
[null,"1\" = 0.08'","2\" = 0.17'","3\" = 0.25'","4\" = 0.33'","5\" = 0.42'","6\" = 0.50'","7\" = 0.58'","8\" = 0.67'","9\" = 0.75'","10\" = 0.83'","11\" = 0.92'",null,null,null,null,null,null,null,null,null,null,null,null,null,null,null,null,null,"StructComp",{"$f":"IF(COUNTIF(V10:V52,\"FAIL\")>0,\"No\",IF(COUNTIF(V10:V52,\"pass\")=22,\"Yes\",\"incomplete\"))","v":"incomplete"},null,null,"Structurally Compliant?",null,null,null,"3 Separate",{"$f":"IF(COUNTIF(Y10:AA10,\"Separate\")=3,IF(COUNTIF(V13:V41,\"pass\")=19,\"pass\",\"incomplete\"))","v":false},"3 Separate",{"$f":"IF(COUNTIF(Y43:AA43,\"Separate\")=3,IF(COUNTIF(V43:V52,\"pass\")=5,\"pass\",\"incomplete\"))","v":false}]
[null,null,null,null,null,null,null,null,null,null,null,null,null,null,null,null,null,null,null,null,null,null,null,null,null,"Form Updated",null,null,null,null,null,null,null,null,null,null,null,"3 Shared",{"$f":"IF(COUNTIF(Y10:AA10,\"Shared\")=3,IF(COUNTIF(V13:V41,\"pass\")=16,\"pass\",\"incomplete\"))","v":false},"3 Shared",{"$f":"IF(COUNTIF(Y43:AA43,\"Shared\")=3,IF(COUNTIF(V43:V52,\"pass\")=2,\"pass\",\"incomplete\"))","v":false}]
[null,null,null,null,null,null,null,null,null,null,null,null,null,null,null,null,null,null,null,null,null,null,null,null,null,"2019-05-07",null,null,null,"WSDOTFeatureNumber",null,null,null,"Feature ID Code",null,null,null,"1 Sep; 2 NA",{"$f":"IF(AND(COUNTIFS(Y10:AA10,\"Separate\")=1,(COUNTIF(Y10:AA10,\"NA\")=2)),IF(COUNTIF(V13:V41,\"pass\")=16,\"pass\",\"incomplete\"))","v":false},"1 Sep; 2 NA",{"$f":"IF(AND(COUNTIFS(Y43:AA43,\"Separate\")=1,(COUNTIF(Y43:AA43,\"NA\")=2)),IF(COUNTIF(V43:V52,\"pass\")=2,\"pass\",\"incomplete\"))","v":false}]
[null,null,null,null,null,null,null,null,null,null,null,null,null,null,null,null,null,null,null,null,null,null,null,null,null,null,null,null,null,"FeatureLocationCode",{"$f":"J7","v":0},"From Plan Sheet",null,null,null,null,null,"2 Shared; NA",{"$f":"IF(AND(COUNTIFS(Y10:AA10,\"Shared\")=2,(COUNTIF(Y10:AA10,\"NA\")=1)),IF(COUNTIF(V13:V41,\"pass\")=16,\"pass\",\"incomplete\"))","v":false},"2 Shared; NA",{"$f":"IF(AND(COUNTIFS(Y43:AA43,\"Shared\")=2,(COUNTIF(Y43:AA43,\"NA\")=1)),IF(COUNTIF(V43:V52,\"pass\")=2,\"pass\",\"incomplete\"))","v":false}]
[null,null,null,null,null,null,null,null,null,null,null,null,null,null,null,null,null,null,null,null,null,null,null,null,null,null,null,null,null,"Note",{"$f":"B58","v":0},null,null," ",null,null,null,"2 Sep; NA",{"$f":"IF(AND(COUNTIFS(Y10:AA10,\"Separate\")=2,(COUNTIF(Y10:AA10,\"NA\")=1)),IF(COUNTIF(V13:V41,\"pass\")>=16,\"pass\",\"incomplete\"))","v":false},"2 Sep; NA",{"$f":"IF(AND(COUNTIFS(Y43:AA43,\"Separate\")=2,(COUNTIF(Y43:AA43,\"NA\")=1)),IF(COUNTIF(V43:V52,\"pass\")=3,\"pass\",\"incomplete\"))","v":false}]
[null,null,null,null,null,null,null,null,null,null,null,null,null,null,null,null,null,null,null,null,null,null,null,null,null,null,null,null,null,"CrossStreet",{"$f":"J5","v":0}," ",null," ",null,null,null,"Sep; 2 Sh",{"$f":"IF(AND(COUNTIFS(Y10:AA10,\"Shared\")=2,(COUNTIF(Y10:AA10,\"Separate\")=1)),IF(COUNTIF(V13:V41,\"pass\")=18,\"pass\",\"incomplete\"))","v":false},"Sep; 2 Sh",{"$f":"IF(AND(COUNTIFS(Y43:AA43,\"Shared\")=2,(COUNTIF(Y43:AA43,\"Separate\")=1)),IF(COUNTIF(V43:V52,\"pass\")=4,\"pass\",\"incomplete\"))","v":false}]
[null,null,null,null,null,null,null,null,null,null,null,null,null,null,null,null,null,null,null,null,null,null,null,null,null,null,null,null,null,"CornerSide",{"$f":"O5","v":0},null,null," "]
[null,null,null,null,null,null,null,null,null,null,null,null,null,null,null,null,null,null,null,null,null,null,null,null,null,null,null,null,null,"PlanShtRef",{"$f":"J6","v":0}," ",null," "]
[null,null,null,null,null,null,null,null,null,null,null,null,null,null,null,null,null,null,null,null,null,null,null,null,null,null,null,null,null,"SiteHist",{"$f":"J8","v":0}," "]
[null,null,null,null,null,null,null,null,null,null,null,null,null,null,null,null,null,null,null,null,null,null,null,null,null,null,null,null,null,"Station",{"$f":"V5","v":0}]